Workbook

Sheet distances
A1: 0 | B1: SAINT-NAZAIRE | C1: PONTCHATEAU | D1: 1790
A2: 0 | B2: SAINT-NAZAIRE | C2: SAINT-SEBASTIEN-SUR-LOIRE | D2: 3501
A3: 0 | B3: SAINT-NAZAIRE | C3: PORNIC | D3: 2037
A4: 0 | B4: SAINT-NAZAIRE | C4: REZE | D4: 3089
A5: 0 | B5: SAINT-NAZAIRE | C5: SAINT-BREVIN-LES-PINS | D5: 1131
A6: 0 | B6: SAINT-NAZAIRE | C6: VALLET | D6: 3931
A7: 0 | B7: SAINT-NAZAIRE | C7: MACHECOUL | D7: 3122
A8: 0 | B8: SAINT-NAZAIRE | C8: GUERANDE | D8: 1305
A9: 0 | B9: SAINT-NAZAIRE | C9: SAINT-PHILBERT-DE-GRAND-LIEU | D9: 3780
A10: 0 | B10: SAINT-NAZAIRE | C10: LA BAULE-ESCOUBLAC | D10: 1274
A11: 0 | B11: SAINT-NAZAIRE | C11: LA CHAPELLE-SUR-ERDRE | D11: 3085
A12: 0 | B12: SAINT-NAZAIRE | C12: CHATEAUBRIANT | D12: 4918
A13: 0 | B13: SAINT-NAZAIRE | C13: ANCENIS | D13: 4183
A14: 0 | B14: SAINT-NAZAIRE | C14: BLAIN | D14: 2577
A15: 0 | B15: SAINT-NAZAIRE | C15: CARQUEFOU | D15: 3111
A16: 0 | B16: SAINT-NAZAIRE | C16: VERTOU | D16: 3636
A17: 0 | B17: SAINT-NAZAIRE | C17: NORT-SUR-ERDRE | D17: 3468
A18: 0 | B18: SAINT-NAZAIRE | C18: SAINT-HERBLAIN | D18: 2809
A19: 0 | B19: SAINT-NAZAIRE | C19: GUEMENE-PENFAO | D19: 3230
A20: 0 | B20: SAINT-NAZAIRE | C20: NANTES | D20: 3577
A21: 0 | B21: SAINT-NAZAIRE | C21: CLISSON | D21: 4461
A22: 1 | B22: MACHECOUL | C22: PONTCHATEAU | D22: 3703
A23: 1 | B23: MACHECOUL | C23: SAINT-SEBASTIEN-SUR-LOIRE | D23: 2011
A24: 1 | B24: MACHECOUL | C24: CLISSON | D24: 2867
A25: 1 | B25: MACHECOUL | C25: PORNIC | D25: 1967
A26: 1 | B26: MACHECOUL | C26: REZE | D26: 1864
A27: 1 | B27: MACHECOUL | C27: SAINT-BREVIN-LES-PINS | D27: 2260
A28: 1 | B28: MACHECOUL | C28: VALLET | D28: 2655
A29: 1 | B29: MACHECOUL | C29: GUERANDE | D29: 3551
A30: 1 | B30: MACHECOUL | C30: SAINT-PHILBERT-DE-GRAND-LIEU | D30: 857
A31: 1 | B31: MACHECOUL | C31: LA BAULE-ESCOUBLAC | D31: 3520
A32: 1 | B32: MACHECOUL | C32: LA CHAPELLE-SUR-ERDRE | D32: 2658
A33: 1 | B33: MACHECOUL | C33: CHATEAUBRIANT | D33: 5014
A34: 1 | B34: MACHECOUL | C34: ANCENIS | D34: 3368
A35: 1 | B35: MACHECOUL | C35: BLAIN | D35: 3725
A36: 1 | B36: MACHECOUL | C36: CARQUEFOU | D36: 2250
A37: 1 | B37: MACHECOUL | C37: VERTOU | D37: 1940
A38: 1 | B38: MACHECOUL | C38: NORT-SUR-ERDRE | D38: 3401
A39: 1 | B39: MACHECOUL | C39: SAINT-HERBLAIN | D39: 2220
A40: 1 | B40: MACHECOUL | C40: GUEMENE-PENFAO | D40: 4498
A41: 1 | B41: MACHECOUL | C41: NANTES | D41: 2280
A42: 2 | B42: LA BAULE-ESCOUBLAC | C42: PONTCHATEAU | D42: 2077
A43: 2 | B43: LA BAULE-ESCOUBLAC | C43: SAINT-SEBASTIEN-SUR-LOIRE | D43: 3788
A44: 2 | B44: LA BAULE-ESCOUBLAC | C44: CLISSON | D44: 4748
A45: 2 | B45: LA BAULE-ESCOUBLAC | C45: PORNIC | D45: 2338
A46: 2 | B46: LA BAULE-ESCOUBLAC | C46: REZE | D46: 3376
A47: 2 | B47: LA BAULE-ESCOUBLAC | C47: SAINT-BREVIN-LES-PINS | D47: 1433
A48: 2 | B48: LA BAULE-ESCOUBLAC | C48: VALLET | D48: 4217
A49: 2 | B49: LA BAULE-ESCOUBLAC | C49: GUERANDE | D49: 781
A50: 2 | B50: LA BAULE-ESCOUBLAC | C50: SAINT-PHILBERT-DE-GRAND-LIEU | D50: 4081
A51: 2 | B51: LA BAULE-ESCOUBLAC | C51: LA CHAPELLE-SUR-ERDRE | D51: 3372
A52: 2 | B52: LA BAULE-ESCOUBLAC | C52: CHATEAUBRIANT | D52: 5205
A53: 2 | B53: LA BAULE-ESCOUBLAC | C53: ANCENIS | D53: 4469
A54: 2 | B54: LA BAULE-ESCOUBLAC | C54: BLAIN | D54: 2864
A55: 2 | B55: LA BAULE-ESCOUBLAC | C55: CARQUEFOU | D55: 3397
A56: 2 | B56: LA BAULE-ESCOUBLAC | C56: VERTOU | D56: 3922
A57: 2 | B57: LA BAULE-ESCOUBLAC | C57: NORT-SUR-ERDRE | D57: 3755
A58: 2 | B58: LA BAULE-ESCOUBLAC | C58: SAINT-HERBLAIN | D58: 3096
A59: 2 | B59: LA BAULE-ESCOUBLAC | C59: GUEMENE-PENFAO | D59: 3516
A60: 2 | B60: LA BAULE-ESCOUBLAC | C60: NANTES | D60: 3864
A61: 3 | B61: ANCENIS | C61: PONTCHATEAU | D61: 3430
A62: 3 | B62: ANCENIS | C62: SAINT-SEBASTIEN-SUR-LOIRE | D62: 2080
A63: 3 | B63: ANCENIS | C63: PORNIC | D63: 4286
A64: 3 | B64: ANCENIS | C64: REZE | D64: 2486
A65: 3 | B65: ANCENIS | C65: SAINT-BREVIN-LES-PINS | D65: 4133
A66: 3 | B66: ANCENIS | C66: VERTOU | D66: 2390
A67: 3 | B67: ANCENIS | C67: GUERANDE | D67: 4539
A68: 3 | B68: ANCENIS | C68: SAINT-PHILBERT-DE-GRAND-LIEU | D68: 2966
A69: 3 | B69: ANCENIS | C69: LA CHAPELLE-SUR-ERDRE | D69: 1836
A70: 3 | B70: ANCENIS | C70: CHATEAUBRIANT | D70: 3015
A71: 3 | B71: ANCENIS | C71: VALLET | D71: 1693
A72: 3 | B72: ANCENIS | C72: BLAIN | D72: 2961
A73: 3 | B73: ANCENIS | C73: CARQUEFOU | D73: 1426
A74: 3 | B74: ANCENIS | C74: CLISSON | D74: 2514
A75: 3 | B75: ANCENIS | C75: NORT-SUR-ERDRE | D75: 1743
A76: 3 | B76: ANCENIS | C76: SAINT-HERBLAIN | D76: 2360
A77: 3 | B77: ANCENIS | C77: GUEMENE-PENFAO | D77: 3758
A78: 3 | B78: ANCENIS | C78: NANTES | D78: 2532
A79: 4 | B79: SAINT-BREVIN-LES-PINS | C79: PONTCHATEAU | D79: 1783
A80: 4 | B80: SAINT-BREVIN-LES-PINS | C80: SAINT-SEBASTIEN-SUR-LOIRE | D80: 3374
A81: 4 | B81: SAINT-BREVIN-LES-PINS | C81: PORNIC | D81: 1181
A82: 4 | B82: SAINT-BREVIN-LES-PINS | C82: REZE | D82: 2749
A83: 4 | B83: SAINT-BREVIN-LES-PINS | C83: VERTOU | D83: 3327
A84: 4 | B84: SAINT-BREVIN-LES-PINS | C84: GUERANDE | D84: 1631
A85: 4 | B85: SAINT-BREVIN-LES-PINS | C85: SAINT-PHILBERT-DE-GRAND-LIEU | D85: 2924
A86: 4 | B86: SAINT-BREVIN-LES-PINS | C86: LA CHAPELLE-SUR-ERDRE | D86: 3078
A87: 4 | B87: SAINT-BREVIN-LES-PINS | C87: CHATEAUBRIANT | D87: 4911
A88: 4 | B88: SAINT-BREVIN-LES-PINS | C88: VALLET | D88: 3923
A89: 4 | B89: SAINT-BREVIN-LES-PINS | C89: BLAIN | D89: 2570
A90: 4 | B90: SAINT-BREVIN-LES-PINS | C90: CARQUEFOU | D90: 3103
A91: 4 | B91: SAINT-BREVIN-LES-PINS | C91: CLISSON | D91: 4454
A92: 4 | B92: SAINT-BREVIN-LES-PINS | C92: NORT-SUR-ERDRE | D92: 3461
A93: 4 | B93: SAINT-BREVIN-LES-PINS | C93: SAINT-HERBLAIN | D93: 2802
A94: 4 | B94: SAINT-BREVIN-LES-PINS | C94: GUEMENE-PENFAO | D94: 3222
A95: 4 | B95: SAINT-BREVIN-LES-PINS | C95: NANTES | D95: 3481
A96: 5 | B96: REZE | C96: PONTCHATEAU | D96: 2405
A97: 5 | B97: REZE | C97: SAINT-SEBASTIEN-SUR-LOIRE | D97: 902
A98: 5 | B98: REZE | C98: PORNIC | D98: 2436
A99: 5 | B99: REZE | C99: LA CHAPELLE-SUR-ERDRE | D99: 1411
A100: 5 | B100: REZE | C100: VERTOU | D100: 1185
A101: 5 | B101: REZE | C101: GUERANDE | D101: 3514
A102: 5 | B102: REZE | C102: SAINT-HERBLAIN | D102: 941
A103: 5 | B103: REZE | C103: CLISSON | D103: 2453
A104: 5 | B104: REZE | C104: SAINT-PHILBERT-DE-GRAND-LIEU | D104: 1672
A105: 5 | B105: REZE | C105: VALLET | D105: 1874
A106: 5 | B106: REZE | C106: BLAIN | D106: 2446
A107: 5 | B107: REZE | C107: CARQUEFOU | D107: 1437
A108: 5 | B108: REZE | C108: CHATEAUBRIANT | D108: 3735
A109: 5 | B109: REZE | C109: NORT-SUR-ERDRE | D109: 2201
A110: 5 | B110: REZE | C110: GUEMENE-PENFAO | D110: 3219
A111: 5 | B111: REZE | C111: NANTES | D111: 865
A112: 6 | B112: SAINT-PHILBERT-DE-GRAND-LIEU | C112: PONTCHATEAU | D112: 3480
A113: 6 | B113: SAINT-PHILBERT-DE-GRAND-LIEU | C113: SAINT-SEBASTIEN-SUR-LOIRE | D113: 1581
A114: 6 | B114: SAINT-PHILBERT-DE-GRAND-LIEU | C114: PORNIC | D114: 2606
A115: 6 | B115: SAINT-PHILBERT-DE-GRAND-LIEU | C115: LA CHAPELLE-SUR-ERDRE | D115: 2228
A116: 6 | B116: SAINT-PHILBERT-DE-GRAND-LIEU | C116: VERTOU | D116: 1510
A117: 6 | B117: SAINT-PHILBERT-DE-GRAND-LIEU | C117: GUERANDE | D117: 4190
A118: 6 | B118: SAINT-PHILBERT-DE-GRAND-LIEU | C118: SAINT-HERBLAIN | D118: 2017
A119: 6 | B119: SAINT-PHILBERT-DE-GRAND-LIEU | C119: CHATEAUBRIANT | D119: 4624
A120: 6 | B120: SAINT-PHILBERT-DE-GRAND-LIEU | C120: VALLET | D120: 2224
A121: 6 | B121: SAINT-PHILBERT-DE-GRAND-LIEU | C121: BLAIN | D121: 3426
A122: 6 | B122: SAINT-PHILBERT-DE-GRAND-LIEU | C122: CARQUEFOU | D122: 1819
A123: 6 | B123: SAINT-PHILBERT-DE-GRAND-LIEU | C123: CLISSON | D123: 2436
A124: 6 | B124: SAINT-PHILBERT-DE-GRAND-LIEU | C124: NORT-SUR-ERDRE | D124: 2971
A125: 6 | B125: SAINT-PHILBERT-DE-GRAND-LIEU | C125: GUEMENE-PENFAO | D125: 4199
A126: 6 | B126: SAINT-PHILBERT-DE-GRAND-LIEU | C126: NANTES | D126: 1850
A127: 7 | B127: GUEMENE-PENFAO | C127: PONTCHATEAU | D127: 1955
A128: 7 | B128: GUEMENE-PENFAO | C128: SAINT-SEBASTIEN-SUR-LOIRE | D128: 3203
A129: 7 | B129: GUEMENE-PENFAO | C129: PORNIC | D129: 3882
A130: 7 | B130: GUEMENE-PENFAO | C130: LA CHAPELLE-SUR-ERDRE | D130: 2639
A131: 7 | B131: GUEMENE-PENFAO | C131: VERTOU | D131: 3513
A132: 7 | B132: GUEMENE-PENFAO | C132: GUERANDE | D132: 3382
A133: 7 | B133: GUEMENE-PENFAO | C133: SAINT-HERBLAIN | D133: 2892
A134: 7 | B134: GUEMENE-PENFAO | C134: CHATEAUBRIANT | D134: 2235
A135: 7 | B135: GUEMENE-PENFAO | C135: VALLET | D135: 3632
A136: 7 | B136: GUEMENE-PENFAO | C136: BLAIN | D136: 916
A137: 7 | B137: GUEMENE-PENFAO | C137: CARQUEFOU | D137: 2812
A138: 7 | B138: GUEMENE-PENFAO | C138: CLISSON | D138: 4163
A139: 7 | B139: GUEMENE-PENFAO | C139: NORT-SUR-ERDRE | D139: 1962
A140: 7 | B140: GUEMENE-PENFAO | C140: NANTES | D140: 3227
A141: 8 | B141: NORT-SUR-ERDRE | C141: PONTCHATEAU | D141: 2737
A142: 8 | B142: NORT-SUR-ERDRE | C142: SAINT-SEBASTIEN-SUR-LOIRE | D142: 2169
A143: 8 | B143: NORT-SUR-ERDRE | C143: PORNIC | D143: 3943
A144: 8 | B144: NORT-SUR-ERDRE | C144: LA CHAPELLE-SUR-ERDRE | D144: 1299
A145: 8 | B145: NORT-SUR-ERDRE | C145: VERTOU | D145: 2479
A146: 8 | B146: NORT-SUR-ERDRE | C146: GUERANDE | D146: 3801
A147: 8 | B147: NORT-SUR-ERDRE | C147: SAINT-HERBLAIN | D147: 2017
A148: 8 | B148: NORT-SUR-ERDRE | C148: CHATEAUBRIANT | D148: 2254
A149: 8 | B149: NORT-SUR-ERDRE | C149: VALLET | D149: 2599
A150: 8 | B150: NORT-SUR-ERDRE | C150: BLAIN | D150: 1216
A151: 8 | B151: NORT-SUR-ERDRE | C151: CARQUEFOU | D151: 1457
A152: 8 | B152: NORT-SUR-ERDRE | C152: CLISSON | D152: 3129
A153: 8 | B153: NORT-SUR-ERDRE | C153: NANTES | D153: 2290
A154: 9 | B154: PORNIC | C154: PONTCHATEAU | D154: 2489
A155: 9 | B155: PORNIC | C155: SAINT-SEBASTIEN-SUR-LOIRE | D155: 2970
A156: 9 | B156: PORNIC | C156: LA CHAPELLE-SUR-ERDRE | D156: 3171
A157: 9 | B157: PORNIC | C157: VERTOU | D157: 2924
A158: 9 | B158: PORNIC | C158: GUERANDE | D158: 2337
A159: 9 | B159: PORNIC | C159: SAINT-HERBLAIN | D159: 2702
A160: 9 | B160: PORNIC | C160: CHATEAUBRIANT | D160: 5496
A161: 9 | B161: PORNIC | C161: VALLET | D161: 3613
A162: 9 | B162: PORNIC | C162: BLAIN | D162: 3275
A163: 9 | B163: PORNIC | C163: CARQUEFOU | D163: 3197
A164: 9 | B164: PORNIC | C164: CLISSON | D164: 4193
A165: 9 | B165: PORNIC | C165: NANTES | D165: 3077
A166: 10 | B166: LA CHAPELLE-SUR-ERDRE | C166: PONTCHATEAU | D166: 2311
A167: 10 | B167: LA CHAPELLE-SUR-ERDRE | C167: VALLET | D167: 1736
A168: 10 | B168: LA CHAPELLE-SUR-ERDRE | C168: VERTOU | D168: 1616
A169: 10 | B169: LA CHAPELLE-SUR-ERDRE | C169: GUERANDE | D169: 3420
A170: 10 | B170: LA CHAPELLE-SUR-ERDRE | C170: SAINT-HERBLAIN | D170: 1241
A171: 10 | B171: LA CHAPELLE-SUR-ERDRE | C171: CHATEAUBRIANT | D171: 3229
A172: 10 | B172: LA CHAPELLE-SUR-ERDRE | C172: SAINT-SEBASTIEN-SUR-LOIRE | D172: 1306
A173: 10 | B173: LA CHAPELLE-SUR-ERDRE | C173: BLAIN | D173: 1940
A174: 10 | B174: LA CHAPELLE-SUR-ERDRE | C174: CARQUEFOU | D174: 838
A175: 10 | B175: LA CHAPELLE-SUR-ERDRE | C175: CLISSON | D175: 2266
A176: 10 | B176: LA CHAPELLE-SUR-ERDRE | C176: NANTES | D176: 1413
A177: 11 | B177: SAINT-HERBLAIN | C177: PONTCHATEAU | D177: 2074
A178: 11 | B178: SAINT-HERBLAIN | C178: VALLET | D178: 2138
A179: 11 | B179: SAINT-HERBLAIN | C179: VERTOU | D179: 1430
A180: 11 | B180: SAINT-HERBLAIN | C180: GUERANDE | D180: 3183
A181: 11 | B181: SAINT-HERBLAIN | C181: CHATEAUBRIANT | D181: 3617
A182: 11 | B182: SAINT-HERBLAIN | C182: SAINT-SEBASTIEN-SUR-LOIRE | D182: 1476
A183: 11 | B183: SAINT-HERBLAIN | C183: BLAIN | D183: 2194
A184: 11 | B184: SAINT-HERBLAIN | C184: CARQUEFOU | D184: 1318
A185: 11 | B185: SAINT-HERBLAIN | C185: CLISSON | D185: 2699
A186: 11 | B186: SAINT-HERBLAIN | C186: NANTES | D186: 1462
A187: 12 | B187: BLAIN | C187: PONTCHATEAU | D187: 1765
A188: 12 | B188: BLAIN | C188: VALLET | D188: 2833
A189: 12 | B189: BLAIN | C189: GUERANDE | D189: 2828
A190: 12 | B190: BLAIN | C190: CHATEAUBRIANT | D190: 2550
A191: 12 | B191: BLAIN | C191: SAINT-SEBASTIEN-SUR-LOIRE | D191: 2403
A192: 12 | B192: BLAIN | C192: VERTOU | D192: 2713
A193: 12 | B193: BLAIN | C193: CARQUEFOU | D193: 2013
A194: 12 | B194: BLAIN | C194: CLISSON | D194: 3363
A195: 12 | B195: BLAIN | C195: NANTES | D195: 2427
A196: 13 | B196: CARQUEFOU | C196: PONTCHATEAU | D196: 2386
A197: 13 | B197: CARQUEFOU | C197: VALLET | D197: 1454
A198: 13 | B198: CARQUEFOU | C198: GUERANDE | D198: 3494
A199: 13 | B199: CARQUEFOU | C199: CHATEAUBRIANT | D199: 3168
A200: 13 | B200: CARQUEFOU | C200: SAINT-SEBASTIEN-SUR-LOIRE | D200: 1024
... 31 more rows

Sheet TableauCroiséCommunes44
A1: Villes Origines \ Destinations | B1: NANTES | C1: SAINT-NAZAIRE | D1: SAINT-HERBLAIN | E1: REZE | F1: SAINT-SEBASTIEN-SUR-LOIRE | G1: ORVAULT | H1: VERTOU | I1: COUERON | J1: CARQUEFOU | K1: BOUGUENAIS | L1: LA CHAPELLE-SUR-ERDRE | M1: GUERANDE | N1: LA BAULE-ESCOUBLAC | O1: PORNIC | P1: SAINTE-LUCE-SUR-LOIRE | Q1: SAINT-BREVIN-LES-PINS | R1: CHATEAUBRIANT | S1: PORNICHET | T1: PONTCHATEAU | U1: BLAIN | V1: VALLET | W1: SAINT-PHILBERT-DE-GRAND-LIEU | X1: THOUARE-SUR-LOIRE | Y1: BASSE-GOULAINE | Z1: NORT-SUR-ERDRE | AA1: TREILLIERES | AB1: SAVENAY | AC1: LES SORINIERES | AD1: LE LOROUX-BOTTEREAU | AE1: ANCENIS | AF1: TRIGNAC | AG1: DONGES | AH1: SAUTRON | AI1: MONTOIR-DE-BRETAGNE | AJ1: SAINT-JULIEN-DE-CONCELLES | AK1: SAINT-ETIENNE-DE-MONTLUC | AL1: CLISSON | AM1: SUCE-SUR-ERDRE | AN1: HERBIGNAC | AO1: BOUAYE | AP1: MACHECOUL | AQ1: SAINTE-PAZANNE | AR1: PONT-SAINT-MARTIN | AS1: SAINT-ANDRE-DES-EAUX | AT1: HERIC | AU1: VIGNEUX-DE-BRETAGNE | AV1: HAUTE-GOULAINE | AW1: SAINT-JEAN-DE-BOISEAU | AX1: LA CHAPELLE-BASSE-MER | AY1: GUEMENE-PENFAO | AZ1: LA CHEVROLIERE | BA1: GRANDCHAMPS-DES-FONTAINES | BB1: MISSILLAC | BC1: PLESSE | BD1: LE POULIGUEN | BE1: LIGNE | BF1: LE PELLERIN | BG1: MESANGER | BH1: LA TURBALLE | BI1: SAINT-MICHEL-CHEF-CHEF | BJ1: GORGES | BK1: SAINT-LYPHARD | BL1: LA HAIE-FOUASSIERE | BM1: LEGE | BN1: SAINT-MARS-DU-DESERT | BO1: SAINT-PERE-EN-RETZ | BP1: LE CROISIC | BQ1: INDRE | BR1: ARTHON-EN-RETZ | BS1: SAINT-JOACHIM | BT1: LA PLAINE-SUR-MER | BU1: VIEILLEVIGNE | BV1: LA CHAPELLE-DES-MARAIS | BW1: NOZAY | BX1: CAMPBON | BY1: LE CELLIER | BZ1: SAFFRE | CA1: GENESTON | CB1: SAINT-AIGNAN-GRANDLIEU | CC1: VARADES | CD1: OUDON | CE1: SAINT-GILDAS-DES-BOIS | CF1: PETIT-MARS | CG1: BOURGNEUF-EN-RETZ | CH1: GETIGNE | CI1: LE BIGNON | CJ1: DERVAL | CK1: AIGREFEUILLE-SUR-MAINE | CL1: FAY-DE-BRETAGNE | CM1: CORDEMAIS | CN1: PRINQUIAU | CO1: MALVILLE | CP1: PAIMBOEUF | CQ1: GUENROUET | CR1: SAINT-MALO-DE-GUERSAC | CS1: LA CHAPELLE-HEULIN | CT1: SAINT-NICOLAS-DE-REDON | CU1: LE PALLET | CV1: MAUVES-SUR-LOIRE | CW1: FROSSAY | CX1: BATZ-SUR-MER | CY1: MONTBERT | CZ1: BOUVRON | DA1: ERBRAY | DB1: CHATEAU-THEBAUD | DC1: LE LANDREAU | DD1: PORT-SAINT-PERE | DE1: MAISDON-SUR-SEVRE | DF1: CROSSAC | DG1: LA CHAPELLE-LAUNAY | DH1: SAINT-GEREON | DI1: BESNE | DJ1: ROUANS | DK1: SAINTE-ANNE-SUR-BRIVET | DL1: CORSEPT | DM1: BOUSSAY | DN1: MOUZILLON | DO1: CORCOUE-SUR-LOGNE | DP1: CHAUVE | DQ1: LA BERNERIE-EN-RETZ | DR1: BRAINS | DS1: SAINT-MARS-DE-COUTAIS | DT1: AVESSAC | DU1: SAINT-HERBLON | DV1: LA PLANCHE | DW1: CHEMERE | DX1: SAINT-MARS-LA-JAILLE | DY1: LES TOUCHES | DZ1: SAINT-MOLF | EA1: COUFFE | EB1: FEGREAC | EC1: JOUE-SUR-ERDRE | ED1: SAINT-VIAUD | EE1: ROUGE | EF1: LA LIMOUZINIERE | EG1: SAINTE-REINE-DE-BRETAGNE | EH1: RIAILLE | EI1: PIRIAC-SUR-MER | EJ1: SAINT-HILAIRE-DE-CLISSON | EK1: CASSON | EL1: SAINT-HILAIRE-DE-CHALEONS | EM1: SAINT-LUMINE-DE-CLISSON | EN1: DREFFEAC | EO1: NOTRE-DAME-DES-LANDES | EP1: ANETZ | EQ1: SAINT-LUMINE-DE-COUTAIS | ER1: ABBARETZ | ES1: MOISDON-LA-RIVIERE | ET1: PAULX | EU1: MONNIERES | EV1: LE TEMPLE-DE-BRETAGNE | EW1: MOUZEIL | EX1: ISSE | EY1: ASSERAC | EZ1: BELLIGNE | FA1: TEILLE | FB1: MESQUER | FC1: REMOUILLE | FD1: TOUVOIS | FE1: SION-LES-MINES | FF1: LE GAVRE | FG1: SAINT-AUBIN-DES-CHATEAUX | FH1: SEVERAC | FI1: SAINT-ETIENNE-DE-MER-MORTE | FJ1: LA GRIGONNAIS | FK1: SAINT-LEGER-LES-VIGNES | FL1: LA REGRIPPIERE | FM1: SAINT-VINCENT-DES-LANDES | FN1: MARSAC-SUR-DON | FO1: LA CHEVALLERAIS | FP1: LA MEILLERAYE-DE-BRETAGNE | FQ1: LES MOUTIERS-EN-RETZ | FR1: LA MARNE | FS1: PANNECE | FT1: QUILLY | FU1: BARBECHAT | FV1: FRESNAY-EN-RETZ | FW1: PREFAILLES | FX1: JANS | FY1: LA REMAUDIERE | FZ1: SAINT-MEME-LE-TENU | GA1: SAINT-FIACRE-SUR-MAINE | GB1: LA ROCHE-BLANCHE | GC1: LA ROUXIERE | GD1: CONQUEREUIL | GE1: PUCEUL | GF1: MAUMUSSON | GG1: LUSANGER | GH1: TRANS-SUR-ERDRE | GI1: PIERRIC | GJ1: LE FRESNE-SUR-LOIRE | GK1: LA BOISSIERE-DU-DORE | GL1: POUILLE-LES-COTEAUX | GM1: SAINT-JULIEN-DE-VOUVANTES | GN1: LOUISFERT | GO1: CHEIX-EN-RETZ | GP1: BOUEE | GQ1: MONTRELAIS | GR1: LA CHAPELLE-GLAIN | GS1: TREFFIEUX | GT1: GRAND-AUVERNE | GU1: LA CHAPELLE-SAINT-SAUVEUR | GV1: LE PIN | GW1: VRITZ | GX1: LAVAU-SUR-LOIRE | GY1: RUFFIGNE | GZ1: MASSERAC | HA1: SAINT-SULPICE-DES-LANDES | HB1: VILLEPOT | HC1: NOYAL-SUR-BRUTZ | HD1: BONNOEUVRE | HE1: FERCE | HF1: PETIT-AUVERNE | HG1: MOUAIS | HH1: SOULVACHE | HI1: Sommes | HJ1: Moyenne
A2: NANTES | C2: 3717 | D2: 1556 | E2: 889 | F2: 910 | G2: 1537 | H2: 1337 | I2: 1876 | J2: 1337 | K2: 1130 | L2: 1472 | M2: 4007 | N2: 3976 | O2: 3122 | P2: 1165 | Q2: 3423 | R2: 3901 | S2: 3650 | T2: 2898 | U2: 2612 | V2: 1832 | W2: 1757 | X2: 1446 | Y2: 1199 | Z2: 2367 | AA2: 1584 | AB2: 2531 | AC2: 1166 | AD2: 1776 | AE2: 2455 | AF2: 3036 | AG2: 2962 | AH2: 1648 | AI2: 2954 | AJ2: 1640 | AK2: 2086 | AL2: 2362 | AM2: 1779 | AN2: 3708 | AO2: 1616 | AP2: 2174 | AQ2: 2002 | AR2: 1413 | AS2: 3794 | AT2: 1845 | AU2: 1887 | AV2: 1381 | AW2: 1577 | AX2: 1970 | AY2: 3385 | AZ2: 1639 | BA2: 1895 | BB2: 3069 | BC2: 3182 | BD2: 4324 | BE2: 2329 | BF2: 1780 | BG2: 2423 | BH2: 4574 | BI2: 3095 | BJ2: 2158 | BK2: 3975 | BL2: 1519 | BM2: 2661 | BN2: 1921 | BO2: 2748 | BP2: 4874 | BQ2: 12222 | BR2: 2333 | BS2: 3409 | BT2: 3294 | BU2: 2162 | BV2: 3443 | BW2: 2447 | BX2: 2529 | BY2: 1924 | BZ2: 2314 | CA2: 1480 | CB2: 1581 | CC2: 2888 | CD2: 2250 | CE2: 3278 | CF2: 1922 | CG2: 2719 | CH2: 2370 | CI2: 1273 | CJ2: 2822 | CK2: 1578 | CL2: 2412 | CM2: 2434 | CN2: 2517 | CO2: 2107 | CP2: 2903 | CQ2: 3177 | CR2: 3182 | CS2: 1688 | CT2: 3937 | CU2: 1763 | CV2: 1622 | CW2: 2383 | CX2: 4486 | CY2: 1595 | CZ2: 2617 | DA2: 3750 | DB2: 1542 | DC2: 2059 | DD2: 1666 | DE2: 1843 | DF2: 3254 | DG2: 2446 | DH2: 2311 | DI2: 3039 | DJ2: 1874 | DK2: 2965 | DL2: 3025 | DM2: 2798 | DN2: 1772 | DO2: 2018 | DP2: 2505 | DQ2: 2708 | DR2: 1512 | DS2: 1876 | DT2: 3978 | DU2: 2665 | DV2: 26716 | DW2: 2192 | DX2: 2958 | DY2: 2225 | DZ2: 4245 | EA2: 2179 | EB2: 3758 | EC2: 2574 | ED2: 2689 | EE2: 101466 | EF2: 2108 | EG2: 3154 | EH2: 3082 | EI2: 4856 | EJ2: 2177 | EK2: 2152 | EL2: 2184 | EM2: 1907 | EN2: 2958 | EO2: 2080 | EP2: 2624 | EQ2: 2008 | ER2: 2629 | ES2: 3341 | ET2: 2115 | EU2: 1760 | EV2: 1895 | EW2: 2589 | EX2: 3124 | EY2: 4121 | EZ2: 3181 | FA2: 2824 | FB2: 4436 | FC2: 1782 | FD2: 2464 | FE2: 3351 | FF2: 2589 | FG2: 3463 | FH2: 3478 | FI2: 2353 | FJ2: 2293 | FK2: 1587 | FL2: 2248 | FM2: 3003 | FN2: 2762 | FO2: 2280 | FP2: 3013 | FQ2: 2734 | FR2: 1953 | FS2: 2715 | FT2: 2786 | FU2: 2231 | FV2: 2482 | FW2: 3585 | FX2: 52176 | FY2: 2323 | FZ2: 2206 | GA2: 1688 | GB2: 17152 | GC2: 2906 | GD2: 3042 | GE2: 2202 | GF2: 2845 | GG2: 3073 | GH2: 2556 | GI2: 3116 | GJ2: 3464 | GK2: 2402 | GL2: 2623 | GM2: 3700 | GN2: 3299 | GO2: 1844 | GP2: 2438 | GQ2: 3337 | GR2: 3487 | GS2: 2705 | GT2: 3396 | GU2: 3285 | GV2: 16738 | GW2: 3378 | GX2: 2769 | GY2: 3696 | GZ2: 3845 | HA2: 3412 | HB2: 4362 | HC2: 4176 | HD2: 3113 | HE2: 4278 | HF2: 3648 | HG2: 3153 | HH2: 4354 | HI2: =SUM(B2:HH2) -> 768326 | HJ2: =AVERAGE(B2:HH2) -> 3590.308411
A3: SAINT-NAZAIRE | B3: 3717 | D3: 2809 | E3: 3089 | F3: 3501 | G3: 2865 | H3: 3636 | I3: 2882 | J3: 3111 | K3: 2897 | L3: 3085 | M3: 1305 | N3: 1274 | O3: 2037 | P3: 3135 | Q3: 1131 | R3: 4918 | S3: 948 | T3: 1790 | U3: 2577 | V3: 3931 | W3: 3780 | X3: 3491 | Y3: 3297 | Z3: 3468 | AA3: 2972 | AB3: 1664 | AC3: 3231 | AD3: 3875 | AE3: 4183 | AF3: 779 | AG3: 1362 | AH3: 2508 | AI3: 1043 | AJ3: 3739 | AK3: 2452 | AL3: 4461 | AM3: 3393 | AN3: 1903 | AO3: 3104 | AP3: 3122 | AQ3: 2944 | AR3: 3556 | AS3: 1144 | AT3: 2764 | AU3: 2280 | AV3: 3480 | AW3: 3241 | AX3: 4069 | AY3: 3230 | AZ3: 3962 | BA3: 3117 | BB3: 2205 | BC3: 2601 | BD3: 1622 | BE3: 4103 | BF3: 3250 | BG3: 4150 | BH3: 1872 | BI3: 1339 | BJ3: 4257 | BK3: 1706 | BL3: 3618 | BM3: 4165 | BN3: 3695 | BO3: 1808 | BP3: 2172 | BQ3: 14248 | BR3: 2274 | BS3: 1624 | BT3: 1870 | BU3: 4528 | BV3: 2097 | BW3: 3463 | BX3: 1886 | BY3: 3919 | BZ3: 3396 | CA3: 3846 | CB3: 3347 | CC3: 4615 | CD3: 4245 | CE3: 2464 | CF3: 3697 | CG3: 2367 | CH3: 4468 | CI3: 3639 | CJ3: 3792 | CK3: 3943 | CL3: 2215 | CM3: 2309 | CN3: 1383 | CO3: 1819 | CP3: 1597 | CQ3: 2596 | CR3: 1209 | CS3: 3787 | CT3: 3356 | CU3: 3862 | CV3: 3617 | CW3: 2153 | CX3: 1784 | CY3: 3961 | CZ3: 1988 | DA3: 4859 | DB3: 3907 | DC3: 4158 | DD3: 2937 | DE3: 4172 | DF3: 1576 | DG3: 1585 | DH3: 4038 | DI3: 1427 | DJ3: 2631 | DK3: 2065 | DL3: 1408 | DM3: 4897 | DN3: 3871 | DO3: 4273 | DP3: 2128 | DQ3: 2078 | DR3: 3223 | DS3: 3117 | DT3: 3397 | DU3: 4393 | DV3: 28444 | DW3: 2443 | DX3: 4685 | DY3: 3776 | DZ3: 1543 | EA3: 4174 | EB3: 3057 | EC3: 3989 | ED3: 1645 | EE3: 103194 | EF3: 4019 | EG3: 1848 | EH3: 4544 | EI3: 2155 | EJ3: 4542 | EK3: 3301 | EL3: 2725 | EM3: 4273 | EN3: 2145 | EO3: 2476 | EP3: 4351 | EQ3: 3474 | ER3: 3636 | ES3: 4449 | ET3: 3343 | EU3: 3859 | EV3: 1945 | EW3: 4159 | EX3: 4141 | EY3: 1851 | EZ3: 4909 | FA3: 4574 | FB3: 1734 | FC3: 4147 | FD3: 3751 | FE3: 4403 | FF3: 2896 | FG3: 4480 | FH3: 2636 | FI3: 3581 | FJ3: 3042 | FK3: 3085 | FL3: 4347 | FM3: 4019 | FN3: 3560 | FO3: 2969 | FP3: 4154 | FQ3: 2188 | FR3: 3342 | FS3: 4443 | FT3: 2205 | FU3: 4330 | FV3: 2655 | FW3: 2241 | FX3: 53904 | FY3: 4422 | FZ3: 3128 | GA3: 3887 | GB3: 18879 | GC3: 4633 | GD3: 3538 | GE3: 3209 | GF3: 4572 | GG3: 4127 | GH3: 4127 | GI3: 3647 | GJ3: 5192 | GK3: 4501 | GL3: 4351 | GM3: 5068 | GN3: 4316 | GO3: 2907 | GP3: 1960 | GQ3: 5065 | GR3: 5101 | GS3: 3721 | GT3: 4504 | GU3: 5012 | GV3: 19104 | GW3: 5105 | GX3: 1854 | GY3: 4713 | GZ3: 3614 | HA3: 5102 | HB3: 5379 | HC3: 5193 | HD3: 4769 | HE3: 5294 | HF3: 4756 | HG3: 4112 | HH3: 5371 | HI3: =SUM(B3:HH3) -> 918333 | HJ3: =AVERAGE(B3:HH3) -> 4291.275701
A4: SAINT-HERBLAIN | B4: 1556 | C4: 2809 | E4: 883 | F4: 1476 | G4: 986 | H4: 1430 | I4: 820 | J4: 1318 | K4: 691 | L4: 1293 | M4: 3183 | N4: 3152 | O4: 2683 | P4: 1343 | Q4: 2777 | R4: 3617 | S4: 2825 | T4: 2074 | U4: 2194 | V4: 2138 | W4: 1917 | X4: 1698 | Y4: 1390 | Z4: 2082 | AA4: 1299 | AB4: 1707 | AC4: 1026 | AD4: 2122 | AE4: 2390 | AF4: 2212 | AG4: 2137 | AH4: 824 | AI4: 2130 | AJ4: 1888 | AK4: 1250 | AL4: 2699 | AM4: 1600 | AN4: 2884 | AO4: 1177 | AP4: 2185 | AQ4: 1563 | AR4: 1350 | AS4: 2970 | AT4: 1560 | AU4: 1063 | AV4: 1687 | AW4: 1138 | AX4: 2217 | AY4: 2986 | AZ4: 1756 | BA4: 1610 | BB4: 2245 | BC4: 2357 | BD4: 3499 | BE4: 2311 | BF4: 1341 | BG4: 2358 | BH4: 3750 | BI4: 2656 | BJ4: 2362 | BK4: 3150 | BL4: 1791 | BM4: 2821 | BN4: 1903 | BO4: 2309 | BP4: 4049 | BQ4: 12455 | BR4: 1893 | BS4: 2585 | BT4: 2855 | BU4: 2322 | BV4: 2619 | BW4: 2162 | BX4: 1705 | BY4: 2126 | BZ4: 2029 | CA4: 1640 | CB4: 1142 | CC4: 2823 | CD4: 2452 | CE4: 2453 | CF4: 1904 | CG4: 2280 | CH4: 2676 | CI4: 1433 | CJ4: 2537 | CK4: 1738 | CL4: 1655 | CM4: 1610 | CN4: 1693 | CO4: 1282 | CP4: 2464 | CQ4: 2352 | CR4: 2358 | CS4: 1994 | CT4: 3113 | CU4: 2070 | CV4: 1825 | CW4: 1944 | CX4: 3662 | CY4: 1755 | CZ4: 1792 | DA4: 3584 | DB4: 1702 | DC4: 2365 | DD4: 1227 | DE4: 2003 | DF4: 2430 | DG4: 1622 | DH4: 2246 | DI4: 2214 | DJ4: 1435 | DK4: 2141 | DL4: 2586 | DM4: 3104 | DN4: 2079 | DO4: 2177 | DP4: 2066 | DQ4: 2269 | DR4: 1073 | DS4: 1437 | DT4: 3153 | DU4: 2600 | DV4: 26651 | DW4: 1753 | DX4: 2893 | DY4: 2207 | DZ4: 3420 | EA4: 2381 | EB4: 2934 | EC4: 2555 | ED4: 2250 | EE4: 101401 | EF4: 2268 | EG4: 2330 | EH4: 3016 | EI4: 4032 | EJ4: 2336 | EK4: 1893 | EL4: 1744 | EM4: 2067 | EN4: 2134 | EO4: 1595 | EP4: 2559 | EQ4: 2018 | ER4: 2344 | ES4: 3171 | ET4: 2275 | EU4: 2066 | EV4: 1071 | EW4: 2570 | EX4: 2839 | EY4: 3297 | EZ4: 3116 | FA4: 2817 | FB4: 3611 | FC4: 1942 | FD4: 2624 | FE4: 3066 | FF4: 2305 | FG4: 3179 | FH4: 2653 | FI4: 2513 | FJ4: 2009 | FK4: 1148 | FL4: 2555 | FM4: 2718 | FN4: 2477 | FO4: 1995 | FP4: 2863 | FQ4: 2295 | FR4: 2113 | FS4: 2650 | FT4: 1962 | FU4: 2543 | FV4: 2183 | FW4: 3145 | FX4: 52111 | FY4: 2634 | FZ4: 2002 | GA4: 1812 | GB4: 17087 | GC4: 2841 | GD4: 2758 | GE4: 1917 | GF4: 2780 | GG4: 2788 | GH4: 2537 | GI4: 2831 | GJ4: 3399 | GK4: 2708 | GL4: 2558 | GM4: 3635 | GN4: 3015 | GO4: 1405 | GP4: 1614 | GQ4: 3272 | GR4: 3422 | GS4: 2420 | GT4: 3212 | GU4: 3220 | GV4: 16898 | GW4: 3313 | GX4: 1944 | GY4: 3412 | GZ4: 3371 | HA4: 3347 | HB4: 4078 | HC4: 3892 | HD4: 3048 | HE4: 3993 | HF4: 3464 | HG4: 2868 | HH4: 4070 | HI4: 709806 | HJ4: 3316.850467
A5: REZE | B5: 889 | C5: 3089 | D5: 883 | F5: 902 | G5: 1245 | H5: 1185 | I5: 1389 | J5: 1437 | K5: 444 | L5: 1411 | M5: 3514 | N5: 3483 | O5: 2436 | P5: 1286 | Q5: 2737 | R5: 3735 | S5: 3156 | T5: 2405 | U5: 2446 | V5: 1874 | W5: 1672 | X5: 1541 | Y5: 1145 | Z5: 2201 | AA5: 1418 | AB5: 2038 | AC5: 780 | AD5: 1877 | AE5: 2509 | AF5: 2543 | AG5: 2468 | AH5: 1155 | AI5: 2461 | AJ5: 1642 | AK5: 1593 | AL5: 2453 | AM5: 1719 | AN5: 3215 | AO5: 929 | AP5: 1938 | AQ5: 1316 | AR5: 970 | AS5: 3301 | AT5: 1679 | AU5: 1394 | AV5: 1423 | AW5: 891 | AX5: 1972 | AY5: 3219 | AZ5: 1376 | BA5: 1729 | BB5: 2576 | BC5: 2688 | BD5: 3830 | BE5: 2429 | BF5: 1094 | BG5: 2476 | BH5: 4081 | BI5: 2409 | BJ5: 2117 | BK5: 3481 | BL5: 1546 | BM5: 2576 | BN5: 2021 | BO5: 2062 | BP5: 4380 | BQ5: 12136 | BR5: 1646 | BS5: 2915 | BT5: 2608 | BU5: 2077 | BV5: 2950 | BW5: 2281 | BX5: 2036 | BY5: 2056 | BZ5: 2148 | CA5: 1395 | CB5: 895 | CC5: 2941 | CD5: 2382 | CE5: 2784 | CF5: 2023 | CG5: 2033 | CH5: 2412 | CI5: 1188 | CJ5: 2656 | CK5: 1492 | CL5: 1986 | CM5: 1941 | CN5: 2024 | CO5: 1613 | CP5: 2216 | CQ5: 2683 | CR5: 2689 | CS5: 1730 | CT5: 3444 | CU5: 1806 | CV5: 1755 | CW5: 1697 | CX5: 3993 | CY5: 1510 | CZ5: 2123 | DA5: 3703 | DB5: 1456 | DC5: 2101 | DD5: 980 | DE5: 1757 | DF5: 2761 | DG5: 1953 | DH5: 2364 | DI5: 2545 | DJ5: 1188 | DK5: 2472 | DL5: 2339 | DM5: 2840 | DN5: 1815 | DO5: 1932 | DP5: 1819 | DQ5: 2022 | DR5: 826 | DS5: 1190 | DT5: 3484 | DU5: 2719 | DV5: 26770 | DW5: 1506 | DX5: 3011 | DY5: 2326 | DZ5: 3751 | EA5: 2311 | EB5: 3265 | EC5: 2674 | ED5: 2003 | EE5: 101520 | EF5: 2023 | EG5: 2661 | EH5: 3135 | EI5: 4363 | EJ5: 2091 | EK5: 2012 | EL5: 1497 | EM5: 1822 | EN5: 2465 | EO5: 1914 | EP5: 2677 | EQ5: 1771 | ER5: 2463 | ES5: 3290 | ET5: 2029 | EU5: 1802 | EV5: 1402 | EW5: 2689 | EX5: 2958 | EY5: 3627 | EZ5: 3235 | FA5: 2935 | FB5: 3942 | FC5: 1696 | FD5: 2379 | FE5: 3185 | FF5: 2423 | FG5: 3298 | FH5: 2984 | FI5: 2268 | FJ5: 2128 | FK5: 901 | FL5: 2291 | FM5: 2837 | FN5: 2596 | FO5: 2114 | FP5: 2981 | FQ5: 2048 | FR5: 1868 | FS5: 2769 | FT5: 2293 | FU5: 2297 | FV5: 1936 | FW5: 2898 | FX5: 52230 | FY5: 2389 | FZ5: 1755 | GA5: 1567 | GB5: 17205 | GC5: 2959 | GD5: 2877 | GE5: 2036 | GF5: 2898 | GG5: 2907 | GH5: 2656 | GI5: 2950 | GJ5: 3518 | GK5: 2444 | GL5: 2677 | GM5: 3754 | GN5: 3133 | GO5: 1158 | GP5: 1944 | GQ5: 3391 | GR5: 3540 | GS5: 2539 | GT5: 3331 | GU5: 3338 | GV5: 16653 | GW5: 3431 | GX5: 2275 | GY5: 3530 | GZ5: 3679 | HA5: 3466 | HB5: 4196 | HC5: 4010 | HD5: 3167 | HE5: 4112 | HF5: 3583 | HG5: 2987 | HH5: 4188 | HI5: 715412 | HJ5: 3343.046729
A6: SAINT-SEBASTIEN-SUR-LOIRE | B6: 910 | C6: 3501 | D6: 1476 | E6: 902 | G6: 1307 | H6: 877 | I6: 1894 | J6: 801 | K6: 986 | L6: 1210 | M6: 3789 | N6: 3758 | O6: 2978 | P6: 618 | Q6: 3278 | R6: 3607 | S6: 3432 | T6: 2681 | U6: 2408 | V6: 1206 | W6: 1497 | X6: 873 | Y6: 448 | Z6: 1953 | AA6: 1379 | AB6: 2314 | AC6: 884 | AD6: 1216 | AE6: 1919 | AF6: 2818 | AG6: 2744 | AH6: 1539 | AI6: 2736 | AJ6: 974 | AK6: 1836 | AL6: 1737 | AM6: 1255 | AN6: 3490 | AO6: 1471 | AP6: 1914 | AQ6: 1857 | AR6: 1152 | AS6: 3576 | AT6: 1641 | AU6: 1669 | AV6: 877 | AW6: 1432 | AX6: 1304 | AY6: 3181 | AZ6: 1379 | BA6: 1691 | BB6: 2851 | BC6: 2964 | BD6: 4106 | BE6: 1794 | BF6: 1636 | BG6: 1887 | BH6: 4356 | BI6: 2951 | BJ6: 1532 | BK6: 3757 | BL6: 894 | BM6: 2401 | BN6: 1386 | BO6: 2604 | BP6: 4656 | BQ6: 11984 | BR6: 2188 | BS6: 3191 | BT6: 3150 | BU6: 1902 | BV6: 3225 | BW6: 2242 | BX6: 2311 | BY6: 1388 | BZ6: 2109 | CA6: 1220 | CB6: 1470 | CC6: 2352 | CD6: 1714 | CE6: 3060 | CF6: 1387 | CG6: 2574 | CH6: 1744 | CI6: 1013 | CJ6: 2617 | CK6: 1317 | CL6: 2208 | CM6: 2216 | CN6: 2299 | CO6: 1889 | CP6: 2758 | CQ6: 2959 | CR6: 2964 | CS6: 1062 | CT6: 3719 | CU6: 1138 | CV6: 1087 | CW6: 2239 | CX6: 4268 | CY6: 1335 | CZ6: 2399 | DA6: 3215 | DB6: 1281 | DC6: 1549 | DD6: 1522 | DE6: 1448 | DF6: 3036 | DG6: 2228 | DH6: 1775 | DI6: 2821 | DJ6: 1730 | DK6: 2747 | DL6: 2881 | DM6: 2172 | DN6: 1147 | DO6: 1757 | DP6: 2361 | DQ6: 2564 | DR6: 1367 | DS6: 1731 | DT6: 3760 | DU6: 2130 | DV6: 26181 | DW6: 2047 | DX6: 2422 | DY6: 1690 | DZ6: 4027 | EA6: 1644 | EB6: 3540 | EC6: 2038 | ED6: 2544 | EE6: 100931 | EF6: 1848 | EG6: 2936 | EH6: 2546 | EI6: 4639 | EJ6: 1916 | EK6: 1728 | EL6: 2039 | EM6: 1647 | EN6: 2740 | EO6: 1876 | EP6: 2088 | EQ6: 1747 | ER6: 2424 | ES6: 2805 | ET6: 1854 | EU6: 1134 | EV6: 1678 | EW6: 2053 | EX6: 2920 | EY6: 3903 | EZ6: 2645 | FA6: 2289 | FB6: 4218 | FC6: 1521 | FD6: 2204 | FE6: 3146 | FF6: 2385 | FG6: 3259 | FH6: 3260 | FI6: 2093 | FJ6: 2089 | FK6: 1442 | FL6: 1623 | FM6: 2798 | FN6: 2557 | FO6: 2075 | FP6: 2477 | FQ6: 2590 | FR6: 1693 | FS6: 2180 | FT6: 2568 | FU6: 1671 | FV6: 2221 | FW6: 3440 | FX6: 51641 | FY6: 1762 | FZ6: 1946 | GA6: 1259 | GB6: 16616 | GC6: 2370 | GD6: 2838 | GE6: 1998 | GF6: 2309 | GG6: 2868 | GH6: 2020 | GI6: 2911 | GJ6: 2929 | GK6: 1776 | GL6: 2088 | GM6: 3165 | GN6: 3095 | GO6: 1700 | GP6: 2220 | GQ6: 2802 | GR6: 2951 | GS6: 2500 | GT6: 2860 | GU6: 2749 | GV6: 16478 | GW6: 2842 | GX6: 2551 | GY6: 3492 | GZ6: 3641 | HA6: 2877 | HB6: 4067 | HC6: 3882 | HD6: 2578 | HE6: 4073 | HF6: 3112 | HG6: 2948 | HH6: 4150 | HI6: 700163 | HJ6: 3271.78972
A7: ORVAULT | B7: 1537 | C7: 2865 | D7: 986 | E7: 1245 | F7: 1307 | H7: 1636 | I7: 1451 | J7: 936 | K7: 1011 | L7: 718 | M7: 3255 | N7: 3224 | O7: 3002 | P7: 960 | Q7: 2850 | R7: 3057 | S7: 2898 | T7: 2147 | U7: 1768 | V7: 1756 | W7: 2236 | X7: 1316 | Y7: 1122 | Z7: 1523 | AA7: 698 | AB7: 1780 | AC7: 1345 | AD7: 1700 | AE7: 2007 | AF7: 2284 | AG7: 2210 | AH7: 870 | AI7: 2203 | AJ7: 1564 | AK7: 1303 | AL7: 2286 | AM7: 1226 | AN7: 2957 | AO7: 1496 | AP7: 2505 | AQ7: 1882 | AR7: 1669 | AS7: 3043 | AT7: 1001 | AU7: 1126 | AV7: 1305 | AW7: 1457 | AX7: 1893 | AY7: 2541 | AZ7: 2075 | BA7: 1089 | BB7: 2318 | BC7: 2421 | BD7: 3572 | BE7: 1928 | BF7: 1660 | BG7: 1975 | BH7: 3822 | BI7: 2975 | BJ7: 2081 | BK7: 3223 | BL7: 1443 | BM7: 3140 | BN7: 1520 | BO7: 2628 | BP7: 4122 | BQ7: 12072 | BR7: 2213 | BS7: 2657 | BT7: 3174 | BU7: 2641 | BV7: 2692 | BW7: 1603 | BX7: 1777 | BY7: 1743 | BZ7: 1470 | CA7: 1959 | CB7: 1461 | CC7: 2440 | CD7: 2070 | CE7: 2526 | CF7: 1521 | CG7: 2599 | CH7: 2293 | CI7: 1752 | CJ7: 1978 | CK7: 2057 | CL7: 1568 | CM7: 1682 | CN7: 1766 | CO7: 1355 | CP7: 2783 | CQ7: 2425 | CR7: 2431 | CS7: 1611 | CT7: 3170 | CU7: 1687 | CV7: 1442 | CW7: 2263 | CX7: 3734 | CY7: 2074 | CZ7: 1865 | DA7: 3025 | DB7: 2021 | DC7: 1982 | DD7: 1547 | DE7: 1997 | DF7: 2502 | DG7: 1695 | DH7: 1863 | DI7: 2287 | DJ7: 1754 | DK7: 2214 | DL7: 2905 | DM7: 2721 | DN7: 1696 | DO7: 2496 | DP7: 2385 | DQ7: 2588 | DR7: 1392 | DS7: 1756 | DT7: 3134 | DU7: 2218 | DV7: 26269 | DW7: 2072 | DX7: 2510 | DY7: 1831 | DZ7: 3493 | EA7: 1999 | EB7: 2991 | EC7: 2044 | ED7: 2569 | EE7: 101018 | EF7: 2587 | EG7: 2402 | EH7: 2598 | EI7: 4105 | EJ7: 2416 | EK7: 1334 | EL7: 2064 | EM7: 2203 | EN7: 2207 | EO7: 1304 | EP7: 2176 | EQ7: 2338 | ER7: 1785 | ES7: 2612 | ET7: 2594 | EU7: 1684 | EV7: 1144 | EW7: 2214 | EX7: 2280 | EY7: 3369 | EZ7: 2733 | FA7: 2434 | FB7: 3684 | FC7: 2261 | FD7: 2943 | FE7: 2507 | FF7: 1746 | FG7: 2620 | FH7: 2726 | FI7: 2832 | FJ7: 1450 | FK7: 1467 | FL7: 2172 | FM7: 2159 | FN7: 1918 | FO7: 1436 | FP7: 2303 | FQ7: 2614 | FR7: 2432 | FS7: 2267 | FT7: 2034 | FU7: 2155 | FV7: 2502 | FW7: 3465 | FX7: 51728 | FY7: 2246 | FZ7: 2322 | GA7: 1712 | GB7: 16704 | GC7: 2458 | GD7: 2199 | GE7: 1358 | GF7: 2397 | GG7: 2229 | GH7: 2181 | GI7: 2272 | GJ7: 3016 | GK7: 2325 | GL7: 2176 | GM7: 3217 | GN7: 2455 | GO7: 1724 | GP7: 1686 | GQ7: 2890 | GR7: 3039 | GS7: 1861 | GT7: 2653 | GU7: 2837 | GV7: 17217 | GW7: 2930 | GX7: 2017 | GY7: 2852 | GZ7: 3001 | HA7: 2965 | HB7: 3518 | HC7: 3333 | HD7: 2666 | HE7: 3434 | HF7: 2905 | HG7: 2309 | HH7: 3510 | HI7: 685295 | HJ7: 3202.313084
A8: VERTOU | B8: 1337 | C8: 3636 | D8: 1430 | E8: 1185 | F8: 877 | G8: 1636 | I8: 1943 | J8: 1176 | K8: 1036 | L8: 1584 | M8: 4068 | N8: 4037 | O8: 3027 | P8: 993 | Q8: 3328 | R8: 3981 | S8: 3711 | T8: 2960 | U8: 2782 | V8: 1390 | W8: 1521 | X8: 1248 | Y8: 885 | Z8: 2327 | AA8: 1754 | AB8: 2593 | AC8: 715 | AD8: 1364 | AE8: 2294 | AF8: 3097 | AG8: 3023 | AH8: 1710 | AI8: 3016 | AJ8: 1365 | AK8: 2148 | AL8: 1577 | AM8: 1629 | AN8: 3770 | AO8: 1521 | AP8: 1938 | AQ8: 1907 | AR8: 1158 | AS8: 3856 | AT8: 2015 | AU8: 1948 | AV8: 802 | AW8: 1482 | AX8: 1582 | AY8: 3555 | AZ8: 1403 | BA8: 2065 | BB8: 3131 | BC8: 3243 | BD8: 4385 | BE8: 2168 | BF8: 1685 | BG8: 2262 | BH8: 4635 | BI8: 3000 | BJ8: 1183 | BK8: 4036 | BL8: 612 | BM8: 2372 | BN8: 1760 | BO8: 2653 | BP8: 4935 | BQ8: 11981 | BR8: 2238 | BS8: 3470 | BT8: 3199 | BU8: 1820 | BV8: 3505 | BW8: 2617 | BX8: 2591 | BY8: 1763 | BZ8: 2484 | CA8: 1244 | CB8: 1529 | CC8: 2727 | CD8: 2089 | CE8: 3339 | CF8: 1761 | CG8: 2665 | CH8: 1584 | CI8: 874 | CJ8: 2992 | CK8: 1089 | CL8: 2540 | CM8: 2495 | CN8: 2579 | CO8: 2168 | CP8: 2808 | CQ8: 3238 | CR8: 3244 | CS8: 1099 | CT8: 3998 | CU8: 1059 | CV8: 1461 | CW8: 2288 | CX8: 4547 | CY8: 1165 | CZ8: 2678 | DA8: 3589 | DB8: 799 | DC8: 1470 | DD8: 1571 | DE8: 1036 | DF8: 3315 | DG8: 2508 | DH8: 2150 | DI8: 3100 | DJ8: 1779 | DK8: 3027 | DL8: 2930 | DM8: 2031 | DN8: 1331 | DO8: 1781 | DP8: 2410 | DQ8: 2613 | DR8: 1417 | DS8: 1781 | DT8: 4039 | DU8: 2504 | DV8: 26555 | DW8: 2097 | DX8: 2797 | DY8: 2064 | DZ8: 4306 | EA8: 2018 | EB8: 3819 | EC8: 2413 | ED8: 2594 | EE8: 101305 | EF8: 1872 | EG8: 3215 | EH8: 2921 | EI8: 4918 | EJ8: 1513 | EK8: 2103 | EL8: 2088 | EM8: 1300 | EN8: 3020 | EO8: 2250 | EP8: 2463 | EQ8: 1771 | ER8: 2799 | ES8: 3180 | ET8: 1878 | EU8: 1028 | EV8: 1957 | EW8: 2428 | EX8: 3294 | EY8: 4182 | EZ8: 3020 | FA8: 2663 | FB8: 4497 | FC8: 1293 | FD8: 2228 | FE8: 3521 | FF8: 2760 | FG8: 3634 | FH8: 3539 | FI8: 2117 | FJ8: 2464 | FK8: 1492 | FL8: 1806 | FM8: 3173 | FN8: 2932 | FO8: 2450 | FP8: 2852 | FQ8: 2639 | FR8: 1717 | FS8: 2554 | FT8: 2847 | FU8: 1819 | FV8: 2246 | FW8: 3490 | FX8: 52015 | FY8: 1911 | FZ8: 1970 | GA8: 633 | GB8: 16991 | GC8: 2745 | GD8: 3213 | GE8: 2372 | GF8: 2684 | GG8: 3243 | GH8: 2395 | GI8: 3286 | GJ8: 3303 | GK8: 1960 | GL8: 2462 | GM8: 3539 | GN8: 3469 | GO8: 1749 | GP8: 2499 | GQ8: 3176 | GR8: 3326 | GS8: 2875 | GT8: 3235 | GU8: 3124 | GV8: 16498 | GW8: 3217 | GX8: 2830 | GY8: 3866 | GZ8: 4015 | HA8: 3251 | HB8: 4442 | HC8: 4256 | HD8: 2952 | HE8: 4448 | HF8: 3487 | HG8: 3323 | HH8: 4524 | HI8: 744739 | HJ8: 3480.088785
A9: COUERON | B9: 1876 | C9: 2882 | D9: 820 | E9: 1389 | F9: 1894 | G9: 1451 | H9: 1943 | J9: 1736 | K9: 1247 | L9: 1710 | M9: 3245 | N9: 3214 | O9: 3239 | P9: 1760 | Q9: 2839 | R9: 4028 | S9: 2888 | T9: 2136 | U9: 2256 | V9: 2556 | W9: 2473 | X9: 2116 | Y9: 1946 | Z9: 2494 | AA9: 1484 | AB9: 1743 | AC9: 1581 | AD9: 2500 | AE9: 2807 | AF9: 2274 | AG9: 2200 | AH9: 812 | AI9: 2192 | AJ9: 2364 | AK9: 903 | AL9: 3086 | AM9: 2011 | AN9: 2946 | AO9: 1732 | AP9: 2741 | AQ9: 2118 | AR9: 1906 | AS9: 3032 | AT9: 1924 | AU9: 1121 | AV9: 2105 | AW9: 1693 | AX9: 2694 | AY9: 3049 | AZ9: 2312 | BA9: 1765 | BB9: 2307 | BC9: 2420 | BD9: 3562 | BE9: 2728 | BF9: 1774 | BG9: 2775 | BH9: 3812 | BI9: 3046 | BJ9: 2918 | BK9: 3213 | BL9: 2243 | BM9: 3377 | BN9: 2320 | BO9: 2865 | BP9: 4112 | BQ9: 12872 | BR9: 2449 | BS9: 2647 | BT9: 3411 | BU9: 2878 | BV9: 2681 | BW9: 2574 | BX9: 1767 | BY9: 2544 | BZ9: 2440 | CA9: 2195 | CB9: 1697 | CC9: 3240 | CD9: 2870 | CE9: 2516 | CF9: 2321 | CG9: 2835 | CH9: 3093 | CI9: 1989 | CJ9: 2948 | CK9: 2293 | CL9: 1717 | CM9: 1485 | CN9: 1755 | CO9: 1344 | CP9: 3019 | CQ9: 2415 | CR9: 2420 | CS9: 2412 | CT9: 3175 | CU9: 2487 | CV9: 2242 | CW9: 2500 | CX9: 3724 | CY9: 2311 | CZ9: 1855 | DA9: 3996 | DB9: 2257 | DC9: 2782 | DD9: 1783 | DE9: 2558 | DF9: 2492 | DG9: 1684 | DH9: 2663 | DI9: 2276 | DJ9: 1991 | DK9: 2203 | DL9: 3142 | DM9: 3522 | DN9: 2496 | DO9: 2733 | DP9: 2622 | DQ9: 2825 | DR9: 1628 | DS9: 1992 | DT9: 3216 | DU9: 3018 | DV9: 27069 | DW9: 2308 | DX9: 3310 | DY9: 2624 | DZ9: 3483 | EA9: 2799 | EB9: 2996 | EC9: 2973 | ED9: 2805 | EE9: 101819 | EF9: 2824 | EG9: 2392 | EH9: 3434 | EI9: 4094 | EJ9: 2892 | EK9: 2122 | EL9: 2300 | EM9: 2622 | EN9: 2196 | EO9: 1528 | EP9: 2976 | EQ9: 2574 | ER9: 2756 | ES9: 3582 | ET9: 2830 | EU9: 2484 | EV9: 1133 | EW9: 2988 | EX9: 3251 | EY9: 3359 | EZ9: 3533 | FA9: 3234 | FB9: 3673 | FC9: 2497 | FD9: 3180 | FE9: 3478 | FF9: 2575 | FG9: 3590 | FH9: 2715 | FI9: 3069 | FJ9: 2420 | FK9: 1703 | FL9: 2972 | FM9: 3130 | FN9: 2889 | FO9: 2327 | FP9: 3274 | FQ9: 2851 | FR9: 2669 | FS9: 3068 | FT9: 2024 | FU9: 2955 | FV9: 2738 | FW9: 3701 | FX9: 52529 | FY9: 3046 | FZ9: 2558 | GA9: 2367 | GB9: 17504 | GC9: 3258 | GD9: 3169 | GE9: 2329 | GF9: 3197 | GG9: 3199 | GH9: 2955 | GI9: 3243 | GJ9: 3817 | GK9: 3126 | GL9: 2976 | GM9: 4053 | GN9: 3426 | GO9: 1961 | GP9: 1568 | GQ9: 3690 | GR9: 3839 | GS9: 2831 | GT9: 3624 | GU9: 3637 | GV9: 17454 | GW9: 3730 | GX9: 1898 | GY9: 3823 | GZ9: 3433 | HA9: 3765 | HB9: 4489 | HC9: 4303 | HD9: 3466 | HE9: 4405 | HF9: 3875 | HG9: 3280 | HH9: 4481 | HI9: 784797 | HJ9: 3667.275701
A10: CARQUEFOU | B10: 1337 | C10: 3111 | D10: 1318 | E10: 1437 | F10: 801 | G10: 936 | H10: 1176 | I10: 1736 | K10: 1249 | L10: 792 | M10: 3494 | N10: 3463 | O10: 3241 | P10: 562 | Q10: 3088 | R10: 3168 | S10: 3137 | T10: 2386 | U10: 2113 | V10: 1454 | W10: 1910 | X10: 682 | Y10: 821 | Z10: 1514 | AA10: 1084 | AB10: 2019 | AC10: 1297 | AD10: 1410 | AE10: 1536 | AF10: 2523 | AG10: 2449 | AH10: 1244 | AI10: 2441 | AJ10: 1176 | AK10: 1542 | AL10: 1985 | AM10: 726 | AN10: 3196 | AO10: 1735 | AP10: 2327 | AQ10: 2121 | AR10: 1566 | AS10: 3281 | AT10: 1346 | AU10: 1374 | AV10: 1003 | AW10: 1696 | AX10: 1359 | AY10: 2886 | AZ10: 1792 | BA10: 1392 | BB10: 2557 | BC10: 2669 | BD10: 3811 | BE10: 1355 | BF10: 1899 | BG10: 1504 | BH10: 4061 | BI10: 3214 | BJ10: 1780 | BK10: 3462 | BL10: 1141 | BM10: 2814 | BN10: 957 | BO10: 2867 | BP10: 4361 | BQ10: 11601 | BR10: 2451 | BS10: 2896 | BT10: 3413 | BU10: 2315 | BV10: 2930 | BW10: 1948 | BX10: 2016 | BY10: 1110 | BZ10: 1814 | CA10: 1633 | CB10: 1700 | CC10: 1969 | CD10: 1436 | CE10: 2765 | CF10: 948 | CG10: 2838 | CH10: 1992 | CI10: 1426 | CJ10: 2322 | CK10: 1731 | CL10: 1913 | CM10: 1921 | CN10: 2004 | CO10: 1594 | CP10: 3022 | CQ10: 2664 | CR10: 2669 | CS10: 1310 | CT10: 3424 | CU10: 1385 | CV10: 808 | CW10: 2502 | CX10: 3973 | CY10: 1748 | CZ10: 2104 | DA10: 2776 | DB10: 1695 | DC10: 1790 | DD10: 1785 | DE10: 1696 | DF10: 2741 | DG10: 1934 | DH10: 1392 | DI10: 2526 | DJ10: 1993 | DK10: 2453 | DL10: 3144 | DM10: 2420 | DN10: 1395 | DO10: 2171 | DP10: 2624 | DQ10: 2827 | DR10: 1631 | DS10: 1995 | DT10: 3465 | DU10: 1747 | DV10: 25798 | DW10: 2311 | DX10: 2039 | DY10: 1251 | DZ10: 3732 | EA10: 1365 | EB10: 3245 | EC10: 1599 | ED10: 2808 | EE10: 100547 | EF10: 2261 | EG10: 2641 | EH10: 2094 | EI10: 4344 | EJ10: 2115 | EK10: 1199 | EL10: 2302 | EM10: 1901 | EN10: 2446 | EO10: 1581 | EP10: 1705 | EQ10: 2161 | ER10: 2129 | ES10: 2366 | ET10: 2268 | EU10: 1382 | EV10: 1383 | EW10: 1614 | EX10: 2564 | EY10: 3608 | EZ10: 2262 | FA10: 1998 | FB10: 3923 | FC10: 1935 | FD10: 2617 | FE10: 2852 | FF10: 2090 | FG10: 2964 | FH10: 2965 | FI10: 2507 | FJ10: 1794 | FK10: 1706 | FL10: 1870 | FM10: 2503 | FN10: 2262 | FO10: 1780 | FP10: 2038 | FQ10: 2853 | FR10: 2106 | FS10: 1796 | FT10: 2273 | FU10: 1543 | FV10: 2635 | FW10: 3703 | FX10: 51257 | FY10: 1776 | FZ10: 2359 | GA10: 1411 | GB10: 16233 | GC10: 1987 | GD10: 2543 | GE10: 1703 | GF10: 1926 | GG10: 2573 | GH10: 1581 | GI10: 2617 | GJ10: 2545 | GK10: 1959 | GL10: 1704 | GM10: 2782 | GN10: 2800 | GO10: 1963 | GP10: 1925 | GQ10: 2419 | GR10: 2568 | GS10: 2205 | GT10: 2421 | GU10: 2366 | GV10: 16891 | GW10: 2459 | GX10: 2256 | GY10: 3197 | GZ10: 3346 | HA10: 2493 | HB10: 3629 | HC10: 3443 | HD10: 2194 | HE10: 3688 | HF10: 2673 | HG10: 2654 | HH10: 3778 | HI10: 678437 | HJ10: 3170.266355
A11: BOUGUENAIS | B11: 1130 | C11: 2897 | D11: 691 | E11: 444 | F11: 986 | G11: 1011 | H11: 1036 | I11: 1247 | J11: 1249 | L11: 1271 | M11: 3374 | N11: 3343 | O11: 2159 | P11: 1125 | Q11: 2460 | R11: 3596 | S11: 3017 | T11: 2265 | U11: 2307 | V11: 1713 | W11: 1511 | X11: 1380 | Y11: 984 | Z11: 2061 | AA11: 1278 | AB11: 1898 | AC11: 619 | AD11: 1716 | AE11: 2369 | AF11: 2403 | AG11: 2329 | AH11: 1015 | AI11: 2321 | AJ11: 1481 | AK11: 1453 | AL11: 2292 | AM11: 1579 | AN11: 3075 | AO11: 653 | AP11: 1661 | AQ11: 1039 | AR11: 865 | AS11: 3161 | AT11: 1539 | AU11: 1254 | AV11: 1262 | AW11: 614 | AX11: 1811 | AY11: 3079 | AZ11: 1279 | BA11: 1589 | BB11: 2436 | BC11: 2549 | BD11: 3691 | BE11: 2289 | BF11: 817 | BG11: 2336 | BH11: 3941 | BI11: 2132 | BJ11: 1956 | BK11: 3342 | BL11: 1385 | BM11: 2415 | BN11: 1881 | BO11: 1785 | BP11: 4241 | BQ11: 11975 | BR11: 1369 | BS11: 2776 | BT11: 2331 | BU11: 1916 | BV11: 2810 | BW11: 2141 | BX11: 1896 | BY11: 1895 | BZ11: 2008 | CA11: 1234 | CB11: 618 | CC11: 2802 | CD11: 2221 | CE11: 2645 | CF11: 1883 | CG11: 1756 | CH11: 2251 | CI11: 1027 | CJ11: 2516 | CK11: 1331 | CL11: 1846 | CM11: 1801 | CN11: 1884 | CO11: 1473 | CP11: 1940 | CQ11: 2544 | CR11: 2549 | CS11: 1569 | CT11: 3304 | CU11: 1645 | CV11: 1594 | CW11: 1420 | CX11: 3853 | CY11: 1349 | CZ11: 1984 | DA11: 3563 | DB11: 1295 | DC11: 1940 | DD11: 703 | DE11: 1596 | DF11: 2621 | DG11: 1813 | DH11: 2225 | DI11: 2405 | DJ11: 911 | DK11: 2332 | DL11: 2062 | DM11: 2679 | DN11: 1654 | DO11: 1771 | DP11: 1542 | DQ11: 1745 | DR11: 549 | DS11: 913 | DT11: 3345 | DU11: 2579 | DV11: 26630 | DW11: 1229 | DX11: 2872 | DY11: 2186 | DZ11: 3612 | EA11: 2150 | EB11: 3125 | EC11: 2534 | ED11: 1726 | EE11: 101380 | EF11: 1862 | EG11: 2521 | EH11: 2995 | EI11: 4223 | EJ11: 1930 | EK11: 1872 | EL11: 1220 | EM11: 1661 | EN11: 2325 | EO11: 1774 | EP11: 2537 | EQ11: 1494 | ER11: 2323 | ES11: 3150 | ET11: 1868 | EU11: 1641 | EV11: 1262 | EW11: 2549 | EX11: 2818 | EY11: 3488 | EZ11: 3095 | FA11: 2795 | FB11: 3802 | FC11: 1535 | FD11: 2218 | FE11: 3045 | FF11: 2284 | FG11: 3158 | FH11: 2844 | FI11: 2107 | FJ11: 1988 | FK11: 624 | FL11: 2130 | FM11: 2697 | FN11: 2456 | FO11: 1974 | FP11: 2841 | FQ11: 1771 | FR11: 1707 | FS11: 2629 | FT11: 2153 | FU11: 2136 | FV11: 1659 | FW11: 2621 | FX11: 52090 | FY11: 2228 | FZ11: 1479 | GA11: 1406 | GB11: 17066 | GC11: 2819 | GD11: 2737 | GE11: 1896 | GF11: 2759 | GG11: 2767 | GH11: 2516 | GI11: 2810 | GJ11: 3378 | GK11: 2283 | GL11: 2537 | GM11: 3614 | GN11: 2994 | GO11: 881 | GP11: 1805 | GQ11: 3251 | GR11: 3400 | GS11: 2399 | GT11: 3191 | GU11: 3198 | GV11: 16492 | GW11: 3291 | GX11: 2135 | GY11: 3390 | GZ11: 3539 | HA11: 3326 | HB11: 4057 | HC11: 3871 | HD11: 3027 | HE11: 3972 | HF11: 3443 | HG11: 2847 | HH11: 4049 | HI11: 680655 | HJ11: 3180.630841
A12: LA CHAPELLE-SUR-ERDRE | B12: 1472 | C12: 3085 | D12: 1293 | E12: 1411 | F12: 1210 | G12: 718 | H12: 1584 | I12: 1710 | J12: 792 | K12: 1271 | M12: 3420 | N12: 3389 | O12: 3167 | P12: 941 | Q12: 3014 | R12: 3229 | S12: 3062 | T12: 2311 | U12: 1940 | V12: 1736 | W12: 2192 | X12: 1218 | Y12: 1103 | Z12: 1304 | AA12: 590 | AB12: 1944 | AC12: 1509 | AD12: 1680 | AE12: 1909 | AF12: 2449 | AG12: 2374 | AH12: 1127 | AI12: 2367 | AJ12: 1544 | AK12: 1467 | AL12: 2266 | AM12: 522 | AN12: 3121 | AO12: 1660 | AP12: 2609 | AQ12: 2047 | AR12: 1834 | AS12: 3207 | AT12: 1173 | AU12: 1313 | AV12: 1285 | AW12: 1621 | AX12: 1874 | AY12: 2713 | AZ12: 2074 | BA12: 782 | BB12: 2482 | BC12: 2542 | BD12: 3736 | BE12: 1830 | BF12: 1825 | BG12: 1877 | BH12: 3987 | BI12: 3140 | BJ12: 2062 | BK12: 3387 | BL12: 1423 | BM12: 3096 | BN12: 1422 | BO12: 2793 | BP12: 4286 | BQ12: 11974 | BR12: 2377 | BS12: 2822 | BT12: 3339 | BU12: 2597 | BV12: 2856 | BW12: 1775 | BX12: 1942 | BY12: 1645 | BZ12: 1641 | CA12: 1915 | CB12: 1625 | CC12: 2342 | CD12: 1972 | CE12: 2690 | CF12: 1423 | CG12: 2763 | CH12: 2274 | CI12: 1708 | CJ12: 2149 | CK12: 2013 | CL12: 1689 | CM12: 1847 | CN12: 1930 | CO12: 1519 | CP12: 2947 | CQ12: 2589 | CR12: 2595 | CS12: 1592 | CT12: 3290 | CU12: 1667 | CV12: 1344 | CW12: 2428 | CX12: 3899 | CY12: 2030 | CZ12: 2029 | DA12: 3002 | DB12: 1977 | DC12: 1963 | DD12: 1711 | DE12: 1978 | DF12: 2667 | DG12: 1859 | DH12: 1765 | DI12: 2451 | DJ12: 1919 | DK12: 2378 | DL12: 3070 | DM12: 2702 | DN12: 1676 | DO12: 2452 | DP12: 2550 | DQ12: 2753 | DR12: 1556 | DS12: 1921 | DT12: 3306 | DU12: 2120 | DV12: 26171 | DW12: 2236 | DX12: 2412 | DY12: 1611 | DZ12: 3658 | EA12: 1901 | EB12: 3111 | EC12: 1824 | ED12: 2733 | EE12: 100920 | EF12: 2543 | EG12: 2567 | EH12: 2379 | EI12: 4269 | EJ12: 2397 | EK12: 894 | EL12: 2228 | EM12: 2183 | EN12: 2371 | EO12: 1287 | EP12: 2078 | EQ12: 2443 | ER12: 1957 | ES12: 2592 | ET12: 2550 | EU12: 1664 | EV12: 1308 | EW12: 1995 | EX12: 2452 | EY12: 3534 | EZ12: 2635 | FA12: 2336 | FB12: 3848 | FC12: 2217 | FD12: 2899 | FE12: 2679 | FF12: 1917 | FG12: 2791 | FH12: 2890 | FI12: 2788 | FJ12: 1621 | FK12: 1632 | FL12: 2152 | FM12: 2331 | FN12: 2090 | FO12: 1608 | FP12: 2264 | FQ12: 2779 | FR12: 2388 | FS12: 2170 | FT12: 2199 | FU12: 2079 | FV12: 2666 | FW12: 3629 | FX12: 51630 | FY12: 2227 | FZ12: 2486 | GA12: 1693 | GB12: 16606 | GC12: 2360 | GD12: 2370 | GE12: 1530 | GF12: 2299 | GG12: 2400 | GH12: 1962 | GI12: 2444 | GJ12: 2918 | GK12: 2306 | GL12: 2078 | GM12: 3211 | GN12: 2627 | GO12: 1889 | GP12: 1851 | GQ12: 2792 | GR12: 2941 | GS12: 2032 | GT12: 2647 | GU12: 2739 | GV12: 17173 | GW12: 2832 | GX12: 2181 | GY12: 3024 | GZ12: 3173 | HA12: 2867 | HB12: 3690 | HC12: 3504 | HD12: 2568 | HE12: 3606 | HF12: 2899 | HG12: 2481 | HH12: 3682 | HI12: 697128 | HJ12: 3257.607477
A13: GUERANDE | B13: 4007 | C13: 1305 | D13: 3183 | E13: 3514 | F13: 3789 | G13: 3255 | H13: 4068 | I13: 3245 | J13: 3494 | K13: 3374 | L13: 3420 | N13: 727 | O13: 2391 | P13: 3475 | Q13: 1486 | R13: 5258 | S13: 931 | T13: 2203 | U13: 2917 | V13: 4271 | W13: 4134 | X13: 3831 | Y13: 3637 | Z13: 3808 | AA13: 3312 | AB13: 2004 | AC13: 3571 | AD13: 4215 | AE13: 4522 | AF13: 1119 | AG13: 1702 | AH13: 2848 | AI13: 1382 | AJ13: 4079 | AK13: 2792 | AL13: 4801 | AM13: 3733 | AN13: 1057 | AO13: 3458 | AP13: 3476 | AQ13: 3298 | AR13: 3896 | AS13: 872 | AT13: 3104 | AU13: 2620 | AV13: 3820 | AW13: 3596 | AX13: 4409 | AY13: 3570 | AZ13: 4302 | BA13: 3457 | BB13: 1949 | BC13: 2941 | BD13: 820 | BE13: 4443 | BF13: 3605 | BG13: 4490 | BH13: 766 | BI13: 1693 | BJ13: 4597 | BK13: 819 | BL13: 3958 | BM13: 4519 | BN13: 4035 | BO13: 2163 | BP13: 1278 | BQ13: 14587 | BR13: 2628 | BS13: 1705 | BT13: 2224 | BU13: 4868 | BV13: 1369 | BW13: 3803 | BX13: 2226 | BY13: 4259 | BZ13: 3736 | CA13: 4185 | CB13: 3687 | CC13: 4955 | CD13: 4585 | CE13: 2585 | CF13: 4036 | CG13: 2722 | CH13: 4808 | CI13: 3979 | CJ13: 4132 | CK13: 4283 | CL13: 2555 | CM13: 2649 | CN13: 1723 | CO13: 2158 | CP13: 1951 | CQ13: 2941 | CR13: 1549 | CS13: 4127 | CT13: 3248 | CU13: 4202 | CV13: 3957 | CW13: 2508 | CX13: 890 | CY13: 4301 | CZ13: 2328 | DA13: 5199 | DB13: 4247 | DC13: 4497 | DD13: 3292 | DE13: 4512 | DF13: 1868 | DG13: 1925 | DH13: 4378 | DI13: 1767 | DJ13: 2986 | DK13: 2428 | DL13: 1763 | DM13: 5237 | DN13: 4211 | DO13: 4627 | DP13: 2482 | DQ13: 2433 | DR13: 3577 | DS13: 3472 | DT13: 3329 | DU13: 4733 | DV13: 28784 | DW13: 2797 | DX13: 5025 | DY13: 4116 | DZ13: 698 | EA13: 4514 | EB13: 3011 | EC13: 4329 | ED13: 2000 | EE13: 103534 | EF13: 4374 | EG13: 1626 | EH13: 4883 | EI13: 1049 | EJ13: 4882 | EK13: 3641 | EL13: 3080 | EM13: 4613 | EN13: 2324 | EO13: 2816 | EP13: 4691 | EQ13: 3828 | ER13: 3976 | ES13: 4789 | ET13: 3697 | EU13: 4199 | EV13: 2285 | EW13: 4499 | EX13: 4480 | EY13: 1006 | EZ13: 5248 | FA13: 4913 | FB13: 807 | FC13: 4487 | FD13: 4106 | FE13: 4743 | FF13: 3235 | FG13: 4820 | FH13: 2473 | FI13: 3936 | FJ13: 3382 | FK13: 3440 | FL13: 4687 | FM13: 4359 | FN13: 3900 | FO13: 3309 | FP13: 4494 | FQ13: 2543 | FR13: 3696 | FS13: 4783 | FT13: 2545 | FU13: 4670 | FV13: 3009 | FW13: 2595 | FX13: 54244 | FY13: 4761 | FZ13: 3483 | GA13: 4227 | GB13: 19219 | GC13: 4973 | GD13: 3878 | GE13: 3549 | GF13: 4912 | GG13: 4467 | GH13: 4466 | GI13: 3987 | GJ13: 5532 | GK13: 4841 | GL13: 4691 | GM13: 5408 | GN13: 4656 | GO13: 3261 | GP13: 2300 | GQ13: 5405 | GR13: 5441 | GS13: 4061 | GT13: 4844 | GU13: 5352 | GV13: 19444 | GW13: 5445 | GX13: 2194 | GY13: 5053 | GZ13: 3698 | HA13: 5442 | HB13: 5719 | HC13: 5533 | HD13: 5109 | HE13: 5634 | HF13: 5096 | HG13: 4452 | HH13: 5711 | HI13: 972440 | HJ13: 4544.11215
A14: LA BAULE-ESCOUBLAC | B14: 3976 | C14: 1274 | D14: 3152 | E14: 3483 | F14: 3758 | G14: 3224 | H14: 4037 | I14: 3214 | J14: 3463 | K14: 3343 | L14: 3389 | M14: 727 | O14: 2338 | P14: 3422 | Q14: 1433 | R14: 5205 | S14: 857 | T14: 2077 | U14: 2864 | V14: 4217 | W14: 4081 | X14: 3778 | Y14: 3584 | Z14: 3755 | AA14: 3259 | AB14: 1951 | AC14: 3518 | AD14: 4162 | AE14: 4469 | AF14: 1065 | AG14: 1649 | AH14: 2795 | AI14: 1329 | AJ14: 4026 | AK14: 2739 | AL14: 4748 | AM14: 3680 | AN14: 1379 | AO14: 3405 | AP14: 3423 | AQ14: 3245 | AR14: 3842 | AS14: 819 | AT14: 3051 | AU14: 2566 | AV14: 3767 | AW14: 3542 | AX14: 4355 | AY14: 3516 | AZ14: 4248 | BA14: 3403 | BB14: 2258 | BC14: 2887 | BD14: 640 | BE14: 4390 | BF14: 3551 | BG14: 4437 | BH14: 1261 | BI14: 1640 | BJ14: 4543 | BK14: 1128 | BL14: 3905 | BM14: 4466 | BN14: 3982 | BO14: 2110 | BP14: 1391 | BQ14: 14534 | BR14: 2575 | BS14: 1910 | BT14: 2171 | BU14: 4814 | BV14: 1679 | BW14: 3750 | BX14: 2173 | BY14: 4205 | BZ14: 3683 | CA14: 4132 | CB14: 3634 | CC14: 4902 | CD14: 4531 | CE14: 2751 | CF14: 3983 | CG14: 2669 | CH14: 4755 | CI14: 3925 | CJ14: 4079 | CK14: 4230 | CL14: 2502 | CM14: 2595 | CN14: 1669 | CO14: 2105 | CP14: 1898 | CQ14: 2882 | CR14: 1496 | CS14: 4073 | CT14: 3557 | CU14: 4149 | CV14: 3904 | CW14: 2455 | CX14: 1004 | CY14: 4248 | CZ14: 2275 | DA14: 5146 | DB14: 4194 | DC14: 4444 | DD14: 3238 | DE14: 4459 | DF14: 1863 | DG14: 1871 | DH14: 4325 | DI14: 1714 | DJ14: 2933 | DK14: 2351 | DL14: 1710 | DM14: 5183 | DN14: 4158 | DO14: 4574 | DP14: 2429 | DQ14: 2380 | DR14: 3524 | DS14: 3419 | DT14: 3638 | DU14: 4680 | DV14: 28731 | DW14: 2744 | DX14: 4972 | DY14: 4063 | DZ14: 1019 | EA14: 4461 | EB14: 3321 | EC14: 4275 | ED14: 1946 | EE14: 103480 | EF14: 4320 | EG14: 1935 | EH14: 4830 | EI14: 1583 | EJ14: 4829 | EK14: 3588 | EL14: 3026 | EM14: 4559 | EN14: 2431 | EO14: 2763 | EP14: 4638 | EQ14: 3775 | ER14: 3923 | ES14: 4736 | ET14: 3644 | EU14: 4145 | EV14: 2232 | EW14: 4446 | EX14: 4427 | EY14: 1327 | EZ14: 5195 | FA14: 4860 | FB14: 1210 | FC14: 4434 | FD14: 4052 | FE14: 4690 | FF14: 3182 | FG14: 4767 | FH14: 2783 | FI14: 3883 | FJ14: 3329 | FK14: 3387 | FL14: 4634 | FM14: 4306 | FN14: 3847 | FO14: 3255 | FP14: 4441 | FQ14: 2490 | FR14: 3643 | FS14: 4729 | FT14: 2492 | FU14: 4617 | FV14: 2956 | FW14: 2542 | FX14: 54190 | FY14: 4708 | FZ14: 3429 | GA14: 4174 | GB14: 19166 | GC14: 4920 | GD14: 3824 | GE14: 3496 | GF14: 4859 | GG14: 4414 | GH14: 4413 | GI14: 3934 | GJ14: 5478 | GK14: 4787 | GL14: 4637 | GM14: 5355 | GN14: 4603 | GO14: 3208 | GP14: 2247 | GQ14: 5352 | GR14: 5388 | GS14: 4008 | GT14: 4791 | GU14: 5299 | GV14: 19391 | GW14: 5392 | GX14: 2140 | GY14: 4999 | GZ14: 3901 | HA14: 5389 | HB14: 5666 | HC14: 5480 | HD14: 5055 | HE14: 5581 | HF14: 5043 | HG14: 4398 | HH14: 5658 | HI14: 967987 | HJ14: 4523.303738
A15: PORNIC | B15: 3122 | C15: 2037 | D15: 2683 | E15: 2436 | F15: 2978 | G15: 3002 | H15: 3027 | I15: 3239 | J15: 3241 | K15: 2159 | L15: 3167 | M15: 2391 | N15: 2338 | P15: 3025 | Q15: 1046 | R15: 5496 | S15: 1980 | T15: 2489 | U15: 3275 | V15: 3613 | W15: 2460 | X15: 3280 | Y15: 2884 | Z15: 3961 | AA15: 3178 | AB15: 2363 | AC15: 2520 | AD15: 3616 | AE15: 4269 | AF15: 1477 | AG15: 2028 | AH15: 2915 | AI15: 1746 | AJ15: 3381 | AK15: 3151 | AL15: 4193 | AM15: 3479 | AN15: 2935 | AO15: 1797 | AP15: 1801 | AQ15: 1637 | AR15: 2598 | AS15: 2125 | AT15: 3439 | AU15: 2978 | AV15: 3162 | AW15: 2119 | AX15: 3711 | AY15: 3928 | AZ15: 2793 | BA15: 3489 | BB15: 2903 | BC15: 3299 | BD15: 2654 | BE15: 4189 | BF15: 2103 | BG15: 4237 | BH15: 2904 | BI15: 716 | BJ15: 3856 | BK15: 2685 | BL15: 3285 | BM15: 2844 | BN15: 3781 | BO15: 910 | BP15: 3204 | BQ15: 13875 | BR15: 967 | BS15: 2327 | BT15: 773 | BU15: 3532 | BV15: 2800 | BW15: 4041 | BX15: 2585 | BY15: 3795 | BZ15: 3908 | CA15: 2840 | CB15: 2351 | CC15: 4702 | CD15: 4121 | CE15: 3162 | CF15: 3783 | CG15: 1047 | CH15: 4151 | CI15: 2927 | CJ15: 4416 | CK15: 3231 | CL15: 2914 | CM15: 3007 | CN15: 2081 | CO15: 2517 | CP15: 1466 | CQ15: 3294 | CR15: 1912 | CS15: 3469 | CT15: 4054 | CU15: 3545 | CV15: 3494 | CW15: 1553 | CX15: 2816 | CY15: 3081 | CZ15: 2687 | DA15: 5463 | DB15: 3195 | DC15: 3840 | DD15: 1630 | DE15: 3496 | DF15: 2275 | DG15: 2283 | DH15: 4125 | DI15: 2125 | DJ15: 1555 | DK15: 2763 | DL15: 1425 | DM15: 4579 | DN15: 3554 | DO15: 2953 | DP15: 934 | DQ15: 758 | DR15: 2010 | DS15: 1810 | DT15: 4095 | DU15: 4479 | DV15: 28530 | DW15: 1136 | DX15: 4772 | DY15: 4086 | DZ15: 2575 | EA15: 4051 | EB15: 3755 | EC15: 4434 | ED15: 1312 | EE15: 103280 | EF15: 2699 | EG15: 2546 | EH15: 4895 | EI15: 3187 | EJ15: 3830 | EK15: 3772 | EL15: 1418 | EM15: 3561 | EN15: 2843 | EO15: 3175 | EP15: 4437 | EQ15: 2153 | ER15: 4223 | ES15: 5050 | ET15: 2022 | EU15: 3541 | EV15: 2643 | EW15: 4449 | EX15: 4718 | EY15: 2884 | EZ15: 4995 | FA15: 4696 | FB15: 2766 | FC15: 3435 | FD15: 2431 | FE15: 4945 | FF15: 3594 | FG15: 5058 | FH15: 3334 | FI15: 2261 | FJ15: 3740 | FK15: 1778 | FL15: 4030 | FM15: 4597 | FN15: 4258 | FO15: 3667 | FP15: 4742 | FQ15: 868 | FR15: 2021 | FS15: 4529 | FT15: 2903 | FU15: 4037 | FV15: 1334 | FW15: 1063 | FX15: 53990 | FY15: 4128 | FZ15: 1808 | GA15: 3306 | GB15: 18966 | GC15: 4720 | GD15: 4236 | GE15: 3796 | GF15: 4659 | GG15: 4667 | GH15: 4416 | GI15: 4346 | GJ15: 5278 | GK15: 4183 | GL15: 4437 | GM15: 5514 | GN15: 4894 | GO15: 1965 | GP15: 2659 | GQ15: 5151 | GR15: 5301 | GS15: 4299 | GT15: 5091 | GU15: 5099 | GV15: 18392 | GW15: 5191 | GX15: 2552 | GY15: 5290 | GZ15: 4312 | HA15: 5226 | HB15: 5957 | HC15: 5771 | HD15: 4927 | HE15: 5872 | HF15: 5343 | HG15: 4747 | HH15: 5949 | HI15: 919795 | HJ15: 4298.107477
A16: SAINTE-LUCE-SUR-LOIRE | B16: 1165 | C16: 3135 | D16: 1343 | E16: 1286 | F16: 618 | G16: 960 | H16: 993 | I16: 1760 | J16: 562 | K16: 1125 | L16: 941 | M16: 3475 | N16: 3422 | O16: 3025 | Q16: 3120 | R16: 3339 | S16: 3168 | T16: 2417 | U16: 2144 | V16: 1194 | W16: 1650 | X16: 602 | Y16: 560 | Z16: 1685 | AA16: 1116 | AB16: 2050 | AC16: 1037 | AD16: 1138 | AE16: 1652 | AF16: 2555 | AG16: 2480 | AH16: 1276 | AI16: 2473 | AJ16: 1072 | AK16: 1573 | AL16: 1724 | AM16: 988 | AN16: 3227 | AO16: 1624 | AP16: 2067 | AQ16: 2011 | AR16: 1306 | AS16: 3313 | AT16: 1377 | AU16: 1405 | AV16: 743 | AW16: 1585 | AX16: 1401 | AY16: 2917 | AZ16: 1532 | BA16: 1427 | BB16: 2588 | BC16: 2700 | BD16: 3842 | BE16: 1526 | BF16: 1789 | BG16: 1620 | BH16: 4092 | BI16: 3104 | BJ16: 1520 | BK16: 3493 | BL16: 881 | BM16: 2554 | BN16: 1118 | BO16: 2757 | BP16: 4392 | BQ16: 11717 | BR16: 2341 | BS16: 2927 | BT16: 3303 | BU16: 2055 | BV16: 2962 | BW16: 1979 | BX16: 2048 | BY16: 1121 | BZ16: 1846 | CA16: 1373 | CB16: 1623 | CC16: 2085 | CD16: 1447 | CE16: 2796 | CF16: 1120 | CG16: 2727 | CH16: 1731 | CI16: 1166 | CJ16: 2354 | CK16: 1471 | CL16: 1944 | CM16: 1953 | CN16: 2036 | CO16: 1625 | CP16: 2911 | CQ16: 2695 | CR16: 2701 | CS16: 1050 | CT16: 3455 | CU16: 1125 | CV16: 820 | CW16: 2392 | CX16: 4005 | CY16: 1488 | CZ16: 2135 | DA16: 2948 | DB16: 1435 | DC16: 1421 | DD16: 1675 | DE16: 1435 | DF16: 2772 | DG16: 1965 | DH16: 1508 | DI16: 2557 | DJ16: 1883 | DK16: 2484 | DL16: 3034 | DM16: 2160 | DN16: 1134 | DO16: 1910 | DP16: 2514 | DQ16: 2717 | DR16: 1521 | DS16: 1885 | DT16: 3496 | DU16: 1863 | DV16: 25914 | DW16: 2201 | DX16: 2155 | DY16: 1423 | DZ16: 3763 | EA16: 1376 | EB16: 3276 | EC16: 1771 | ED16: 2697 | EE16: 100663 | EF16: 2001 | EG16: 2673 | EH16: 2279 | EI16: 4375 | EJ16: 1855 | EK16: 1461 | EL16: 2192 | EM16: 1641 | EN16: 2477 | EO16: 1612 | EP16: 1821 | EQ16: 1900 | ER16: 2161 | ES16: 2538 | ET16: 2008 | EU16: 1122 | EV16: 1414 | EW16: 1786 | EX16: 2656 | EY16: 3639 | EZ16: 2378 | FA16: 2022 | FB16: 3954 | FC16: 1674 | FD16: 2357 | FE16: 2883 | FF16: 2121 | FG16: 2995 | FH16: 2996 | FI16: 2246 | FJ16: 1826 | FK16: 1596 | FL16: 1610 | FM16: 2535 | FN16: 2294 | FO16: 1812 | FP16: 2210 | FQ16: 2743 | FR16: 1846 | FS16: 1912 | FT16: 2304 | FU16: 1554 | FV16: 2375 | FW16: 3593 | FX16: 51373 | FY16: 1684 | FZ16: 2099 | GA16: 1150 | GB16: 16349 | GC16: 2103 | GD16: 2575 | GE16: 1734 | GF16: 2042 | GG16: 2605 | GH16: 1753 | GI16: 2648 | GJ16: 2661 | GK16: 1764 | GL16: 1820 | GM16: 2898 | GN16: 2831 | GO16: 1853 | GP16: 1956 | GQ16: 2535 | GR16: 2684 | GS16: 2237 | GT16: 2593 | GU16: 2482 | GV16: 16631 | GW16: 2575 | GX16: 2287 | GY16: 3228 | GZ16: 3377 | HA16: 2609 | HB16: 3800 | HC16: 3614 | HD16: 2310 | HE16: 3810 | HF16: 2845 | HG16: 2685 | HH16: 3886 | HI16: 672350 | HJ16: 3141.82243
A17: SAINT-BREVIN-LES-PINS | B17: 3423 | C17: 1131 | D17: 2777 | E17: 2737 | F17: 3278 | G17: 2850 | H17: 3328 | I17: 2839 | J17: 3088 | K17: 2460 | L17: 3014 | M17: 1486 | N17: 1433 | O17: 1046 | P17: 3120 | R17: 4911 | S17: 1274 | T17: 1783 | U17: 2570 | V17: 3923 | W17: 2924 | X17: 3484 | Y17: 3288 | Z17: 3461 | AA17: 2965 | AB17: 1657 | AC17: 2923 | AD17: 3868 | AE17: 4175 | AF17: 771 | AG17: 1322 | AH17: 2501 | AI17: 1040 | AJ17: 3732 | AK17: 2445 | AL17: 4454 | AM17: 3386 | AN17: 2229 | AO17: 2248 | AP17: 2265 | AQ17: 2088 | AR17: 3049 | AS17: 1419 | AT17: 2757 | AU17: 2272 | AV17: 3473 | AW17: 2343 | AX17: 4061 | AY17: 3222 | AZ17: 3257 | BA17: 3109 | BB17: 2198 | BC17: 2593 | BD17: 1948 | BE17: 4096 | BF17: 2352 | BG17: 4143 | BH17: 2198 | BI17: 482 | BJ17: 4260 | BK17: 1979 | BL17: 3611 | BM17: 3309 | BN17: 3688 | BO17: 910 | BP17: 2498 | BQ17: 14240 | BR17: 1418 | BS17: 1621 | BT17: 1013 | BU17: 3996 | BV17: 2095 | BW17: 3456 | BX17: 1879 | BY17: 3911 | BZ17: 3389 | CA17: 3304 | CB17: 2802 | CC17: 4608 | CD17: 4237 | CE17: 2457 | CF17: 3689 | CG17: 1511 | CH17: 4461 | CI17: 3330 | CJ17: 3785 | CK17: 3635 | CL17: 2208 | CM17: 2301 | CN17: 1375 | CO17: 1811 | CP17: 859 | CQ17: 2588 | CR17: 1206 | CS17: 3779 | CT17: 3349 | CU17: 3855 | CV17: 3610 | CW17: 1416 | CX17: 2111 | CY17: 3545 | CZ17: 1981 | DA17: 4852 | DB17: 3599 | DC17: 4150 | DD17: 2081 | DE17: 3900 | DF17: 1569 | DG17: 1577 | DH17: 4031 | DI17: 1420 | DJ17: 1733 | DK17: 2057 | DL17: 671 | DM17: 4889 | DN17: 3864 | DO17: 3417 | DP17: 1229 | DQ17: 1222 | DR17: 2324 | DS17: 2261 | DT17: 3389 | DU17: 4386 | DV17: 28437 | DW17: 1587 | DX17: 4678 | DY17: 3769 | DZ17: 1869 | EA17: 4167 | EB17: 3049 | EC17: 3981 | ED17: 908 | EE17: 103186 | EF17: 3163 | EG17: 1841 | EH17: 4536 | EI17: 2481 | EJ17: 4234 | EK17: 3294 | EL17: 1869 | EM17: 3964 | EN17: 2137 | EO17: 2469 | EP17: 4344 | EQ17: 2618 | ER17: 3629 | ES17: 4442 | ET17: 2486 | EU17: 3851 | EV17: 1938 | EW17: 4152 | EX17: 4133 | EY17: 2178 | EZ17: 4901 | FA17: 4566 | FB17: 2060 | FC17: 3839 | FD17: 2895 | FE17: 4396 | FF17: 2888 | FG17: 4473 | FH17: 2629 | FI17: 2725 | FJ17: 3035 | FK17: 2229 | FL17: 4340 | FM17: 4012 | FN17: 3553 | FO17: 2961 | FP17: 4147 | FQ17: 1332 | FR17: 2486 | FS17: 4435 | FT17: 2198 | FU17: 4323 | FV17: 1798 | FW17: 1385 | FX17: 53896 | FY17: 4414 | FZ17: 2272 | GA17: 3709 | GB17: 18872 | GC17: 4626 | GD17: 3530 | GE17: 3202 | GF17: 4565 | GG17: 4120 | GH17: 4119 | GI17: 3640 | GJ17: 5184 | GK17: 4493 | GL17: 4343 | GM17: 5061 | GN17: 4309 | GO17: 2009 | GP17: 1953 | GQ17: 5058 | GR17: 5094 | GS17: 3714 | GT17: 4497 | GU17: 5005 | GV17: 18796 | GW17: 5098 | GX17: 1846 | GY17: 4705 | GZ17: 3607 | HA17: 5095 | HB17: 5372 | HC17: 5186 | HD17: 4761 | HE17: 5287 | HF17: 4749 | HG17: 4104 | HH17: 5364 | HI17: 881027 | HJ17: 4116.948598
A18: CHATEAUBRIANT | B18: 3901 | C18: 4918 | D18: 3617 | E18: 3735 | F18: 3607 | G18: 3057 | H18: 3981 | I18: 4028 | J18: 3168 | K18: 3596 | L18: 3229 | M18: 5258 | N18: 5205 | O18: 5496 | P18: 3339 | Q18: 4911 | S18: 4812 | T18: 4109 | U18: 2453 | V18: 4158 | W18: 4614 | X18: 3450 | Y18: 3525 | Z18: 2167 | AA18: 2786 | AB18: 3728 | AC18: 3808 | AD18: 4178 | AE18: 3089 | AF18: 4198 | AG18: 4124 | AH18: 3363 | AI18: 4116 | AJ18: 3944 | AK18: 3755 | AL18: 4688 | AM18: 3021 | AN18: 4805 | AO18: 3959 | AP18: 4968 | AQ18: 4345 | AR18: 4132 | AS18: 4956 | AT18: 2255 | AU18: 3114 | AV18: 3707 | AW18: 3920 | AX18: 3917 | AY18: 2285 | AZ18: 4538 | BA18: 2671 | BB18: 3902 | BC18: 2673 | BD18: 5486 | BE18: 2307 | BF18: 4123 | BG18: 2276 | BH18: 5736 | BI18: 4970 | BJ18: 4484 | BK18: 5127 | BL18: 3845 | BM18: 5518 | BN18: 2755 | BO18: 5091 | BP18: 6036 | BQ18: 12631 | BR18: 4676 | BS18: 4571 | BT18: 5501 | BU18: 5019 | BV18: 4501 | BW18: 1675 | BX18: 3418 | BY18: 3075 | BZ18: 1995 | CA18: 4337 | CB18: 3924 | CC18: 2954 | CD18: 3014 | CE18: 3462 | CF18: 2275 | CG18: 5062 | CH18: 4696 | CI18: 4130 | CJ18: 1618 | CK18: 4435 | CL18: 2844 | CM18: 3979 | CN18: 3679 | CO18: 3441 | CP18: 5246 | CQ18: 3110 | CR18: 4344 | CS18: 4014 | CT18: 3078 | CU18: 4089 | CV18: 3258 | CW18: 4726 | CX18: 5648 | CY18: 4452 | CZ18: 2955 | DA18: 805 | DB18: 4399 | DC18: 4572 | DD18: 4010 | DE18: 4400 | DF18: 4422 | DG18: 3618 | DH18: 2806 | DI18: 4200 | DJ18: 4217 | DK18: 3624 | DL18: 5040 | DM18: 5124 | DN18: 4098 | DO18: 4874 | DP18: 4848 | DQ18: 5051 | DR18: 3855 | DS18: 4219 | DT18: 2878 | DU18: 2844 | DV18: 26827 | DW18: 4535 | DX18: 1652 | DY18: 1889 | DZ18: 5407 | EA18: 2582 | EB18: 3179 | EC18: 1564 | ED18: 5032 | EE18: 100906 | EF18: 4965 | EG18: 4361 | EH18: 1586 | EI18: 6018 | EJ18: 4819 | EK18: 2634 | EL18: 4527 | EM18: 4605 | EN18: 3760 | EO18: 2673 | EP18: 3143 | EQ18: 4801 | ER18: 1478 | ES18: 865 | ET18: 4972 | EU18: 4086 | EV18: 3402 | EW18: 2010 | EX18: 906 | EY18: 5218 | EZ18: 2421 | FA18: 2048 | FB18: 5597 | FC18: 4639 | FD18: 5321 | FE18: 1171 | FF18: 2225 | FG18: 723 | FH18: 3407 | FI18: 5210 | FJ18: 1865 | FK18: 3930 | FL18: 4532 | FM18: 1001 | FN18: 1936 | FO18: 2180 | FP18: 1139 | FQ18: 5077 | FR18: 4810 | FS18: 1905 | FT18: 3290 | FU18: 3775 | FV18: 4965 | FW18: 5872 | FX18: 51616 | FY18: 4154 | FZ18: 4785 | GA18: 4115 | GB18: 17262 | GC18: 2593 | GD18: 2004 | GE18: 1890 | GF18: 2271 | GG18: 1162 | GH18: 1801 | GI18: 2009 | GJ18: 3140 | GK18: 4068 | GL18: 2347 | GM18: 899 | GN18: 775 | GO18: 4187 | GP18: 3825 | GQ18: 3357 | GR18: 1098 | GS18: 1161 | GT18: 1084 | GU18: 2745 | GV18: 19383 | GW18: 1668 | GX18: 3908 | GY18: 674 | GZ18: 2761 | HA18: 1507 | HB18: 767 | HC18: 549 | HD18: 1651 | HE18: 716 | HF18: 1118 | HG18: 1496 | HH18: 856 | HI18: 955612 | HJ18: 4465.476636
A19: PORNICHET | B19: 3650 | C19: 948 | D19: 2825 | E19: 3156 | F19: 3432 | G19: 2898 | H19: 3711 | I19: 2888 | J19: 3137 | K19: 3017 | L19: 3062 | M19: 931 | N19: 857 | O19: 1980 | P19: 3168 | Q19: 1274 | R19: 4812 | T19: 1808 | U19: 2595 | V19: 3949 | W19: 3813 | X19: 3509 | Y19: 3316 | Z19: 3486 | AA19: 2990 | AB19: 1682 | AC19: 3250 | AD19: 3893 | AE19: 4201 | AF19: 797 | AG19: 1380 | AH19: 2526 | AI19: 1061 | AJ19: 3757 | AK19: 2470 | AL19: 4479 | AM19: 3411 | AN19: 1676 | AO19: 3136 | AP19: 3154 | AQ19: 2977 | AR19: 3574 | AS19: 773 | AT19: 2782 | AU19: 2298 | AV19: 3498 | AW19: 3274 | AX19: 4087 | AY19: 3248 | AZ19: 3980 | BA19: 3135 | BB19: 2346 | BC19: 2619 | BD19: 1341 | BE19: 4121 | BF19: 3283 | BG19: 4168 | BH19: 1579 | BI19: 1371 | BJ19: 4275 | BK19: 1336 | BL19: 3636 | BM19: 4197 | BN19: 3713 | BO19: 1841 | BP19: 1879 | BQ19: 14266 | BR19: 2306 | BS19: 1642 | BT19: 1902 | BU19: 4546 | BV19: 1766 | BW19: 3481 | BX19: 1904 | BY19: 3937 | BZ19: 3414 | CA19: 3864 | CB19: 3365 | CC19: 4633 | CD19: 4263 | CE19: 2482 | CF19: 3715 | CG19: 2400 | CH19: 4486 | CI19: 3657 | CJ19: 3810 | CK19: 3961 | CL19: 2233 | CM19: 2327 | CN19: 1401 | CO19: 1837 | CP19: 1629 | CQ19: 2614 | CR19: 1227 | CS19: 3805 | CT19: 3374 | CU19: 3880 | CV19: 3635 | CW19: 2186 | CX19: 1491 | CY19: 3979 | CZ19: 2006 | DA19: 4877 | DB19: 3925 | DC19: 4176 | DD19: 2970 | DE19: 4191 | DF19: 1594 | DG19: 1603 | DH19: 4056 | DI19: 1445 | DJ19: 2664 | DK19: 2083 | DL19: 1441 | DM19: 4915 | DN19: 3889 | DO19: 4306 | DP19: 2160 | DQ19: 2111 | DR19: 3255 | DS19: 3150 | DT19: 3415 | DU19: 4411 | DV19: 28462 | DW19: 2476 | DX19: 4703 | DY19: 3794 | DZ19: 1250 | EA19: 4192 | EB19: 3075 | EC19: 4007 | ED19: 1678 | EE19: 103212 | EF19: 4052 | EG19: 1866 | EH19: 4562 | EI19: 1861 | EJ19: 4560 | EK19: 3319 | EL19: 2758 | EM19: 4291 | EN19: 2163 | EO19: 2495 | EP19: 4369 | EQ19: 3506 | ER19: 3654 | ES19: 4467 | ET19: 3375 | EU19: 3877 | EV19: 1963 | EW19: 4177 | EX19: 4159 | EY19: 1558 | EZ19: 4927 | FA19: 4592 | FB19: 1440 | FC19: 4165 | FD19: 3784 | FE19: 4421 | FF19: 2914 | FG19: 4498 | FH19: 2654 | FI19: 3614 | FJ19: 3060 | FK19: 3118 | FL19: 4365 | FM19: 4037 | FN19: 3578 | FO19: 2987 | FP19: 4172 | FQ19: 2221 | FR19: 3374 | FS19: 4461 | FT19: 2223 | FU19: 4348 | FV19: 2687 | FW19: 2273 | FX19: 53922 | FY19: 4440 | FZ19: 3161 | GA19: 3906 | GB19: 18897 | GC19: 4651 | GD19: 3556 | GE19: 3227 | GF19: 4590 | GG19: 4145 | GH19: 4145 | GI19: 3665 | GJ19: 5210 | GK19: 4519 | GL19: 4369 | GM19: 5086 | GN19: 4334 | GO19: 2940 | GP19: 1978 | GQ19: 5083 | GR19: 5119 | GS19: 3739 | GT19: 4522 | GU19: 5030 | GV19: 19122 | GW19: 5123 | GX19: 1872 | GY19: 4731 | GZ19: 3632 | HA19: 5120 | HB19: 5397 | HC19: 5211 | HD19: 4787 | HE19: 5312 | HF19: 4774 | HG19: 4130 | HH19: 5389 | HI19: 918105 | HJ19: 4290.21028
A20: PONTCHATEAU | B20: 2898 | C20: 1790 | D20: 2074 | E20: 2405 | F20: 2681 | G20: 2147 | H20: 2960 | I20: 2136 | J20: 2386 | K20: 2265 | L20: 2311 | M20: 2203 | N20: 2077 | O20: 2489 | P20: 2417 | Q20: 1783 | R20: 4109 | S20: 1808 | U20: 1750 | V20: 3146 | W20: 3338 | X20: 2706 | Y20: 2513 | Z20: 2796 | AA20: 2187 | AB20: 970 | AC20: 2447 | AD20: 3090 | AE20: 3398 | AF20: 1090 | AG20: 1020 | AH20: 1724 | AI20: 1008 | AJ20: 2955 | AK20: 1668 | AL20: 3677 | AM20: 2608 | AN20: 1263 | AO20: 2598 | AP20: 3645 | AQ20: 2984 | AR20: 2771 | AS20: 1848 | AT20: 2092 | AU20: 1495 | AV20: 2695 | AW20: 2559 | AX20: 3284 | AY20: 2086 | AZ20: 3177 | BA20: 2332 | BB20: 611 | BC20: 1457 | BD20: 2378 | BE20: 3319 | BF20: 2762 | BG20: 3366 | BH20: 2495 | BI20: 1862 | BJ20: 3472 | BK20: 1474 | BL20: 2834 | BM20: 4242 | BN20: 2911 | BO20: 2332 | BP20: 2928 | BQ20: 13463 | BR20: 2798 | BS20: 861 | BT20: 2393 | BU20: 3743 | BV20: 942 | BW20: 2728 | BX20: 741 | BY20: 3134 | BZ20: 2690 | CA20: 3061 | CB20: 2563 | CC20: 3831 | CD20: 3460 | CE20: 806 | CF20: 2912 | CG20: 2891 | CH20: 3684 | CI20: 2854 | CJ20: 2648 | CK20: 3159 | CL20: 1543 | CM20: 1562 | CN20: 780 | CO20: 1034 | CP20: 2121 | CQ20: 1074 | CR20: 1236 | CS20: 3002 | CT20: 1636 | CU20: 3078 | CV20: 2833 | CW20: 2677 | CX20: 2540 | CY20: 3176 | CZ20: 1212 | DA20: 4153 | DB20: 3123 | DC20: 3373 | DD20: 2648 | DE20: 3388 | DF20: 644 | DG20: 739 | DH20: 3254 | DI20: 428 | DJ20: 2856 | DK20: 537 | DL20: 1932 | DM20: 4112 | DN20: 3087 | DO20: 3598 | DP20: 2651 | DQ20: 2602 | DR20: 2494 | DS20: 2858 | DT20: 1716 | DU20: 3608 | DV20: 27659 | DW20: 2967 | DX20: 3901 | DY20: 3103 | DZ20: 1881 | EA20: 3389 | EB20: 1399 | EC20: 3316 | ED20: 2169 | EE20: 102409 | EF20: 3689 | EG20: 653 | EH20: 3871 | EI20: 2692 | EJ20: 3758 | EK20: 2628 | EL20: 3165 | EM20: 3488 | EN20: 487 | EO20: 1692 | EP20: 3567 | EQ20: 3439 | ER20: 2930 | ES20: 3744 | ET20: 3696 | EU20: 3074 | EV20: 1160 | EW20: 3487 | EX20: 3435 | EY20: 1641 | EZ20: 4124 | FA20: 3825 | FB20: 2196 | FC20: 3363 | FD20: 4045 | FE20: 3259 | FF20: 2008 | FG20: 3670 | FH20: 978 | FI20: 3934 | FJ20: 2336 | FK20: 2569 | FL20: 3563 | FM20: 3314 | FN20: 2611 | FO20: 2263 | FP20: 3449 | FQ20: 2712 | FR20: 3534 | FS20: 3658 | FT20: 841 | FU20: 3545 | FV20: 3178 | FW20: 2765 | FX20: 53119 | FY20: 3637 | FZ20: 3424 | GA20: 3103 | GB20: 18095 | GC20: 3849 | GD20: 2394 | GE20: 2504 | GF20: 3788 | GG20: 2983 | GH20: 3454 | GI20: 2503 | GJ20: 4407 | GK20: 3716 | GL20: 3566 | GM20: 4362 | GN20: 3578 | GO20: 2826 | GP20: 1254 | GQ20: 4280 | GR20: 4396 | GS20: 3016 | GT20: 3798 | GU20: 4228 | GV20: 18319 | GW20: 4321 | GX20: 1294 | GY20: 3725 | GZ20: 2085 | HA20: 4355 | HB20: 4641 | HC20: 4456 | HD20: 4056 | HE20: 4307 | HF20: 4050 | HG20: 2968 | HH20: 4313 | HI20: 798368 | HJ20: 3730.691589
A21: BLAIN | B21: 2612 | C21: 2577 | D21: 2194 | E21: 2446 | F21: 2408 | G21: 1768 | H21: 2782 | I21: 2256 | J21: 2113 | K21: 2307 | L21: 1940 | M21: 2917 | N21: 2864 | O21: 3275 | P21: 2144 | Q21: 2570 | R21: 2453 | S21: 2595 | T21: 1750 | V21: 2833 | W21: 3313 | X21: 2393 | Y21: 2199 | Z21: 1367 | AA21: 1397 | AB21: 1388 | AC21: 2422 | AD21: 2777 | AE21: 2957 | AF21: 1857 | AG21: 1783 | AH21: 1558 | AI21: 1776 | AJ21: 2641 | AK21: 1569 | AL21: 3363 | AM21: 1778 | AN21: 2574 | AO21: 2573 | AP21: 3582 | AQ21: 2959 | AR21: 2746 | AS21: 2616 | AT21: 772 | AU21: 1269 | AV21: 2382 | AW21: 2534 | AX21: 2971 | AY21: 1113 | AZ21: 3152 | BA21: 1285 | BB21: 1935 | BC21: 800 | BD21: 3145 | BE21: 2109 | BF21: 2738 | BG21: 2550 | BH21: 3395 | BI21: 2630 | BJ21: 3159 | BK21: 2841 | BL21: 2520 | BM21: 4217 | BN21: 2334 | BO21: 3100 | BP21: 3695 | BQ21: 13149 | BR21: 3290 | BS21: 2230 | BT21: 3161 | BU21: 3718 | BV21: 2309 | BW21: 1096 | BX21: 1078 | BY21: 2792 | BZ21: 1028 | CA21: 3036 | CB21: 2538 | CC21: 3454 | CD21: 2856 | CE21: 1394 | CF21: 1901 | CG21: 3659 | CH21: 3370 | CI21: 2829 | CJ21: 1471 | CK21: 3134 | CL21: 503 | CM21: 1639 | CN21: 1339 | CO21: 1101 | CP21: 2888 | CQ21: 999 | CR21: 2004 | CS21: 2689 | CT21: 1548 | CU21: 2764 | CV21: 2519 | CW21: 3340 | CX21: 3307 | CY21: 3152 | CZ21: 615 | DA21: 2491 | DB21: 3098 | DC21: 3059 | DD21: 2624 | DE21: 3074 | DF21: 2082 | DG21: 1278 | DH21: 2649 | DI21: 1860 | DJ21: 2831 | DK21: 1299 | DL21: 2700 | DM21: 3799 | DN21: 2773 | DO21: 3574 | DP21: 3419 | DQ21: 3370 | DR21: 2469 | DS21: 2833 | DT21: 1596 | DU21: 3295 | DV21: 27346 | DW21: 3149 | DX21: 2739 | DY21: 1675 | DZ21: 3066 | EA21: 2424 | EB21: 1369 | EC21: 1710 | ED21: 2937 | EE21: 102096 | EF21: 3664 | EG21: 2020 | EH21: 2265 | EI21: 3678 | EJ21: 3493 | EK21: 1273 | EL21: 3141 | EM21: 3280 | EN21: 1638 | EO21: 702 | EP21: 3190 | EQ21: 3415 | ER21: 1269 | ES21: 2082 | ET21: 3671 | EU21: 2761 | EV21: 1061 | EW21: 2058 | EX21: 1773 | EY21: 2987 | EZ21: 3594 | FA21: 2428 | FB21: 3257 | FC21: 3338 | FD21: 4020 | FE21: 2000 | FF21: 432 | FG21: 2113 | FH21: 1598 | FI21: 3910 | FJ21: 674 | FK21: 2544 | FL21: 3249 | FM21: 1652 | FN21: 1123 | FO21: 601 | FP21: 1787 | FQ21: 3480 | FR21: 3509 | FS21: 2535 | FT21: 964 | FU21: 3232 | FV21: 3579 | FW21: 3532 | FX21: 52300 | FY21: 3323 | FZ21: 3399 | GA21: 2789 | GB21: 17781 | GC21: 3437 | GD21: 1282 | GE21: 842 | GF21: 3195 | GG21: 1722 | GH21: 1999 | GI21: 1530 | GJ21: 4030 | GK21: 3403 | GL21: 3015 | GM21: 2701 | GN21: 1948 | GO21: 2801 | GP21: 1484 | GQ21: 3903 | GR21: 2734 | GS21: 1354 | GT21: 2137 | GU21: 3816 | GV21: 18294 | GW21: 3304 | GX21: 1568 | GY21: 2345 | GZ21: 1573 | HA21: 2820 | HB21: 3011 | HC21: 2826 | HD21: 2490 | HE21: 2927 | HF21: 2388 | HG21: 1802 | HH21: 3003 | HI21: 741470 | HJ21: 3464.813084
A22: VALLET | B22: 1832 | C22: 3931 | D22: 2138 | E22: 1874 | F22: 1206 | G22: 1756 | H22: 1390 | I22: 2556 | J22: 1454 | K22: 1713 | L22: 1736 | M22: 4271 | N22: 4217 | O22: 3613 | P22: 1194 | Q22: 3923 | R22: 4158 | S22: 3949 | T22: 3146 | U22: 2833 | W22: 2225 | X22: 1342 | Y22: 956 | Z22: 2470 | AA22: 1897 | AB22: 2831 | AC22: 1612 | AD22: 934 | AE22: 1631 | AF22: 3336 | AG22: 3261 | AH22: 2057 | AI22: 3254 | AJ22: 1247 | AK22: 2354 | AL22: 964 | AM22: 1772 | AN22: 4008 | AO22: 2199 | AP22: 2642 | AQ22: 2586 | AR22: 1881 | AS22: 4094 | AT22: 2158 | AU22: 2187 | AV22: 931 | AW22: 2160 | AX22: 1121 | AY22: 3698 | AZ22: 2107 | BA22: 2208 | BB22: 3369 | BC22: 3481 | BD22: 4623 | BE22: 2311 | BF22: 2364 | BG22: 2302 | BH22: 4874 | BI22: 3679 | BJ22: 852 | BK22: 4274 | BL22: 846 | BM22: 3149 | BN22: 1903 | BO22: 3332 | BP22: 5173 | BQ22: 11485 | BR22: 2916 | BS22: 3709 | BT22: 3878 | BU22: 2099 | BV22: 3743 | BW22: 2760 | BX22: 2829 | BY22: 1906 | BZ22: 2627 | CA22: 1948 | CB22: 2198 | CC22: 2258 | CD22: 1712 | CE22: 3577 | CF22: 1905 | CG22: 3302 | CH22: 910 | CI22: 1819 | CJ22: 3135 | CK22: 1398 | CL22: 2725 | CM22: 2734 | CN22: 2817 | CO22: 2406 | CP22: 3486 | CQ22: 3476 | CR22: 3482 | CS22: 569 | CT22: 4237 | CU22: 624 | CV22: 1637 | CW22: 2967 | CX22: 4786 | CY22: 1941 | CZ22: 2916 | DA22: 3733 | DB22: 1372 | DC22: 484 | DD22: 2250 | DE22: 1164 | DF22: 3554 | DG22: 2746 | DH22: 1907 | DI22: 3338 | DJ22: 2458 | DK22: 3265 | DL22: 3609 | DM22: 1357 | DN22: 374 | DO22: 2485 | DP22: 3089 | DQ22: 3292 | DR22: 2096 | DS22: 2460 | DT22: 4277 | DU22: 2147 | DV22: 26699 | DW22: 2776 | DX22: 2945 | DY22: 2208 | DZ22: 4545 | EA22: 2134 | EB22: 4058 | EC22: 2556 | ED22: 3272 | EE22: 101448 | EF22: 2576 | EG22: 3454 | EH22: 3023 | EI22: 5156 | EJ22: 1185 | EK22: 2246 | EL22: 2767 | EM22: 1054 | EN22: 3258 | EO22: 2393 | EP22: 2041 | EQ22: 2475 | ER22: 2942 | ES22: 3323 | ET22: 2583 | EU22: 840 | EV22: 2195 | EW22: 2571 | EX22: 3437 | EY22: 4421 | EZ22: 2713 | FA22: 2738 | FB22: 4735 | FC22: 1400 | FD22: 2932 | FE22: 3664 | FF22: 2903 | FG22: 3777 | FH22: 3777 | FI22: 2821 | FJ22: 2607 | FK22: 2171 | FL22: 548 | FM22: 3316 | FN22: 3075 | FO22: 2593 | FP22: 2995 | FQ22: 3318 | FR22: 2421 | FS22: 2702 | FT22: 3086 | FU22: 1252 | FV22: 2950 | FW22: 4168 | FX22: 52158 | FY22: 753 | FZ22: 2674 | GA22: 1115 | GB22: 17134 | GC22: 2476 | GD22: 3356 | GE22: 2515 | GF22: 2461 | GG22: 3386 | GH22: 2538 | GI22: 3429 | GJ22: 2712 | GK22: 705 | GL22: 2500 | GM22: 3688 | GN22: 3613 | GO22: 2428 | GP22: 2738 | GQ22: 2660 | GR22: 3474 | GS22: 3018 | GT22: 3378 | GU22: 2734 | GV22: 16237 | GW22: 3306 | GX22: 3068 | GY22: 4009 | GZ22: 4158 | HA22: 3399 | HB22: 4685 | HC22: 4399 | HD22: 3100 | HE22: 4591 | HF22: 3630 | HG22: 3466 | HH22: 4668 | HI22: 787521 | HJ22: 3680.004673
A23: SAINT-PHILBERT-DE-GRAND-LIEU | B23: 1757 | C23: 3780 | D23: 1917 | E23: 1672 | F23: 1497 | G23: 2236 | H23: 1521 | I23: 2473 | J23: 1910 | K23: 1511 | L23: 2192 | M23: 4134 | N23: 4081 | O23: 2460 | P23: 1650 | Q23: 2924 | R23: 4614 | S23: 3813 | T23: 3338 | U23: 3313 | V23: 2225 | X23: 1891 | Y23: 1495 | Z23: 2971 | AA23: 2397 | AB23: 3114 | AC23: 1119 | AD23: 2227 | AE23: 2937 | AF23: 3330 | AG23: 3544 | AH23: 2230 | AI23: 3598 | AJ23: 1992 | AK23: 2668 | AL23: 2436 | AM23: 2273 | AN23: 4290 | AO23: 1363 | AP23: 832 | AQ23: 1188 | AR23: 1031 | AS23: 3977 | AT23: 2658 | AU23: 2469 | AV23: 1773 | AW23: 2041 | AX23: 2322 | AY23: 4199 | AZ23: 746 | BA23: 2709 | BB23: 3651 | BC23: 3764 | BD23: 4507 | BE23: 2812 | BF23: 2079 | BG23: 2905 | BH23: 4757 | BI23: 2569 | BJ23: 2110 | BK23: 4537 | BL23: 1826 | BM23: 1283 | BN23: 2404 | BO23: 2650 | BP23: 5057 | BQ23: 12183 | BR23: 1761 | BS23: 3991 | BT23: 2732 | BU23: 1477 | BV23: 4025 | BW23: 3260 | BX23: 3111 | BY23: 2406 | BZ23: 3127 | CA23: 807 | CB23: 1401 | CC23: 3370 | CD23: 2732 | CE23: 3860 | CF23: 2405 | CG23: 1559 | CH23: 2491 | CI23: 924 | CJ23: 3635 | CK23: 1475 | CL23: 3061 | CM23: 3016 | CN23: 3099 | CO23: 2689 | CP23: 3056 | CQ23: 3759 | CR23: 3765 | CS23: 2080 | CT23: 4519 | CU23: 2197 | CV23: 2105 | CW23: 2537 | CX23: 4669 | CY23: 1048 | CZ23: 3199 | DA23: 4233 | DB23: 1469 | DC23: 2451 | DD23: 1266 | DE23: 1740 | DF23: 3836 | DG23: 3028 | DH23: 2793 | DI23: 3621 | DJ23: 1860 | DK23: 3547 | DL23: 3165 | DM23: 2938 | DN23: 2165 | DO23: 773 | DP23: 2168 | DQ23: 2120 | DR23: 1617 | DS23: 1029 | DT23: 4560 | DU23: 3148 | DV23: 27199 | DW23: 1614 | DX23: 3440 | DY23: 2708 | DZ23: 4428 | EA23: 2661 | EB23: 4340 | EC23: 3056 | ED23: 2842 | EE23: 101949 | EF23: 538 | EG23: 3736 | EH23: 3564 | EI23: 5039 | EJ23: 2074 | EK23: 2746 | EL23: 1308 | EM23: 1804 | EN23: 3540 | EO23: 2894 | EP23: 3106 | EQ23: 623 | ER23: 3442 | ES23: 3823 | ET23: 772 | EU23: 1949 | EV23: 2477 | EW23: 3071 | EX23: 3938 | EY23: 4736 | EZ23: 3663 | FA23: 3307 | FB23: 4618 | FC23: 1679 | FD23: 822 | FE23: 4164 | FF23: 3403 | FG23: 4277 | FH23: 4060 | FI23: 885 | FJ23: 3107 | FK23: 1385 | FL23: 2641 | FM23: 3816 | FN23: 3575 | FO23: 3093 | FP23: 3495 | FQ23: 1880 | FR23: 611 | FS23: 3198 | FT23: 3368 | FU23: 2647 | FV23: 1139 | FW23: 3022 | FX23: 52659 | FY23: 2739 | FZ23: 883 | GA23: 1666 | GB23: 17634 | GC23: 3388 | GD23: 3856 | GE23: 3016 | GF23: 3327 | GG23: 3886 | GH23: 3038 | GI23: 3929 | GJ23: 3947 | GK23: 2794 | GL23: 3106 | GM23: 4183 | GN23: 4113 | GO23: 2091 | GP23: 3020 | GQ23: 3820 | GR23: 3969 | GS23: 3518 | GT23: 3878 | GU23: 3767 | GV23: 16700 | GW23: 3860 | GX23: 3351 | GY23: 4510 | GZ23: 4659 | HA23: 3895 | HB23: 5085 | HC23: 4900 | HD23: 3596 | HE23: 5091 | HF23: 4130 | HG23: 3966 | HH23: 5168 | HI23: 823217 | HJ23: 3846.808411
A24: THOUARE-SUR-LOIRE | B24: 1446 | C24: 3491 | D24: 1698 | E24: 1541 | F24: 873 | G24: 1316 | H24: 1248 | I24: 2116 | J24: 682 | K24: 1380 | L24: 1218 | M24: 3831 | N24: 3778 | O24: 3280 | P24: 602 | Q24: 3484 | R24: 3450 | S24: 3509 | T24: 2706 | U24: 2393 | V24: 1342 | W24: 1891 | Y24: 801 | Z24: 1795 | AA24: 1435 | AB24: 2369 | AC24: 1275 | AD24: 788 | AE24: 1697 | AF24: 2874 | AG24: 2799 | AH24: 1595 | AI24: 2792 | AJ24: 553 | AK24: 1892 | AL24: 1958 | AM24: 1097 | AN24: 3546 | AO24: 1863 | AP24: 2305 | AQ24: 2249 | AR24: 1544 | AS24: 3632 | AT24: 1696 | AU24: 1725 | AV24: 976 | AW24: 1824 | AX24: 883 | AY24: 3236 | AZ24: 1770 | BA24: 1746 | BB24: 2907 | BC24: 3019 | BD24: 4161 | BE24: 1323 | BF24: 2027 | BG24: 1506 | BH24: 4412 | BI24: 3342 | BJ24: 1753 | BK24: 3812 | BL24: 1115 | BM24: 2792 | BN24: 1021 | BO24: 2995 | BP24: 4711 | BQ24: 11895 | BR24: 2579 | BS24: 3246 | BT24: 3541 | BU24: 2293 | BV24: 3281 | BW24: 2298 | BX24: 2367 | BY24: 854 | BZ24: 2165 | CA24: 1611 | CB24: 1862 | CC24: 2168 | CD24: 1180 | CE24: 3115 | CF24: 1229 | CG24: 2966 | CH24: 1965 | CI24: 1404 | CJ24: 2673 | CK24: 1709 | CL24: 2263 | CM24: 2272 | CN24: 2355 | CO24: 1944 | CP24: 3150 | CQ24: 3014 | CR24: 3020 | CS24: 1055 | CT24: 3775 | CU24: 1358 | CV24: 449 | CW24: 2630 | CX24: 4324 | CY24: 1726 | CZ24: 2454 | DA24: 2961 | DB24: 1650 | DC24: 1167 | DD24: 1913 | DE24: 1669 | DF24: 3092 | DG24: 2284 | DH24: 1362 | DI24: 2876 | DJ24: 2121 | DK24: 2803 | DL24: 3272 | DM24: 2393 | DN24: 1368 | DO24: 2148 | DP24: 2752 | DQ24: 2955 | DR24: 1759 | DS24: 2123 | DT24: 3815 | DU24: 2009 | DV24: 26091 | DW24: 2439 | DX24: 2352 | DY24: 1532 | DZ24: 4082 | EA24: 1109 | EB24: 3596 | EC24: 1881 | ED24: 2936 | EE24: 100841 | EF24: 2239 | EG24: 2992 | EH24: 2076 | EI24: 4694 | EJ24: 2088 | EK24: 1571 | EL24: 2430 | EM24: 1874 | EN24: 2796 | EO24: 1931 | EP24: 1903 | EQ24: 2139 | ER24: 2480 | ES24: 2648 | ET24: 2246 | EU24: 1355 | EV24: 1733 | EW24: 1599 | EX24: 2846 | EY24: 3958 | EZ24: 2556 | FA24: 1754 | FB24: 4273 | FC24: 1913 | FD24: 2595 | FE24: 3202 | FF24: 2441 | FG24: 3315 | FH24: 3315 | FI24: 2484 | FJ24: 2145 | FK24: 1834 | FL24: 1877 | FM24: 2854 | FN24: 2613 | FO24: 2131 | FP24: 2319 | FQ24: 2981 | FR24: 2084 | FS24: 1867 | FT24: 2624 | FU24: 1110 | FV24: 2613 | FW24: 3831 | FX24: 51551 | FY24: 1300 | FZ24: 2337 | GA24: 1384 | GB24: 16527 | GC24: 2281 | GD24: 2894 | GE24: 2053 | GF24: 2220 | GG24: 2924 | GH24: 1809 | GI24: 2967 | GJ24: 2744 | GK24: 1483 | GL24: 1998 | GM24: 2975 | GN24: 3136 | GO24: 2091 | GP24: 2275 | GQ24: 2617 | GR24: 2761 | GS24: 2556 | GT24: 2550 | GU24: 2668 | GV24: 16869 | GW24: 2753 | GX24: 2606 | GY24: 3547 | GZ24: 3696 | HA24: 2608 | HB24: 3910 | HC24: 3724 | HD24: 2254 | HE24: 3969 | HF24: 2858 | HG24: 3004 | HH24: 4060 | HI24: 714715 | HJ24: 3339.78972
A25: BASSE-GOULAINE | B25: 1199 | C25: 3297 | D25: 1390 | E25: 1145 | F25: 448 | G25: 1122 | H25: 885 | I25: 1946 | J25: 821 | K25: 984 | L25: 1103 | M25: 3637 | N25: 3584 | O25: 2884 | P25: 560 | Q25: 3288 | R25: 3525 | S25: 3316 | T25: 2513 | U25: 2199 | V25: 956 | W25: 1495 | X25: 801 | Z25: 1910 | AA25: 1337 | AB25: 2271 | AC25: 920 | AD25: 862 | AE25: 1877 | AF25: 2775 | AG25: 2701 | AH25: 1496 | AI25: 2694 | AJ25: 727 | AK25: 1794 | AL25: 1480 | AM25: 1212 | AN25: 3448 | AO25: 1507 | AP25: 1950 | AQ25: 1894 | AR25: 1189 | AS25: 3534 | AT25: 1598 | AU25: 1626 | AV25: 499 | AW25: 1468 | AX25: 1056 | AY25: 3138 | AZ25: 1415 | BA25: 1648 | BB25: 2809 | BC25: 2921 | BD25: 4063 | BE25: 1751 | BF25: 1672 | BG25: 1844 | BH25: 4313 | BI25: 2987 | BJ25: 1276 | BK25: 3714 | BL25: 637 | BM25: 2437 | BN25: 1343 | BO25: 2640 | BP25: 4613 | BQ25: 11946 | BR25: 2224 | BS25: 3148 | BT25: 3186 | BU25: 1938 | BV25: 3183 | BW25: 2200 | BX25: 2268 | BY25: 1345 | BZ25: 2066 | CA25: 1256 | CB25: 1506 | CC25: 2310 | CD25: 1721 | CE25: 3017 | CF25: 1344 | CG25: 2610 | CH25: 1487 | CI25: 1049 | CJ25: 2574 | CK25: 1354 | CL25: 2165 | CM25: 2173 | CN25: 2257 | CO25: 1846 | CP25: 2794 | CQ25: 2916 | CR25: 2922 | CS25: 806 | CT25: 3676 | CU25: 881 | CV25: 1174 | CW25: 2275 | CX25: 4225 | CY25: 1371 | CZ25: 2356 | DA25: 3172 | DB25: 1173 | DC25: 1195 | DD25: 1558 | DE25: 1192 | DF25: 2993 | DG25: 2186 | DH25: 1733 | DI25: 2778 | DJ25: 1766 | DK25: 2705 | DL25: 2917 | DM25: 1916 | DN25: 890 | DO25: 1793 | DP25: 2397 | DQ25: 2600 | DR25: 1403 | DS25: 1768 | DT25: 3717 | DU25: 2087 | DV25: 26138 | DW25: 2084 | DX25: 2379 | DY25: 1647 | DZ25: 3984 | EA25: 1601 | EB25: 3497 | EC25: 1995 | ED25: 2580 | EE25: 100888 | EF25: 1884 | EG25: 2893 | EH25: 2503 | EI25: 4596 | EJ25: 1611 | EK25: 1686 | EL25: 2075 | EM25: 1397 | EN25: 2698 | EO25: 1833 | EP25: 2045 | EQ25: 1783 | ER25: 2382 | ES25: 2762 | ET25: 1890 | EU25: 878 | EV25: 1635 | EW25: 2010 | EX25: 2877 | EY25: 3860 | EZ25: 2603 | FA25: 2246 | FB25: 4175 | FC25: 1513 | FD25: 2240 | FE25: 3104 | FF25: 2342 | FG25: 3216 | FH25: 3217 | FI25: 2129 | FJ25: 2046 | FK25: 1479 | FL25: 1366 | FM25: 2756 | FN25: 2515 | FO25: 2033 | FP25: 2434 | FQ25: 2626 | FR25: 1729 | FS25: 2137 | FT25: 2525 | FU25: 1317 | FV25: 2258 | FW25: 3476 | FX25: 51598 | FY25: 1409 | FZ25: 1982 | GA25: 907 | GB25: 16573 | GC25: 2327 | GD25: 2795 | GE25: 1955 | GF25: 2267 | GG25: 2825 | GH25: 1978 | GI25: 2869 | GJ25: 2886 | GK25: 1520 | GL25: 2045 | GM25: 3122 | GN25: 3052 | GO25: 1736 | GP25: 2177 | GQ25: 2759 | GR25: 2908 | GS25: 2457 | GT25: 2817 | GU25: 2706 | GV25: 16699 | GW25: 2799 | GX25: 2508 | GY25: 3449 | GZ25: 3598 | HA25: 2834 | HB25: 4025 | HC25: 3839 | HD25: 2535 | HE25: 4031 | HF25: 3069 | HG25: 2906 | HH25: 4107 | HI25: 689294 | HJ25: 3221
A26: NORT-SUR-ERDRE | B26: 2367 | C26: 3468 | D26: 2082 | E26: 2201 | F26: 1953 | G26: 1523 | H26: 2327 | I26: 2494 | J26: 1514 | K26: 2061 | L26: 1304 | M26: 3808 | N26: 3755 | O26: 3961 | P26: 1685 | Q26: 3461 | R26: 2167 | S26: 3486 | T26: 2796 | U26: 1367 | V26: 2470 | W26: 2971 | X26: 1795 | Y26: 1910 | AA26: 1264 | AB26: 2360 | AC26: 2286 | AD26: 2619 | AE26: 1772 | AF26: 2830 | AG26: 2756 | AH26: 1841 | AI26: 2748 | AJ26: 2385 | AK26: 2232 | AL26: 3129 | AM26: 959 | AN26: 3547 | AO26: 2436 | AP26: 3472 | AQ26: 2823 | AR26: 2610 | AS26: 3588 | AT26: 706 | AU26: 1591 | AV26: 2148 | AW26: 2397 | AX26: 2449 | AY26: 2097 | AZ26: 3016 | BA26: 963 | BB26: 2908 | BC26: 1901 | BD26: 4118 | BE26: 924 | BF26: 2601 | BG26: 1365 | BH26: 4368 | BI26: 3602 | BJ26: 2925 | BK26: 3813 | BL26: 2286 | BM26: 3959 | BN26: 1149 | BO26: 3569 | BP26: 4668 | BQ26: 12227 | BR26: 3153 | BS26: 3203 | BT26: 4133 | BU26: 3460 | BV26: 3282 | BW26: 1027 | BX26: 2095 | BY26: 1607 | BZ26: 556 | CA26: 2778 | CB26: 2401 | CC26: 2269 | CD26: 1671 | CE26: 2496 | CF26: 716 | CG26: 3540 | CH26: 3136 | CI26: 2571 | CJ26: 1590 | CK26: 2876 | CL26: 1274 | CM26: 2420 | CN26: 2311 | CO26: 1973 | CP26: 3723 | CQ26: 2101 | CR26: 2976 | CS26: 2455 | CT26: 2650 | CU26: 2530 | CV26: 1790 | CW26: 3204 | CX26: 4280 | CY26: 2893 | CZ26: 1632 | DA26: 1825 | DB26: 2840 | DC26: 2826 | DD26: 2487 | DE26: 2840 | DF26: 3054 | DG26: 2250 | DH26: 1464 | DI26: 2832 | DJ26: 2695 | DK26: 2400 | DL26: 3672 | DM26: 3565 | DN26: 2539 | DO26: 3315 | DP26: 3326 | DQ26: 3529 | DR26: 2333 | DS26: 2697 | DT26: 2690 | DU26: 2110 | DV26: 26424 | DW26: 3013 | DX26: 1732 | DY26: 490 | DZ26: 4039 | EA26: 1239 | EB26: 2471 | EC26: 703 | ED26: 3510 | EE26: 101173 | EF26: 3406 | EG26: 2992 | EH26: 1257 | EI26: 4650 | EJ26: 3260 | EK26: 571 | EL26: 3004 | EM26: 3046 | EN26: 2740 | EO26: 1124 | EP26: 2004 | EQ26: 3278 | ER26: 920 | ES26: 1415 | ET26: 3413 | EU26: 2527 | EV26: 1842 | EW26: 873 | EX26: 1334 | EY26: 3959 | EZ26: 2475 | FA26: 1287 | FB26: 4229 | FC26: 3080 | FD26: 3762 | FE26: 2149 | FF26: 1392 | FG26: 2086 | FH26: 2699 | FI26: 3651 | FJ26: 1096 | FK26: 2408 | FL26: 3015 | FM26: 1608 | FN26: 1333 | FO26: 872 | FP26: 1120 | FQ26: 3555 | FR26: 3251 | FS26: 1416 | FT26: 2066 | FU26: 2432 | FV26: 3443 | FW26: 4504 | FX26: 51883 | FY26: 2788 | FZ26: 3262 | GA26: 2556 | GB26: 16859 | GC26: 2252 | GD26: 1749 | GE26: 811 | GF26: 2077 | GG26: 1830 | GH26: 840 | GI26: 1884 | GJ26: 2845 | GK26: 2702 | GL26: 1893 | GM26: 2034 | GN26: 1790 | GO26: 2665 | GP26: 2357 | GQ26: 2718 | GR26: 1903 | GS26: 1328 | GT26: 1470 | GU26: 2631 | GV26: 18036 | GW26: 2466 | GX26: 2540 | GY26: 2319 | GZ26: 2557 | HA26: 1816 | HB26: 2677 | HC26: 2491 | HD26: 1483 | HE26: 2774 | HF26: 1722 | HG26: 1921 | HH26: 2865 | HI26: 734526 | HJ26: 3432.364486
A27: TREILLIERES | B27: 1584 | C27: 2972 | D27: 1299 | E27: 1418 | F27: 1379 | G27: 698 | H27: 1754 | I27: 1484 | J27: 1084 | K27: 1278 | L27: 590 | M27: 3312 | N27: 3259 | O27: 3178 | P27: 1116 | Q27: 2965 | R27: 2786 | S27: 2990 | T27: 2187 | U27: 1397 | V27: 1897 | W27: 2397 | X27: 1435 | Y27: 1337 | Z27: 1264 | AB27: 1704 | AC27: 1525 | AD27: 1880 | AE27: 2187 | AF27: 2209 | AG27: 2134 | AH27: 661 | AI27: 2127 | AJ27: 1744 | AK27: 1324 | AL27: 2466 | AM27: 627 | AN27: 2881 | AO27: 1676 | AP27: 2685 | AQ27: 2062 | AR27: 1849 | AS27: 2967 | AT27: 715 | AU27: 723 | AV27: 1485 | AW27: 1637 | AX27: 2073 | AY27: 2256 | AZ27: 2255 | BA27: 491 | BB27: 2242 | BC27: 2071 | BD27: 3496 | BE27: 1980 | BF27: 1840 | BG27: 2155 | BH27: 3746 | BI27: 2981 | BJ27: 2261 | BK27: 3147 | BL27: 1623 | BM27: 3320 | BN27: 1537 | BO27: 2808 | BP27: 4046 | BQ27: 12252 | BR27: 2393 | BS27: 2581 | BT27: 3354 | BU27: 2821 | BV27: 2616 | BW27: 1317 | BX27: 1702 | BY27: 1923 | BZ27: 1184 | CA27: 2139 | CB27: 1641 | CC27: 2620 | CD27: 2250 | CE27: 2450 | CF27: 1537 | CG27: 2779 | CH27: 2473 | CI27: 1932 | CJ27: 1692 | CK27: 2237 | CL27: 1218 | CM27: 1624 | CN27: 1690 | CO27: 1279 | CP27: 2963 | CQ27: 2270 | CR27: 2355 | CS27: 1791 | CT27: 2819 | CU27: 1867 | CV27: 1622 | CW27: 2443 | CX27: 3659 | CY27: 2254 | CZ27: 1576 | DA27: 2740 | DB27: 2201 | DC27: 2162 | DD27: 1727 | DE27: 2177 | DF27: 2427 | DG27: 1619 | DH27: 2043 | DI27: 2211 | DJ27: 1934 | DK27: 2138 | DL27: 3051 | DM27: 2902 | DN27: 1876 | DO27: 2676 | DP27: 2565 | DQ27: 2768 | DR27: 1572 | DS27: 1936 | DT27: 2867 | DU27: 2398 | DV27: 26449 | DW27: 2252 | DX27: 2690 | DY27: 1545 | DZ27: 3417 | EA27: 2179 | EB27: 2640 | EC27: 1758 | ED27: 2749 | EE27: 101198 | EF27: 2767 | EG27: 2327 | EH27: 2313 | EI27: 4029 | EJ27: 2596 | EK27: 841 | EL27: 2244 | EM27: 2383 | EN27: 2131 | EO27: 816 | EP27: 2356 | EQ27: 2518 | ER27: 1499 | ES27: 2326 | ET27: 2774 | EU27: 1864 | EV27: 1046 | EW27: 1928 | EX27: 1995 | EY27: 3293 | EZ27: 2913 | FA27: 2343 | FB27: 3608 | FC27: 2441 | FD27: 3123 | FE27: 2221 | FF27: 1460 | FG27: 2334 | FH27: 2650 | FI27: 3012 | FJ27: 1164 | FK27: 1647 | FL27: 2352 | FM27: 1873 | FN27: 1632 | FO27: 1150 | FP27: 2018 | FQ27: 2794 | FR27: 2612 | FS27: 2448 | FT27: 1958 | FU27: 2335 | FV27: 2682 | FW27: 3645 | FX27: 51908 | FY27: 2426 | FZ27: 2502 | GA27: 1892 | GB27: 16884 | GC27: 2638 | GD27: 1913 | GE27: 1073 | GF27: 2577 | GG27: 1943 | GH27: 1896 | GI27: 1986 | GJ27: 3196 | GK27: 2505 | GL27: 2356 | GM27: 2931 | GN27: 2170 | GO27: 1904 | GP27: 1610 | GQ27: 3070 | GR27: 2959 | GS27: 1575 | GT27: 2367 | GU27: 3017 | GV27: 17397 | GW27: 3110 | GX27: 1941 | GY27: 2567 | GZ27: 2716 | HA27: 2871 | HB27: 3233 | HC27: 3047 | HD27: 2538 | HE27: 3148 | HF27: 2619 | HG27: 2023 | HH27: 3225 | HI27: 685040 | HJ27: 3201.121495
A28: SAVENAY | B28: 2531 | C28: 1664 | D28: 1707 | E28: 2038 | F28: 2314 | G28: 1780 | H28: 2593 | I28: 1743 | J28: 2019 | K28: 1898 | L28: 1944 | M28: 2004 | N28: 1951 | O28: 2363 | P28: 2050 | Q28: 1657 | R28: 3728 | S28: 1682 | T28: 970 | U28: 1388 | V28: 2831 | W28: 3114 | X28: 2369 | Y28: 2271 | Z28: 2360 | AA28: 1704 | AC28: 2134 | AD28: 2778 | AE28: 3086 | AF28: 1027 | AG28: 953 | AH28: 1411 | AI28: 945 | AJ28: 2642 | AK28: 1014 | AL28: 3364 | AM28: 2296 | AN28: 1939 | AO28: 2285 | AP28: 3294 | AQ28: 2672 | AR28: 2459 | AS28: 1785 | AT28: 1625 | AU28: 1239 | AV28: 2383 | AW28: 2246 | AX28: 2972 | AY28: 1995 | AZ28: 2865 | BA28: 2076 | BB28: 1300 | BC28: 1366 | BD28: 2315 | BE28: 3072 | BF28: 2450 | BG28: 3053 | BH28: 2565 | BI28: 1799 | BJ28: 3160 | BK28: 2206 | BL28: 2521 | BM28: 3930 | BN28: 2598 | BO28: 2269 | BP28: 2865 | BQ28: 13150 | BR28: 2735 | BS28: 1400 | BT28: 2331 | BU28: 3431 | BV28: 1674 | BW28: 2325 | BX28: 724 | BY28: 2822 | BZ28: 2257 | CA28: 2749 | CB28: 2250 | CC28: 3518 | CD28: 3148 | CE28: 1517 | CF28: 2599 | CG28: 2828 | CH28: 3371 | CI28: 2542 | CJ28: 2557 | CK28: 2846 | CL28: 1076 | CM28: 824 | CN28: 508 | CO28: 684 | CP28: 2058 | CQ28: 1361 | CR28: 1173 | CS28: 2690 | CT28: 2121 | CU28: 2765 | CV28: 2520 | CW28: 2614 | CX28: 2477 | CY28: 2864 | CZ28: 850 | DA28: 3720 | DB28: 2810 | DC28: 3061 | DD28: 2336 | DE28: 3075 | DF28: 1251 | DG28: 401 | DH28: 2941 | DI28: 1030 | DJ28: 2544 | DK28: 1196 | DL28: 1869 | DM28: 3800 | DN28: 2774 | DO28: 3286 | DP28: 2588 | DQ28: 2539 | DR28: 2181 | DS28: 2546 | DT28: 2162 | DU28: 3296 | DV28: 27347 | DW28: 2904 | DX28: 3588 | DY28: 2637 | DZ28: 2236 | EA28: 3077 | EB28: 1942 | EC28: 2850 | ED28: 2106 | EE28: 102097 | EF28: 3377 | EG28: 1385 | EH28: 3405 | EI28: 2848 | EJ28: 3445 | EK28: 2162 | EL28: 2853 | EM28: 3176 | EN28: 1189 | EO28: 1379 | EP28: 3254 | EQ28: 3127 | ER28: 2497 | ES28: 3310 | ET28: 3383 | EU28: 2762 | EV28: 888 | EW28: 3021 | EX28: 3002 | EY28: 2352 | EZ28: 3811 | FA28: 3435 | FB28: 2427 | FC28: 3050 | FD28: 3733 | FE28: 3168 | FF28: 1757 | FG28: 3341 | FH28: 1708 | FI28: 3622 | FJ28: 1903 | FK28: 2257 | FL28: 3250 | FM28: 2881 | FN28: 2421 | FO28: 1830 | FP28: 3016 | FQ28: 2649 | FR28: 3222 | FS28: 3346 | FT28: 970 | FU28: 3233 | FV28: 3115 | FW28: 2702 | FX28: 52807 | FY28: 3324 | FZ28: 3111 | GA28: 2790 | GB28: 17782 | GC28: 3536 | GD28: 2303 | GE28: 2071 | GF28: 3475 | GG28: 2893 | GH28: 2988 | GI28: 2413 | GJ28: 4095 | GK28: 3404 | GL28: 3254 | GM28: 3929 | GN28: 3177 | GO28: 2514 | GP28: 476 | GQ28: 3968 | GR28: 3962 | GS28: 2582 | GT28: 3365 | GU28: 3915 | GV28: 18007 | GW28: 4008 | GX28: 577 | GY28: 3635 | GZ28: 2379 | HA28: 3964 | HB28: 4240 | HC28: 4054 | HD28: 3630 | HE28: 4217 | HF28: 3617 | HG28: 2877 | HH28: 4223 | HI28: 754400 | HJ28: 3525.233645
A29: LES SORINIERES | B29: 1166 | C29: 3231 | D29: 1026 | E29: 780 | F29: 884 | G29: 1345 | H29: 715 | I29: 1581 | J29: 1297 | K29: 619 | L29: 1509 | M29: 3571 | N29: 3518 | O29: 2520 | P29: 1037 | Q29: 2923 | R29: 3808 | S29: 3250 | T29: 2447 | U29: 2422 | V29: 1612 | W29: 1119 | X29: 1275 | Y29: 920 | Z29: 2286 | AA29: 1525 | AB29: 2134 | AD29: 1504 | AE29: 2214 | AF29: 2712 | AG29: 2637 | AH29: 1324 | AI29: 2630 | AJ29: 1269 | AK29: 1762 | AL29: 1851 | AM29: 1550 | AN29: 3384 | AO29: 1135 | AP29: 1499 | AQ29: 1521 | AR29: 497 | AS29: 3470 | AT29: 1848 | AU29: 1563 | AV29: 1050 | AW29: 1096 | AX29: 1599 | AY29: 3388 | AZ29: 903 | BA29: 1898 | BB29: 2745 | BC29: 2857 | BD29: 3999 | BE29: 2089 | BF29: 1300 | BG29: 2182 | BH29: 4250 | BI29: 2614 | BJ29: 1525 | BK29: 3650 | BL29: 1034 | BM29: 1955 | BN29: 1681 | BO29: 2267 | BP29: 4549 | BQ29: 11567 | BR29: 1852 | BS29: 3084 | BT29: 2814 | BU29: 1456 | BV29: 3119 | BW29: 2450 | BX29: 2205 | BY29: 1683 | BZ29: 2317 | CA29: 773 | CB29: 868 | CC29: 2647 | CD29: 2009 | CE29: 2953 | CF29: 1682 | CG29: 2226 | CH29: 1906 | CI29: 518 | CJ29: 2825 | CK29: 889 | CL29: 2154 | CM29: 2110 | CN29: 2193 | CO29: 1782 | CP29: 2422 | CQ29: 2852 | CR29: 2858 | CS29: 1357 | CT29: 3613 | CU29: 1481 | CV29: 1382 | CW29: 1902 | CX29: 4162 | CY29: 881 | CZ29: 2292 | DA29: 3510 | DB29: 853 | DC29: 1728 | DD29: 1186 | DE29: 1154 | DF29: 2930 | DG29: 2122 | DH29: 2070 | DI29: 2714 | DJ29: 1393 | DK29: 2641 | DL29: 2545 | DM29: 2352 | DN29: 1442 | DO29: 1342 | DP29: 2025 | DQ29: 2228 | DR29: 1031 | DS29: 1395 | DT29: 3653 | DU29: 2425 | DV29: 26476 | DW29: 1711 | DX29: 2717 | DY29: 1985 | DZ29: 3920 | EA29: 1939 | EB29: 3434 | EC29: 2333 | ED29: 2208 | EE29: 101226 | EF29: 1433 | EG29: 2830 | EH29: 2841 | EI29: 4532 | EJ29: 1488 | EK29: 2023 | EL29: 1703 | EM29: 1219 | EN29: 2634 | EO29: 2083 | EP29: 2383 | EQ29: 1332 | ER29: 2632 | ES29: 3100 | ET29: 1439 | EU29: 1363 | EV29: 1571 | EW29: 2348 | EX29: 3127 | EY29: 3796 | EZ29: 2940 | FA29: 2584 | FB29: 4111 | FC29: 1093 | FD29: 1789 | FE29: 3354 | FF29: 2592 | FG29: 3466 | FH29: 3153 | FI29: 1678 | FJ29: 2296 | FK29: 1106 | FL29: 1918 | FM29: 3006 | FN29: 2765 | FO29: 2283 | FP29: 2772 | FQ29: 2253 | FR29: 1278 | FS29: 2475 | FT29: 2461 | FU29: 1925 | FV29: 1806 | FW29: 3104 | FX29: 51936 | FY29: 2016 | FZ29: 1530 | GA29: 931 | GB29: 16911 | GC29: 2665 | GD29: 3046 | GE29: 2205 | GF29: 2604 | GG29: 3076 | GH29: 2315 | GI29: 3119 | GJ29: 3224 | GK29: 2071 | GL29: 2383 | GM29: 3460 | GN29: 3302 | GO29: 1363 | GP29: 2113 | GQ29: 3097 | GR29: 3246 | GS29: 2708 | GT29: 3155 | GU29: 3044 | GV29: 16084 | GW29: 3137 | GX29: 2444 | GY29: 3699 | GZ29: 3848 | HA29: 3172 | HB29: 4365 | HC29: 4179 | HD29: 2873 | HE29: 4281 | HF29: 3407 | HG29: 3156 | HH29: 4357 | HI29: 698100 | HJ29: 3262.149533
A30: LE LOROUX-BOTTEREAU | B30: 1776 | C30: 3875 | D30: 2122 | E30: 1877 | F30: 1216 | G30: 1700 | H30: 1364 | I30: 2500 | J30: 1410 | K30: 1716 | L30: 1680 | M30: 4215 | N30: 4162 | O30: 3616 | P30: 1138 | Q30: 3868 | R30: 4178 | S30: 3893 | T30: 3090 | U30: 2777 | V30: 934 | W30: 2227 | X30: 788 | Y30: 862 | Z30: 2619 | AA30: 1880 | AB30: 2778 | AC30: 1504 | AE30: 1427 | AF30: 3275 | AG30: 3201 | AH30: 1997 | AI30: 3194 | AJ30: 548 | AK30: 2294 | AL30: 1502 | AM30: 1712 | AN30: 3948 | AO30: 2139 | AP30: 2582 | AQ30: 2525 | AR30: 1820 | AS30: 4034 | AT30: 2098 | AU30: 2126 | AV30: 741 | AW30: 2100 | AX30: 510 | AY30: 3638 | AZ30: 2047 | BA30: 2148 | BB30: 3309 | BC30: 3421 | BD30: 4563 | BE30: 1962 | BF30: 2304 | BG30: 2098 | BH30: 4813 | BI30: 3618 | BJ30: 1309 | BK30: 4214 | BL30: 858 | BM30: 3069 | BN30: 1660 | BO30: 3272 | BP30: 5113 | BQ30: 12153 | BR30: 2856 | BS30: 3648 | BT30: 3818 | BU30: 2195 | BV30: 3683 | BW30: 2700 | BX30: 2769 | BY30: 1477 | BZ30: 2567 | CA30: 1888 | CB30: 2138 | CC30: 2101 | CD30: 1351 | CE30: 3517 | CF30: 1844 | CG30: 3242 | CH30: 1510 | CI30: 1811 | CJ30: 3075 | CK30: 1494 | CL30: 2665 | CM30: 2673 | CN30: 2757 | CO30: 2346 | CP30: 3426 | CQ30: 3416 | CR30: 3422 | CS30: 509 | CT30: 4176 | CU30: 927 | CV30: 1026 | CW30: 2907 | CX30: 4725 | CY30: 2037 | CZ30: 2856 | DA30: 3599 | DB30: 1393 | DC30: 436 | DD30: 2190 | DE30: 1235 | DF30: 3493 | DG30: 2686 | DH30: 1703 | DI30: 3278 | DJ30: 2397 | DK30: 3205 | DL30: 3549 | DM30: 1956 | DN30: 1043 | DO30: 2425 | DP30: 3029 | DQ30: 3232 | DR30: 2035 | DS30: 2399 | DT30: 4217 | DU30: 1942 | DV30: 26589 | DW30: 2715 | DX30: 2741 | DY30: 2147 | DZ30: 4484 | EA30: 1748 | EB30: 3997 | EC30: 2496 | ED30: 3212 | EE30: 101339 | EF30: 2516 | EG30: 3394 | EH30: 2715 | EI30: 5096 | EJ30: 1644 | EK30: 2186 | EL30: 2707 | EM30: 1431 | EN30: 3198 | EO30: 2333 | EP30: 1837 | EQ30: 2415 | ER30: 2882 | ES30: 3263 | ET30: 2522 | EU30: 911 | EV30: 2135 | EW30: 2238 | EX30: 3377 | EY30: 4360 | EZ30: 2509 | FA30: 2393 | FB30: 4675 | FC30: 1547 | FD30: 2872 | FE30: 3604 | FF30: 2842 | FG30: 3716 | FH30: 3717 | FI30: 2761 | FJ30: 2546 | FK30: 2110 | FL30: 1197 | FM30: 3256 | FN30: 3015 | FO30: 2533 | FP30: 2934 | FQ30: 3257 | FR30: 2361 | FS30: 2506 | FT30: 3025 | FU30: 641 | FV30: 2889 | FW30: 4108 | FX30: 52049 | FY30: 620 | FZ30: 2613 | GA30: 1127 | GB30: 17025 | GC30: 2272 | GD30: 3295 | GE30: 2455 | GF30: 2257 | GG30: 3326 | GH30: 2448 | GI30: 3369 | GJ30: 2678 | GK30: 803 | GL30: 2296 | GM30: 3484 | GN30: 3552 | GO30: 2368 | GP30: 2677 | GQ30: 2551 | GR30: 3270 | GS30: 2958 | GT30: 3189 | GU30: 2601 | GV30: 16906 | GW30: 3102 | GX30: 3008 | GY30: 3949 | GZ30: 4098 | HA30: 3195 | HB30: 4481 | HC30: 4339 | HD30: 2893 | HE30: 4531 | HF30: 3496 | HG30: 3406 | HH30: 4607 | HI30: 775037 | HJ30: 3621.668224
A31: ANCENIS | B31: 2455 | C31: 4183 | D31: 2390 | E31: 2509 | F31: 1919 | G31: 2007 | H31: 2294 | I31: 2807 | J31: 1536 | K31: 2369 | L31: 1909 | M31: 4522 | N31: 4469 | O31: 4269 | P31: 1652 | Q31: 4175 | R31: 3089 | S31: 4201 | T31: 3398 | U31: 2957 | V31: 1631 | W31: 2937 | X31: 1697 | Y31: 1877 | Z31: 1772 | AA31: 2187 | AB31: 3086 | AC31: 2214 | AD31: 1427 | AF31: 3568 | AG31: 3493 | AH31: 2289 | AI31: 3486 | AJ31: 1800 | AK31: 2586 | AL31: 2514 | AM31: 1956 | AN31: 4240 | AO31: 2779 | AP31: 3383 | AQ31: 3166 | AR31: 2622 | AS31: 4326 | AT31: 2396 | AU31: 2419 | AV31: 2059 | AW31: 2740 | AX31: 1512 | AY31: 3758 | AZ31: 2848 | BA31: 2440 | BB31: 3601 | BC31: 3688 | BD31: 4855 | BE31: 1229 | BF31: 2944 | BG31: 756 | BH31: 5106 | BI31: 4259 | BJ31: 2402 | BK31: 4506 | BL31: 2197 | BM31: 3870 | BN31: 1327 | BO31: 3912 | BP31: 5405 | BQ31: 11051 | BR31: 3496 | BS31: 3941 | BT31: 4458 | BU31: 3371 | BV31: 3975 | BW31: 2687 | BX31: 3061 | BY31: 1246 | BZ31: 2217 | CA31: 2689 | CB31: 2744 | CC31: 759 | CD31: 869 | CE31: 3809 | CF31: 1698 | CG31: 3882 | CH31: 2458 | CI31: 2482 | CJ31: 3303 | CK31: 2787 | CL31: 2963 | CM31: 2966 | CN31: 3049 | CO31: 2638 | CP31: 4066 | CQ31: 3708 | CR31: 3714 | CS31: 1953 | CT31: 4396 | CU31: 2174 | CV31: 1429 | CW31: 3547 | CX31: 5018 | CY31: 2804 | CZ31: 3148 | DA31: 2361 | DB31: 2834 | DC31: 1619 | DD31: 2830 | DE31: 2625 | DF31: 3786 | DG31: 2978 | DH31: 410 | DI31: 3570 | DJ31: 3038 | DK31: 3497 | DL31: 4189 | DM31: 2878 | DN31: 1924 | DO31: 3226 | DP31: 3669 | DQ31: 3872 | DR31: 2675 | DS31: 3040 | DT31: 4350 | DU31: 600 | DV31: 25247 | DW31: 3355 | DX31: 1399 | DY31: 1316 | DZ31: 4776 | EA31: 857 | EB31: 4217 | EC31: 1712 | ED31: 3852 | EE31: 99997 | EF31: 3317 | EG31: 3686 | EH31: 1477 | EI31: 5388 | EJ31: 2735 | EK31: 2221 | EL31: 3347 | EM31: 2603 | EN31: 3490 | EO31: 2625 | EP31: 495 | EQ31: 3217 | ER31: 2383 | ES31: 2366 | ET31: 3324 | EU31: 2301 | EV31: 2427 | EW31: 1168 | EX31: 2610 | EY31: 4653 | EZ31: 1167 | FA31: 1191 | FB31: 4967 | FC31: 2950 | FD31: 3673 | FE31: 3612 | FF31: 3052 | FG31: 3216 | FH31: 4009 | FI31: 3562 | FJ31: 2756 | FK31: 2750 | FL31: 1578 | FM31: 2885 | FN31: 2993 | FO31: 2618 | FP31: 2084 | FQ31: 3898 | FR31: 3162 | FS31: 1156 | FT31: 3318 | FU31: 1310 | FV31: 3691 | FW31: 4748 | FX31: 50707 | FY31: 1200 | FZ31: 3415 | GA31: 2467 | GB31: 15682 | GC31: 930 | GD31: 3410 | GE31: 2471 | GF31: 914 | GG31: 3293 | GH31: 1378 | GI31: 3597 | GJ31: 1335 | GK31: 1114 | GL31: 953 | GM31: 2141 | GN31: 2795 | GO31: 3008 | GP31: 2970 | GQ31: 1209 | GR31: 1928 | GS31: 2791 | GT31: 1951 | GU31: 1259 | GV31: 17678 | GW31: 1759 | GX31: 3300 | GY31: 3449 | GZ31: 4218 | HA31: 1853 | HB31: 3139 | HC31: 3210 | HD31: 1554 | HE31: 3564 | HF31: 2258 | HG31: 3601 | HH31: 3697 | HI31: 804007 | HJ31: 3757.042056
A32: TRIGNAC | B32: 3036 | C32: 779 | D32: 2212 | E32: 2543 | F32: 2818 | G32: 2284 | H32: 3097 | I32: 2274 | J32: 2523 | K32: 2403 | L32: 2449 | M32: 1119 | N32: 1065 | O32: 1477 | P32: 2555 | Q32: 771 | R32: 4198 | S32: 797 | T32: 1090 | U32: 1857 | V32: 3336 | W32: 3330 | X32: 2874 | Y32: 2775 | Z32: 2830 | AA32: 2209 | AB32: 1027 | AC32: 2712 | AD32: 3275 | AE32: 3568 | AG32: 694 | AH32: 1840 | AI32: 375 | AJ32: 3071 | AK32: 1784 | AL32: 3793 | AM32: 2725 | AN32: 1750 | AO32: 2718 | AP32: 2735 | AQ32: 2558 | AR32: 2888 | AS32: 938 | AT32: 2096 | AU32: 1612 | AV32: 2812 | AW32: 2675 | AX32: 3401 | AY32: 2562 | AZ32: 3294 | BA32: 2449 | BB32: 1537 | BC32: 1933 | BD32: 1468 | BE32: 3435 | BF32: 2864 | BG32: 3482 | BH32: 1718 | BI32: 952 | BJ32: 3589 | BK32: 1498 | BL32: 2950 | BM32: 3779 | BN32: 3027 | BO32: 1422 | BP32: 2018 | BQ32: 13580 | BR32: 1888 | BS32: 956 | BT32: 1483 | BU32: 3860 | BV32: 1429 | BW32: 2795 | BX32: 1218 | BY32: 3251 | BZ32: 2728 | CA32: 3178 | CB32: 2679 | CC32: 3947 | CD32: 3577 | CE32: 1796 | CF32: 3029 | CG32: 1981 | CH32: 3800 | CI32: 2971 | CJ32: 3124 | CK32: 3275 | CL32: 1547 | CM32: 1641 | CN32: 715 | CO32: 1151 | CP32: 1211 | CQ32: 1928 | CR32: 541 | CS32: 3119 | CT32: 2688 | CU32: 3194 | CV32: 2949 | CW32: 1767 | CX32: 1630 | CY32: 3293 | CZ32: 1320 | DA32: 4191 | DB32: 3239 | DC32: 3490 | DD32: 2551 | DE32: 3504 | DF32: 908 | DG32: 917 | DH32: 3370 | DI32: 759 | DJ32: 2245 | DK32: 1397 | DL32: 1022 | DM32: 4229 | DN32: 3203 | DO32: 3715 | DP32: 1741 | DQ32: 1692 | DR32: 2610 | DS32: 2731 | DT32: 2729 | DU32: 3725 | DV32: 27776 | DW32: 2057 | DX32: 4017 | DY32: 3108 | DZ32: 1389 | EA32: 3506 | EB32: 2389 | EC32: 3321 | ED32: 1259 | EE32: 102526 | EF32: 3633 | EG32: 1180 | EH32: 3876 | EI32: 2001 | EJ32: 3874 | EK32: 2633 | EL32: 2339 | EM32: 3605 | EN32: 1477 | EO32: 1808 | EP32: 3683 | EQ32: 3088 | ER32: 2968 | ES32: 3781 | ET32: 2956 | EU32: 3191 | EV32: 1277 | EW32: 3491 | EX32: 3473 | EY32: 1697 | EZ32: 4241 | FA32: 3906 | FB32: 1580 | FC32: 3479 | FD32: 3365 | FE32: 3735 | FF32: 2228 | FG32: 3812 | FH32: 1968 | FI32: 3195 | FJ32: 2374 | FK32: 2699 | FL32: 3679 | FM32: 3351 | FN32: 2892 | FO32: 2301 | FP32: 3486 | FQ32: 1802 | FR32: 2956 | FS32: 3775 | FT32: 1537 | FU32: 3662 | FV32: 2268 | FW32: 1855 | FX32: 53236 | FY32: 3754 | FZ32: 2742 | GA32: 3219 | GB32: 18211 | GC32: 3965 | GD32: 2870 | GE32: 2541 | GF32: 3904 | GG32: 3459 | GH32: 3459 | GI32: 2979 | GJ32: 4524 | GK32: 3833 | GL32: 3683 | GM32: 4400 | GN32: 3648 | GO32: 2521 | GP32: 1292 | GQ32: 4397 | GR32: 4433 | GS32: 3053 | GT32: 3836 | GU32: 4344 | GV32: 18436 | GW32: 4437 | GX32: 1186 | GY32: 4045 | GZ32: 2946 | HA32: 4434 | HB32: 4711 | HC32: 4525 | HD32: 4101 | HE32: 4626 | HF32: 4088 | HG32: 3444 | HH32: 4703 | HI32: 794442 | HJ32: 3712.345794
A33: DONGES | B33: 2962 | C33: 1362 | D33: 2137 | E33: 2468 | F33: 2744 | G33: 2210 | H33: 3023 | I33: 2200 | J33: 2449 | K33: 2329 | L33: 2374 | M33: 1702 | N33: 1649 | O33: 2028 | P33: 2480 | Q33: 1322 | R33: 4124 | S33: 1380 | T33: 1020 | U33: 1783 | V33: 3261 | W33: 3544 | X33: 2799 | Y33: 2701 | Z33: 2756 | AA33: 2134 | AB33: 953 | AC33: 2637 | AD33: 3201 | AE33: 3493 | AF33: 694 | AH33: 1803 | AI33: 682 | AJ33: 3034 | AK33: 1747 | AL33: 3756 | AM33: 2688 | AN33: 1739 | AO33: 2677 | AP33: 3250 | AQ33: 3072 | AR33: 2851 | AS33: 1522 | AT33: 2059 | AU33: 1575 | AV33: 2775 | AW33: 2638 | AX33: 3364 | AY33: 2525 | AZ33: 3257 | BA33: 2412 | BB33: 1486 | BC33: 1896 | BD33: 2051 | BE33: 3398 | BF33: 2842 | BG33: 3445 | BH33: 2301 | BI33: 1467 | BJ33: 3552 | BK33: 1949 | BL33: 2913 | BM33: 4293 | BN33: 2990 | BO33: 1937 | BP33: 2601 | BQ33: 13542 | BR33: 2402 | BS33: 1005 | BT33: 1998 | BU33: 3823 | BV33: 1417 | BW33: 2758 | BX33: 1108 | BY33: 3214 | BZ33: 2691 | CA33: 3140 | CB33: 2642 | CC33: 3910 | CD33: 3540 | CE33: 1745 | CF33: 2991 | CG33: 2496 | CH33: 3763 | CI33: 2934 | CJ33: 3087 | CK33: 3238 | CL33: 1510 | CM33: 1529 | CN33: 704 | CO33: 1113 | CP33: 1725 | CQ33: 1857 | CR33: 910 | CS33: 3082 | CT33: 2574 | CU33: 3157 | CV33: 2912 | CW33: 2282 | CX33: 2213 | CY33: 3256 | CZ33: 1283 | DA33: 4154 | DB33: 3202 | DC33: 3452 | DD33: 2728 | DE33: 3467 | DF33: 857 | DG33: 880 | DH33: 3333 | DI33: 708 | DJ33: 2760 | DK33: 1345 | DL33: 1537 | DM33: 4192 | DN33: 3166 | DO33: 3678 | DP33: 2256 | DQ33: 2207 | DR33: 2573 | DS33: 2938 | DT33: 2692 | DU33: 3688 | DV33: 27739 | DW33: 2572 | DX33: 3980 | DY33: 3071 | DZ33: 1972 | EA33: 3469 | EB33: 2337 | EC33: 3284 | ED33: 1774 | EE33: 102489 | EF33: 3769 | EG33: 1128 | EH33: 3838 | EI33: 2584 | EJ33: 3837 | EK33: 2596 | EL33: 2854 | EM33: 3568 | EN33: 1425 | EO33: 1771 | EP33: 3646 | EQ33: 3602 | ER33: 2931 | ES33: 3744 | ET33: 3471 | EU33: 3154 | EV33: 1240 | EW33: 3454 | EX33: 3435 | EY33: 2116 | EZ33: 4203 | FA33: 3868 | FB33: 2163 | FC33: 3442 | FD33: 3880 | FE33: 3698 | FF33: 2190 | FG33: 3775 | FH33: 1917 | FI33: 3710 | FJ33: 2337 | FK33: 2648 | FL33: 3642 | FM33: 3314 | FN33: 2855 | FO33: 2264 | FP33: 3449 | FQ33: 2317 | FR33: 3470 | FS33: 3738 | FT33: 1476 | FU33: 3625 | FV33: 2783 | FW33: 2369 | FX33: 53199 | FY33: 3716 | FZ33: 3257 | GA33: 3182 | GB33: 18174 | GC33: 3928 | GD33: 2833 | GE33: 2504 | GF33: 3867 | GG33: 3422 | GH33: 3421 | GI33: 2942 | GJ33: 4487 | GK33: 3796 | GL33: 3646 | GM33: 4363 | GN33: 3611 | GO33: 2906 | GP33: 1146 | GQ33: 4360 | GR33: 4396 | GS33: 3016 | GT33: 3799 | GU33: 4307 | GV33: 18399 | GW33: 4400 | GX33: 816 | GY33: 4008 | GZ33: 2909 | HA33: 4397 | HB33: 4674 | HC33: 4488 | HD33: 4064 | HE33: 4589 | HF33: 4051 | HG33: 3407 | HH33: 4666 | HI33: 810959 | HJ33: 3789.528037
A34: SAUTRON | B34: 1648 | C34: 2508 | D34: 824 | E34: 1155 | F34: 1539 | G34: 870 | H34: 1710 | I34: 812 | J34: 1244 | K34: 1015 | L34: 1127 | M34: 2848 | N34: 2795 | O34: 2915 | P34: 1276 | Q34: 2501 | R34: 3363 | S34: 2526 | T34: 1724 | U34: 1558 | V34: 2057 | W34: 2230 | X34: 1595 | Y34: 1496 | Z34: 1841 | AA34: 661 | AB34: 1411 | AC34: 1324 | AD34: 1997 | AE34: 2289 | AF34: 1840 | AG34: 1803 | AI34: 1780 | AJ34: 1829 | AK34: 794 | AL34: 2551 | AM34: 1213 | AN34: 2535 | AO34: 1420 | AP34: 2429 | AQ34: 1807 | AR34: 1594 | AS34: 2620 | AT34: 1301 | AU34: 709 | AV34: 1569 | AW34: 1381 | AX34: 2158 | AY34: 2637 | AZ34: 2000 | BA34: 1077 | BB34: 1896 | BC34: 2008 | BD34: 3150 | BE34: 2193 | BF34: 1585 | BG34: 2240 | BH34: 3400 | BI34: 2635 | BJ34: 2346 | BK34: 2801 | BL34: 1708 | BM34: 3065 | BN34: 1785 | BO34: 2553 | BP34: 3700 | BQ34: 12337 | BR34: 2137 | BS34: 2235 | BT34: 3166 | BU34: 2566 | BV34: 2269 | BW34: 1903 | BX34: 1355 | BY34: 2008 | BZ34: 1769 | CA34: 1884 | CB34: 1385 | CC34: 2705 | CD34: 2334 | CE34: 2104 | CF34: 1786 | CG34: 2524 | CH34: 2558 | CI34: 1677 | CJ34: 2277 | CK34: 1981 | CL34: 1322 | CM34: 1246 | CN34: 1343 | CO34: 933 | CP34: 2707 | CQ34: 2003 | CR34: 2008 | CS34: 1876 | CT34: 2763 | CU34: 1952 | CV34: 1707 | CW34: 2188 | CX34: 3312 | CY34: 1999 | CZ34: 1443 | DA34: 3325 | DB34: 1945 | DC34: 2247 | DD34: 1471 | DE34: 2262 | DF34: 2080 | DG34: 1273 | DH34: 2128 | DI34: 1865 | DJ34: 1679 | DK34: 1791 | DL34: 2704 | DM34: 2986 | DN34: 1961 | DO34: 2421 | DP34: 2310 | DQ34: 2513 | DR34: 1317 | DS34: 1681 | DT34: 2804 | DU34: 2483 | DV34: 26533 | DW34: 1997 | DX34: 2775 | DY34: 2089 | DZ34: 3071 | EA34: 2263 | EB34: 2584 | EC34: 2343 | ED34: 2494 | EE34: 101283 | EF34: 2512 | EG34: 1980 | EH34: 2898 | EI34: 3683 | EJ34: 2580 | EK34: 1426 | EL34: 1988 | EM34: 2311 | EN34: 1785 | EO34: 921 | EP34: 2441 | EQ34: 2262 | ER34: 2085 | ES34: 2911 | ET34: 2518 | EU34: 1948 | EV34: 722 | EW34: 2452 | EX34: 2580 | EY34: 2947 | EZ34: 2998 | FA34: 2699 | FB34: 3262 | FC34: 2185 | FD34: 2868 | FE34: 2807 | FF34: 1994 | FG34: 2919 | FH34: 2304 | FI34: 2757 | FJ34: 1749 | FK34: 1392 | FL34: 2437 | FM34: 2459 | FN34: 2218 | FO34: 1720 | FP34: 2603 | FQ34: 2539 | FR34: 2357 | FS34: 2532 | FT34: 1612 | FU34: 2419 | FV34: 2427 | FW34: 3389 | FX34: 51993 | FY34: 2511 | FZ34: 2246 | GA34: 1977 | GB34: 16969 | GC34: 2723 | GD34: 2498 | GE34: 1658 | GF34: 2662 | GG34: 2528 | GH34: 2419 | GI34: 2572 | GJ34: 3281 | GK34: 2590 | GL34: 2440 | GM34: 3517 | GN34: 2755 | GO34: 1649 | GP34: 1264 | GQ34: 3155 | GR34: 3304 | GS34: 2160 | GT34: 2953 | GU34: 3102 | GV34: 17142 | GW34: 3195 | GX34: 1595 | GY34: 3152 | GZ34: 3021 | HA34: 3229 | HB34: 3818 | HC34: 3632 | HD34: 2930 | HE34: 3734 | HF34: 3204 | HG34: 2609 | HH34: 3810 | HI34: 687004 | HJ34: 3210.299065
A35: MONTOIR-DE-BRETAGNE | B35: 2954 | C35: 1043 | D35: 2130 | E35: 2461 | F35: 2736 | G35: 2203 | H35: 3016 | I35: 2192 | J35: 2441 | K35: 2321 | L35: 2367 | M35: 1382 | N35: 1329 | O35: 1746 | P35: 2473 | Q35: 1040 | R35: 4116 | S35: 1061 | T35: 1008 | U35: 1776 | V35: 3254 | W35: 3598 | X35: 2792 | Y35: 2694 | Z35: 2748 | AA35: 2127 | AB35: 945 | AC35: 2630 | AD35: 3194 | AE35: 3486 | AF35: 375 | AG35: 682 | AH35: 1780 | AJ35: 3051 | AK35: 1764 | AL35: 3773 | AM35: 2704 | AN35: 1569 | AO35: 2694 | AP35: 2927 | AQ35: 2750 | AR35: 2867 | AS35: 1130 | AT35: 2076 | AU35: 1591 | AV35: 2791 | AW35: 2655 | AX35: 3380 | AY35: 2541 | AZ35: 3273 | BA35: 2428 | BB35: 1516 | BC35: 1912 | BD35: 1660 | BE35: 3415 | BF35: 2858 | BG35: 3462 | BH35: 1910 | BI35: 1144 | BJ35: 3568 | BK35: 1690 | BL35: 2930 | BM35: 3971 | BN35: 3007 | BO35: 1614 | BP35: 2210 | BQ35: 13559 | BR35: 2080 | BS35: 774 | BT35: 1676 | BU35: 3839 | BV35: 1247 | BW35: 2775 | BX35: 1198 | BY35: 3230 | BZ35: 2707 | CA35: 3157 | CB35: 2659 | CC35: 3927 | CD35: 3556 | CE35: 1775 | CF35: 3008 | CG35: 2173 | CH35: 3780 | CI35: 2950 | CJ35: 3103 | CK35: 3255 | CL35: 1527 | CM35: 1620 | CN35: 694 | CO35: 1130 | CP35: 1403 | CQ35: 1907 | CR35: 359 | CS35: 3098 | CT35: 2667 | CU35: 3174 | CV35: 2929 | CW35: 1959 | CX35: 1822 | CY35: 3272 | CZ35: 1300 | DA35: 4170 | DB35: 3219 | DC35: 3469 | DD35: 2743 | DE35: 3484 | DF35: 947 | DG35: 896 | DH35: 3350 | DI35: 739 | DJ35: 2437 | DK35: 1376 | DL35: 1214 | DM35: 4208 | DN35: 3183 | DO35: 3694 | DP35: 1933 | DQ35: 1884 | DR35: 2590 | DS35: 2923 | DT35: 2708 | DU35: 3704 | DV35: 27755 | DW35: 2249 | DX35: 3997 | DY35: 3087 | DZ35: 1581 | EA35: 3485 | EB35: 2368 | EC35: 3300 | ED35: 1451 | EE35: 102505 | EF35: 3825 | EG35: 1218 | EH35: 3855 | EI35: 2193 | EJ35: 3854 | EK35: 2612 | EL35: 2531 | EM35: 3584 | EN35: 1456 | EO35: 1788 | EP35: 3663 | EQ35: 3280 | ER35: 2947 | ES35: 3761 | ET35: 3149 | EU35: 3170 | EV35: 1256 | EW35: 3471 | EX35: 3452 | EY35: 1946 | EZ35: 4220 | FA35: 3885 | FB35: 1772 | FC35: 3459 | FD35: 3557 | FE35: 3714 | FF35: 2207 | FG35: 3791 | FH35: 1948 | FI35: 3387 | FJ35: 2353 | FK35: 2665 | FL35: 3659 | FM35: 3331 | FN35: 2871 | FO35: 2280 | FP35: 3466 | FQ35: 1994 | FR35: 3148 | FS35: 3754 | FT35: 1516 | FU35: 3641 | FV35: 2460 | FW35: 2047 | FX35: 53215 | FY35: 3733 | FZ35: 2934 | GA35: 3199 | GB35: 18191 | GC35: 3945 | GD35: 2849 | GE35: 2521 | GF35: 3884 | GG35: 3439 | GH35: 3438 | GI35: 2959 | GJ35: 4503 | GK35: 3812 | GL35: 3662 | GM35: 4379 | GN35: 3627 | GO35: 2713 | GP35: 1272 | GQ35: 4376 | GR35: 4413 | GS35: 3033 | GT35: 3815 | GU35: 4324 | GV35: 18415 | GW35: 4417 | GX35: 1165 | GY35: 4024 | GZ35: 2925 | HA35: 4414 | HB35: 4690 | HC35: 4504 | HD35: 4080 | HE35: 4606 | HF35: 4067 | HG35: 3423 | HH35: 4682 | HI35: 798653 | HJ35: 3732.023364
A36: SAINT-JULIEN-DE-CONCELLES | B36: 1640 | C36: 3739 | D36: 1888 | E36: 1642 | F36: 974 | G36: 1564 | H36: 1365 | I36: 2364 | J36: 1176 | K36: 1481 | L36: 1544 | M36: 4079 | N36: 4026 | O36: 3381 | P36: 1072 | Q36: 3732 | R36: 3944 | S36: 3757 | T36: 2955 | U36: 2641 | V36: 1247 | W36: 1992 | X36: 553 | Y36: 727 | Z36: 2385 | AA36: 1744 | AB36: 2642 | AC36: 1269 | AD36: 548 | AE36: 1800 | AF36: 3071 | AG36: 3034 | AH36: 1829 | AI36: 3051 | AK36: 2147 | AL36: 1748 | AM36: 1592 | AN36: 3801 | AO36: 1967 | AP36: 2410 | AQ36: 2354 | AR36: 1649 | AS36: 3887 | AT36: 1951 | AU36: 1980 | AV36: 819 | AW36: 1929 | AX36: 536 | AY36: 3491 | AZ36: 1875 | BA36: 2001 | BB36: 3162 | BC36: 3274 | BD36: 4416 | BE36: 1678 | BF36: 2132 | BG36: 1861 | BH36: 4667 | BI36: 3447 | BJ36: 1555 | BK36: 4067 | BL36: 1037 | BM36: 2897 | BN36: 1377 | BO36: 3100 | BP36: 4966 | BQ36: 12295 | BR36: 2684 | BS36: 3501 | BT36: 3646 | BU36: 2398 | BV36: 3536 | BW36: 2553 | BX36: 2622 | BY36: 1193 | BZ36: 2420 | CA36: 1716 | CB36: 1967 | CC36: 2435 | CD36: 1231 | CE36: 3370 | CF36: 1724 | CG36: 3071 | CH36: 1755 | CI36: 1509 | CJ36: 2928 | CK36: 1739 | CL36: 2518 | CM36: 2527 | CN36: 2610 | CO36: 2199 | CP36: 3254 | CQ36: 3269 | CR36: 3275 | CS36: 755 | CT36: 4030 | CU36: 1173 | CV36: 743 | CW36: 2735 | CX36: 4579 | CY36: 1831 | CZ36: 2709 | DA36: 3316 | DB36: 1573 | DC36: 821 | DD36: 2018 | DE36: 1481 | DF36: 3347 | DG36: 2539 | DH36: 1717 | DI36: 3131 | DJ36: 2226 | DK36: 3058 | DL36: 3377 | DM36: 2202 | DN36: 1288 | DO36: 2253 | DP36: 2857 | DQ36: 3060 | DR36: 1864 | DS36: 2228 | DT36: 4070 | DU36: 2276 | DV36: 26491 | DW36: 2544 | DX36: 2707 | DY36: 2027 | DZ36: 4337 | EA36: 1464 | EB36: 3851 | EC36: 2375 | ED36: 3041 | EE36: 101241 | EF36: 2344 | EG36: 3247 | EH36: 2431 | EI36: 4949 | EJ36: 1890 | EK36: 2066 | EL36: 2535 | EM36: 1677 | EN36: 3051 | EO36: 2186 | EP36: 2171 | EQ36: 2244 | ER36: 2735 | ES36: 3142 | ET36: 2351 | EU36: 1157 | EV36: 1988 | EW36: 1954 | EX36: 3230 | EY36: 4213 | EZ36: 2843 | FA36: 2110 | FB36: 4528 | FC36: 1793 | FD36: 2700 | FE36: 3457 | FF36: 2696 | FG36: 3570 | FH36: 3570 | FI36: 2589 | FJ36: 2400 | FK36: 1939 | FL36: 1531 | FM36: 3109 | FN36: 2868 | FO36: 2386 | FP36: 2814 | FQ36: 3086 | FR36: 2189 | FS36: 2222 | FT36: 2879 | FU36: 862 | FV36: 2718 | FW36: 3936 | FX36: 51951 | FY36: 954 | FZ36: 2442 | GA36: 1307 | GB36: 16927 | GC36: 2606 | GD36: 3149 | GE36: 2308 | GF36: 2590 | GG36: 3179 | GH36: 2164 | GI36: 3222 | GJ36: 3011 | GK36: 1137 | GL36: 2392 | GM36: 3330 | GN36: 3406 | GO36: 2196 | GP36: 2530 | GQ36: 2884 | GR36: 3117 | GS36: 2811 | GT36: 2906 | GU36: 2935 | GV36: 17144 | GW36: 3147 | GX36: 2861 | GY36: 3802 | GZ36: 3951 | HA36: 2963 | HB36: 4327 | HC36: 4181 | HD36: 2609 | HE36: 4384 | HF36: 3213 | HG36: 3259 | HH36: 4460 | HI36: 756020 | HJ36: 3532.803738
A37: SAINT-ETIENNE-DE-MONTLUC | B37: 2086 | C37: 2452 | D37: 1250 | E37: 1593 | F37: 1836 | G37: 1303 | H37: 2148 | I37: 903 | J37: 1542 | K37: 1453 | L37: 1467 | M37: 2792 | N37: 2739 | O37: 3151 | P37: 1573 | Q37: 2445 | R37: 3755 | S37: 2470 | T37: 1668 | U37: 1569 | V37: 2354 | W37: 2668 | X37: 1892 | Y37: 1794 | Z37: 2232 | AA37: 1324 | AB37: 1014 | AC37: 1762 | AD37: 2294 | AE37: 2586 | AF37: 1784 | AG37: 1747 | AH37: 794 | AI37: 1764 | AJ37: 2147 | AL37: 2718 | AM37: 1650 | AN37: 2448 | AO37: 1639 | AP37: 2648 | AQ37: 2026 | AR37: 1813 | AS37: 2534 | AT37: 1557 | AU37: 646 | AV37: 1737 | AW37: 1600 | AX37: 2326 | AY37: 2521 | AZ37: 2219 | BA37: 1449 | BB37: 1809 | BC37: 1892 | BD37: 3064 | BE37: 2360 | BF37: 1804 | BG37: 2407 | BH37: 3314 | BI37: 2548 | BJ37: 2514 | BK37: 2715 | BL37: 1875 | BM37: 3284 | BN37: 1952 | BO37: 2772 | BP37: 3614 | BQ37: 12504 | BR37: 2356 | BS37: 2149 | BT37: 3079 | BU37: 2785 | BV37: 2183 | BW37: 2212 | BX37: 1269 | BY37: 2176 | BZ37: 2079 | CA37: 2103 | CB37: 1604 | CC37: 2872 | CD37: 2502 | CE37: 2018 | CF37: 1954 | CG37: 2742 | CH37: 2725 | CI37: 1896 | CJ37: 2587 | CK37: 2200 | CL37: 1048 | CM37: 693 | CN37: 1257 | CO37: 846 | CP37: 2807 | CQ37: 1917 | CR37: 1922 | CS37: 2044 | CT37: 2641 | CU37: 2119 | CV37: 1874 | CW37: 2407 | CX37: 3226 | CY37: 2218 | CZ37: 1397 | DA37: 3634 | DB37: 2164 | DC37: 2415 | DD37: 1690 | DE37: 2429 | DF37: 1994 | DG37: 1224 | DH37: 2295 | DI37: 1779 | DJ37: 1898 | DK37: 1705 | DL37: 2618 | DM37: 3154 | DN37: 2128 | DO37: 2640 | DP37: 2529 | DQ37: 2732 | DR37: 1535 | DS37: 1900 | DT37: 2688 | DU37: 2650 | DV37: 26701 | DW37: 2216 | DX37: 2942 | DY37: 2257 | DZ37: 2985 | EA37: 2431 | EB37: 2462 | EC37: 2605 | ED37: 2712 | EE37: 101451 | EF37: 2731 | EG37: 1894 | EH37: 3066 | EI37: 3596 | EJ37: 2799 | EK37: 1807 | EL37: 2207 | EM37: 2530 | EN37: 1698 | EO37: 1105 | EP37: 2608 | EQ37: 2481 | ER37: 2394 | ES37: 3221 | ET37: 2737 | EU37: 2116 | EV37: 448 | EW37: 2620 | EX37: 2889 | EY37: 2861 | EZ37: 3166 | FA37: 2866 | FB37: 3175 | FC37: 2404 | FD37: 3087 | FE37: 3116 | FF37: 1906 | FG37: 3229 | FH37: 2217 | FI37: 2976 | FJ37: 2052 | FK37: 1611 | FL37: 2604 | FM37: 2768 | FN37: 2570 | FO37: 1979 | FP37: 2912 | FQ37: 2758 | FR37: 2576 | FS37: 2700 | FT37: 1526 | FU37: 2587 | FV37: 2645 | FW37: 3450 | FX37: 52161 | FY37: 2679 | FZ37: 2465 | GA37: 2144 | GB37: 17136 | GC37: 2890 | GD37: 2756 | GE37: 1967 | GF37: 2829 | GG37: 2838 | GH37: 2587 | GI37: 2938 | GJ37: 3449 | GK37: 2758 | GL37: 2608 | GM37: 3685 | GN37: 3064 | GO37: 1868 | GP37: 776 | GQ37: 3322 | GR37: 3471 | GS37: 2470 | GT37: 3262 | GU37: 3269 | GV37: 17361 | GW37: 3362 | GX37: 1106 | GY37: 3461 | GZ37: 2905 | HA37: 3397 | HB37: 4127 | HC37: 3941 | HD37: 3098 | HE37: 4043 | HF37: 3514 | HG37: 2918 | HH37: 4119 | HI37: 718212 | HJ37: 3356.130841
A38: CLISSON | B38: 2362 | C38: 4461 | D38: 2699 | E38: 2453 | F38: 1737 | G38: 2286 | H38: 1577 | I38: 3086 | J38: 1985 | K38: 2292 | L38: 2266 | M38: 4801 | N38: 4748 | O38: 4193 | P38: 1724 | Q38: 4454 | R38: 4688 | S38: 4479 | T38: 3677 | U38: 3363 | V38: 964 | W38: 2436 | X38: 1958 | Y38: 1480 | Z38: 3129 | AA38: 2466 | AB38: 3364 | AC38: 1851 | AD38: 1502 | AE38: 2514 | AF38: 3793 | AG38: 3756 | AH38: 2551 | AI38: 3773 | AJ38: 1748 | AK38: 2718 | AM38: 2388 | AN38: 4624 | AO38: 2716 | AP38: 2808 | AQ38: 3102 | AR38: 2085 | AS38: 4710 | AT38: 2774 | AU38: 2803 | AV38: 1524 | AW38: 2677 | AX38: 1896 | AY38: 4314 | AZ38: 2215 | BA38: 2824 | BB38: 3985 | BC38: 4097 | BD38: 5239 | BE38: 2927 | BF38: 2880 | BG38: 3021 | BH38: 5490 | BI38: 4195 | BJ38: 512 | BK38: 4890 | BL38: 1097 | BM38: 2387 | BN38: 2519 | BO38: 3848 | BP38: 5789 | BQ38: 11866 | BR38: 3432 | BS38: 4324 | BT38: 4394 | BU38: 1378 | BV38: 4359 | BW38: 3376 | BX38: 3445 | BY38: 2522 | BZ38: 3243 | CA38: 1649 | CB38: 2455 | CC38: 2990 | CD38: 2526 | CE38: 4193 | CF38: 2521 | CG38: 3535 | CH38: 357 | CI38: 1481 | CJ38: 3751 | CK38: 924 | CL38: 3341 | CM38: 3350 | CN38: 3433 | CO38: 3022 | CP38: 4002 | CQ38: 4092 | CR38: 4098 | CS38: 998 | CT38: 4853 | CU38: 657 | CV38: 2221 | CW38: 3483 | CX38: 5402 | CY38: 1468 | CZ38: 3532 | DA38: 4349 | DB38: 1145 | DC38: 1259 | DD38: 2766 | DE38: 943 | DF38: 4170 | DG38: 3362 | DH38: 2721 | DI38: 3954 | DJ38: 2974 | DK38: 3881 | DL38: 4125 | DM38: 804 | DN38: 607 | DO38: 2203 | DP38: 3605 | DQ38: 3808 | DR38: 2612 | DS38: 2976 | DT38: 4893 | DU38: 2960 | DV38: 27119 | DW38: 3292 | DX38: 3556 | DY38: 2824 | DZ38: 5160 | EA38: 2777 | EB38: 4674 | EC38: 3172 | ED38: 3789 | EE38: 101869 | EF38: 2294 | EG38: 4070 | EH38: 3680 | EI38: 5772 | EJ38: 458 | EK38: 2862 | EL38: 3326 | EM38: 580 | EN38: 3874 | EO38: 3009 | EP38: 2855 | EQ38: 2641 | ER38: 3558 | ES38: 3939 | ET38: 2748 | EU38: 841 | EV38: 2811 | EW38: 3187 | EX38: 4053 | EY38: 5036 | EZ38: 3527 | FA38: 3423 | FB38: 5351 | FC38: 843 | FD38: 2661 | FE38: 4280 | FF38: 3519 | FG38: 4393 | FH38: 4393 | FI38: 2987 | FJ38: 3223 | FK38: 2687 | FL38: 1186 | FM38: 3932 | FN38: 3691 | FO38: 3209 | FP38: 3611 | FQ38: 3855 | FR38: 2587 | FS38: 3313 | FT38: 3702 | FU38: 2027 | FV38: 3115 | FW38: 4684 | FX38: 52579 | FY38: 1567 | FZ38: 2839 | GA38: 1006 | GB38: 17554 | GC38: 3290 | GD38: 3972 | GE38: 3131 | GF38: 3275 | GG38: 4002 | GH38: 3154 | GI38: 4045 | GJ38: 3444 | GK38: 1519 | GL38: 3221 | GM38: 4298 | GN38: 4229 | GO38: 2944 | GP38: 3353 | GQ38: 3392 | GR38: 4085 | GS38: 3634 | GT38: 3994 | GU38: 3466 | GV38: 16366 | GW38: 3976 | GX38: 3684 | GY38: 4625 | GZ38: 4774 | HA38: 4010 | HB38: 5201 | HC38: 5015 | HD38: 3711 | HE38: 5207 | HF38: 4246 | HG38: 4082 | HH38: 5283 | HI38: 888658 | HJ38: 4152.607477
A39: SUCE-SUR-ERDRE | B39: 1779 | C39: 3393 | D39: 1600 | E39: 1719 | F39: 1255 | G39: 1226 | H39: 1629 | I39: 2011 | J39: 726 | K39: 1579 | L39: 522 | M39: 3733 | N39: 3680 | O39: 3479 | P39: 988 | Q39: 3386 | R39: 3021 | S39: 3411 | T39: 2608 | U39: 1778 | V39: 1772 | W39: 2273 | X39: 1097 | Y39: 1212 | Z39: 959 | AA39: 627 | AB39: 2296 | AC39: 1550 | AD39: 1712 | AE39: 1956 | AF39: 2725 | AG39: 2688 | AH39: 1213 | AI39: 2704 | AJ39: 1592 | AK39: 1650 | AL39: 2388 | AN39: 3422 | AO39: 1961 | AP39: 2724 | AQ39: 2348 | AR39: 1963 | AS39: 3508 | AT39: 1006 | AU39: 1311 | AV39: 1400 | AW39: 1922 | AX39: 1818 | AY39: 2573 | AZ39: 2189 | BA39: 666 | BB39: 2783 | BC39: 2426 | BD39: 4037 | BE39: 1399 | BF39: 2126 | BG39: 1900 | BH39: 4288 | BI39: 3441 | BJ39: 2177 | BK39: 3688 | BL39: 1538 | BM39: 3211 | BN39: 993 | BO39: 3094 | BP39: 4587 | BQ39: 11998 | BR39: 2678 | BS39: 3123 | BT39: 3640 | BU39: 2712 | BV39: 3157 | BW39: 1634 | BX39: 2243 | BY39: 1542 | BZ39: 1338 | CA39: 2030 | CB39: 1926 | CC39: 2366 | CD39: 1772 | CE39: 3020 | CF39: 993 | CG39: 3064 | CH39: 2388 | CI39: 1823 | CJ39: 2009 | CK39: 2128 | CL39: 1573 | CM39: 2148 | CN39: 2231 | CO39: 1820 | CP39: 3248 | CQ39: 2625 | CR39: 2896 | CS39: 1707 | CT39: 3175 | CU39: 1782 | CV39: 1240 | CW39: 2729 | CX39: 4200 | CY39: 2145 | CZ39: 1931 | DA39: 2582 | DB39: 2092 | DC39: 2077 | DD39: 2012 | DE39: 2092 | DF39: 2968 | DG39: 2160 | DH39: 1789 | DI39: 2752 | DJ39: 2220 | DK39: 2679 | DL39: 3371 | DM39: 2817 | DN39: 1791 | DO39: 2567 | DP39: 2851 | DQ39: 3054 | DR39: 1857 | DS39: 2222 | DT39: 3222 | DU39: 2143 | DV39: 26194 | DW39: 2537 | DX39: 2433 | DY39: 1191 | DZ39: 3959 | EA39: 1701 | EB39: 2996 | EC39: 1404 | ED39: 3034 | EE39: 100944 | EF39: 2658 | EG39: 2868 | EH39: 1958 | EI39: 4570 | EJ39: 2511 | EK39: 474 | EL39: 2529 | EM39: 2298 | EN39: 2672 | EO39: 1234 | EP39: 2101 | EQ39: 2557 | ER39: 1702 | ES39: 2172 | ET39: 2664 | EU39: 1779 | EV39: 1635 | EW39: 1574 | EX39: 2116 | EY39: 3835 | EZ39: 2659 | FA39: 1988 | FB39: 4149 | FC39: 2331 | FD39: 3014 | FE39: 2538 | FF39: 1777 | FG39: 2651 | FH39: 3224 | FI39: 2903 | FJ39: 1481 | FK39: 1933 | FL39: 2267 | FM39: 2190 | FN39: 1949 | FO39: 1459 | FP39: 1844 | FQ39: 3080 | FR39: 2503 | FS39: 2117 | FT39: 2499 | FU39: 2002 | FV39: 2967 | FW39: 3930 | FX39: 51654 | FY39: 2235 | FZ39: 2787 | GA39: 1807 | GB39: 16630 | GC39: 2384 | GD39: 2230 | GE39: 1390 | GF39: 2323 | GG39: 2260 | GH39: 1541 | GI39: 2303 | GJ39: 2942 | GK39: 2418 | GL39: 2101 | GM39: 2791 | GN39: 2572 | GO39: 2190 | GP39: 2152 | GQ39: 2815 | GR39: 2604 | GS39: 1892 | GT39: 2227 | GU39: 2762 | GV39: 17288 | GW39: 2855 | GX39: 2482 | GY39: 2884 | GZ39: 3033 | HA39: 2517 | HB39: 3434 | HC39: 3248 | HD39: 2184 | HE39: 3556 | HF39: 2479 | HG39: 2340 | HH39: 3647 | HI39: 711500 | HJ39: 3324.766355
A40: HERBIGNAC | B40: 3708 | C40: 1903 | D40: 2884 | E40: 3215 | F40: 3490 | G40: 2957 | H40: 3770 | I40: 2946 | J40: 3196 | K40: 3075 | L40: 3121 | M40: 1057 | N40: 1379 | O40: 2935 | P40: 3227 | Q40: 2229 | R40: 4805 | S40: 1676 | T40: 1263 | U40: 2574 | V40: 4008 | W40: 4290 | X40: 3546 | Y40: 3448 | Z40: 3547 | AA40: 2881 | AB40: 1939 | AC40: 3384 | AD40: 3948 | AE40: 4240 | AF40: 1750 | AG40: 1739 | AH40: 2535 | AI40: 1569 | AJ40: 3801 | AK40: 2448 | AL40: 4624 | AM40: 3422 | AO40: 3414 | AP40: 4166 | AQ40: 3800 | AR40: 3587 | AS40: 1193 | AT40: 2889 | AU40: 2311 | AV40: 3512 | AW40: 3375 | AX40: 4100 | AY40: 2786 | AZ40: 3993 | BA40: 3148 | BB40: 911 | BC40: 2348 | BD40: 1704 | BE40: 4135 | BF40: 3579 | BG40: 4182 | BH40: 1338 | BI40: 2383 | BJ40: 4288 | BK40: 560 | BL40: 3650 | BM40: 5059 | BN40: 3727 | BO40: 2853 | BP40: 2161 | BQ40: 14279 | BR40: 3318 | BS40: 809 | BT40: 2914 | BU40: 4559 | BV40: 473 | BW40: 3610 | BX40: 1588 | BY40: 3950 | BZ40: 3520 | CA40: 3877 | CB40: 3379 | CC40: 4647 | CD40: 4276 | CE40: 1547 | CF40: 3728 | CG40: 3412 | CH40: 4500 | CI40: 3670 | CJ40: 3348 | CK40: 3975 | CL40: 2340 | CM40: 2378 | CN40: 1597 | CO40: 1850 | CP40: 2641 | CQ40: 1903 | CR40: 1300 | CS40: 3818 | CT40: 2210 | CU40: 3894 | CV40: 3649 | CW40: 3198 | CX40: 1774 | CY40: 3993 | CZ40: 2062 | DA40: 4907 | DB40: 3939 | DC40: 4189 | DD40: 3465 | DE40: 4204 | DF40: 972 | DG40: 1555 | DH40: 4070 | DI40: 1464 | DJ40: 3676 | DK40: 1431 | DL40: 2453 | DM40: 4928 | DN40: 3903 | DO40: 4415 | DP40: 3172 | DQ40: 3123 | DR40: 3310 | DS40: 3674 | DT40: 2290 | DU40: 4425 | DV40: 28476 | DW40: 3488 | DX40: 4717 | DY40: 3900 | DZ40: 723 | EA40: 4206 | EB40: 1973 | EC40: 4113 | ED40: 2690 | EE40: 103225 | EF40: 4505 | EG40: 729 | EH40: 4668 | EI40: 1534 | EJ40: 4574 | EK40: 3425 | EL40: 3770 | EM40: 4304 | EN40: 1326 | EO40: 2508 | EP40: 4383 | EQ40: 4256 | ER40: 3760 | ES40: 4573 | ET40: 4387 | EU40: 3890 | EV40: 1977 | EW40: 4284 | EX40: 4265 | EY40: 483 | EZ40: 4940 | FA40: 4641 | FB40: 1038 | FC40: 4179 | FD40: 4796 | FE40: 3959 | FF40: 2902 | FG40: 4370 | FH40: 1435 | FI40: 4626 | FJ40: 3166 | FK40: 3385 | FL40: 4379 | FM40: 4063 | FN40: 3475 | FO40: 3093 | FP40: 4279 | FQ40: 3233 | FR40: 4386 | FS40: 4474 | FT40: 1735 | FU40: 4362 | FV40: 3699 | FW40: 3285 | FX40: 53935 | FY40: 4453 | FZ40: 4173 | GA40: 3919 | GB40: 18911 | GC40: 4665 | GD40: 3094 | GE40: 3334 | GF40: 4604 | GG40: 3684 | GH40: 4251 | GI40: 3203 | GJ40: 5223 | GK40: 4532 | GL40: 4382 | GM40: 5155 | GN40: 4279 | GO40: 3643 | GP40: 2070 | GQ40: 5097 | GR40: 5226 | GS40: 3846 | GT40: 4628 | GU40: 5044 | GV40: 19136 | GW40: 5137 | GX40: 2110 | GY40: 4426 | GZ40: 2660 | HA40: 5171 | HB40: 5342 | HC40: 5156 | HD40: 4873 | HE40: 5008 | HF40: 4880 | HG40: 3668 | HH40: 5014 | HI40: 936176 | HJ40: 4374.654206
A41: BOUAYE | B41: 1616 | C41: 3104 | D41: 1177 | E41: 929 | F41: 1471 | G41: 1496 | H41: 1521 | I41: 1732 | J41: 1735 | K41: 653 | L41: 1660 | M41: 3458 | N41: 3405 | O41: 1797 | P41: 1624 | Q41: 2248 | R41: 3959 | S41: 3136 | T41: 2598 | U41: 2573 | V41: 2199 | W41: 1363 | X41: 1863 | Y41: 1507 | Z41: 2436 | AA41: 1676 | AB41: 2285 | AC41: 1135 | AD41: 2139 | AE41: 2779 | AF41: 2718 | AG41: 2677 | AH41: 1420 | AI41: 2694 | AJ41: 1967 | AK41: 1639 | AL41: 2716 | AM41: 1961 | AN41: 3414 | AP41: 1327 | AQ41: 740 | AR41: 798 | AS41: 3278 | AT41: 1938 | AU41: 1653 | AV41: 1661 | AW41: 746 | AX41: 2210 | AY41: 3478 | AZ41: 1212 | BA41: 1988 | BB41: 2835 | BC41: 2947 | BD41: 3807 | BE41: 2688 | BF41: 823 | BG41: 2735 | BH41: 4057 | BI41: 1869 | BJ41: 2355 | BK41: 3740 | BL41: 1784 | BM41: 2275 | BN41: 2280 | BO41: 1725 | BP41: 4357 | BQ41: 12374 | BR41: 1070 | BS41: 3174 | BT41: 2032 | BU41: 2195 | BV41: 3209 | BW41: 2540 | BX41: 2295 | BY41: 2294 | BZ41: 2407 | CA41: 1513 | CB41: 551 | CC41: 3200 | CD41: 2620 | CE41: 3043 | CF41: 2281 | CG41: 1457 | CH41: 2650 | CI41: 1470 | CJ41: 2915 | CK41: 1730 | CL41: 2244 | CM41: 2200 | CN41: 2283 | CO41: 1872 | CP41: 2061 | CQ41: 2942 | CR41: 2948 | CS41: 1968 | CT41: 3703 | CU41: 2043 | CV41: 1993 | CW41: 1542 | CX41: 3969 | CY41: 1664 | CZ41: 2382 | DA41: 3962 | DB41: 1694 | DC41: 2339 | DD41: 449 | DE41: 1995 | DF41: 3020 | DG41: 2212 | DH41: 2623 | DI41: 2804 | DJ41: 999 | DK41: 2731 | DL41: 2240 | DM41: 3078 | DN41: 2052 | DO41: 2051 | DP41: 1243 | DQ41: 1446 | DR41: 321 | DS41: 337 | DT41: 3743 | DU41: 2978 | DV41: 27029 | DW41: 930 | DX41: 3270 | DY41: 2584 | DZ41: 3728 | EA41: 2549 | EB41: 3524 | EC41: 2933 | ED41: 1847 | EE41: 101779 | EF41: 1892 | EG41: 2920 | EH41: 3394 | EI41: 4340 | EJ41: 2329 | EK41: 2270 | EL41: 921 | EM41: 2059 | EN41: 2724 | EO41: 2173 | EP41: 2936 | EQ41: 919 | ER41: 2722 | ES41: 3549 | ET41: 1452 | EU41: 2040 | EV41: 1661 | EW41: 2948 | EX41: 3217 | EY41: 3886 | EZ41: 3493 | FA41: 3194 | FB41: 3919 | FC41: 1934 | FD41: 1861 | FE41: 3444 | FF41: 2682 | FG41: 3556 | FH41: 3243 | FI41: 1691 | FJ41: 2386 | FK41: 290 | FL41: 2528 | FM41: 3096 | FN41: 2855 | FO41: 2373 | FP41: 3240 | FQ41: 1472 | FR41: 1246 | FS41: 3028 | FT41: 2551 | FU41: 2535 | FV41: 1360 | FW41: 2322 | FX41: 52489 | FY41: 2627 | FZ41: 903 | GA41: 1804 | GB41: 17464 | GC41: 3218 | GD41: 3136 | GE41: 2295 | GF41: 3157 | GG41: 3166 | GH41: 2915 | GI41: 3209 | GJ41: 3777 | GK41: 2682 | GL41: 2936 | GM41: 4013 | GN41: 3392 | GO41: 1003 | GP41: 2203 | GQ41: 3650 | GR41: 3799 | GS41: 2798 | GT41: 3590 | GU41: 3597 | GV41: 16891 | GW41: 3690 | GX41: 2534 | GY41: 3789 | GZ41: 3938 | HA41: 3725 | HB41: 4455 | HC41: 4269 | HD41: 3426 | HE41: 4371 | HF41: 3842 | HG41: 3246 | HH41: 4447 | HI41: 738207 | HJ41: 3449.565421
A42: MACHECOUL | B42: 2174 | C42: 3122 | D42: 2185 | E42: 1938 | F42: 1914 | G42: 2505 | H42: 1938 | I42: 2741 | J42: 2327 | K42: 1661 | L42: 2609 | M42: 3476 | N42: 3423 | O42: 1801 | P42: 2067 | Q42: 2265 | R42: 4968 | S42: 3154 | T42: 3645 | U42: 3582 | V42: 2642 | W42: 832 | X42: 2305 | Y42: 1950 | Z42: 3472 | AA42: 2685 | AB42: 3294 | AC42: 1499 | AD42: 2582 | AE42: 3383 | AF42: 2735 | AG42: 3250 | AH42: 2429 | AI42: 2927 | AJ42: 2410 | AK42: 2648 | AL42: 2808 | AM42: 2724 | AN42: 4166 | AO42: 1327 | AQ42: 934 | AR42: 1461 | AS42: 3339 | AT42: 2958 | AU42: 2672 | AV42: 2204 | AW42: 1839 | AX42: 2752 | AY42: 4498 | AZ42: 1191 | BA42: 3008 | BB42: 3855 | BC42: 3967 | BD42: 3868 | BE42: 3242 | BF42: 1823 | BG42: 3336 | BH42: 4118 | BI42: 1930 | BJ42: 2541 | BK42: 3899 | BL42: 2256 | BM42: 1242 | BN42: 2834 | BO42: 2119 | BP42: 4418 | BQ42: 12613 | BR42: 1230 | BS42: 3541 | BT42: 2093 | BU42: 1929 | BV42: 4014 | BW42: 3560 | BX42: 3315 | BY42: 2837 | BZ42: 3427 | CA42: 1237 | CB42: 1832 | CC42: 3801 | CD42: 3163 | CE42: 4063 | CF42: 2835 | CG42: 920 | CH42: 2922 | CI42: 1354 | CJ42: 3935 | CK42: 1905 | CL42: 3264 | CM42: 3220 | CN42: 3295 | CO42: 2892 | CP42: 2674 | CQ42: 3962 | CR42: 3126 | CS42: 2511 | CT42: 4722 | CU42: 2627 | CV42: 2535 | CW42: 2254 | CX42: 4030 | CY42: 1479 | CZ42: 3402 | DA42: 4663 | DB42: 1900 | DC42: 2881 | DD42: 1129 | DE42: 2170 | DF42: 3489 | DG42: 3232 | DH42: 3224 | DI42: 3340 | DJ42: 1603 | DK42: 3751 | DL42: 2633 | DM42: 3368 | DN42: 2595 | DO42: 1350 | DP42: 1637 | DQ42: 1481 | DR42: 1561 | DS42: 974 | DT42: 4763 | DU42: 3578 | DV42: 27629 | DW42: 1360 | DX42: 3871 | DY42: 3138 | DZ42: 3789 | EA42: 3092 | EB42: 4543 | EC42: 3487 | ED42: 2496 | EE42: 102379 | EF42: 1096 | EG42: 3760 | EH42: 3994 | EI42: 4401 | EJ42: 2504 | EK42: 3177 | EL42: 1054 | EM42: 2235 | EN42: 3744 | EO42: 3193 | EP42: 3536 | EQ42: 819 | ER42: 3742 | ES42: 4254 | ET42: 420 | EU42: 2379 | EV42: 2681 | EW42: 3502 | EX42: 4237 | EY42: 4098 | EZ42: 4094 | FA42: 3737 | FB42: 3980 | FC42: 2109 | FD42: 828 | FE42: 4464 | FF42: 3702 | FG42: 4576 | FH42: 4263 | FI42: 659 | FJ42: 3406 | FK42: 1329 | FL42: 3071 | FM42: 4116 | FN42: 3875 | FO42: 3393 | FP42: 3925 | FQ42: 1241 | FR42: 419 | FS42: 3628 | FT42: 3571 | FU42: 3078 | FV42: 501 | FW42: 2384 | FX42: 53089 | FY42: 3170 | FZ42: 434 | GA42: 2097 | GB42: 18065 | GC42: 3819 | GD42: 4155 | GE42: 3315 | GF42: 3758 | GG42: 4186 | GH42: 3469 | GI42: 4229 | GJ42: 4377 | GK42: 3225 | GL42: 3536 | GM42: 4613 | GN42: 4412 | GO42: 1834 | GP42: 3223 | GQ42: 4250 | GR42: 4400 | GS42: 3818 | GT42: 4309 | GU42: 4198 | GV42: 17130 | GW42: 4291 | GX42: 3554 | GY42: 4809 | GZ42: 4958 | HA42: 4325 | HB42: 5475 | HC42: 5289 | HD42: 4026 | HE42: 5391 | HF42: 4560 | HG42: 4266 | HH42: 5467 | HI42: 854189 | HJ42: 3991.537383
A43: SAINTE-PAZANNE | B43: 2002 | C43: 2944 | D43: 1563 | E43: 1316 | F43: 1857 | G43: 1882 | H43: 1907 | I43: 2118 | J43: 2121 | K43: 1039 | L43: 2047 | M43: 3298 | N43: 3245 | O43: 1637 | P43: 2011 | Q43: 2088 | R43: 4345 | S43: 2977 | T43: 2984 | U43: 2959 | V43: 2586 | W43: 1188 | X43: 2249 | Y43: 1894 | Z43: 2823 | AA43: 2062 | AB43: 2672 | AC43: 1521 | AD43: 2525 | AE43: 3166 | AF43: 2558 | AG43: 3072 | AH43: 1807 | AI43: 2750 | AJ43: 2354 | AK43: 2026 | AL43: 3102 | AM43: 2348 | AN43: 3800 | AO43: 740 | AP43: 934 | AR43: 1449 | AS43: 3054 | AT43: 2290 | AU43: 2005 | AV43: 2013 | AW43: 1061 | AX43: 2562 | AY43: 3831 | AZ43: 1596 | BA43: 2340 | BB43: 3187 | BC43: 3300 | BD43: 3584 | BE43: 3040 | BF43: 1045 | BG43: 3088 | BH43: 3834 | BI43: 1646 | BJ43: 2707 | BK43: 3614 | BL43: 2136 | BM43: 1946 | BN43: 2633 | BO43: 1502 | BP43: 4134 | BQ43: 12726 | BR43: 775 | BS43: 3257 | BT43: 1809 | BU43: 2334 | BV43: 3561 | BW43: 2892 | BX43: 2647 | BY43: 2646 | BZ43: 2759 | CA43: 1642 | CB43: 1202 | CC43: 3553 | CD43: 2972 | CE43: 3396 | CF43: 2634 | CG43: 716 | CH43: 3002 | CI43: 1759 | CJ43: 3267 | CK43: 2082 | CL43: 2597 | CM43: 2552 | CN43: 2635 | CO43: 2225 | CP43: 1912 | CQ43: 3295 | CR43: 2842 | CS43: 2320 | CT43: 4055 | CU43: 2396 | CV43: 2345 | CW43: 1393 | CX43: 3746 | CY43: 1884 | CZ43: 2735 | DA43: 4314 | DB43: 2046 | DC43: 2691 | DD43: 461 | DE43: 2347 | DF43: 3205 | DG43: 2564 | DH43: 2976 | DI43: 3055 | DJ43: 741 | DK43: 3083 | DL43: 2017 | DM43: 3430 | DN43: 2405 | DO43: 1920 | DP43: 1020 | DQ43: 1223 | DR43: 842 | DS43: 543 | DT43: 4096 | DU43: 3330 | DV43: 27381 | DW43: 628 | DX43: 3623 | DY43: 2937 | DZ43: 3505 | EA43: 2902 | EB43: 3876 | EC43: 3285 | ED43: 1698 | EE43: 102131 | EF43: 1698 | EG43: 3272 | EH43: 3746 | EI43: 4117 | EJ43: 2681 | EK43: 2623 | EL43: 323 | EM43: 2412 | EN43: 3076 | EO43: 2526 | EP43: 3288 | EQ43: 725 | ER43: 3074 | ES43: 3901 | ET43: 1124 | EU43: 2392 | EV43: 2013 | EW43: 3300 | EX43: 3569 | EY43: 3814 | EZ43: 3846 | FA43: 3547 | FB43: 3696 | FC43: 2286 | FD43: 1532 | FE43: 3796 | FF43: 3035 | FG43: 3909 | FH43: 3596 | FI43: 1362 | FJ43: 2739 | FK43: 610 | FL43: 2881 | FM43: 3448 | FN43: 3207 | FO43: 2725 | FP43: 3593 | FQ43: 1051 | FR43: 1053 | FS43: 3380 | FT43: 2904 | FU43: 2888 | FV43: 619 | FW43: 2099 | FX43: 52841 | FY43: 2979 | FZ43: 679 | GA43: 2157 | GB43: 17817 | GC43: 3571 | GD43: 3488 | GE43: 2647 | GF43: 3510 | GG43: 3518 | GH43: 3267 | GI43: 3561 | GJ43: 4129 | GK43: 3034 | GL43: 3288 | GM43: 4365 | GN43: 3745 | GO43: 1057 | GP43: 2556 | GQ43: 4002 | GR43: 4152 | GS43: 3150 | GT43: 3942 | GU43: 3950 | GV43: 17243 | GW43: 4043 | GX43: 2887 | GY43: 4142 | GZ43: 4291 | HA43: 4077 | HB43: 4808 | HC43: 4622 | HD43: 3778 | HE43: 4723 | HF43: 4194 | HG43: 3598 | HH43: 4800 | HI43: 785039 | HJ43: 3668.406542
A44: PONT-SAINT-MARTIN | B44: 1413 | C44: 3556 | D44: 1350 | E44: 970 | F44: 1152 | G44: 1669 | H44: 1158 | I44: 1906 | J44: 1566 | K44: 865 | L44: 1834 | M44: 3896 | N44: 3842 | O44: 2598 | P44: 1306 | Q44: 3049 | R44: 4132 | S44: 3574 | T44: 2771 | U44: 2746 | V44: 1881 | W44: 1031 | X44: 1544 | Y44: 1189 | Z44: 2610 | AA44: 1849 | AB44: 2459 | AC44: 497 | AD44: 1820 | AE44: 2622 | AF44: 2888 | AG44: 2851 | AH44: 1594 | AI44: 2867 | AJ44: 1649 | AK44: 1813 | AL44: 2085 | AM44: 1963 | AN44: 3587 | AO44: 798 | AP44: 1461 | AQ44: 1449 | AS44: 3762 | AT44: 2140 | AU44: 1855 | AV44: 1416 | AW44: 1198 | AX44: 1964 | AY44: 3680 | AZ44: 405 | BA44: 2190 | BB44: 3037 | BC44: 3149 | BD44: 4292 | BE44: 2454 | BF44: 1401 | BG44: 2548 | BH44: 4542 | BI44: 2678 | BJ44: 1771 | BK44: 3943 | BL44: 1459 | BM44: 1888 | BN44: 2046 | BO44: 2369 | BP44: 4842 | BQ44: 11813 | BR44: 1879 | BS44: 3377 | BT44: 2841 | BU44: 1388 | BV44: 3411 | BW44: 2742 | BX44: 2497 | BY44: 2049 | BZ44: 2609 | CA44: 706 | CB44: 370 | CC44: 3013 | CD44: 2375 | CE44: 3246 | CF44: 2047 | CG44: 2129 | CH44: 2151 | CI44: 664 | CJ44: 3117 | CK44: 1135 | CL44: 2447 | CM44: 2402 | CN44: 2485 | CO44: 2074 | CP44: 2523 | CQ44: 3145 | CR44: 3150 | CS44: 1723 | CT44: 3905 | CU44: 1798 | CV44: 1747 | CW44: 2004 | CX44: 4454 | CY44: 858 | CZ44: 2584 | DA44: 3875 | DB44: 1099 | DC44: 2094 | DD44: 1257 | DE44: 1400 | DF44: 3222 | DG44: 2414 | DH44: 2436 | DI44: 3006 | DJ44: 1495 | DK44: 2933 | DL44: 2646 | DM44: 2598 | DN44: 1807 | DO44: 1245 | DP44: 2052 | DQ44: 2255 | DR44: 1130 | DS44: 1090 | DT44: 3946 | DU44: 2790 | DV44: 26841 | DW44: 1739 | DX44: 3083 | DY44: 2350 | DZ44: 4213 | EA44: 2304 | EB44: 3726 | EC44: 2699 | ED44: 2310 | EE44: 101591 | EF44: 1336 | EG44: 3122 | EH44: 3207 | EI44: 4824 | EJ44: 1734 | EK44: 2389 | EL44: 1730 | EM44: 1465 | EN44: 2926 | EO44: 2375 | EP44: 2749 | EQ44: 1235 | ER44: 2924 | ES44: 3466 | ET44: 1342 | EU44: 1609 | EV44: 1863 | EW44: 2714 | EX44: 3419 | EY44: 4089 | EZ44: 3306 | FA44: 2949 | FB44: 4403 | FC44: 1339 | FD44: 1692 | FE44: 3646 | FF44: 2885 | FG44: 3759 | FH44: 3445 | FI44: 1581 | FJ44: 2589 | FK44: 1098 | FL44: 2283 | FM44: 3298 | FN44: 3057 | FO44: 2575 | FP44: 3138 | FQ44: 2281 | FR44: 1181 | FS44: 2840 | FT44: 2754 | FU44: 2290 | FV44: 1710 | FW44: 3131 | FX44: 52301 | FY44: 2382 | FZ44: 1434 | GA44: 1296 | GB44: 17277 | GC44: 3031 | GD44: 3338 | GE44: 2497 | GF44: 2970 | GG44: 3368 | GH44: 2681 | GI44: 3411 | GJ44: 3589 | GK44: 2437 | GL44: 2748 | GM44: 3825 | GN44: 3595 | GO44: 1465 | GP44: 2406 | GQ44: 3462 | GR44: 3612 | GS44: 3000 | GT44: 3521 | GU44: 3410 | GV44: 16330 | GW44: 3503 | GX44: 2736 | GY44: 3991 | GZ44: 4140 | HA44: 3537 | HB44: 4658 | HC44: 4472 | HD44: 3238 | HE44: 4573 | HF44: 3773 | HG44: 3448 | HH44: 4650 | HI44: 749246 | HJ44: 3501.149533
A45: SAINT-ANDRE-DES-EAUX | B45: 3794 | C45: 1144 | D45: 2970 | E45: 3301 | F45: 3576 | G45: 3043 | H45: 3856 | I45: 3032 | J45: 3281 | K45: 3161 | L45: 3207 | M45: 872 | N45: 819 | O45: 2125 | P45: 3313 | Q45: 1419 | R45: 4956 | S45: 773 | T45: 1848 | U45: 2616 | V45: 4094 | W45: 3977 | X45: 3632 | Y45: 3534 | Z45: 3588 | AA45: 2967 | AB45: 1785 | AC45: 3470 | AD45: 4034 | AE45: 4326 | AF45: 938 | AG45: 1522 | AH45: 2620 | AI45: 1130 | AJ45: 3887 | AK45: 2534 | AL45: 4710 | AM45: 3508 | AN45: 1193 | AO45: 3278 | AP45: 3339 | AQ45: 3054 | AR45: 3762 | AT45: 2939 | AU45: 2454 | AV45: 3654 | AW45: 3430 | AX45: 4243 | AY45: 3404 | AZ45: 4136 | BA45: 3291 | BB45: 1848 | BC45: 2775 | BD45: 1178 | BE45: 4278 | BF45: 3439 | BG45: 4325 | BH45: 1428 | BI45: 1528 | BJ45: 4431 | BK45: 837 | BL45: 3793 | BM45: 4354 | BN45: 3870 | BO45: 1998 | BP45: 1728 | BQ45: 14422 | BR45: 2463 | BS45: 1604 | BT45: 2059 | BU45: 4702 | BV45: 1268 | BW45: 3638 | BX45: 2061 | BY45: 4093 | BZ45: 3570 | CA45: 4020 | CB45: 3522 | CC45: 4790 | CD45: 4419 | CE45: 2484 | CF45: 3871 | CG45: 2556 | CH45: 4643 | CI45: 3813 | CJ45: 3967 | CK45: 4118 | CL45: 2390 | CM45: 2483 | CN45: 1557 | CO45: 1993 | CP45: 1786 | CQ45: 2770 | CR45: 1383 | CS45: 3961 | CT45: 3147 | CU45: 4037 | CV45: 3792 | CW45: 2343 | CX45: 1340 | CY45: 4135 | CZ45: 2163 | DA45: 5033 | DB45: 4082 | DC45: 4332 | DD45: 3126 | DE45: 4347 | DF45: 1767 | DG45: 1759 | DH45: 4213 | DI45: 1602 | DJ45: 2820 | DK45: 2327 | DL45: 1598 | DM45: 5071 | DN45: 4046 | DO45: 4462 | DP45: 2317 | DQ45: 2268 | DR45: 3412 | DS45: 3306 | DT45: 3227 | DU45: 4568 | DV45: 28618 | DW45: 2632 | DX45: 4860 | DY45: 3950 | DZ45: 1099 | EA45: 4348 | EB45: 2910 | EC45: 4163 | ED45: 1834 | EE45: 103368 | EF45: 4208 | EG45: 1524 | EH45: 4718 | EI45: 1711 | EJ45: 4717 | EK45: 3475 | EL45: 2914 | EM45: 4447 | EN45: 2222 | EO45: 2651 | EP45: 4526 | EQ45: 3663 | ER45: 3811 | ES45: 4624 | ET45: 3532 | EU45: 4033 | EV45: 2119 | EW45: 4334 | EX45: 4315 | EY45: 1363 | EZ45: 5083 | FA45: 4748 | FB45: 1290 | FC45: 4322 | FD45: 3940 | FE45: 4577 | FF45: 3070 | FG45: 4655 | FH45: 2372 | FI45: 3770 | FJ45: 3216 | FK45: 3275 | FL45: 4522 | FM45: 4194 | FN45: 3734 | FO45: 3143 | FP45: 4329 | FQ45: 2378 | FR45: 3531 | FS45: 4617 | FT45: 2379 | FU45: 4504 | FV45: 2844 | FW45: 2430 | FX45: 54078 | FY45: 4596 | FZ45: 3317 | GA45: 4062 | GB45: 19054 | GC45: 4808 | GD45: 3712 | GE45: 3384 | GF45: 4747 | GG45: 4302 | GH45: 4301 | GI45: 3822 | GJ45: 5366 | GK45: 4675 | GL45: 4525 | GM45: 5243 | GN45: 4490 | GO45: 3096 | GP45: 2135 | GQ45: 5239 | GR45: 5276 | GS45: 3896 | GT45: 4679 | GU45: 5187 | GV45: 19278 | GW45: 5280 | GX45: 2028 | GY45: 4887 | GZ45: 3596 | HA45: 5277 | HB45: 5553 | HC45: 5368 | HD45: 4943 | HE45: 5469 | HF45: 4930 | HG45: 4286 | HH45: 5545 | HI45: 942437 | HJ45: 4403.911215
A46: HERIC | B46: 1845 | C46: 2764 | D46: 1560 | E46: 1679 | F46: 1641 | G46: 1001 | H46: 2015 | I46: 1924 | J46: 1346 | K46: 1539 | L46: 1173 | M46: 3104 | N46: 3051 | O46: 3439 | P46: 1377 | Q46: 2757 | R46: 2255 | S46: 2782 | T46: 2092 | U46: 772 | V46: 2158 | W46: 2658 | X46: 1696 | Y46: 1598 | Z46: 706 | AA46: 715 | AB46: 1625 | AC46: 1848 | AD46: 2098 | AE46: 2396 | AF46: 2096 | AG46: 2059 | AH46: 1301 | AI46: 2076 | AJ46: 1951 | AK46: 1557 | AL46: 2774 | AM46: 1006 | AN46: 2889 | AO46: 1938 | AP46: 2958 | AQ46: 2290 | AR46: 2140 | AS46: 2939 | AU46: 1031 | AV46: 1711 | AW46: 1863 | AX46: 2300 | AY46: 1729 | AZ46: 2482 | BA46: 614 | BB46: 2247 | BC46: 1466 | BD46: 3457 | BE46: 1487 | BF46: 2067 | BG46: 1928 | BH46: 3707 | BI46: 2942 | BJ46: 2488 | BK46: 3153 | BL46: 1849 | BM46: 3547 | BN46: 1712 | BO46: 3035 | BP46: 4007 | BQ46: 12479 | BR46: 2619 | BS46: 2542 | BT46: 3473 | BU46: 3048 | BV46: 2621 | BW46: 845 | BX46: 1434 | BY46: 2170 | BZ46: 712 | CA46: 2366 | CB46: 1867 | CC46: 2832 | CD46: 2235 | CE46: 2060 | CF46: 1280 | CG46: 3005 | CH46: 2700 | CI46: 2159 | CJ46: 1220 | CK46: 2463 | CL46: 613 | CM46: 1759 | CN46: 1651 | CO46: 1313 | CP46: 3189 | CQ46: 1665 | CR46: 2315 | CS46: 2018 | CT46: 2215 | CU46: 2093 | CV46: 1849 | CW46: 2670 | CX46: 3619 | CY46: 2481 | CZ46: 971 | DA46: 2267 | DB46: 2427 | DC46: 2389 | DD46: 1953 | DE46: 2404 | DF46: 2393 | DG46: 1590 | DH46: 2027 | DI46: 2172 | DJ46: 2161 | DK46: 1874 | DL46: 3012 | DM46: 3128 | DN46: 2103 | DO46: 2903 | DP46: 2792 | DQ46: 2995 | DR46: 1798 | DS46: 2163 | DT46: 2262 | DU46: 2673 | DV46: 26675 | DW46: 2479 | DX46: 2295 | DY46: 1053 | DZ46: 3378 | EA46: 1802 | EB46: 2036 | EC46: 1266 | ED46: 2975 | EE46: 101425 | EF46: 2994 | EG46: 2332 | EH46: 1821 | EI46: 3990 | EJ46: 2823 | EK46: 578 | EL46: 2470 | EM46: 2609 | EN46: 2136 | EO46: 463 | EP46: 2568 | EQ46: 2744 | ER46: 1027 | ES46: 1854 | ET46: 3000 | EU46: 2090 | EV46: 1181 | EW46: 1436 | EX46: 1522 | EY46: 3299 | EZ46: 3039 | FA46: 1851 | FB46: 3569 | FC46: 2667 | FD46: 3350 | FE46: 1749 | FF46: 965 | FG46: 1862 | FH46: 2264 | FI46: 3239 | FJ46: 692 | FK46: 1874 | FL46: 2578 | FM46: 1401 | FN46: 1160 | FO46: 435 | FP46: 1545 | FQ46: 3021 | FR46: 2839 | FS46: 1979 | FT46: 1539 | FU46: 2561 | FV46: 2908 | FW46: 3844 | FX46: 52049 | FY46: 2653 | FZ46: 2728 | GA46: 2119 | GB46: 17111 | GC46: 2815 | GD46: 1441 | GE46: 600 | GF46: 2640 | GG46: 1471 | GH46: 1404 | GI46: 1514 | GJ46: 3408 | GK46: 2732 | GL46: 2456 | GM46: 2459 | GN46: 1697 | GO46: 2131 | GP46: 1696 | GQ46: 3282 | GR46: 2467 | GS46: 1103 | GT46: 1895 | GU46: 3194 | GV46: 17624 | GW46: 3029 | GX46: 1879 | GY46: 2094 | GZ46: 2189 | HA46: 2379 | HB46: 2760 | HC46: 2575 | HD46: 2046 | HE46: 2676 | HF46: 2147 | HG46: 1551 | HH46: 2752 | HI46: 678465 | HJ46: 3170.397196
A47: VIGNEUX-DE-BRETAGNE | B47: 1887 | C47: 2280 | D47: 1063 | E47: 1394 | F47: 1669 | G47: 1126 | H47: 1948 | I47: 1121 | J47: 1374 | K47: 1254 | L47: 1313 | M47: 2620 | N47: 2566 | O47: 2978 | P47: 1405 | Q47: 2272 | R47: 3114 | S47: 2298 | T47: 1495 | U47: 1269 | V47: 2187 | W47: 2469 | X47: 1725 | Y47: 1626 | Z47: 1591 | AA47: 723 | AB47: 1239 | AC47: 1563 | AD47: 2126 | AE47: 2419 | AF47: 1612 | AG47: 1575 | AH47: 709 | AI47: 1591 | AJ47: 1980 | AK47: 646 | AL47: 2803 | AM47: 1311 | AN47: 2311 | AO47: 1653 | AP47: 2672 | AQ47: 2005 | AR47: 1855 | AS47: 2454 | AT47: 1031 | AV47: 1747 | AW47: 1611 | AX47: 2336 | AY47: 2331 | AZ47: 2229 | BA47: 844 | BB47: 1566 | BC47: 1678 | BD47: 2820 | BE47: 2315 | BF47: 1814 | BG47: 2418 | BH47: 3070 | BI47: 2305 | BJ47: 2524 | BK47: 2471 | BL47: 1886 | BM47: 3294 | BN47: 1963 | BO47: 2775 | BP47: 3370 | BQ47: 12515 | BR47: 2367 | BS47: 1905 | BT47: 2836 | BU47: 2795 | BV47: 1940 | BW47: 1653 | BX47: 1025 | BY47: 2186 | BZ47: 1520 | CA47: 2113 | CB47: 1615 | CC47: 2883 | CD47: 2512 | CE47: 1774 | CF47: 1964 | CG47: 2753 | CH47: 2736 | CI47: 1906 | CJ47: 2028 | CK47: 2211 | CL47: 954 | CM47: 948 | CN47: 1014 | CO47: 603 | CP47: 2563 | CQ47: 1673 | CR47: 1679 | CS47: 2054 | CT47: 2433 | CU47: 2130 | CV47: 1885 | CW47: 2417 | CX47: 2982 | CY47: 2228 | CZ47: 1113 | DA47: 3075 | DB47: 2175 | DC47: 2425 | DD47: 1701 | DE47: 2440 | DF47: 1750 | DG47: 943 | DH47: 2306 | DI47: 1535 | DJ47: 1908 | DK47: 1462 | DL47: 2375 | DM47: 3164 | DN47: 2139 | DO47: 2650 | DP47: 2539 | DQ47: 2742 | DR47: 1546 | DS47: 1910 | DT47: 2474 | DU47: 2661 | DV47: 26711 | DW47: 2226 | DX47: 2953 | DY47: 1881 | DZ47: 2741 | EA47: 2441 | EB47: 2254 | EC47: 2093 | ED47: 2611 | EE47: 101461 | EF47: 2741 | EG47: 1650 | EH47: 2648 | EI47: 3353 | EJ47: 2810 | EK47: 1202 | EL47: 2218 | EM47: 2540 | EN47: 1455 | EO47: 607 | EP47: 2619 | EQ47: 2492 | ER47: 1835 | ES47: 2662 | ET47: 2748 | EU47: 2126 | EV47: 370 | EW47: 2264 | EX47: 2330 | EY47: 2617 | EZ47: 3176 | FA47: 2678 | FB47: 2932 | FC47: 2415 | FD47: 3097 | FE47: 2557 | FF47: 1680 | FG47: 2670 | FH47: 1974 | FI47: 2986 | FJ47: 1500 | FK47: 1621 | FL47: 2615 | FM47: 2209 | FN47: 1968 | FO47: 1406 | FP47: 2353 | FQ47: 2768 | FR47: 2586 | FS47: 2710 | FT47: 1282 | FU47: 2597 | FV47: 2656 | FW47: 3207 | FX47: 52171 | FY47: 2689 | FZ47: 2476 | GA47: 2155 | GB47: 17147 | GC47: 2901 | GD47: 2249 | GE47: 1408 | GF47: 2840 | GG47: 2279 | GH47: 2231 | GI47: 2322 | GJ47: 3459 | GK47: 2768 | GL47: 2618 | GM47: 3267 | GN47: 2505 | GO47: 1878 | GP47: 934 | GQ47: 3332 | GR47: 3294 | GS47: 1911 | GT47: 2703 | GU47: 3280 | GV47: 17371 | GW47: 3373 | GX47: 1265 | GY47: 2902 | GZ47: 2691 | HA47: 3207 | HB47: 3568 | HC47: 3383 | HD47: 2874 | HE47: 3484 | HF47: 2955 | HG47: 2359 | HH47: 3560 | HI47: 681633 | HJ47: 3185.200935
A48: HAUTE-GOULAINE | B48: 1381 | C48: 3480 | D48: 1687 | E48: 1423 | F48: 877 | G48: 1305 | H48: 802 | I48: 2105 | J48: 1003 | K48: 1262 | L48: 1285 | M48: 3820 | N48: 3767 | O48: 3162 | P48: 743 | Q48: 3473 | R48: 3707 | S48: 3498 | T48: 2695 | U48: 2382 | V48: 931 | W48: 1773 | X48: 976 | Y48: 499 | Z48: 2148 | AA48: 1485 | AB48: 2383 | AC48: 1050 | AD48: 741 | AE48: 2059 | AF48: 2812 | AG48: 2775 | AH48: 1569 | AI48: 2791 | AJ48: 819 | AK48: 1737 | AL48: 1524 | AM48: 1400 | AN48: 3512 | AO48: 1661 | AP48: 2204 | AQ48: 2013 | AR48: 1416 | AS48: 3654 | AT48: 1711 | AU48: 1747 | AW48: 1767 | AX48: 1072 | AY48: 3305 | AZ48: 1713 | BA48: 1815 | BB48: 2976 | BC48: 3088 | BD48: 4230 | BE48: 1918 | BF48: 1971 | BG48: 2011 | BH48: 4480 | BI48: 3285 | BJ48: 1279 | BK48: 3881 | BL48: 641 | BM48: 2757 | BN48: 1510 | BO48: 2938 | BP48: 4780 | BQ48: 12072 | BR48: 2523 | BS48: 3315 | BT48: 3485 | BU48: 2205 | BV48: 3350 | BW48: 2367 | BX48: 2435 | BY48: 1513 | BZ48: 2234 | CA48: 1554 | CB48: 1805 | CC48: 2477 | CD48: 1839 | CE48: 3184 | CF48: 1511 | CG48: 2909 | CH48: 1531 | CI48: 1259 | CJ48: 2741 | CK48: 1474 | CL48: 2332 | CM48: 2340 | CN48: 2424 | CO48: 2013 | CP48: 3093 | CQ48: 3083 | CR48: 3089 | CS48: 690 | CT48: 3843 | CU48: 885 | CV48: 1211 | CW48: 2574 | CX48: 4392 | CY48: 1550 | CZ48: 2523 | DA48: 3339 | DB48: 1184 | DC48: 930 | DD48: 1857 | DE48: 1195 | DF48: 3160 | DG48: 2353 | DH48: 1900 | DI48: 2945 | DJ48: 2064 | DK48: 2872 | DL48: 3216 | DM48: 2042 | DN48: 1016 | DO48: 2092 | DP48: 2696 | DQ48: 2899 | DR48: 1702 | DS48: 2066 | DT48: 3884 | DU48: 2254 | DV48: 26305 | DW48: 2382 | DX48: 2546 | DY48: 1814 | DZ48: 4151 | EA48: 1768 | EB48: 3664 | EC48: 2163 | ED48: 2879 | EE48: 101055 | EF48: 2183 | EG48: 3060 | EH48: 2670 | EI48: 4763 | EJ48: 1614 | EK48: 1853 | EL48: 2374 | EM48: 1401 | EN48: 2865 | EO48: 2000 | EP48: 2212 | EQ48: 2082 | ER48: 2549 | ES48: 2930 | ET48: 2189 | EU48: 881 | EV48: 1802 | EW48: 2177 | EX48: 3044 | EY48: 4027 | EZ48: 2770 | FA48: 2413 | FB48: 4342 | FC48: 1517 | FD48: 2539 | FE48: 3271 | FF48: 2509 | FG48: 3383 | FH48: 3384 | FI48: 2428 | FJ48: 2213 | FK48: 1777 | FL48: 1492 | FM48: 2923 | FN48: 2682 | FO48: 2200 | FP48: 2601 | FQ48: 2924 | FR48: 2028 | FS48: 2304 | FT48: 2692 | FU48: 1310 | FV48: 2556 | FW48: 3775 | FX48: 51765 | FY48: 1401 | FZ48: 2280 | GA48: 927 | GB48: 16740 | GC48: 2494 | GD48: 2962 | GE48: 2122 | GF48: 2434 | GG48: 2992 | GH48: 2145 | GI48: 3036 | GJ48: 3053 | GK48: 1584 | GL48: 2212 | GM48: 3289 | GN48: 3219 | GO48: 2035 | GP48: 2344 | GQ48: 2926 | GR48: 3075 | GS48: 2624 | GT48: 2984 | GU48: 2873 | GV48: 16824 | GW48: 2966 | GX48: 2675 | GY48: 3616 | GZ48: 3765 | HA48: 3001 | HB48: 4192 | HC48: 4006 | HD48: 2702 | HE48: 4198 | HF48: 3236 | HG48: 3073 | HH48: 4274 | HI48: 725635 | HJ48: 3390.817757
A49: SAINT-JEAN-DE-BOISEAU | B49: 1577 | C49: 3241 | D49: 1138 | E49: 891 | F49: 1432 | G49: 1457 | H49: 1482 | I49: 1693 | J49: 1696 | K49: 614 | L49: 1621 | M49: 3596 | N49: 3542 | O49: 2119 | P49: 1585 | Q49: 2343 | R49: 3920 | S49: 3274 | T49: 2559 | U49: 2534 | V49: 2160 | W49: 2041 | X49: 1824 | Y49: 1468 | Z49: 2397 | AA49: 1637 | AB49: 2246 | AC49: 1096 | AD49: 2100 | AE49: 2740 | AF49: 2675 | AG49: 2638 | AH49: 1381 | AI49: 2655 | AJ49: 1929 | AK49: 1600 | AL49: 2677 | AM49: 1922 | AN49: 3375 | AO49: 746 | AP49: 1839 | AQ49: 1061 | AR49: 1198 | AS49: 3430 | AT49: 1863 | AU49: 1611 | AV49: 1767 | AX49: 2284 | AY49: 3552 | AZ49: 1647 | BA49: 2062 | BB49: 2909 | BC49: 3022 | BD49: 3813 | BE49: 2762 | BF49: 319 | BG49: 2810 | BH49: 4063 | BI49: 1933 | BJ49: 2429 | BK49: 3844 | BL49: 1858 | BM49: 2888 | BN49: 2354 | BO49: 1586 | BP49: 4363 | BQ49: 12448 | BR49: 1383 | BS49: 3249 | BT49: 2345 | BU49: 2389 | BV49: 3283 | BW49: 2614 | BX49: 2369 | BY49: 2368 | BZ49: 2481 | CA49: 1707 | CB49: 986 | CC49: 3275 | CD49: 2694 | CE49: 3118 | CF49: 2356 | CG49: 1757 | CH49: 2724 | CI49: 1500 | CJ49: 2989 | CK49: 1804 | CL49: 2319 | CM49: 2274 | CN49: 2357 | CO49: 1946 | CP49: 1740 | CQ49: 3017 | CR49: 3022 | CS49: 2042 | CT49: 3777 | CU49: 2118 | CV49: 2067 | CW49: 1221 | CX49: 3975 | CY49: 1822 | CZ49: 2457 | DA49: 4036 | DB49: 1768 | DC49: 2413 | DD49: 828 | DE49: 2069 | DF49: 3094 | DG49: 2286 | DH49: 2698 | DI49: 2878 | DJ49: 712 | DK49: 2805 | DL49: 1863 | DM49: 3152 | DN49: 2127 | DO49: 2244 | DP49: 1380 | DQ49: 1759 | DR49: 461 | DS49: 1041 | DT49: 3818 | DU49: 3052 | DV49: 27103 | DW49: 1242 | DX49: 3345 | DY49: 2659 | DZ49: 3734 | EA49: 2624 | EB49: 3598 | EC49: 3007 | ED49: 1526 | EE49: 101853 | EF49: 2335 | EG49: 2994 | EH49: 3468 | EI49: 4346 | EJ49: 2403 | EK49: 2345 | EL49: 1189 | EM49: 2134 | EN49: 2798 | EO49: 2248 | EP49: 3010 | EQ49: 1622 | ER49: 2796 | ES49: 3623 | ET49: 2052 | EU49: 2114 | EV49: 1735 | EW49: 3022 | EX49: 3291 | EY49: 3961 | EZ49: 3568 | FA49: 3269 | FB49: 3925 | FC49: 2008 | FD49: 2460 | FE49: 3518 | FF49: 2757 | FG49: 3631 | FH49: 3317 | FI49: 2290 | FJ49: 2461 | FK49: 887 | FL49: 2603 | FM49: 3170 | FN49: 2929 | FO49: 2447 | FP49: 3315 | FQ49: 1785 | FR49: 1949 | FS49: 3102 | FT49: 2626 | FU49: 2610 | FV49: 1695 | FW49: 2635 | FX49: 52563 | FY49: 2701 | FZ49: 1606 | GA49: 1879 | GB49: 17539 | GC49: 3293 | GD49: 3210 | GE49: 2369 | GF49: 3232 | GG49: 3240 | GH49: 2989 | GI49: 3283 | GJ49: 3851 | GK49: 2756 | GL49: 3010 | GM49: 4087 | GN49: 3467 | GO49: 682 | GP49: 2278 | GQ49: 3724 | GR49: 3874 | GS49: 2872 | GT49: 3664 | GU49: 3672 | GV49: 16965 | GW49: 3764 | GX49: 2609 | GY49: 3863 | GZ49: 4013 | HA49: 3799 | HB49: 4530 | HC49: 4344 | HD49: 3500 | HE49: 4445 | HF49: 3916 | HG49: 3320 | HH49: 4522 | HI49: 757930 | HJ49: 3541.728972
A50: LA CHAPELLE-BASSE-MER | B50: 1970 | C50: 4069 | D50: 2217 | E50: 1972 | F50: 1304 | G50: 1893 | H50: 1582 | I50: 2694 | J50: 1359 | K50: 1811 | L50: 1874 | M50: 4409 | N50: 4355 | O50: 3711 | P50: 1401 | Q50: 4061 | R50: 3917 | S50: 4087 | T50: 3284 | U50: 2971 | V50: 1121 | W50: 2322 | X50: 883 | Y50: 1056 | Z50: 2449 | AA50: 2073 | AB50: 2972 | AC50: 1599 | AD50: 510 | AE50: 1512 | AF50: 3401 | AG50: 3364 | AH50: 2158 | AI50: 3380 | AJ50: 536 | AK50: 2326 | AL50: 1896 | AM50: 1818 | AN50: 4100 | AO50: 2210 | AP50: 2752 | AQ50: 2562 | AR50: 1964 | AS50: 4243 | AT50: 2300 | AU50: 2336 | AV50: 1072 | AW50: 2284 | AY50: 3744 | AZ50: 2137 | BA50: 2254 | BB50: 3414 | BC50: 3527 | BD50: 4669 | BE50: 1452 | BF50: 2394 | BG50: 1635 | BH50: 4919 | BI50: 3709 | BJ50: 1838 | BK50: 4320 | BL50: 1371 | BM50: 3159 | BN50: 1150 | BO50: 3362 | BP50: 5219 | BQ50: 12298 | BR50: 2946 | BS50: 3754 | BT50: 3908 | BU50: 2660 | BV50: 3788 | BW50: 2805 | BX50: 2874 | BY50: 967 | BZ50: 2632 | CA50: 1978 | CB50: 2228 | CC50: 2060 | CD50: 969 | CE50: 3623 | CF50: 1625 | CG50: 3332 | CH50: 1968 | CI50: 1771 | CJ50: 3180 | CK50: 2022 | CL50: 2771 | CM50: 2779 | CN50: 2862 | CO50: 2452 | CP50: 3516 | CQ50: 3522 | CR50: 3527 | CS50: 1037 | CT50: 4282 | CU50: 1456 | CV50: 516 | CW50: 2997 | CX50: 4831 | CY50: 2093 | CZ50: 2962 | DA50: 3089 | DB50: 1907 | DC50: 764 | DD50: 2280 | DE50: 1764 | DF50: 3599 | DG50: 2791 | DH50: 1408 | DI50: 3384 | DJ50: 2488 | DK50: 3310 | DL50: 3639 | DM50: 2453 | DN50: 1371 | DO50: 2515 | DP50: 3119 | DQ50: 3322 | DR50: 2125 | DS50: 2489 | DT50: 4323 | DU50: 1901 | DV50: 26494 | DW50: 2805 | DX50: 2480 | DY50: 1793 | DZ50: 4590 | EA50: 1238 | EB50: 4103 | EC50: 2141 | ED50: 3302 | EE50: 101244 | EF50: 2606 | EG50: 3499 | EH50: 2205 | EI50: 5202 | EJ50: 2173 | EK50: 2078 | EL50: 2797 | EM50: 1959 | EN50: 3303 | EO50: 2439 | EP50: 1796 | EQ50: 2505 | ER50: 2812 | ES50: 2908 | ET50: 2612 | EU50: 1440 | EV50: 2241 | EW50: 1728 | EX50: 3106 | EY50: 4466 | EZ50: 2468 | FA50: 1883 | FB50: 4781 | FC50: 2075 | FD50: 2962 | FE50: 3709 | FF50: 2948 | FG50: 3818 | FH50: 3823 | FI50: 2851 | FJ50: 2652 | FK50: 2200 | FL50: 1153 | FM50: 3381 | FN50: 3120 | FO50: 2638 | FP50: 2580 | FQ50: 3348 | FR50: 2451 | FS50: 1996 | FT50: 3131 | FU50: 433 | FV50: 2979 | FW50: 4198 | FX50: 51954 | FY50: 576 | FZ50: 2704 | GA50: 1640 | GB50: 16930 | GC50: 2231 | GD50: 3401 | GE50: 2561 | GF50: 2216 | GG50: 3431 | GH50: 1938 | GI50: 3474 | GJ50: 2637 | GK50: 759 | GL50: 2166 | GM50: 3104 | GN50: 3396 | GO50: 2458 | GP50: 2783 | GQ50: 2510 | GR50: 2890 | GS50: 3063 | GT50: 2679 | GU50: 2560 | GV50: 17253 | GW50: 2920 | GX50: 3114 | GY50: 4051 | GZ50: 4204 | HA50: 2737 | HB50: 4101 | HC50: 3954 | HD50: 2383 | HE50: 4308 | HF50: 2987 | HG50: 3511 | HH50: 4320 | HI50: 784992 | HJ50: 3668.186916
A51: GUEMENE-PENFAO | B51: 3385 | C51: 3230 | D51: 2986 | E51: 3219 | F51: 3181 | G51: 2541 | H51: 3555 | I51: 3049 | J51: 2886 | K51: 3079 | L51: 2713 | M51: 3570 | N51: 3516 | O51: 3928 | P51: 2917 | Q51: 3222 | R51: 2285 | S51: 3248 | T51: 2086 | U51: 1113 | V51: 3698 | W51: 4199 | X51: 3236 | Y51: 3138 | Z51: 2097 | AA51: 2256 | AB51: 1995 | AC51: 3388 | AD51: 3638 | AE51: 3758 | AF51: 2562 | AG51: 2525 | AH51: 2637 | AI51: 2541 | AJ51: 3491 | AK51: 2521 | AL51: 4314 | AM51: 2573 | AN51: 2786 | AO51: 3478 | AP51: 4498 | AQ51: 3831 | AR51: 3680 | AS51: 3404 | AT51: 1729 | AU51: 2331 | AV51: 3305 | AW51: 3552 | AX51: 3744 | AZ51: 3952 | BA51: 2084 | BB51: 1748 | BC51: 519 | BD51: 3699 | BE51: 2786 | BF51: 3537 | BG51: 3227 | BH51: 3949 | BI51: 3183 | BJ51: 3958 | BK51: 2973 | BL51: 3320 | BM51: 5017 | BN51: 3011 | BO51: 3653 | BP51: 4249 | BQ51: 13949 | BR51: 4089 | BS51: 2698 | BT51: 3714 | BU51: 4518 | BV51: 2347 | BW51: 1229 | BX51: 1459 | BY51: 3469 | BZ51: 1575 | CA51: 3836 | CB51: 3338 | CC51: 4131 | CD51: 3533 | CE51: 1308 | CF51: 2578 | CG51: 4212 | CH51: 4170 | CI51: 3629 | CJ51: 703 | CK51: 3934 | CL51: 1455 | CM51: 2465 | CN51: 1892 | CO51: 1801 | CP51: 3442 | CQ51: 956 | CR51: 2557 | CS51: 3488 | CT51: 893 | CU51: 3564 | CV51: 3319 | CW51: 3998 | CX51: 3861 | CY51: 3951 | CZ51: 1428 | DA51: 2261 | DB51: 3898 | DC51: 3859 | DD51: 3423 | DE51: 3874 | DF51: 2481 | DG51: 1735 | DH51: 3326 | DI51: 2126 | DJ51: 3631 | DK51: 1470 | DL51: 3253 | DM51: 4598 | DN51: 3573 | DO51: 4373 | DP51: 3972 | DQ51: 3923 | DR51: 3269 | DS51: 3633 | DT51: 693 | DU51: 3965 | DV51: 28146 | DW51: 3949 | DX51: 3106 | DY51: 2352 | DZ51: 3304 | EA51: 3101 | EB51: 1025 | EC51: 2118 | ED51: 3490 | EE51: 102087 | EF51: 4464 | EG51: 2255 | EH51: 2583 | EI51: 4115 | EJ51: 4293 | EK51: 2073 | EL51: 3940 | EM51: 4080 | EN51: 1606 | EO51: 1654 | EP51: 3867 | EQ51: 4214 | ER51: 1547 | ES51: 2128 | ET51: 4471 | EU51: 3560 | EV51: 2013 | EW51: 2616 | EX51: 1796 | EY51: 3064 | EZ51: 3961 | FA51: 2836 | FB51: 3619 | FC51: 4138 | FD51: 4820 | FE51: 1314 | FF51: 776 | FG51: 1725 | FH51: 1253 | FI51: 4709 | FJ51: 1083 | FK51: 3344 | FL51: 4049 | FM51: 1418 | FN51: 920 | FO51: 1443 | FP51: 2047 | FQ51: 4033 | FR51: 4309 | FS51: 2902 | FT51: 1136 | FU51: 4032 | FV51: 4379 | FW51: 4086 | FX51: 51674 | FY51: 4123 | FZ51: 4199 | GA51: 3589 | GB51: 18581 | GC51: 3885 | GD51: 448 | GE51: 1252 | GF51: 3562 | GG51: 1038 | GH51: 2407 | GI51: 558 | GJ51: 4707 | GK51: 4202 | GL51: 3382 | GM51: 2509 | GN51: 1633 | GO51: 3601 | GP51: 2112 | GQ51: 4580 | GR51: 2728 | GS51: 1402 | GT51: 2397 | GU51: 4244 | GV51: 19094 | GW51: 3299 | GX51: 2121 | GY51: 1780 | GZ51: 567 | HA51: 3031 | HB51: 2696 | HC51: 2511 | HD51: 2857 | HE51: 2362 | HF51: 2511 | HG51: 1023 | HH51: 2368 | HI51: 846686 | HJ51: 3956.476636
A52: LA CHEVROLIERE | B52: 1639 | C52: 3962 | D52: 1756 | E52: 1376 | F52: 1379 | G52: 2075 | H52: 1403 | I52: 2312 | J52: 1792 | K52: 1279 | L52: 2074 | M52: 4302 | N52: 4248 | O52: 2793 | P52: 1532 | Q52: 3257 | R52: 4538 | S52: 3980 | T52: 3177 | U52: 3152 | V52: 2107 | W52: 746 | X52: 1770 | Y52: 1415 | Z52: 3016 | AA52: 2255 | AB52: 2865 | AC52: 903 | AD52: 2047 | AE52: 2848 | AF52: 3294 | AG52: 3257 | AH52: 2000 | AI52: 3273 | AJ52: 1875 | AK52: 2219 | AL52: 2215 | AM52: 2189 | AN52: 3993 | AO52: 1212 | AP52: 1191 | AQ52: 1596 | AR52: 405 | AS52: 4136 | AT52: 2482 | AU52: 2229 | AV52: 1713 | AW52: 1647 | AX52: 2137 | AY52: 3952 | BA52: 2616 | BB52: 3462 | BC52: 3575 | BD52: 4717 | BE52: 2659 | BF52: 1835 | BG52: 2753 | BH52: 4967 | BI52: 2863 | BJ52: 1922 | BK52: 4368 | BL52: 1674 | BM52: 1659 | BN52: 2251 | BO52: 2803 | BP52: 5267 | BQ52: 12031 | BR52: 2098 | BS52: 3802 | BT52: 3026 | BU52: 1435 | BV52: 3836 | BW52: 3167 | BX52: 2922 | BY52: 2254 | BZ52: 3034 | CA52: 743 | CB52: 803 | CC52: 3218 | CD52: 2580 | CE52: 3671 | CF52: 2253 | CG52: 1853 | CH52: 2302 | CI52: 735 | CJ52: 3542 | CK52: 1286 | CL52: 2872 | CM52: 2827 | CN52: 2910 | CO52: 2500 | CP52: 2957 | CQ52: 3570 | CR52: 3575 | CS52: 1928 | CT52: 4330 | CU52: 2008 | CV52: 1953 | CW52: 2438 | CX52: 4879 | CY52: 933 | CZ52: 3010 | DA52: 4081 | DB52: 1302 | DC52: 2299 | DD52: 1603 | DE52: 1551 | DF52: 3647 | DG52: 2840 | DH52: 2641 | DI52: 3432 | DJ52: 1929 | DK52: 3358 | DL52: 3080 | DM52: 2749 | DN52: 2012 | DO52: 1033 | DP52: 2486 | DQ52: 2414 | DR52: 1564 | DS52: 1366 | DT52: 4371 | DU52: 2996 | DV52: 27047 | DW52: 1951 | DX52: 3288 | DY52: 2556 | DZ52: 4638 | EA52: 2509 | EB52: 4151 | EC52: 2904 | ED52: 2743 | EE52: 101796 | EF52: 1124 | EG52: 3547 | EH52: 3412 | EI52: 5250 | EJ52: 1885 | EK52: 2594 | EL52: 1645 | EM52: 1615 | EN52: 3351 | EO52: 2801 | EP52: 2954 | EQ52: 960 | ER52: 3349 | ES52: 3671 | ET52: 1067 | EU52: 1760 | EV52: 2289 | EW52: 2919 | EX52: 3845 | EY52: 4514 | EZ52: 3511 | FA52: 3155 | FB52: 4829 | FC52: 1490 | FD52: 1489 | FE52: 4071 | FF52: 3310 | FG52: 4184 | FH52: 3871 | FI52: 1306 | FJ52: 3014 | FK52: 1532 | FL52: 2488 | FM52: 3723 | FN52: 3482 | FO52: 3000 | FP52: 3343 | FQ52: 2174 | FR52: 905 | FS52: 3045 | FT52: 3179 | FU52: 2495 | FV52: 1434 | FW52: 3317 | FX52: 52506 | FY52: 2587 | FZ52: 1158 | GA52: 1546 | GB52: 17482 | GC52: 3236 | GD52: 3763 | GE52: 2923 | GF52: 3175 | GG52: 3793 | GH52: 2886 | GI52: 3836 | GJ52: 3794 | GK52: 2642 | GL52: 2953 | GM52: 4031 | GN52: 4020 | GO52: 1899 | GP52: 2831 | GQ52: 3668 | GR52: 3817 | GS52: 3425 | GT52: 3726 | GU52: 3615 | GV52: 16548 | GW52: 3708 | GX52: 3162 | GY52: 4417 | GZ52: 4566 | HA52: 3742 | HB52: 5083 | HC52: 4897 | HD52: 3443 | HE52: 4998 | HF52: 3978 | HG52: 3873 | HH52: 5075 | HI52: 807723 | HJ52: 3774.406542
A53: GRANDCHAMPS-DES-FONTAINES | B53: 1895 | C53: 3117 | D53: 1610 | E53: 1729 | F53: 1691 | G53: 1089 | H53: 2065 | I53: 1765 | J53: 1392 | K53: 1589 | L53: 782 | M53: 3457 | N53: 3403 | O53: 3489 | P53: 1427 | Q53: 3109 | R53: 2671 | S53: 3135 | T53: 2332 | U53: 1285 | V53: 2208 | W53: 2709 | X53: 1746 | Y53: 1648 | Z53: 963 | AA53: 491 | AB53: 2076 | AC53: 1898 | AD53: 2148 | AE53: 2440 | AF53: 2449 | AG53: 2412 | AH53: 1077 | AI53: 2428 | AJ53: 2001 | AK53: 1449 | AL53: 2824 | AM53: 666 | AN53: 3148 | AO53: 1988 | AP53: 3008 | AQ53: 2340 | AR53: 2190 | AS53: 3291 | AT53: 614 | AU53: 844 | AV53: 1815 | AW53: 2062 | AX53: 2254 | AY53: 2084 | AZ53: 2616 | BB53: 2420 | BC53: 1988 | BD53: 3674 | BE53: 1752 | BF53: 2182 | BG53: 2192 | BH53: 3925 | BI53: 3159 | BJ53: 2603 | BK53: 3325 | BL53: 1965 | BM53: 3662 | BN53: 1651 | BO53: 3150 | BP53: 4224 | BQ53: 12594 | BR53: 2735 | BS53: 2759 | BT53: 3690 | BU53: 3163 | BV53: 2794 | BW53: 1201 | BX53: 1880 | BY53: 2199 | BZ53: 1082 | CA53: 2481 | CB53: 1983 | CC53: 2962 | CD53: 2499 | CE53: 2582 | CF53: 1544 | CG53: 3121 | CH53: 2815 | CI53: 2274 | CJ53: 1576 | CK53: 2579 | CL53: 1135 | CM53: 1802 | CN53: 1868 | CO53: 1457 | CP53: 3305 | CQ53: 2188 | CR53: 2533 | CS53: 2133 | CT53: 2737 | CU53: 2209 | CV53: 1898 | CW53: 2785 | CX53: 3837 | CY53: 2596 | CZ53: 1494 | DA53: 2708 | DB53: 2543 | DC53: 2504 | DD53: 2069 | DE53: 2519 | DF53: 2605 | DG53: 1797 | DH53: 2291 | DI53: 2389 | DJ53: 2276 | DK53: 2316 | DL53: 3229 | DM53: 3244 | DN53: 2218 | DO53: 3018 | DP53: 2907 | DQ53: 3110 | DR53: 1914 | DS53: 2278 | DT53: 2784 | DU53: 2740 | DV53: 26791 | DW53: 2594 | DX53: 2559 | DY53: 1318 | DZ53: 3595 | EA53: 2067 | EB53: 2558 | EC53: 1530 | ED53: 3091 | EE53: 101540 | EF53: 3109 | EG53: 2505 | EH53: 2085 | EI53: 4207 | EJ53: 2938 | EK53: 434 | EL53: 2586 | EM53: 2725 | EN53: 2309 | EO53: 734 | EP53: 2698 | EQ53: 2860 | ER53: 1383 | ES53: 2299 | ET53: 3116 | EU53: 2206 | EV53: 1224 | EW53: 1701 | EX53: 1878 | EY53: 3471 | EZ53: 3303 | FA53: 2115 | FB53: 3786 | FC53: 2783 | FD53: 3465 | FE53: 2105 | FF53: 1344 | FG53: 2218 | FH53: 2786 | FI53: 3354 | FJ53: 1048 | FK53: 1989 | FL53: 2694 | FM53: 1757 | FN53: 1516 | FO53: 1034 | FP53: 1971 | FQ53: 3136 | FR53: 2954 | FS53: 2244 | FT53: 2062 | FU53: 2677 | FV53: 3024 | FW53: 4061 | FX53: 52250 | FY53: 2768 | FZ53: 2844 | GA53: 2234 | GB53: 17226 | GC53: 3079 | GD53: 1797 | GE53: 956 | GF53: 2904 | GG53: 1827 | GH53: 1668 | GI53: 1870 | GJ53: 3538 | GK53: 2847 | GL53: 2721 | GM53: 2918 | GN53: 2054 | GO53: 2246 | GP53: 1788 | GQ53: 3412 | GR53: 2731 | GS53: 1459 | GT53: 2354 | GU53: 3458 | GV53: 17739 | GW53: 3294 | GX53: 2119 | GY53: 2451 | GZ53: 2600 | HA53: 2644 | HB53: 3117 | HC53: 2931 | HD53: 2310 | HE53: 3032 | HF53: 2606 | HG53: 1907 | HH53: 3109 | HI53: 721085 | HJ53: 3369.556075
A54: MISSILLAC | B54: 3069 | C54: 2205 | D54: 2245 | E54: 2576 | F54: 2851 | G54: 2318 | H54: 3131 | I54: 2307 | J54: 2557 | K54: 2436 | L54: 2482 | M54: 1949 | N54: 2258 | O54: 2903 | P54: 2588 | Q54: 2198 | R54: 3902 | S54: 2346 | T54: 611 | U54: 1935 | V54: 3369 | W54: 3651 | X54: 2907 | Y54: 2809 | Z54: 2908 | AA54: 2242 | AB54: 1300 | AC54: 2745 | AD54: 3309 | AE54: 3601 | AF54: 1537 | AG54: 1486 | AH54: 1896 | AI54: 1516 | AJ54: 3162 | AK54: 1809 | AL54: 3985 | AM54: 2783 | AN54: 911 | AO54: 2835 | AP54: 3855 | AQ54: 3187 | AR54: 3037 | AS54: 1848 | AT54: 2247 | AU54: 1566 | AV54: 2976 | AW54: 2909 | AX54: 3414 | AY54: 1748 | AZ54: 3462 | BA54: 2420 | BC54: 1438 | BD54: 2550 | BE54: 3561 | BF54: 3005 | BG54: 3609 | BH54: 2170 | BI54: 2318 | BJ54: 3715 | BK54: 1226 | BL54: 3077 | BM54: 4485 | BN54: 3154 | BO54: 2788 | BP54: 3007 | BQ54: 13706 | BR54: 3253 | BS54: 1002 | BT54: 2849 | BU54: 3986 | BV54: 599 | BW54: 2700 | BX54: 1014 | BY54: 3377 | BZ54: 2922 | CA54: 3304 | CB54: 2806 | CC54: 4074 | CD54: 3703 | CE54: 636 | CF54: 3155 | CG54: 3347 | CH54: 3927 | CI54: 3097 | CJ54: 2438 | CK54: 3402 | CL54: 1766 | CM54: 1805 | CN54: 1023 | CO54: 1277 | CP54: 2576 | CQ54: 992 | CR54: 1493 | CS54: 3245 | CT54: 1299 | CU54: 3321 | CV54: 3076 | CW54: 3133 | CX54: 2620 | CY54: 3419 | CZ54: 1488 | DA54: 3996 | DB54: 3366 | DC54: 3616 | DD54: 2891 | DE54: 3631 | DF54: 838 | DG54: 982 | DH54: 3497 | DI54: 883 | DJ54: 3099 | DK54: 857 | DL54: 2388 | DM54: 4355 | DN54: 3330 | DO54: 3841 | DP54: 3107 | DQ54: 3058 | DR54: 2737 | DS54: 3101 | DT54: 1380 | DU54: 3851 | DV54: 27902 | DW54: 3417 | DX54: 4144 | DY54: 3327 | DZ54: 1556 | EA54: 3632 | EB54: 1062 | EC54: 3559 | ED54: 2625 | EE54: 102652 | EF54: 3932 | EG54: 507 | EH54: 4024 | EI54: 2367 | EJ54: 4000 | EK54: 2852 | EL54: 3408 | EM54: 3731 | EN54: 755 | EO54: 1935 | EP54: 3809 | EQ54: 3682 | ER54: 2988 | ES54: 3783 | ET54: 3939 | EU54: 3317 | EV54: 1403 | EW54: 3710 | EX54: 3531 | EY54: 1316 | EZ54: 4367 | FA54: 4068 | FB54: 1871 | FC54: 3606 | FD54: 4288 | FE54: 3048 | FF54: 2185 | FG54: 3460 | FH54: 524 | FI54: 4177 | FJ54: 2538 | FK54: 2812 | FL54: 3806 | FM54: 3153 | FN54: 2564 | FO54: 2494 | FP54: 3488 | FQ54: 3168 | FR54: 3777 | FS54: 3901 | FT54: 1101 | FU54: 3788 | FV54: 3634 | FW54: 3220 | FX54: 53106 | FY54: 3880 | FZ54: 3667 | GA54: 3346 | GB54: 18338 | GC54: 4092 | GD54: 2183 | GE54: 2705 | GF54: 4031 | GG54: 2773 | GH54: 3677 | GI54: 2293 | GJ54: 4650 | GK54: 3959 | GL54: 3809 | GM54: 4244 | GN54: 3368 | GO54: 3069 | GP54: 1497 | GQ54: 4523 | GR54: 4435 | GS54: 3137 | GT54: 3838 | GU54: 4471 | GV54: 18562 | GW54: 4564 | GX54: 1537 | GY54: 3515 | GZ54: 1749 | HA54: 4521 | HB54: 4431 | HC54: 4245 | HD54: 4298 | HE54: 4097 | HF54: 4090 | HG54: 2757 | HH54: 4103 | HI54: 832497 | HJ54: 3890.172897
A55: PLESSE | B55: 3182 | C55: 2601 | D55: 2357 | E55: 2688 | F55: 2964 | G55: 2421 | H55: 3243 | I55: 2420 | J55: 2669 | K55: 2549 | L55: 2542 | M55: 2941 | N55: 2887 | O55: 3299 | P55: 2700 | Q55: 2593 | R55: 2673 | S55: 2619 | T55: 1457 | U55: 800 | V55: 3481 | W55: 3764 | X55: 3019 | Y55: 2921 | Z55: 1901 | AA55: 2071 | AB55: 1366 | AC55: 2857 | AD55: 3421 | AE55: 3688 | AF55: 1933 | AG55: 1896 | AH55: 2008 | AI55: 1912 | AJ55: 3274 | AK55: 1892 | AL55: 4097 | AM55: 2426 | AN55: 2348 | AO55: 2947 | AP55: 3967 | AQ55: 3300 | AR55: 3149 | AS55: 2775 | AT55: 1466 | AU55: 1678 | AV55: 3088 | AW55: 3022 | AX55: 3527 | AY55: 519 | AZ55: 3575 | BA55: 1988 | BB55: 1438 | BD55: 3180 | BE55: 2816 | BF55: 3111 | BG55: 3256 | BH55: 3430 | BI55: 2664 | BJ55: 3821 | BK55: 2587 | BL55: 3182 | BM55: 4591 | BN55: 3040 | BO55: 3134 | BP55: 3730 | BQ55: 13812 | BR55: 3600 | BS55: 2179 | BT55: 3195 | BU55: 4092 | BV55: 2021 | BW55: 1288 | BX55: 940 | BY55: 3498 | BZ55: 1604 | CA55: 3410 | CB55: 2911 | CC55: 4160 | CD55: 3563 | CE55: 826 | CF55: 2608 | CG55: 3693 | CH55: 4032 | CI55: 3203 | CJ55: 1195 | CK55: 3507 | CL55: 908 | CM55: 1946 | CN55: 1373 | CO55: 1281 | CP55: 2923 | CQ55: 431 | CR55: 2038 | CS55: 3351 | CT55: 988 | CU55: 3426 | CV55: 3181 | CW55: 3479 | CX55: 3342 | CY55: 3525 | CZ55: 909 | DA55: 2753 | DB55: 3471 | DC55: 3722 | DD55: 2997 | DE55: 3736 | DF55: 1962 | DG55: 1215 | DH55: 3355 | DI55: 1607 | DJ55: 3205 | DK55: 951 | DL55: 2734 | DM55: 4461 | DN55: 3435 | DO55: 3947 | DP55: 3453 | DQ55: 3404 | DR55: 2842 | DS55: 3207 | DT55: 884 | DU55: 3994 | DV55: 28008 | DW55: 3523 | DX55: 3135 | DY55: 2381 | DZ55: 2978 | EA55: 3130 | EB55: 809 | EC55: 2148 | ED55: 2971 | EE55: 102579 | EF55: 4038 | EG55: 1766 | EH55: 2612 | EI55: 3712 | EJ55: 4106 | EK55: 1994 | EL55: 3514 | EM55: 3837 | EN55: 1123 | EO55: 1304 | EP55: 3896 | EQ55: 3788 | ER55: 1576 | ES55: 2371 | ET55: 4044 | EU55: 3423 | EV55: 1466 | EW55: 2645 | EX55: 2129 | EY55: 2738 | EZ55: 3990 | FA55: 2865 | FB55: 3292 | FC55: 3711 | FD55: 4394 | FE55: 1806 | FF55: 773 | FG55: 2217 | FH55: 1037 | FI55: 4283 | FJ55: 1112 | FK55: 2918 | FL55: 3911 | FM55: 1910 | FN55: 1171 | FO55: 1259 | FP55: 2076 | FQ55: 3514 | FR55: 3883 | FS55: 2931 | FT55: 616 | FU55: 3894 | FV55: 3980 | FW55: 3566 | FX55: 52166 | FY55: 3986 | FZ55: 3772 | GA55: 3451 | GB55: 18443 | GC55: 3914 | GD55: 941 | GE55: 1281 | GF55: 3591 | GG55: 1530 | GH55: 2436 | GI55: 1050 | GJ55: 4736 | GK55: 4065 | GL55: 3411 | GM55: 2990 | GN55: 2126 | GO55: 3175 | GP55: 1593 | GQ55: 4610 | GR55: 3023 | GS55: 1742 | GT55: 2426 | GU55: 4274 | GV55: 18668 | GW55: 3593 | GX55: 1602 | GY55: 2272 | GZ55: 1017 | HA55: 3109 | HB55: 3189 | HC55: 3003 | HD55: 2886 | HE55: 2854 | HF55: 2678 | HG55: 1515 | HH55: 2861 | HI55: 801466 | HJ55: 3745.168224
A56: LE POULIGUEN | B56: 4324 | C56: 1622 | D56: 3499 | E56: 3830 | F56: 4106 | G56: 3572 | H56: 4385 | I56: 3562 | J56: 3811 | K56: 3691 | L56: 3736 | M56: 820 | N56: 640 | O56: 2654 | P56: 3842 | Q56: 1948 | R56: 5486 | S56: 1341 | T56: 2378 | U56: 3145 | V56: 4623 | W56: 4507 | X56: 4161 | Y56: 4063 | Z56: 4118 | AA56: 3496 | AB56: 2315 | AC56: 3999 | AD56: 4563 | AE56: 4855 | AF56: 1468 | AG56: 2051 | AH56: 3150 | AI56: 1660 | AJ56: 4416 | AK56: 3064 | AL56: 5239 | AM56: 4037 | AN56: 1704 | AO56: 3807 | AP56: 3868 | AQ56: 3584 | AR56: 4292 | AS56: 1178 | AT56: 3457 | AU56: 2820 | AV56: 4230 | AW56: 3813 | AX56: 4669 | AY56: 3699 | AZ56: 4717 | BA56: 3674 | BB56: 2550 | BC56: 3180 | BE56: 4774 | BF56: 3935 | BG56: 4821 | BH56: 1294 | BI56: 2024 | BJ56: 4927 | BK56: 1425 | BL56: 4289 | BM56: 4850 | BN56: 4366 | BO56: 2494 | BP56: 1129 | BQ56: 14918 | BR56: 2959 | BS56: 2311 | BT56: 2555 | BU56: 5198 | BV56: 1975 | BW56: 4134 | BX56: 2557 | BY56: 4589 | BZ56: 4066 | CA56: 4516 | CB56: 4018 | CC56: 5286 | CD56: 4915 | CE56: 3190 | CF56: 4367 | CG56: 3052 | CH56: 5139 | CI56: 4309 | CJ56: 4463 | CK56: 4614 | CL56: 2886 | CM56: 2979 | CN56: 2053 | CO56: 2489 | CP56: 2282 | CQ56: 3266 | CR56: 1880 | CS56: 4457 | CT56: 3853 | CU56: 4533 | CV56: 4288 | CW56: 2839 | CX56: 741 | CY56: 4632 | CZ56: 2659 | DA56: 5529 | DB56: 4578 | DC56: 4828 | DD56: 3622 | DE56: 4843 | DF56: 2247 | DG56: 2255 | DH56: 4709 | DI56: 2098 | DJ56: 3316 | DK56: 2735 | DL56: 2094 | DM56: 5567 | DN56: 4542 | DO56: 4958 | DP56: 2813 | DQ56: 2764 | DR56: 3908 | DS56: 3803 | DT56: 3934 | DU56: 5064 | DV56: 29115 | DW56: 3128 | DX56: 5356 | DY56: 4447 | DZ56: 1315 | EA56: 4844 | EB56: 3617 | EC56: 4659 | ED56: 2330 | EE56: 103864 | EF56: 4704 | EG56: 2231 | EH56: 5214 | EI56: 1658 | EJ56: 5213 | EK56: 3971 | EL56: 3410 | EM56: 4943 | EN56: 2929 | EO56: 3147 | EP56: 5022 | EQ56: 4159 | ER56: 4307 | ES56: 5120 | ET56: 4028 | EU56: 4529 | EV56: 2615 | EW56: 4830 | EX56: 4811 | EY56: 1624 | EZ56: 5579 | FA56: 5244 | FB56: 1506 | FC56: 4818 | FD56: 4436 | FE56: 5074 | FF56: 3566 | FG56: 5151 | FH56: 3079 | FI56: 4266 | FJ56: 3713 | FK56: 3771 | FL56: 5018 | FM56: 4690 | FN56: 4230 | FO56: 3639 | FP56: 4825 | FQ56: 2874 | FR56: 4027 | FS56: 5113 | FT56: 2876 | FU56: 5000 | FV56: 3340 | FW56: 2926 | FX56: 54574 | FY56: 5092 | FZ56: 3813 | GA56: 4558 | GB56: 19550 | GC56: 5304 | GD56: 4208 | GE56: 3880 | GF56: 5243 | GG56: 4798 | GH56: 4797 | GI56: 4318 | GJ56: 5862 | GK56: 5171 | GL56: 5021 | GM56: 5739 | GN56: 4986 | GO56: 3592 | GP56: 2631 | GQ56: 5736 | GR56: 5772 | GS56: 4392 | GT56: 5175 | GU56: 5683 | GV56: 19774 | GW56: 5776 | GX56: 2524 | GY56: 5383 | GZ56: 4303 | HA56: 5773 | HB56: 6049 | HC56: 5864 | HD56: 5439 | HE56: 5965 | HF56: 5427 | HG56: 4782 | HH56: 6041 | HI56: 1045818 | HJ56: 4887
A57: LIGNE | B57: 2329 | C57: 4103 | D57: 2311 | E57: 2429 | F57: 1794 | G57: 1928 | H57: 2168 | I57: 2728 | J57: 1355 | K57: 2289 | L57: 1830 | M57: 4443 | N57: 4390 | O57: 4189 | P57: 1526 | Q57: 4096 | R57: 2307 | S57: 4121 | T57: 3319 | U57: 2109 | V57: 2311 | W57: 2812 | X57: 1323 | Y57: 1751 | Z57: 924 | AA57: 1980 | AB57: 3072 | AC57: 2089 | AD57: 1962 | AE57: 1229 | AF57: 3435 | AG57: 3398 | AH57: 2193 | AI57: 3415 | AJ57: 1678 | AK57: 2360 | AL57: 2927 | AM57: 1399 | AN57: 4135 | AO57: 2688 | AP57: 3242 | AQ57: 3040 | AR57: 2454 | AS57: 4278 | AT57: 1487 | AU57: 2315 | AV57: 1918 | AW57: 2762 | AX57: 1452 | AY57: 2786 | AZ57: 2659 | BA57: 1752 | BB57: 3561 | BC57: 2816 | BD57: 4774 | BF57: 2785 | BG57: 763 | BH57: 4947 | BI57: 4100 | BJ57: 2599 | BK57: 4347 | BL57: 1961 | BM57: 3634 | BN57: 429 | BO57: 3753 | BP57: 5246 | BQ57: 11625 | BR57: 3337 | BS57: 3782 | BT57: 4299 | BU57: 3134 | BV57: 3816 | BW57: 1770 | BX57: 2867 | BY57: 749 | BZ57: 1299 | CA57: 2452 | CB57: 2585 | CC57: 1675 | CD57: 893 | CE57: 3324 | CF57: 552 | CG57: 3723 | CH57: 2811 | CI57: 2245 | CJ57: 2385 | CK57: 2550 | CL57: 2046 | CM57: 2807 | CN57: 2890 | CO57: 2479 | CP57: 3907 | CQ57: 2929 | CR57: 3555 | CS57: 2129 | CT57: 3478 | CU57: 2205 | CV57: 932 | CW57: 3388 | CX57: 4859 | CY57: 2568 | CZ57: 2404 | DA57: 1901 | DB57: 2514 | DC57: 2130 | DD57: 2671 | DE57: 2515 | DF57: 3627 | DG57: 2819 | DH57: 869 | DI57: 3411 | DJ57: 2879 | DK57: 3228 | DL57: 4030 | DM57: 3239 | DN57: 2214 | DO57: 2990 | DP57: 3510 | DQ57: 3713 | DR57: 2516 | DS57: 2881 | DT57: 3433 | DU57: 1516 | DV57: 25822 | DW57: 3196 | DX57: 1301 | DY57: 460 | DZ57: 4617 | EA57: 495 | EB57: 3299 | EC57: 808 | ED57: 3693 | EE57: 100571 | EF57: 3080 | EG57: 3527 | EH57: 1017 | EI57: 5229 | EJ57: 2934 | EK57: 1303 | EL57: 3188 | EM57: 2721 | EN57: 3331 | EO57: 1896 | EP57: 1411 | EQ57: 2980 | ER57: 1479 | ES57: 1575 | ET57: 3087 | EU57: 2201 | EV57: 2268 | EW57: 447 | EX57: 1773 | EY57: 4494 | EZ57: 1873 | FA57: 695 | FB57: 4808 | FC57: 2754 | FD57: 3437 | FE57: 2708 | FF57: 2135 | FG57: 2485 | FH57: 3527 | FI57: 3326 | FJ57: 1839 | FK57: 2592 | FL57: 2388 | FM57: 2048 | FN57: 2076 | FO57: 1700 | FP57: 1247 | FQ57: 3739 | FR57: 2925 | FS57: 814 | FT57: 2894 | FU57: 1654 | FV57: 3454 | FW57: 4589 | FX57: 51281 | FY57: 2010 | FZ57: 3178 | GA57: 2230 | GB57: 16257 | GC57: 1650 | GD57: 2492 | GE57: 1554 | GF57: 1475 | GG57: 2390 | GH57: 657 | GI57: 2679 | GJ57: 2251 | GK57: 1924 | GL57: 1291 | GM57: 1916 | GN57: 2063 | GO57: 2849 | GP57: 2811 | GQ57: 2124 | GR57: 1702 | GS57: 1887 | GT57: 1491 | GU57: 2029 | GV57: 17711 | GW57: 1975 | GX57: 3141 | GY57: 2717 | GZ57: 3300 | HA57: 1549 | HB57: 2838 | HC57: 2652 | HD57: 1195 | HE57: 2897 | HF57: 1799 | HG57: 2697 | HH57: 2987 | HI57: 757319 | HJ57: 3538.873832
A58: LE PELLERIN | B58: 1780 | C58: 3250 | D58: 1341 | E58: 1094 | F58: 1636 | G58: 1660 | H58: 1685 | I58: 1774 | J58: 1899 | K58: 817 | L58: 1825 | M58: 3605 | N58: 3551 | O58: 2103 | P58: 1789 | Q58: 2352 | R58: 4123 | S58: 3283 | T58: 2762 | U58: 2738 | V58: 2364 | W58: 2079 | X58: 2027 | Y58: 1672 | Z58: 2601 | AA58: 1840 | AB58: 2450 | AC58: 1300 | AD58: 2304 | AE58: 2944 | AF58: 2864 | AG58: 2842 | AH58: 1585 | AI58: 2858 | AJ58: 2132 | AK58: 1804 | AL58: 2880 | AM58: 2126 | AN58: 3579 | AO58: 823 | AP58: 1823 | AQ58: 1045 | AR58: 1401 | AS58: 3439 | AT58: 2067 | AU58: 1814 | AV58: 1971 | AW58: 319 | AX58: 2394 | AY58: 3537 | AZ58: 1835 | BA58: 2182 | BB58: 3005 | BC58: 3111 | BD58: 3935 | BE58: 2785 | BG58: 2912 | BH58: 4072 | BI58: 1941 | BJ58: 2532 | BK58: 3852 | BL58: 1961 | BM58: 2844 | BN58: 2457 | BO58: 1594 | BP58: 4372 | BQ58: 12551 | BR58: 1353 | BS58: 3352 | BT58: 2315 | BU58: 2492 | BV58: 3386 | BW58: 2717 | BX58: 2472 | BY58: 2471 | BZ58: 2584 | CA58: 1809 | CB58: 1089 | CC58: 3377 | CD58: 2797 | CE58: 3220 | CF58: 2459 | CG58: 1728 | CH58: 2827 | CI58: 1603 | CJ58: 3092 | CK58: 1907 | CL58: 2422 | CM58: 2377 | CN58: 2460 | CO58: 2049 | CP58: 1749 | CQ58: 3119 | CR58: 3080 | CS58: 2145 | CT58: 3880 | CU58: 2220 | CV58: 2170 | CW58: 1230 | CX58: 3984 | CY58: 1925 | CZ58: 2559 | DA58: 4139 | DB58: 1871 | DC58: 2516 | DD58: 964 | DE58: 2172 | DF58: 3197 | DG58: 2389 | DH58: 2800 | DI58: 2981 | DJ58: 720 | DK58: 2908 | DL58: 1872 | DM58: 3255 | DN58: 2230 | DO58: 2347 | DP58: 1389 | DQ58: 1729 | DR58: 548 | DS58: 1176 | DT58: 3920 | DU58: 3155 | DV58: 27206 | DW58: 1213 | DX58: 3447 | DY58: 2762 | DZ58: 3743 | EA58: 2726 | EB58: 3701 | EC58: 3110 | ED58: 1535 | EE58: 101956 | EF58: 2568 | EG58: 3097 | EH58: 3571 | EI58: 4355 | EJ58: 2506 | EK58: 2448 | EL58: 1160 | EM58: 2237 | EN58: 2901 | EO58: 2350 | EP58: 3113 | EQ58: 1595 | ER58: 2899 | ES58: 3726 | ET58: 2022 | EU58: 2217 | EV58: 1838 | EW58: 3125 | EX58: 3394 | EY58: 4052 | EZ58: 3671 | FA58: 3371 | FB58: 3934 | FC58: 2111 | FD58: 2430 | FE58: 3621 | FF58: 2860 | FG58: 3734 | FH58: 3420 | FI58: 2261 | FJ58: 2564 | FK58: 987 | FL58: 2705 | FM58: 3273 | FN58: 3032 | FO58: 2550 | FP58: 3417 | FQ58: 1755 | FR58: 1923 | FS58: 3205 | FT58: 2729 | FU58: 2712 | FV58: 1665 | FW58: 2605 | FX58: 52666 | FY58: 2804 | FZ58: 1577 | GA58: 1981 | GB58: 17641 | GC58: 3395 | GD58: 3313 | GE58: 2472 | GF58: 3334 | GG58: 3343 | GH58: 3092 | GI58: 3386 | GJ58: 3954 | GK58: 2859 | GL58: 3113 | GM58: 4190 | GN58: 3569 | GO58: 680 | GP58: 2381 | GQ58: 3827 | GR58: 3976 | GS58: 2975 | GT58: 3767 | GU58: 3774 | GV58: 17068 | GW58: 3867 | GX58: 2711 | GY58: 3966 | GZ58: 4115 | HA58: 3902 | HB58: 4632 | HC58: 4447 | HD58: 3603 | HE58: 4548 | HF58: 4019 | HG58: 3423 | HH58: 4624 | HI58: 778691 | HJ58: 3638.742991
A59: MESANGER | B59: 2423 | C59: 4150 | D59: 2358 | E59: 2476 | F59: 1887 | G59: 1975 | H59: 2262 | I59: 2775 | J59: 1504 | K59: 2336 | L59: 1877 | M59: 4490 | N59: 4437 | O59: 4237 | P59: 1620 | Q59: 4143 | R59: 2276 | S59: 4168 | T59: 3366 | U59: 2550 | V59: 2302 | W59: 2905 | X59: 1506 | Y59: 1844 | Z59: 1365 | AA59: 2155 | AB59: 3053 | AC59: 2182 | AD59: 2098 | AE59: 756 | AF59: 3482 | AG59: 3445 | AH59: 2240 | AI59: 3462 | AJ59: 1861 | AK59: 2407 | AL59: 3021 | AM59: 1900 | AN59: 4182 | AO59: 2735 | AP59: 3336 | AQ59: 3088 | AR59: 2548 | AS59: 4325 | AT59: 1928 | AU59: 2418 | AV59: 2011 | AW59: 2810 | AX59: 1635 | AY59: 3227 | AZ59: 2753 | BA59: 2192 | BB59: 3609 | BC59: 3256 | BD59: 4821 | BE59: 763 | BF59: 2912 | BH59: 5006 | BI59: 4159 | BJ59: 2736 | BK59: 4406 | BL59: 2097 | BM59: 3770 | BN59: 1135 | BO59: 3812 | BP59: 5305 | BQ59: 11029 | BR59: 3396 | BS59: 3841 | BT59: 4358 | BU59: 3271 | BV59: 3875 | BW59: 2230 | BX59: 2961 | BY59: 1044 | BZ59: 1787 | CA59: 2589 | CB59: 2644 | CC59: 1226 | CD59: 925 | CE59: 3709 | CF59: 1268 | CG59: 3782 | CH59: 2948 | CI59: 2382 | CJ59: 2939 | CK59: 2687 | CL59: 2533 | CM59: 2866 | CN59: 2949 | CO59: 2538 | CP59: 3966 | CQ59: 3416 | CR59: 3614 | CS59: 2266 | CT59: 3966 | CU59: 2341 | CV59: 1227 | CW59: 3447 | CX59: 4918 | CY59: 2704 | CZ59: 2892 | DA59: 1629 | DB59: 2651 | DC59: 2277 | DD59: 2730 | DE59: 2652 | DF59: 3686 | DG59: 2878 | DH59: 556 | DI59: 3470 | DJ59: 2938 | DK59: 3397 | DL59: 4089 | DM59: 3376 | DN59: 2350 | DO59: 3126 | DP59: 3569 | DQ59: 3772 | DR59: 2575 | DS59: 2940 | DT59: 3920 | DU59: 838 | DV59: 25225 | DW59: 3255 | DX59: 907 | DY59: 886 | DZ59: 4677 | EA59: 433 | EB59: 3787 | EC59: 1199 | ED59: 3752 | EE59: 99975 | EF59: 3217 | EG59: 3586 | EH59: 744 | EI59: 5288 | EJ59: 3071 | EK59: 1791 | EL59: 3247 | EM59: 2857 | EN59: 3390 | EO59: 2384 | EP59: 962 | EQ59: 3117 | ER59: 1779 | ES59: 1634 | ET59: 3224 | EU59: 2338 | EV59: 2327 | EW59: 738 | EX59: 1815 | EY59: 4553 | EZ59: 1162 | FA59: 459 | FB59: 4867 | FC59: 2891 | FD59: 3573 | FE59: 2864 | FF59: 2622 | FG59: 2484 | FH59: 3909 | FI59: 3462 | FJ59: 2326 | FK59: 2651 | FL59: 2236 | FM59: 2090 | FN59: 2564 | FO59: 2188 | FP59: 1289 | FQ59: 3798 | FR59: 3062 | FS59: 444 | FT59: 3218 | FU59: 1682 | FV59: 3591 | FW59: 4648 | FX59: 50685 | FY59: 1859 | FZ59: 3315 | GA59: 2367 | GB59: 15661 | GC59: 887 | GD59: 2980 | GE59: 2041 | GF59: 794 | GG59: 2546 | GH59: 869 | GI59: 3167 | GJ59: 1777 | GK59: 1773 | GL59: 572 | GM59: 1650 | GN59: 2062 | GO59: 2908 | GP59: 2870 | GQ59: 1676 | GR59: 1436 | GS59: 2157 | GT59: 1219 | GU59: 1266 | GV59: 17782 | GW59: 1327 | GX59: 3200 | GY59: 2716 | GZ59: 3788 | HA59: 1197 | HB59: 2647 | HC59: 2494 | HD59: 843 | HE59: 2848 | HF59: 1526 | HG59: 2879 | HH59: 2964 | HI59: 771208 | HJ59: 3603.775701
A60: LA TURBALLE | B60: 4574 | C60: 1872 | D60: 3750 | E60: 4081 | F60: 4356 | G60: 3822 | H60: 4635 | I60: 3812 | J60: 4061 | K60: 3941 | L60: 3987 | M60: 766 | N60: 1261 | O60: 2904 | P60: 4092 | Q60: 2198 | R60: 5736 | S60: 1579 | T60: 2495 | U60: 3395 | V60: 4874 | W60: 4757 | X60: 4412 | Y60: 4313 | Z60: 4368 | AA60: 3746 | AB60: 2565 | AC60: 4250 | AD60: 4813 | AE60: 5106 | AF60: 1718 | AG60: 2301 | AH60: 3400 | AI60: 1910 | AJ60: 4667 | AK60: 3314 | AL60: 5490 | AM60: 4288 | AN60: 1338 | AO60: 4057 | AP60: 4118 | AQ60: 3834 | AR60: 4542 | AS60: 1428 | AT60: 3707 | AU60: 3070 | AV60: 4480 | AW60: 4063 | AX60: 4919 | AY60: 3949 | AZ60: 4967 | BA60: 3925 | BB60: 2170 | BC60: 3430 | BD60: 1294 | BE60: 4947 | BF60: 4072 | BG60: 5006 | BI60: 2270 | BJ60: 5174 | BK60: 1225 | BL60: 4536 | BM60: 5097 | BN60: 4613 | BO60: 2740 | BP60: 1695 | BQ60: 15165 | BR60: 3206 | BS60: 1988 | BT60: 2802 | BU60: 5445 | BV60: 1652 | BW60: 4381 | BX60: 2804 | BY60: 4836 | BZ60: 4313 | CA60: 4763 | CB60: 4265 | CC60: 5533 | CD60: 5162 | CE60: 2805 | CF60: 4614 | CG60: 3299 | CH60: 5386 | CI60: 4556 | CJ60: 4607 | CK60: 4861 | CL60: 3133 | CM60: 3226 | CN60: 2300 | CO60: 2736 | CP60: 2529 | CQ60: 3161 | CR60: 2126 | CS60: 4704 | CT60: 3468 | CU60: 4779 | CV60: 4535 | CW60: 3085 | CX60: 1307 | CY60: 4878 | CZ60: 2906 | DA60: 5776 | DB60: 4825 | DC60: 5075 | DD60: 3869 | DE60: 5090 | DF60: 2151 | DG60: 2502 | DH60: 4956 | DI60: 2344 | DJ60: 3563 | DK60: 2689 | DL60: 2340 | DM60: 5814 | DN60: 4789 | DO60: 5205 | DP60: 3059 | DQ60: 3010 | DR60: 4155 | DS60: 4049 | DT60: 3549 | DU60: 5310 | DV60: 29361 | DW60: 3375 | DX60: 5603 | DY60: 4693 | DZ60: 658 | EA60: 5091 | EB60: 3232 | EC60: 4906 | ED60: 2577 | EE60: 104111 | EF60: 4951 | EG60: 1908 | EH60: 5461 | EI60: 602 | EJ60: 5459 | EK60: 4218 | EL60: 3657 | EM60: 5190 | EN60: 2585 | EO60: 3394 | EP60: 5268 | EQ60: 4406 | ER60: 4553 | ES60: 5366 | ET60: 4275 | EU60: 4776 | EV60: 2862 | EW60: 5077 | EX60: 5058 | EY60: 1015 | EZ60: 5826 | FA60: 5491 | FB60: 681 | FC60: 5065 | FD60: 4683 | FE60: 5218 | FF60: 3813 | FG60: 5397 | FH60: 2694 | FI60: 4513 | FJ60: 3959 | FK60: 4017 | FL60: 5265 | FM60: 4937 | FN60: 4477 | FO60: 3886 | FP60: 5072 | FQ60: 3120 | FR60: 4274 | FS60: 5360 | FT60: 2993 | FU60: 5247 | FV60: 3586 | FW60: 3173 | FX60: 54821 | FY60: 5339 | FZ60: 4060 | GA60: 4805 | GB60: 19797 | GC60: 5551 | GD60: 4353 | GE60: 4127 | GF60: 5490 | GG60: 4942 | GH60: 5044 | GI60: 4462 | GJ60: 6109 | GK60: 5418 | GL60: 5268 | GM60: 5985 | GN60: 5233 | GO60: 3839 | GP60: 2878 | GQ60: 5982 | GR60: 6019 | GS60: 4639 | GT60: 5421 | GU60: 5930 | GV60: 20021 | GW60: 6023 | GX60: 2771 | GY60: 5630 | GZ60: 3918 | HA60: 6020 | HB60: 6296 | HC60: 6110 | HD60: 5686 | HE60: 6212 | HF60: 5673 | HG60: 4927 | HH60: 6273 | HI60: 1085218 | HJ60: 5071.11215
A61: SAINT-MICHEL-CHEF-CHEF | B61: 3095 | C61: 1339 | D61: 2656 | E61: 2409 | F61: 2951 | G61: 2975 | H61: 3000 | I61: 3046 | J61: 3214 | K61: 2132 | L61: 3140 | M61: 1693 | N61: 1640 | O61: 716 | P61: 3104 | Q61: 482 | R61: 4970 | S61: 1371 | T61: 1862 | U61: 2630 | V61: 3679 | W61: 2569 | X61: 3342 | Y61: 2987 | Z61: 3602 | AA61: 2981 | AB61: 1799 | AC61: 2614 | AD61: 3618 | AE61: 4259 | AF61: 952 | AG61: 1467 | AH61: 2635 | AI61: 1144 | AJ61: 3447 | AK61: 2548 | AL61: 4195 | AM61: 3441 | AN61: 2383 | AO61: 1869 | AP61: 1930 | AQ61: 1646 | AR61: 2678 | AS61: 1528 | AT61: 2942 | AU61: 2305 | AV61: 3285 | AW61: 1933 | AX61: 3709 | AY61: 3183 | AZ61: 2863 | BA61: 3159 | BB61: 2318 | BC61: 2664 | BD61: 2024 | BE61: 4100 | BF61: 1941 | BG61: 4159 | BH61: 2270 | BJ61: 3873 | BK61: 2118 | BL61: 3302 | BM61: 2910 | BN61: 3799 | BO61: 520 | BP61: 2638 | BQ61: 13892 | BR61: 1019 | BS61: 1760 | BT61: 614 | BU61: 3597 | BV61: 2234 | BW61: 3596 | BX61: 2018 | BY61: 3813 | BZ61: 3528 | CA61: 2905 | CB61: 2403 | CC61: 4719 | CD61: 4139 | CE61: 2596 | CF61: 3800 | CG61: 1112 | CH61: 4168 | CI61: 2944 | CJ61: 3924 | CK61: 3249 | CL61: 2347 | CM61: 2441 | CN61: 1515 | CO61: 1951 | CP61: 1015 | CQ61: 2728 | CR61: 1346 | CS61: 3486 | CT61: 3488 | CU61: 3562 | CV61: 3511 | CW61: 1163 | CX61: 2250 | CY61: 3146 | CZ61: 2121 | DA61: 4991 | DB61: 3213 | DC61: 3857 | DD61: 1682 | DE61: 3514 | DF61: 1708 | DG61: 1717 | DH61: 4142 | DI61: 1559 | DJ61: 1346 | DK61: 2197 | DL61: 861 | DM61: 4596 | DN61: 3571 | DO61: 3018 | DP61: 843 | DQ61: 823 | DR61: 1938 | DS61: 1862 | DT61: 3529 | DU61: 4497 | DV61: 28548 | DW61: 1188 | DX61: 4789 | DY61: 3908 | DZ61: 2009 | EA61: 4068 | EB61: 3189 | EC61: 4121 | ED61: 922 | EE61: 103297 | EF61: 2764 | EG61: 1980 | EH61: 4676 | EI61: 2620 | EJ61: 3847 | EK61: 3433 | EL61: 1470 | EM61: 3578 | EN61: 2277 | EO61: 2609 | EP61: 4455 | EQ61: 2219 | ER61: 3768 | ES61: 4581 | ET61: 2087 | EU61: 3559 | EV61: 2077 | EW61: 4291 | EX61: 4273 | EY61: 2317 | EZ61: 5012 | FA61: 4706 | FB61: 2200 | FC61: 3453 | FD61: 2496 | FE61: 4535 | FF61: 3028 | FG61: 4612 | FH61: 2768 | FI61: 2326 | FJ61: 3174 | FK61: 1830 | FL61: 4047 | FM61: 4151 | FN61: 3692 | FO61: 3101 | FP61: 4287 | FQ61: 933 | FR61: 2087 | FS61: 4546 | FT61: 2337 | FU61: 4054 | FV61: 1399 | FW61: 985 | FX61: 54007 | FY61: 4145 | FZ61: 1873 | GA61: 3323 | GB61: 18983 | GC61: 4737 | GD61: 3670 | GE61: 3341 | GF61: 4676 | GG61: 4260 | GH61: 4259 | GI61: 3779 | GJ61: 5295 | GK61: 4200 | GL61: 4454 | GM61: 5200 | GN61: 4448 | GO61: 1622 | GP61: 2092 | GQ61: 5169 | GR61: 5233 | GS61: 3853 | GT61: 4636 | GU61: 5116 | GV61: 18409 | GW61: 5209 | GX61: 1986 | GY61: 4845 | GZ61: 3746 | HA61: 5243 | HB61: 5511 | HC61: 5325 | HD61: 4901 | HE61: 5427 | HF61: 4888 | HG61: 4244 | HH61: 5503 | HI61: 869604 | HJ61: 4063.570093
A62: GORGES | B62: 2158 | C62: 4257 | D62: 2362 | E62: 2117 | F62: 1532 | G62: 2081 | H62: 1183 | I62: 2918 | J62: 1780 | K62: 1956 | L62: 2062 | M62: 4597 | N62: 4543 | O62: 3856 | P62: 1520 | Q62: 4260 | R62: 4484 | S62: 4275 | T62: 3472 | U62: 3159 | V62: 852 | W62: 2110 | X62: 1753 | Y62: 1276 | Z62: 2925 | AA62: 2261 | AB62: 3160 | AC62: 1525 | AD62: 1309 | AE62: 2402 | AF62: 3589 | AG62: 3552 | AH62: 2346 | AI62: 3568 | AJ62: 1555 | AK62: 2514 | AL62: 512 | AM62: 2177 | AN62: 4288 | AO62: 2355 | AP62: 2541 | AQ62: 2707 | AR62: 1771 | AS62: 4431 | AT62: 2488 | AU62: 2524 | AV62: 1279 | AW62: 2429 | AX62: 1838 | AY62: 3958 | AZ62: 1922 | BA62: 2603 | BB62: 3715 | BC62: 3821 | BD62: 4927 | BE62: 2599 | BF62: 2532 | BG62: 2736 | BH62: 5174 | BI62: 3873 | BK62: 4635 | BL62: 720 | BM62: 2449 | BN62: 2264 | BO62: 3623 | BP62: 5534 | BQ62: 11836 | BR62: 3207 | BS62: 4069 | BT62: 4169 | BU62: 1399 | BV62: 4104 | BW62: 3121 | BX62: 3190 | BY62: 2267 | BZ62: 2988 | CA62: 1423 | CB62: 2209 | CC62: 2973 | CD62: 2423 | CE62: 3938 | CF62: 2266 | CG62: 3289 | CH62: 548 | CI62: 1235 | CJ62: 3496 | CK62: 698 | CL62: 3086 | CM62: 3095 | CN62: 3178 | CO62: 2767 | CP62: 3777 | CQ62: 3837 | CR62: 3843 | CS62: 784 | CT62: 4598 | CU62: 440 | CV62: 1966 | CW62: 3258 | CX62: 5147 | CY62: 1241 | CZ62: 3277 | DA62: 4094 | DB62: 769 | DC62: 1156 | DD62: 2541 | DE62: 566 | DF62: 3915 | DG62: 3107 | DH62: 2618 | DI62: 3699 | DJ62: 2749 | DK62: 3626 | DL62: 3900 | DM62: 995 | DN62: 504 | DO62: 1977 | DP62: 3380 | DQ62: 3583 | DR62: 2386 | DS62: 2750 | DT62: 4638 | DU62: 2858 | DV62: 27059 | DW62: 3066 | DX62: 3301 | DY62: 2569 | DZ62: 4905 | EA62: 2522 | EB62: 4419 | EC62: 2917 | ED62: 3563 | EE62: 101809 | EF62: 2068 | EG62: 3815 | EH62: 3425 | EI62: 5517 | EJ62: 488 | EK62: 2607 | EL62: 3058 | EM62: 354 | EN62: 3619 | EO62: 2754 | EP62: 2752 | EQ62: 2395 | ER62: 3303 | ES62: 3684 | ET62: 2502 | EU62: 375 | EV62: 2556 | EW62: 2932 | EX62: 3798 | EY62: 4781 | EZ62: 3424 | FA62: 3168 | FB62: 5096 | FC62: 700 | FD62: 2739 | FE62: 4025 | FF62: 3264 | FG62: 4138 | FH62: 4138 | FI62: 2741 | FJ62: 2968 | FK62: 2461 | FL62: 1160 | FM62: 3677 | FN62: 3436 | FO62: 2954 | FP62: 3356 | FQ62: 3610 | FR62: 2341 | FS62: 3058 | FT62: 3447 | FU62: 1901 | FV62: 2869 | FW62: 4459 | FX62: 52519 | FY62: 1464 | FZ62: 2594 | GA62: 630 | GB62: 17495 | GC62: 3187 | GD62: 3717 | GE62: 2876 | GF62: 3172 | GG62: 3747 | GH62: 2899 | GI62: 3790 | GJ62: 3427 | GK62: 1416 | GL62: 2966 | GM62: 4043 | GN62: 3974 | GO62: 2719 | GP62: 3098 | GQ62: 3375 | GR62: 3830 | GS62: 3379 | GT62: 3739 | GU62: 3449 | GV62: 16589 | GW62: 3721 | GX62: 3429 | GY62: 4370 | GZ62: 4519 | HA62: 3755 | HB62: 4946 | HC62: 4760 | HD62: 3456 | HE62: 4952 | HF62: 3991 | HG62: 3827 | HH62: 5028 | HI62: 841538 | HJ62: 3932.420561
A63: SAINT-LYPHARD | B63: 3975 | C63: 1706 | D63: 3150 | E63: 3481 | F63: 3757 | G63: 3223 | H63: 4036 | I63: 3213 | J63: 3462 | K63: 3342 | L63: 3387 | M63: 819 | N63: 1128 | O63: 2685 | P63: 3493 | Q63: 1979 | R63: 5127 | S63: 1336 | T63: 1474 | U63: 2841 | V63: 4274 | W63: 4537 | X63: 3812 | Y63: 3714 | Z63: 3813 | AA63: 3147 | AB63: 2206 | AC63: 3650 | AD63: 4214 | AE63: 4506 | AF63: 1498 | AG63: 1949 | AH63: 2801 | AI63: 1690 | AJ63: 4067 | AK63: 2715 | AL63: 4890 | AM63: 3688 | AN63: 560 | AO63: 3740 | AP63: 3899 | AQ63: 3614 | AR63: 3943 | AS63: 837 | AT63: 3153 | AU63: 2471 | AV63: 3881 | AW63: 3844 | AX63: 4320 | AY63: 2973 | AZ63: 4368 | BA63: 3325 | BB63: 1226 | BC63: 2587 | BD63: 1425 | BE63: 4347 | BF63: 3852 | BG63: 4406 | BH63: 1225 | BI63: 2118 | BJ63: 4635 | BL63: 3890 | BM63: 4912 | BN63: 3967 | BO63: 2555 | BP63: 1864 | BQ63: 14519 | BR63: 3021 | BS63: 948 | BT63: 2616 | BU63: 4799 | BV63: 612 | BW63: 3891 | BX63: 1828 | BY63: 4190 | BZ63: 3760 | CA63: 4117 | CB63: 3619 | CC63: 4887 | CD63: 4517 | CE63: 1828 | CF63: 3968 | CG63: 3114 | CH63: 4740 | CI63: 3910 | CJ63: 3629 | CK63: 4215 | CL63: 2580 | CM63: 2618 | CN63: 1837 | CO63: 2090 | CP63: 2343 | CQ63: 2184 | CR63: 1440 | CS63: 4058 | CT63: 2491 | CU63: 4134 | CV63: 3889 | CW63: 2900 | CX63: 1476 | CY63: 4233 | CZ63: 2302 | DA63: 5187 | DB63: 4179 | DC63: 4429 | DD63: 3684 | DE63: 4444 | DF63: 1111 | DG63: 1796 | DH63: 4310 | DI63: 1604 | DJ63: 3378 | DK63: 1671 | DL63: 2155 | DM63: 5168 | DN63: 4143 | DO63: 4655 | DP63: 2874 | DQ63: 2825 | DR63: 3550 | DS63: 3864 | DT63: 2571 | DU63: 4665 | DV63: 28716 | DW63: 3190 | DX63: 4957 | DY63: 4140 | DZ63: 594 | EA63: 4446 | EB63: 2254 | EC63: 4353 | ED63: 2392 | EE63: 103465 | EF63: 4766 | EG63: 868 | EH63: 4908 | EI63: 1406 | EJ63: 4814 | EK63: 3665 | EL63: 3472 | EM63: 4544 | EN63: 1566 | EO63: 2748 | EP63: 4623 | EQ63: 4221 | ER63: 4000 | ES63: 4813 | ET63: 4089 | EU63: 4131 | EV63: 2217 | EW63: 4524 | EX63: 4505 | EY63: 526 | EZ63: 5180 | FA63: 4881 | FB63: 920 | FC63: 4419 | FD63: 4498 | FE63: 4240 | FF63: 3142 | FG63: 4651 | FH63: 1716 | FI63: 4328 | FJ63: 3406 | FK63: 3625 | FL63: 4619 | FM63: 4344 | FN63: 3756 | FO63: 3333 | FP63: 4519 | FQ63: 2935 | FR63: 4089 | FS63: 4714 | FT63: 1975 | FU63: 4602 | FV63: 3401 | FW63: 2987 | FX63: 54175 | FY63: 4693 | FZ63: 3875 | GA63: 4159 | GB63: 19151 | GC63: 4905 | GD63: 3375 | GE63: 3574 | GF63: 4844 | GG63: 3965 | GH63: 4491 | GI63: 3484 | GJ63: 5463 | GK63: 4772 | GL63: 4622 | GM63: 5436 | GN63: 4560 | GO63: 3654 | GP63: 2310 | GQ63: 5337 | GR63: 5466 | GS63: 4086 | GT63: 4868 | GU63: 5284 | GV63: 19376 | GW63: 5377 | GX63: 2350 | GY63: 4707 | GZ63: 2940 | HA63: 5412 | HB63: 5623 | HC63: 5437 | HD63: 5113 | HE63: 5289 | HF63: 5120 | HG63: 3949 | HH63: 5295 | HI63: 968018 | HJ63: 4523.448598
A64: LA HAIE-FOUASSIERE | B64: 1519 | C64: 3618 | D64: 1791 | E64: 1546 | F64: 894 | G64: 1443 | H64: 612 | I64: 2243 | J64: 1141 | K64: 1385 | L64: 1423 | M64: 3958 | N64: 3905 | O64: 3285 | P64: 881 | Q64: 3611 | R64: 3845 | S64: 3636 | T64: 2834 | U64: 2520 | V64: 846 | W64: 1826 | X64: 1115 | Y64: 637 | Z64: 2286 | AA64: 1623 | AB64: 2521 | AC64: 1034 | AD64: 858 | AE64: 2197 | AF64: 2950 | AG64: 2913 | AH64: 1708 | AI64: 2930 | AJ64: 1037 | AK64: 1875 | AL64: 1097 | AM64: 1538 | AN64: 3650 | AO64: 1784 | AP64: 2256 | AQ64: 2136 | AR64: 1459 | AS64: 3793 | AT64: 1849 | AU64: 1886 | AV64: 641 | AW64: 1858 | AX64: 1371 | AY64: 3320 | AZ64: 1674 | BA64: 1965 | BB64: 3077 | BC64: 3182 | BD64: 4289 | BE64: 1961 | BF64: 1961 | BG64: 2097 | BH64: 4536 | BI64: 3302 | BJ64: 720 | BK64: 3890 | BM64: 2402 | BN64: 1650 | BO64: 3005 | BP64: 4920 | BQ64: 11769 | BR64: 2590 | BS64: 3455 | BT64: 3551 | BU64: 1572 | BV64: 3490 | BW64: 2507 | BX64: 2576 | BY64: 1653 | BZ64: 2374 | CA64: 1377 | CB64: 1833 | CC64: 2617 | CD64: 1979 | CE64: 3324 | CF64: 1651 | CG64: 2969 | CH64: 1101 | CI64: 1035 | CJ64: 2882 | CK64: 871 | CL64: 2472 | CM64: 2481 | CN64: 2564 | CO64: 2153 | CP64: 3160 | CQ64: 3223 | CR64: 3229 | CS64: 534 | CT64: 3983 | CU64: 472 | CV64: 1351 | CW64: 2640 | CX64: 4532 | CY64: 1195 | CZ64: 2663 | DA64: 3479 | DB64: 534 | DC64: 986 | DD64: 1923 | DE64: 553 | DF64: 3300 | DG64: 2493 | DH64: 2040 | DI64: 3085 | DJ64: 2131 | DK64: 3012 | DL64: 3282 | DM64: 1548 | DN64: 713 | DO64: 1930 | DP64: 2762 | DQ64: 2965 | DR64: 1769 | DS64: 2133 | DT64: 4024 | DU64: 2394 | DV64: 26445 | DW64: 2449 | DX64: 2687 | DY64: 1954 | DZ64: 4291 | EA64: 1908 | EB64: 3804 | EC64: 2303 | ED64: 2946 | EE64: 101195 | EF64: 2021 | EG64: 3201 | EH64: 2810 | EI64: 4903 | EJ64: 1030 | EK64: 1993 | EL64: 2440 | EM64: 816 | EN64: 3005 | EO64: 2140 | EP64: 2352 | EQ64: 2075 | ER64: 2689 | ES64: 3070 | ET64: 2182 | EU64: 469 | EV64: 1942 | EW64: 2318 | EX64: 3184 | EY64: 4167 | EZ64: 2910 | FA64: 2553 | FB64: 4482 | FC64: 924 | FD64: 2532 | FE64: 3411 | FF64: 2649 | FG64: 3523 | FH64: 3524 | FI64: 2421 | FJ64: 2353 | FK64: 1844 | FL64: 1189 | FM64: 3063 | FN64: 2822 | FO64: 2340 | FP64: 2741 | FQ64: 2991 | FR64: 2020 | FS64: 2444 | FT64: 2832 | FU64: 1477 | FV64: 2549 | FW64: 3842 | FX64: 51905 | FY64: 1390 | FZ64: 2273 | GA64: 268 | GB64: 16881 | GC64: 2635 | GD64: 3102 | GE64: 2262 | GF64: 2574 | GG64: 3133 | GH64: 2285 | GI64: 3176 | GJ64: 3193 | GK64: 1342 | GL64: 2352 | GM64: 3429 | GN64: 3359 | GO64: 2101 | GP64: 2484 | GQ64: 3066 | GR64: 3216 | GS64: 2765 | GT64: 3125 | GU64: 3014 | GV64: 16521 | GW64: 3106 | GX64: 2815 | GY64: 3756 | GZ64: 3905 | HA64: 3141 | HB64: 4332 | HC64: 4146 | HD64: 2842 | HE64: 4338 | HF64: 3376 | HG64: 3213 | HH64: 4414 | HI64: 736059 | HJ64: 3439.528037
A65: LEGE | B65: 2661 | C65: 4165 | D65: 2821 | E65: 2576 | F65: 2401 | G65: 3140 | H65: 2372 | I65: 3377 | J65: 2814 | K65: 2415 | L65: 3096 | M65: 4519 | N65: 4466 | O65: 2844 | P65: 2554 | Q65: 3309 | R65: 5518 | S65: 4197 | T65: 4242 | U65: 4217 | V65: 3149 | W65: 1283 | X65: 2792 | Y65: 2437 | Z65: 3959 | AA65: 3320 | AB65: 3930 | AC65: 1955 | AD65: 3069 | AE65: 3870 | AF65: 3779 | AG65: 4293 | AH65: 3065 | AI65: 3971 | AJ65: 2897 | AK65: 3284 | AL65: 2387 | AM65: 3211 | AN65: 5059 | AO65: 2275 | AP65: 1242 | AQ65: 1946 | AR65: 1888 | AS65: 4354 | AT65: 3547 | AU65: 3294 | AV65: 2757 | AW65: 2888 | AX65: 3159 | AY65: 5017 | AZ65: 1659 | BA65: 3662 | BB65: 4485 | BC65: 4591 | BD65: 4850 | BE65: 3634 | BF65: 2844 | BG65: 3770 | BH65: 5097 | BI65: 2910 | BJ65: 2449 | BK65: 4912 | BL65: 2402 | BN65: 3257 | BO65: 3150 | BP65: 5450 | BQ65: 11803 | BR65: 2261 | BS65: 4572 | BT65: 3125 | BU65: 1104 | BV65: 4879 | BW65: 4114 | BX65: 3965 | BY65: 3260 | BZ65: 3981 | CA65: 1197 | CB65: 2255 | CC65: 4224 | CD65: 3586 | CE65: 4714 | CF65: 3259 | CG65: 1952 | CH65: 2620 | CI65: 1606 | CJ65: 4489 | CK65: 1729 | CL65: 3915 | CM65: 3870 | CN65: 3953 | CO65: 3542 | CP65: 3706 | CQ65: 4613 | CR65: 4158 | CS65: 2703 | CT65: 5373 | CU65: 2589 | CV65: 2959 | CW65: 3309 | CX65: 5062 | CY65: 1246 | CZ65: 4053 | DA65: 5087 | DB65: 1869 | DC65: 3155 | DD65: 2145 | DE65: 2132 | DF65: 4520 | DG65: 3882 | DH65: 3647 | DI65: 4371 | DJ65: 2629 | DK65: 4401 | DL65: 3665 | DM65: 2769 | DN65: 2760 | DO65: 615 | DP65: 2668 | DQ65: 2512 | DR65: 2496 | DS65: 1909 | DT65: 5414 | DU65: 4002 | DV65: 28053 | DW65: 2386 | DX65: 4294 | DY65: 3562 | DZ65: 4821 | EA65: 3515 | EB65: 5194 | EC65: 3910 | ED65: 3527 | EE65: 102802 | EF65: 894 | EG65: 4590 | EH65: 4418 | EI65: 5432 | EJ65: 1946 | EK65: 3600 | EL65: 2081 | EM65: 2059 | EN65: 4394 | EO65: 3748 | EP65: 3960 | EQ65: 1529 | ER65: 4296 | ES65: 4677 | ET65: 847 | EU65: 2341 | EV65: 3331 | EW65: 3925 | EX65: 4791 | EY65: 5129 | EZ65: 4517 | FA65: 4161 | FB65: 5011 | FC65: 1931 | FD65: 452 | FE65: 5018 | FF65: 4257 | FG65: 5131 | FH65: 4913 | FI65: 780 | FJ65: 3961 | FK65: 2264 | FL65: 3417 | FM65: 4670 | FN65: 4429 | FO65: 3947 | FP65: 4349 | FQ65: 2273 | FR65: 1129 | FS65: 4051 | FT65: 4222 | FU65: 3501 | FV65: 1532 | FW65: 3415 | FX65: 53512 | FY65: 3593 | FZ65: 1461 | GA65: 2145 | GB65: 18488 | GC65: 4242 | GD65: 4710 | GE65: 3869 | GF65: 4181 | GG65: 4740 | GH65: 3892 | GI65: 4783 | GJ65: 4800 | GK65: 3606 | GL65: 3959 | GM65: 5037 | GN65: 4967 | GO65: 2861 | GP65: 3874 | GQ65: 4674 | GR65: 4823 | GS65: 4372 | GT65: 4732 | GU65: 4621 | GV65: 16319 | GW65: 4714 | GX65: 4204 | GY65: 5364 | GZ65: 5513 | HA65: 4749 | HB65: 5939 | HC65: 5753 | HD65: 4450 | HE65: 5945 | HF65: 4984 | HG65: 4820 | HH65: 6022 | HI65: 971398 | HJ65: 4539.242991
A66: SAINT-MARS-DU-DESERT | B66: 1921 | C66: 3695 | D66: 1903 | E66: 2021 | F66: 1386 | G66: 1520 | H66: 1760 | I66: 2320 | J66: 957 | K66: 1881 | L66: 1422 | M66: 4035 | N66: 3982 | O66: 3781 | P66: 1118 | Q66: 3688 | R66: 2755 | S66: 3713 | T66: 2911 | U66: 2334 | V66: 1903 | W66: 2404 | X66: 1021 | Y66: 1343 | Z66: 1149 | AA66: 1537 | AB66: 2598 | AC66: 1681 | AD66: 1660 | AE66: 1327 | AF66: 3027 | AG66: 2990 | AH66: 1785 | AI66: 3007 | AJ66: 1377 | AK66: 1952 | AL66: 2519 | AM66: 993 | AN66: 3727 | AO66: 2280 | AP66: 2834 | AQ66: 2633 | AR66: 2046 | AS66: 3870 | AT66: 1712 | AU66: 1963 | AV66: 1510 | AW66: 2354 | AX66: 1150 | AY66: 3011 | AZ66: 2251 | BA66: 1651 | BB66: 3154 | BC66: 3040 | BD66: 4366 | BE66: 429 | BF66: 2457 | BG66: 1135 | BH66: 4613 | BI66: 3799 | BJ66: 2264 | BK66: 3967 | BL66: 1650 | BM66: 3257 | BO66: 3491 | BP66: 4985 | BQ66: 11868 | BR66: 3075 | BS66: 3520 | BT66: 4037 | BU66: 2838 | BV66: 3554 | BW66: 2031 | BX66: 2640 | BY66: 561 | BZ66: 1560 | CA66: 2156 | CB66: 2323 | CC66: 1784 | CD66: 796 | CE66: 3389 | CF66: 520 | CG66: 3461 | CH66: 2514 | CI66: 1949 | CJ66: 2646 | CK66: 2253 | CL66: 2306 | CM66: 2545 | CN66: 2628 | CO66: 2217 | CP66: 3645 | CQ66: 3189 | CR66: 3293 | CS66: 1832 | CT66: 3739 | CU66: 1908 | CV66: 704 | CW66: 3126 | CX66: 4597 | CY66: 2271 | CZ66: 2665 | DA66: 2247 | DB66: 2217 | DC66: 1925 | DD66: 2409 | DE66: 2218 | DF66: 3365 | DG66: 2557 | DH66: 978 | DI66: 3150 | DJ66: 2617 | DK66: 3076 | DL66: 3768 | DM66: 2942 | DN66: 1917 | DO66: 2693 | DP66: 3248 | DQ66: 3451 | DR66: 2255 | DS66: 2619 | DT66: 3693 | DU66: 1625 | DV66: 26064 | DW66: 2935 | DX66: 1647 | DY66: 823 | DZ66: 4356 | EA66: 725 | EB66: 3560 | EC66: 1172 | ED66: 3432 | EE66: 100814 | EF66: 2784 | EG66: 3265 | EH66: 1363 | EI66: 4967 | EJ66: 2637 | EK66: 1439 | EL66: 2926 | EM66: 2424 | EN66: 3069 | EO66: 2157 | EP66: 1520 | EQ66: 2683 | ER66: 1843 | ES66: 1939 | ET66: 2790 | EU66: 1905 | EV66: 2006 | EW66: 793 | EX66: 2136 | EY66: 4232 | EZ66: 2219 | FA66: 1041 | FB66: 4547 | FC66: 2457 | FD66: 3140 | FE66: 3072 | FF66: 2395 | FG66: 2848 | FH66: 3589 | FI66: 3029 | FJ66: 2099 | FK66: 2330 | FL66: 2379 | FM66: 2411 | FN66: 2336 | FO66: 1961 | FP66: 1610 | FQ66: 3477 | FR66: 2629 | FS66: 1160 | FT66: 2897 | FU66: 1569 | FV66: 3157 | FW66: 4327 | FX66: 51524 | FY66: 1802 | FZ66: 2882 | GA66: 1933 | GB66: 16500 | GC66: 1996 | GD66: 2753 | GE66: 1814 | GF66: 1821 | GG66: 2753 | GH66: 1003 | GI66: 2940 | GJ66: 2360 | GK66: 1868 | GL66: 1637 | GM66: 2262 | GN66: 2426 | GO66: 2587 | GP66: 2549 | GQ66: 2234 | GR66: 2048 | GS66: 2250 | GT66: 1837 | GU66: 2284 | GV66: 17414 | GW66: 2321 | GX66: 2880 | GY66: 3081 | GZ66: 3561 | HA66: 1895 | HB66: 3201 | HC66: 3015 | HD66: 1541 | HE66: 3260 | HF66: 2144 | HG66: 2977 | HH66: 3350 | HI66: 737873 | HJ66: 3448.004673
A67: SAINT-PERE-EN-RETZ | B67: 2748 | C67: 1808 | D67: 2309 | E67: 2062 | F67: 2604 | G67: 2628 | H67: 2653 | I67: 2865 | J67: 2867 | K67: 1785 | L67: 2793 | M67: 2163 | N67: 2110 | O67: 910 | P67: 2757 | Q67: 910 | R67: 5091 | S67: 1841 | T67: 2332 | U67: 3100 | V67: 3332 | W67: 2650 | X67: 2995 | Y67: 2640 | Z67: 3569 | AA67: 2808 | AB67: 2269 | AC67: 2267 | AD67: 3272 | AE67: 3912 | AF67: 1422 | AG67: 1937 | AH67: 2553 | AI67: 1614 | AJ67: 3100 | AK67: 2772 | AL67: 3848 | AM67: 3094 | AN67: 2853 | AO67: 1725 | AP67: 2119 | AQ67: 1502 | AR67: 2369 | AS67: 1998 | AT67: 3035 | AU67: 2775 | AV67: 2938 | AW67: 1586 | AX67: 3362 | AY67: 3653 | AZ67: 2803 | BA67: 3150 | BB67: 2788 | BC67: 3134 | BD67: 2494 | BE67: 3753 | BF67: 1594 | BG67: 3812 | BH67: 2740 | BI67: 520 | BJ67: 3623 | BK67: 2555 | BL67: 3005 | BM67: 3150 | BN67: 3491 | BP67: 2917 | BQ67: 13547 | BR67: 879 | BS67: 2040 | BT67: 1052 | BU67: 3488 | BV67: 2513 | BW67: 3713 | BX67: 2298 | BY67: 3467 | BZ67: 3580 | CA67: 2806 | CB67: 2085 | CC67: 4374 | CD67: 3794 | CE67: 2876 | CF67: 3455 | CG67: 1324 | CH67: 3823 | CI67: 2599 | CJ67: 4088 | CK67: 2903 | CL67: 2627 | CM67: 2720 | CN67: 1794 | CO67: 2230 | CP67: 676 | CQ67: 3007 | CR67: 1625 | CS67: 3141 | CT67: 3767 | CU67: 3217 | CV67: 3166 | CW67: 649 | CX67: 2529 | CY67: 2921 | CZ67: 2400 | DA67: 5136 | DB67: 2868 | DC67: 3512 | DD67: 1572 | DE67: 3168 | DF67: 1988 | DG67: 1996 | DH67: 3797 | DI67: 1839 | DJ67: 1001 | DK67: 2476 | DL67: 654 | DM67: 4251 | DN67: 3226 | DO67: 3218 | DP67: 498 | DQ67: 985 | DR67: 1593 | DS67: 1752 | DT67: 3808 | DU67: 4151 | DV67: 28202 | DW67: 1100 | DX67: 4444 | DY67: 3758 | DZ67: 2288 | EA67: 3723 | EB67: 3468 | EC67: 4106 | ED67: 401 | EE67: 102952 | EF67: 2964 | EG67: 2259 | EH67: 4567 | EI67: 2900 | EJ67: 3502 | EK67: 3444 | EL67: 1360 | EM67: 3233 | EN67: 2556 | EO67: 2888 | EP67: 4110 | EQ67: 2173 | ER67: 3895 | ES67: 4722 | ET67: 2288 | EU67: 3213 | EV67: 2356 | EW67: 4121 | EX67: 4390 | EY67: 2597 | EZ67: 4667 | FA67: 4368 | FB67: 2479 | FC67: 3107 | FD67: 2696 | FE67: 4617 | FF67: 3307 | FG67: 4730 | FH67: 3048 | FI67: 2526 | FJ67: 3453 | FK67: 1720 | FL67: 3702 | FM67: 4269 | FN67: 3971 | FO67: 3380 | FP67: 4414 | FQ67: 1145 | FR67: 2287 | FS67: 4201 | FT67: 2616 | FU67: 3709 | FV67: 1603 | FW67: 1397 | FX67: 53662 | FY67: 3800 | FZ67: 2064 | GA67: 2978 | GB67: 18638 | GC67: 4392 | GD67: 3949 | GE67: 3468 | GF67: 4331 | GG67: 4339 | GH67: 4088 | GI67: 4059 | GJ67: 4950 | GK67: 3855 | GL67: 4109 | GM67: 5186 | GN67: 4566 | GO67: 1277 | GP67: 2372 | GQ67: 4823 | GR67: 4973 | GS67: 3971 | GT67: 4763 | GU67: 4771 | GV67: 18064 | GW67: 4864 | GX67: 2265 | GY67: 4963 | GZ67: 4025 | HA67: 4898 | HB67: 5629 | HC67: 5443 | HD67: 4599 | HE67: 5544 | HF67: 5015 | HG67: 4419 | HH67: 5621 | HI67: =SUM(B67:HH67) -> 864621 | HJ67: =AVERAGE(B67:HH67) -> 4040.285047
A68: LE CROISIC | B68: 4874 | C68: 2172 | D68: 4049 | E68: 4380 | F68: 4656 | G68: 4122 | H68: 4935 | I68: 4112 | J68: 4361 | K68: 4241 | L68: 4286 | M68: 1278 | N68: 1391 | O68: 3204 | P68: 4392 | Q68: 2498 | R68: 6036 | S68: 1879 | T68: 2928 | U68: 3695 | V68: 5173 | W68: 5057 | X68: 4711 | Y68: 4613 | Z68: 4668 | AA68: 4046 | AB68: 2865 | AC68: 4549 | AD68: 5113 | AE68: 5405 | AF68: 2018 | AG68: 2601 | AH68: 3700 | AI68: 2210 | AJ68: 4966 | AK68: 3614 | AL68: 5789 | AM68: 4587 | AN68: 2161 | AO68: 4357 | AP68: 4418 | AQ68: 4134 | AR68: 4842 | AS68: 1728 | AT68: 4007 | AU68: 3370 | AV68: 4780 | AW68: 4363 | AX68: 5219 | AY68: 4249 | AZ68: 5267 | BA68: 4224 | BB68: 3007 | BC68: 3730 | BD68: 1129 | BE68: 5246 | BF68: 4372 | BG68: 5305 | BH68: 1695 | BI68: 2638 | BJ68: 5534 | BK68: 1864 | BL68: 4920 | BM68: 5450 | BN68: 4985 | BO68: 2917 | BQ68: 15507 | BR68: 3548 | BS68: 2779 | BT68: 3144 | BU68: 5788 | BV68: 2443 | BW68: 4723 | BX68: 3146 | BY68: 5179 | BZ68: 4656 | CA68: 5106 | CB68: 4607 | CC68: 5875 | CD68: 5505 | CE68: 3659 | CF68: 4956 | CG68: 3642 | CH68: 5728 | CI68: 4899 | CJ68: 5052 | CK68: 5203 | CL68: 3475 | CM68: 3569 | CN68: 2643 | CO68: 3079 | CP68: 2871 | CQ68: 3856 | CR68: 2469 | CS68: 5047 | CT68: 4322 | CU68: 5122 | CV68: 4877 | CW68: 3428 | CX68: 551 | CY68: 5221 | CZ68: 3248 | DA68: 6119 | DB68: 5167 | DC68: 5418 | DD68: 4212 | DE68: 5432 | DF68: 2836 | DG68: 2845 | DH68: 5298 | DI68: 2687 | DJ68: 3906 | DK68: 3325 | DL68: 2683 | DM68: 6157 | DN68: 5131 | DO68: 5548 | DP68: 3402 | DQ68: 3353 | DR68: 4497 | DS68: 4392 | DT68: 4402 | DU68: 5653 | DV68: 29704 | DW68: 3718 | DX68: 5945 | DY68: 5036 | DZ68: 1783 | EA68: 5434 | EB68: 4085 | EC68: 5249 | ED68: 2920 | EE68: 104454 | EF68: 5294 | EG68: 2700 | EH68: 5803 | EI68: 2126 | EJ68: 5802 | EK68: 4561 | EL68: 4000 | EM68: 5533 | EN68: 3397 | EO68: 3736 | EP68: 5611 | EQ68: 4748 | ER68: 4896 | ES68: 5709 | ET68: 4617 | EU68: 5119 | EV68: 3205 | EW68: 5419 | EX68: 5401 | EY68: 2092 | EZ68: 6168 | FA68: 5834 | FB68: 1974 | FC68: 5407 | FD68: 5026 | FE68: 5663 | FF68: 4156 | FG68: 5740 | FH68: 3547 | FI68: 4856 | FJ68: 4302 | FK68: 4360 | FL68: 5607 | FM68: 5279 | FN68: 4820 | FO68: 4229 | FP68: 5414 | FQ68: 3463 | FR68: 4616 | FS68: 5703 | FT68: 3465 | FU68: 5590 | FV68: 3929 | FW68: 3515 | FX68: 55164 | FY68: 5681 | FZ68: 4403 | GA68: 5147 | GB68: 20139 | GC68: 5893 | GD68: 4798 | GE68: 4469 | GF68: 5832 | GG68: 5387 | GH68: 5386 | GI68: 4907 | GJ68: 6452 | GK68: 5761 | GL68: 5611 | GM68: 6328 | GN68: 5576 | GO68: 4182 | GP68: 3220 | GQ68: 6325 | GR68: 6361 | GS68: 4981 | GT68: 5764 | GU68: 6272 | GV68: 20364 | GW68: 6365 | GX68: 3114 | GY68: 5973 | GZ68: 4771 | HA68: 6362 | HB68: 6639 | HC68: 6453 | HD68: 6029 | HE68: 6554 | HF68: 6016 | HG68: 5372 | HH68: 6631 | HI68: 1165913 | HJ68: 5448.191589
A69: INDRE | B69: 12222 | C69: 14248 | D69: 12455 | E69: 12136 | F69: 11984 | G69: 12072 | H69: 11981 | I69: 12872 | J69: 11601 | K69: 11975 | L69: 11974 | M69: 14587 | N69: 14534 | O69: 13875 | P69: 11717 | Q69: 14240 | R69: 12631 | S69: 14266 | T69: 13463 | U69: 13149 | V69: 11485 | W69: 12183 | X69: 11895 | Y69: 11946 | Z69: 12227 | AA69: 12252 | AB69: 13150 | AC69: 11567 | AD69: 12153 | AE69: 11051 | AF69: 13580 | AG69: 13542 | AH69: 12337 | AI69: 13559 | AJ69: 12295 | AK69: 12504 | AL69: 11866 | AM69: 11998 | AN69: 14279 | AO69: 12374 | AP69: 12613 | AQ69: 12726 | AR69: 11813 | AS69: 14422 | AT69: 12479 | AU69: 12515 | AV69: 12072 | AW69: 12448 | AX69: 12298 | AY69: 13949 | AZ69: 12031 | BA69: 12594 | BB69: 13706 | BC69: 13812 | BD69: 14918 | BE69: 11625 | BF69: 12551 | BG69: 11029 | BH69: 15165 | BI69: 13892 | BJ69: 11836 | BK69: 14519 | BL69: 11769 | BM69: 11803 | BN69: 11868 | BO69: 13547 | BP69: 15507 | BR69: 13106 | BS69: 14100 | BT69: 14068 | BU69: 11082 | BV69: 14134 | BW69: 13157 | BX69: 13220 | BY69: 11829 | BZ69: 12686 | CA69: 11446 | CB69: 12183 | CC69: 10823 | CD69: 11452 | CE69: 13969 | CF69: 12167 | CG69: 13301 | CH69: 11649 | CI69: 11481 | CJ69: 13526 | CK69: 11268 | CL69: 13116 | CM69: 13125 | CN69: 13208 | CO69: 12797 | CP69: 13677 | CQ69: 13868 | CR69: 13873 | CS69: 11690 | CT69: 14628 | CU69: 11667 | CV69: 12013 | CW69: 13157 | CX69: 15177 | CY69: 11264 | CZ69: 13308 | DA69: 12497 | DB69: 11572 | DC69: 11685 | DD69: 12440 | DE69: 11671 | DF69: 13945 | DG69: 13137 | DH69: 11082 | DI69: 13729 | DJ69: 12648 | DK69: 13656 | DL69: 13799 | DM69: 11658 | DN69: 11417 | DO69: 11899 | DP69: 13279 | DQ69: 13482 | DR69: 12286 | DS69: 12650 | DT69: 14669 | DU69: 11174 | DV69: 18611 | DW69: 12966 | DX69: 11659 | DY69: 11785 | DZ69: 14936 | EA69: 11340 | EB69: 14449 | EC69: 12181 | ED69: 13463 | EE69: 98477 | EF69: 12091 | EG69: 13845 | EH69: 11783 | EI69: 15547 | EJ69: 11302 | EK69: 12588 | EL69: 12957 | EM69: 11462 | EN69: 13649 | EO69: 12785 | EP69: 11258 | EQ69: 12408 | ER69: 12817 | ES69: 12664 | ET69: 12515 | EU69: 11883 | EV69: 12586 | EW69: 11637 | EX69: 12854 | EY69: 14812 | EZ69: 11170 | FA69: 11583 | FB69: 15126 | FC69: 11269 | FD69: 12187 | FE69: 13638 | FF69: 13294 | FG69: 13270 | FH69: 14168 | FI69: 12314 | FJ69: 12998 | FK69: 12361 | FL69: 11348 | FM69: 13129 | FN69: 13462 | FO69: 12984 | FP69: 12328 | FQ69: 13508 | FR69: 12353 | FS69: 11417 | FT69: 13477 | FU69: 12253 | FV69: 12882 | FW69: 14358 | FX69: 51614 | FY69: 11964 | FZ69: 12606 | GA69: 11847 | GB69: 9046 | GC69: 11179 | GD69: 13747 | GE69: 12906 | GF69: 11488 | GG69: 13527 | GH69: 11847 | GI69: 13820 | GJ69: 10575 | GK69: 11916 | GL69: 11325 | GM69: 12063 | GN69: 13022 | GO69: 12618 | GP69: 13129 | GQ69: 10832 | GR69: 11850 | GS69: 13195 | GT69: 12257 | GU69: 10776 | GV69: 7254 | GW69: 11438 | GX69: 13459 | GY69: 13111 | GZ69: 14550 | HA69: 12114 | HB69: 11989 | HC69: 12419 | HD69: 11815 | HE69: 12755 | HF69: 12232 | HG69: 13861 | HH69: 13039 | HI69: 2836694 | HJ69: 13255.57944
A70: ARTHON-EN-RETZ | B70: 2333 | C70: 2274 | D70: 1893 | E70: 1646 | F70: 2188 | G70: 2213 | H70: 2238 | I70: 2449 | J70: 2451 | K70: 1369 | L70: 2377 | M70: 2628 | N70: 2575 | O70: 967 | P70: 2341 | Q70: 1418 | R70: 4676 | S70: 2306 | T70: 2798 | U70: 3290 | V70: 2916 | W70: 1761 | X70: 2579 | Y70: 2224 | Z70: 3153 | AA70: 2393 | AB70: 2735 | AC70: 1852 | AD70: 2856 | AE70: 3496 | AF70: 1888 | AG70: 2402 | AH70: 2137 | AI70: 2080 | AJ70: 2684 | AK70: 2356 | AL70: 3432 | AM70: 2678 | AN70: 3318 | AO70: 1070 | AP70: 1230 | AQ70: 775 | AR70: 1879 | AS70: 2463 | AT70: 2619 | AU70: 2367 | AV70: 2523 | AW70: 1383 | AX70: 2946 | AY70: 4089 | AZ70: 2098 | BA70: 2735 | BB70: 3253 | BC70: 3600 | BD70: 2959 | BE70: 3337 | BF70: 1353 | BG70: 3396 | BH70: 3206 | BI70: 1019 | BJ70: 3207 | BK70: 3021 | BL70: 2590 | BM70: 2261 | BN70: 3075 | BO70: 879 | BP70: 3548 | BQ70: 13106 | BS70: 2670 | BT70: 1222 | BU70: 2918 | BV70: 3143 | BW70: 3243 | BX70: 2928 | BY70: 2997 | BZ70: 3110 | CA70: 2226 | CB70: 1553 | CC70: 3904 | CD70: 3324 | CE70: 3506 | CF70: 2985 | CG70: 550 | CH70: 3353 | CI70: 2129 | CJ70: 3618 | CK70: 2434 | CL70: 2948 | CM70: 2903 | CN70: 2424 | CO70: 2576 | CP70: 1444 | CQ70: 3637 | CR70: 2255 | CS70: 2671 | CT70: 4397 | CU70: 2747 | CV70: 2696 | CW70: 1024 | CX70: 3159 | CY70: 2467 | CZ70: 3030 | DA70: 4666 | DB70: 2398 | DC70: 3042 | DD70: 832 | DE70: 2698 | DF70: 2618 | DG70: 2626 | DH70: 3327 | DI70: 2469 | DJ70: 757 | DK70: 3106 | DL70: 1403 | DM70: 3781 | DN70: 2756 | DO70: 2339 | DP70: 407 | DQ70: 636 | DR70: 1213 | DS70: 1012 | DT70: 4438 | DU70: 3681 | DV70: 27732 | DW70: 221 | DX70: 3974 | DY70: 3288 | DZ70: 2918 | EA70: 3253 | EB70: 4098 | EC70: 3636 | ED70: 1266 | EE70: 102482 | EF70: 2085 | EG70: 2889 | EH70: 4098 | EI70: 3530 | EJ70: 3032 | EK70: 2974 | EL70: 536 | EM70: 2763 | EN70: 3186 | EO70: 2877 | EP70: 3640 | EQ70: 1294 | ER70: 3425 | ES70: 4252 | ET70: 1408 | EU70: 2743 | EV70: 2365 | EW70: 3651 | EX70: 3920 | EY70: 3227 | EZ70: 4197 | FA70: 3898 | FB70: 3109 | FC70: 2637 | FD70: 1817 | FE70: 4147 | FF70: 3386 | FG70: 4260 | FH70: 3678 | FI70: 1647 | FJ70: 3090 | FK70: 980 | FL70: 3232 | FM70: 3799 | FN70: 3558 | FO70: 3076 | FP70: 3944 | FQ70: 540 | FR70: 1408 | FS70: 3731 | FT70: 3246 | FU70: 3239 | FV70: 724 | FW70: 1513 | FX70: 53192 | FY70: 3330 | FZ70: 1185 | GA70: 2508 | GB70: 18168 | GC70: 3922 | GD70: 3839 | GE70: 2998 | GF70: 3861 | GG70: 3869 | GH70: 3618 | GI70: 3912 | GJ70: 4480 | GK70: 3385 | GL70: 3639 | GM70: 4716 | GN70: 4096 | GO70: 1168 | GP70: 2907 | GQ70: 4353 | GR70: 4503 | GS70: 3501 | GT70: 4293 | GU70: 4301 | GV70: 17594 | GW70: 4394 | GX70: 2895 | GY70: 4493 | GZ70: 4655 | HA70: 4428 | HB70: 5159 | HC70: 4973 | HD70: 4129 | HE70: 5074 | HF70: 4545 | HG70: 3949 | HH70: 5151 | HI70: 820555 | HJ70: 3834.369159
A71: SAINT-JOACHIM | B71: 3409 | C71: 1624 | D71: 2585 | E71: 2915 | F71: 3191 | G71: 2657 | H71: 3470 | I71: 2647 | J71: 2896 | K71: 2776 | L71: 2822 | M71: 1705 | N71: 1910 | O71: 2327 | P71: 2927 | Q71: 1621 | R71: 4571 | S71: 1642 | T71: 861 | U71: 2230 | V71: 3709 | W71: 3991 | X71: 3246 | Y71: 3148 | Z71: 3203 | AA71: 2581 | AB71: 1400 | AC71: 3084 | AD71: 3648 | AE71: 3941 | AF71: 956 | AG71: 1005 | AH71: 2235 | AI71: 774 | AJ71: 3501 | AK71: 2149 | AL71: 4324 | AM71: 3123 | AN71: 809 | AO71: 3174 | AP71: 3541 | AQ71: 3257 | AR71: 3377 | AS71: 1604 | AT71: 2542 | AU71: 1905 | AV71: 3315 | AW71: 3249 | AX71: 3754 | AY71: 2698 | AZ71: 3802 | BA71: 2759 | BB71: 1002 | BC71: 2179 | BD71: 2311 | BE71: 3782 | BF71: 3352 | BG71: 3841 | BH71: 1988 | BI71: 1760 | BJ71: 4069 | BK71: 948 | BL71: 3455 | BM71: 4572 | BN71: 3520 | BO71: 2040 | BP71: 2779 | BQ71: 14100 | BR71: 2670 | BT71: 2233 | BU71: 4213 | BV71: 473 | BW71: 3149 | BX71: 1422 | BY71: 3604 | BZ71: 3081 | CA71: 3531 | CB71: 3033 | CC71: 4301 | CD71: 3930 | CE71: 1381 | CF71: 3382 | CG71: 2731 | CH71: 4154 | CI71: 3324 | CJ71: 3277 | CK71: 3629 | CL71: 1901 | CM71: 1994 | CN71: 1068 | CO71: 1504 | CP71: 1960 | CQ71: 1703 | CR71: 491 | CS71: 3472 | CT71: 2243 | CU71: 3547 | CV71: 3303 | CW71: 2517 | CX71: 2399 | CY71: 3646 | CZ71: 1674 | DA71: 4544 | DB71: 3593 | DC71: 3843 | DD71: 3118 | DE71: 3858 | DF71: 266 | DG71: 1270 | DH71: 3724 | DI71: 672 | DJ71: 2995 | DK71: 1166 | DL71: 1772 | DM71: 4582 | DN71: 3557 | DO71: 4068 | DP71: 2491 | DQ71: 2442 | DR71: 2964 | DS71: 3328 | DT71: 2323 | DU71: 4078 | DV71: 28129 | DW71: 2806 | DX71: 4371 | DY71: 3461 | DZ71: 1412 | EA71: 3859 | EB71: 2006 | EC71: 3674 | ED71: 2009 | EE71: 102879 | EF71: 4159 | EG71: 538 | EH71: 4229 | EI71: 2223 | EJ71: 4227 | EK71: 2986 | EL71: 3088 | EM71: 3958 | EN71: 1062 | EO71: 2162 | EP71: 4036 | EQ71: 3837 | ER71: 3321 | ES71: 4134 | ET71: 3706 | EU71: 3544 | EV71: 1630 | EW71: 3845 | EX71: 3826 | EY71: 1172 | EZ71: 4594 | FA71: 4259 | FB71: 1727 | FC71: 3833 | FD71: 4114 | FE71: 3888 | FF71: 2581 | FG71: 4165 | FH71: 1468 | FI71: 3945 | FJ71: 2727 | FK71: 3039 | FL71: 4033 | FM71: 3705 | FN71: 3245 | FO71: 2654 | FP71: 3840 | FQ71: 2552 | FR71: 3705 | FS71: 4128 | FT71: 1470 | FU71: 4015 | FV71: 3018 | FW71: 2604 | FX71: 53589 | FY71: 4107 | FZ71: 3491 | GA71: 3573 | GB71: 18565 | GC71: 4319 | GD71: 3023 | GE71: 2895 | GF71: 4258 | GG71: 3612 | GH71: 3812 | GI71: 3132 | GJ71: 4877 | GK71: 4186 | GL71: 4036 | GM71: 4753 | GN71: 4001 | GO71: 3270 | GP71: 1646 | GQ71: 4750 | GR71: 4787 | GS71: 3407 | GT71: 4189 | GU71: 4698 | GV71: 18789 | GW71: 4791 | GX71: 1539 | GY71: 4355 | GZ71: 2692 | HA71: 4788 | HB71: 5064 | HC71: 4878 | HD71: 4454 | HE71: 4936 | HF71: 4441 | HG71: 3597 | HH71: 4943 | HI71: 869723 | HJ71: 4064.126168
A72: LA PLAINE-SUR-MER | B72: 3294 | C72: 1870 | D72: 2855 | E72: 2608 | F72: 3150 | G72: 3174 | H72: 3199 | I72: 3411 | J72: 3413 | K72: 2331 | L72: 3339 | M72: 2224 | N72: 2171 | O72: 773 | P72: 3303 | Q72: 1013 | R72: 5501 | S72: 1902 | T72: 2393 | U72: 3161 | V72: 3878 | W72: 2732 | X72: 3541 | Y72: 3186 | Z72: 4133 | AA72: 3354 | AB72: 2331 | AC72: 2814 | AD72: 3818 | AE72: 4458 | AF72: 1483 | AG72: 1998 | AH72: 3166 | AI72: 1676 | AJ72: 3646 | AK72: 3079 | AL72: 4394 | AM72: 3640 | AN72: 2914 | AO72: 2032 | AP72: 2093 | AQ72: 1809 | AR72: 2841 | AS72: 2059 | AT72: 3473 | AU72: 2836 | AV72: 3485 | AW72: 2345 | AX72: 3908 | AY72: 3714 | AZ72: 3026 | BA72: 3690 | BB72: 2849 | BC72: 3195 | BD72: 2555 | BE72: 4299 | BF72: 2315 | BG72: 4358 | BH72: 2802 | BI72: 614 | BJ72: 4169 | BK72: 2616 | BL72: 3551 | BM72: 3125 | BN72: 4037 | BO72: 1052 | BP72: 3144 | BQ72: 14068 | BR72: 1222 | BS72: 2233 | BU72: 3779 | BV72: 2717 | BW72: 4079 | BX72: 2502 | BY72: 4029 | BZ72: 4011 | CA72: 3086 | CB72: 2584 | CC72: 4935 | CD72: 4355 | CE72: 3080 | CF72: 4016 | CG72: 1294 | CH72: 4384 | CI72: 3203 | CJ72: 4408 | CK72: 3465 | CL72: 2831 | CM72: 2924 | CN72: 1998 | CO72: 2434 | CP72: 1549 | CQ72: 3211 | CR72: 1829 | CS72: 3703 | CT72: 3971 | CU72: 3778 | CV72: 3727 | CW72: 1697 | CX72: 2733 | CY72: 3328 | CZ72: 2604 | DA72: 5474 | DB72: 3429 | DC72: 4073 | DD72: 1864 | DE72: 3730 | DF72: 2192 | DG72: 2200 | DH72: 4358 | DI72: 2043 | DJ72: 1789 | DK72: 2680 | DL72: 1344 | DM72: 4813 | DN72: 3787 | DO72: 3199 | DP72: 1228 | DQ72: 1005 | DR72: 2244 | DS72: 2044 | DT72: 4012 | DU72: 4713 | DV72: 28764 | DW72: 1369 | DX72: 5005 | DY72: 4319 | DZ72: 2492 | EA72: 4284 | EB72: 3672 | EC72: 4604 | ED72: 1456 | EE72: 103513 | EF72: 2945 | EG72: 2463 | EH72: 5159 | EI72: 3104 | EJ72: 4064 | EK72: 3916 | EL72: 1652 | EM72: 3794 | EN72: 2760 | EO72: 3092 | EP72: 4671 | EQ72: 2400 | ER72: 4252 | ES72: 5065 | ET72: 2269 | EU72: 3775 | EV72: 2560 | EW72: 4682 | EX72: 4756 | EY72: 2801 | EZ72: 5228 | FA72: 4929 | FB72: 2683 | FC72: 3669 | FD72: 2677 | FE72: 5018 | FF72: 3511 | FG72: 5096 | FH72: 3252 | FI72: 2508 | FJ72: 3657 | FK72: 2012 | FL72: 4263 | FM72: 4635 | FN72: 4175 | FO72: 3584 | FP72: 4770 | FQ72: 1115 | FR72: 2268 | FS72: 4762 | FT72: 2820 | FU72: 4270 | FV72: 1581 | FW72: 375 | FX72: 54223 | FY72: 4362 | FZ72: 2054 | GA72: 3539 | GB72: 19199 | GC72: 4953 | GD72: 4153 | GE72: 3825 | GF72: 4892 | GG72: 4743 | GH72: 4650 | GI72: 4263 | GJ72: 5511 | GK72: 4417 | GL72: 4670 | GM72: 5684 | GN72: 4931 | GO72: 2157 | GP72: 2576 | GQ72: 5385 | GR72: 5534 | GS72: 4337 | GT72: 5120 | GU72: 5332 | GV72: 18625 | GW72: 5425 | GX72: 2469 | GY72: 5328 | GZ72: 4229 | HA72: 5459 | HB72: 5994 | HC72: 5808 | HD72: 5161 | HE72: 5910 | HF72: 5371 | HG72: 4727 | HH72: 5986 | HI72: 942824 | HJ72: 4405.719626
A73: VIEILLEVIGNE | B73: 2162 | C73: 4528 | D73: 2322 | E73: 2077 | F73: 1902 | G73: 2641 | H73: 1820 | I73: 2878 | J73: 2315 | K73: 1916 | L73: 2597 | M73: 4868 | N73: 4814 | O73: 3532 | P73: 2055 | Q73: 3996 | R73: 5019 | S73: 4546 | T73: 3743 | U73: 3718 | V73: 2099 | W73: 1477 | X73: 2293 | Y73: 1938 | Z73: 3460 | AA73: 2821 | AB73: 3431 | AC73: 1456 | AD73: 2195 | AE73: 3371 | AF73: 3860 | AG73: 3823 | AH73: 2566 | AI73: 3839 | AJ73: 2398 | AK73: 2785 | AL73: 1378 | AM73: 2712 | AN73: 4559 | AO73: 2195 | AP73: 1929 | AQ73: 2334 | AR73: 1388 | AS73: 4702 | AT73: 3048 | AU73: 2795 | AV73: 2205 | AW73: 2389 | AX73: 2660 | AY73: 4518 | AZ73: 1435 | BA73: 3163 | BB73: 3986 | BC73: 4092 | BD73: 5198 | BE73: 3134 | BF73: 2492 | BG73: 3271 | BH73: 5445 | BI73: 3597 | BJ73: 1399 | BK73: 4799 | BL73: 1572 | BM73: 1104 | BN73: 2838 | BO73: 3488 | BP73: 5788 | BQ73: 11082 | BR73: 2918 | BS73: 4213 | BT73: 3779 | BV73: 4371 | BW73: 3606 | BX73: 3457 | BY73: 2752 | BZ73: 3473 | CA73: 688 | CB73: 1747 | CC73: 3716 | CD73: 3078 | CE73: 4205 | CF73: 2751 | CG73: 2606 | CH73: 1675 | CI73: 1055 | CJ73: 3981 | CK73: 875 | CL73: 3407 | CM73: 3362 | CN73: 3445 | CO73: 3034 | CP73: 3674 | CQ73: 4104 | CR73: 4110 | CS73: 1713 | CT73: 4865 | CU73: 1599 | CV73: 2450 | CW73: 3155 | CX73: 5414 | CY73: 695 | CZ73: 3544 | DA73: 4579 | DB73: 1318 | DC73: 2165 | DD73: 2356 | DE73: 1142 | DF73: 4182 | DG73: 3374 | DH73: 3139 | DI73: 3966 | DJ73: 2645 | DK73: 3893 | DL73: 3797 | DM73: 1824 | DN73: 1770 | DO73: 871 | DP73: 3258 | DQ73: 3167 | DR73: 2283 | DS73: 2119 | DT73: 4905 | DU73: 3493 | DV73: 27544 | DW73: 2704 | DX73: 3786 | DY73: 3054 | DZ73: 5172 | EA73: 3007 | EB73: 4686 | EC73: 3402 | ED73: 3460 | EE73: 102294 | EF73: 1159 | EG73: 4082 | EH73: 3910 | EI73: 5784 | EJ73: 1001 | EK73: 3092 | EL73: 2398 | EM73: 1068 | EN73: 3886 | EO73: 3239 | EP73: 3452 | EQ73: 1713 | ER73: 3788 | ES73: 4169 | ET73: 1810 | EU73: 1351 | EV73: 2823 | EW73: 3417 | EX73: 4283 | EY73: 5048 | EZ73: 4009 | FA73: 3652 | FB73: 5363 | FC73: 915 | FD73: 1427 | FE73: 4510 | FF73: 3749 | FG73: 4623 | FH73: 4405 | FI73: 1745 | FJ73: 3453 | FK73: 2358 | FL73: 2426 | FM73: 4162 | FN73: 3921 | FO73: 3439 | FP73: 3841 | FQ73: 2927 | FR73: 1658 | FS73: 3543 | FT73: 3714 | FU73: 2830 | FV73: 2187 | FW73: 4070 | FX73: 53004 | FY73: 2579 | FZ73: 1911 | GA73: 1511 | GB73: 17980 | GC73: 3734 | GD73: 4202 | GE73: 3361 | GF73: 3673 | GG73: 4232 | GH73: 3384 | GI73: 4275 | GJ73: 4292 | GK73: 2616 | GL73: 3451 | GM73: 4528 | GN73: 4458 | GO73: 2616 | GP73: 3365 | GQ73: 4165 | GR73: 4315 | GS73: 3864 | GT73: 4224 | GU73: 4113 | GV73: 15767 | GW73: 4206 | GX73: 3696 | GY73: 4855 | GZ73: 5004 | HA73: 4240 | HB73: 5431 | HC73: 5245 | HD73: 3941 | HE73: 5437 | HF73: 4476 | HG73: 4312 | HH73: 5513 | HI73: 899204 | HJ73: 4201.88785
A74: LA CHAPELLE-DES-MARAIS | B74: 3443 | C74: 2097 | D74: 2619 | E74: 2950 | F74: 3225 | G74: 2692 | H74: 3505 | I74: 2681 | J74: 2930 | K74: 2810 | L74: 2856 | M74: 1369 | N74: 1679 | O74: 2800 | P74: 2962 | Q74: 2095 | R74: 4501 | S74: 1766 | T74: 942 | U74: 2309 | V74: 3743 | W74: 4025 | X74: 3281 | Y74: 3183 | Z74: 3282 | AA74: 2616 | AB74: 1674 | AC74: 3119 | AD74: 3683 | AE74: 3975 | AF74: 1429 | AG74: 1417 | AH74: 2269 | AI74: 1247 | AJ74: 3536 | AK74: 2183 | AL74: 4359 | AM74: 3157 | AN74: 473 | AO74: 3209 | AP74: 4014 | AQ74: 3561 | AR74: 3411 | AS74: 1268 | AT74: 2621 | AU74: 1940 | AV74: 3350 | AW74: 3283 | AX74: 3788 | AY74: 2347 | AZ74: 3836 | BA74: 2794 | BB74: 599 | BC74: 2021 | BD74: 1975 | BE74: 3816 | BF74: 3386 | BG74: 3875 | BH74: 1652 | BI74: 2234 | BJ74: 4104 | BK74: 612 | BL74: 3490 | BM74: 4879 | BN74: 3554 | BO74: 2513 | BP74: 2443 | BQ74: 14134 | BR74: 3143 | BS74: 473 | BT74: 2717 | BU74: 4371 | BW74: 3339 | BX74: 1341 | BY74: 3704 | BZ74: 3274 | CA74: 3631 | CB74: 3133 | CC74: 4401 | CD74: 4030 | CE74: 1275 | CF74: 3482 | CG74: 3193 | CH74: 4254 | CI74: 3424 | CJ74: 3077 | CK74: 3729 | CL74: 2093 | CM74: 2132 | CN74: 1351 | CO74: 1604 | CP74: 2422 | CQ74: 1631 | CR74: 953 | CS74: 3572 | CT74: 1938 | CU74: 3648 | CV74: 3403 | CW74: 2979 | CX74: 2040 | CY74: 3746 | CZ74: 1816 | DA74: 4635 | DB74: 3693 | DC74: 3943 | DD74: 3219 | DE74: 3958 | DF74: 625 | DG74: 1309 | DH74: 3824 | DI74: 1117 | DJ74: 3426 | DK74: 1185 | DL74: 2234 | DM74: 4682 | DN74: 3657 | DO74: 4169 | DP74: 2953 | DQ74: 2904 | DR74: 3064 | DS74: 3428 | DT74: 2019 | DU74: 4179 | DV74: 28230 | DW74: 3269 | DX74: 4471 | DY74: 3654 | DZ74: 1053 | EA74: 3959 | EB74: 1702 | EC74: 3867 | ED74: 2471 | EE74: 102979 | EF74: 4259 | EG74: 382 | EH74: 4422 | EI74: 1864 | EJ74: 4328 | EK74: 3179 | EL74: 3551 | EM74: 4058 | EN74: 1080 | EO74: 2262 | EP74: 4137 | EQ74: 4010 | ER74: 3514 | ES74: 4327 | ET74: 4168 | EU74: 3644 | EV74: 1730 | EW74: 4037 | EX74: 4019 | EY74: 813 | EZ74: 4694 | FA74: 4395 | FB74: 1368 | FC74: 3933 | FD74: 4577 | FE74: 3688 | FF74: 2656 | FG74: 4099 | FH74: 1164 | FI74: 4407 | FJ74: 2920 | FK74: 3139 | FL74: 4133 | FM74: 3792 | FN74: 3203 | FO74: 2847 | FP74: 4033 | FQ74: 3014 | FR74: 4168 | FS74: 4228 | FT74: 1488 | FU74: 4115 | FV74: 3480 | FW74: 3066 | FX74: 53689 | FY74: 4207 | FZ74: 3954 | GA74: 3673 | GB74: 18665 | GC74: 4419 | GD74: 2822 | GE74: 3087 | GF74: 4358 | GG74: 3412 | GH74: 4005 | GI74: 2932 | GJ74: 4977 | GK74: 4286 | GL74: 4136 | GM74: 4883 | GN74: 4007 | GO74: 3396 | GP74: 1824 | GQ74: 4851 | GR74: 4979 | GS74: 3599 | GT74: 4382 | GU74: 4798 | GV74: 18889 | GW74: 4891 | GX74: 1864 | GY74: 4154 | GZ74: 2388 | HA74: 4925 | HB74: 5070 | HC74: 4884 | HD74: 4626 | HE74: 4736 | HF74: 4634 | HG74: 3396 | HH74: 4742 | HI74: 889719 | HJ74: 4157.565421
A75: NOZAY | B75: 2447 | C75: 3463 | D75: 2162 | E75: 2281 | F75: 2242 | G75: 1603 | H75: 2617 | I75: 2574 | J75: 1948 | K75: 2141 | L75: 1775 | M75: 3803 | N75: 3750 | O75: 4041 | P75: 1979 | Q75: 3456 | R75: 1675 | S75: 3481 | T75: 2728 | U75: 1096 | V75: 2760 | W75: 3260 | X75: 2298 | Y75: 2200 | Z75: 1027 | AA75: 1317 | AB75: 2325 | AC75: 2450 | AD75: 2700 | AE75: 2687 | AF75: 2795 | AG75: 2758 | AH75: 1903 | AI75: 2775 | AJ75: 2553 | AK75: 2212 | AL75: 3376 | AM75: 1634 | AN75: 3610 | AO75: 2540 | AP75: 3560 | AQ75: 2892 | AR75: 2742 | AS75: 3638 | AT75: 845 | AU75: 1653 | AV75: 2367 | AW75: 2614 | AX75: 2805 | AY75: 1229 | AZ75: 3167 | BA75: 1201 | BB75: 2700 | BC75: 1288 | BD75: 4134 | BE75: 1770 | BF75: 2717 | BG75: 2230 | BH75: 4381 | BI75: 3596 | BJ75: 3121 | BK75: 3891 | BL75: 2507 | BM75: 4114 | BN75: 2031 | BO75: 3713 | BP75: 4723 | BQ75: 13157 | BR75: 3243 | BS75: 3149 | BT75: 4079 | BU75: 3606 | BV75: 3339 | BX75: 1968 | BY75: 2418 | BZ75: 524 | CA75: 2972 | CB75: 2474 | CC75: 3079 | CD75: 2482 | CE75: 2030 | CF75: 1527 | CG75: 3612 | CH75: 3306 | CI75: 2765 | CJ75: 790 | CK75: 3070 | CL75: 1394 | CM75: 2529 | CN75: 2229 | CO75: 1991 | CP75: 3796 | CQ75: 1635 | CR75: 2894 | CS75: 2625 | CT75: 2088 | CU75: 2700 | CV75: 2455 | CW75: 3276 | CX75: 4198 | CY75: 3087 | CZ75: 1505 | DA75: 1702 | DB75: 3034 | DC75: 2995 | DD75: 2560 | DE75: 3010 | DF75: 2972 | DG75: 2168 | DH75: 2274 | DI75: 2750 | DJ75: 2767 | DK75: 2155 | DL75: 3590 | DM75: 3735 | DN75: 2709 | DO75: 3510 | DP75: 3398 | DQ75: 3602 | DR75: 2405 | DS75: 2769 | DT75: 1888 | DU75: 2916 | DV75: 27234 | DW75: 3085 | DX75: 2057 | DY75: 1300 | DZ75: 3957 | EA75: 2050 | EB75: 2013 | EC75: 1067 | ED75: 3582 | EE75: 101984 | EF75: 3600 | EG75: 2911 | EH75: 1533 | EI75: 4568 | EJ75: 3429 | EK75: 1209 | EL75: 3077 | EM75: 3216 | EN75: 2327 | EO75: 1223 | EP75: 2815 | EQ75: 3351 | ER75: 498 | ES75: 1292 | ET75: 3607 | EU75: 2697 | EV75: 1952 | EW75: 1564 | EX75: 1050 | EY75: 3877 | EZ75: 2911 | FA75: 1784 | FB75: 4147 | FC75: 3274 | FD75: 3956 | FE75: 1319 | FF75: 755 | FG75: 1376 | FH75: 2241 | FI75: 3846 | FJ75: 415 | FK75: 2480 | FL75: 3185 | FM75: 915 | FN75: 445 | FO75: 730 | FP75: 998 | FQ75: 3627 | FR75: 3445 | FS75: 1852 | FT75: 1821 | FU75: 3168 | FV75: 3515 | FW75: 4422 | FX75: 51619 | FY75: 3259 | FZ75: 3335 | GA75: 2725 | GB75: 17670 | GC75: 2835 | GD75: 862 | GE75: 385 | GF75: 2513 | GG75: 1120 | GH75: 1355 | GI75: 1084 | GJ75: 3656 | GK75: 3339 | GL75: 2333 | GM75: 1911 | GN75: 1212 | GO75: 2737 | GP75: 2375 | GQ75: 3529 | GR75: 1944 | GS75: 617 | GT75: 1347 | GU75: 3195 | GV75: 18230 | GW75: 2515 | GX75: 2458 | GY75: 1609 | GZ75: 1755 | HA75: 2031 | HB75: 2275 | HC75: 2089 | HD75: 1808 | HE75: 2190 | HF75: 1599 | HG75: 1121 | HH75: 2267 | HI75: 750628 | HJ75: 3507.607477
A76: CAMPBON | B76: 2529 | C76: 1886 | D76: 1705 | E76: 2036 | F76: 2311 | G76: 1777 | H76: 2591 | I76: 1767 | J76: 2016 | K76: 1896 | L76: 1942 | M76: 2226 | N76: 2173 | O76: 2585 | P76: 2048 | Q76: 1879 | R76: 3418 | S76: 1904 | T76: 741 | U76: 1078 | V76: 2829 | W76: 3111 | X76: 2367 | Y76: 2268 | Z76: 2095 | AA76: 1702 | AB76: 724 | AC76: 2205 | AD76: 2769 | AE76: 3061 | AF76: 1218 | AG76: 1108 | AH76: 1355 | AI76: 1198 | AJ76: 2622 | AK76: 1269 | AL76: 3445 | AM76: 2243 | AN76: 1588 | AO76: 2295 | AP76: 3315 | AQ76: 2647 | AR76: 2497 | AS76: 2061 | AT76: 1434 | AU76: 1025 | AV76: 2435 | AW76: 2369 | AX76: 2874 | AY76: 1459 | AZ76: 2922 | BA76: 1880 | BB76: 1014 | BC76: 940 | BD76: 2557 | BE76: 2867 | BF76: 2472 | BG76: 2961 | BH76: 2804 | BI76: 2018 | BJ76: 3190 | BK76: 1828 | BL76: 2576 | BM76: 3965 | BN76: 2640 | BO76: 2298 | BP76: 3146 | BQ76: 13220 | BR76: 2928 | BS76: 1422 | BT76: 2502 | BU76: 3457 | BV76: 1341 | BW76: 1968 | BY76: 2832 | BZ76: 2001 | CA76: 2759 | CB76: 2261 | CC76: 3529 | CD76: 3158 | CE76: 912 | CF76: 2610 | CG76: 2968 | CH76: 3382 | CI76: 2552 | CJ76: 2165 | CK76: 2857 | CL76: 854 | CM76: 1260 | CN76: 498 | CO76: 732 | CP76: 2198 | CQ76: 861 | CR76: 1313 | CS76: 2700 | CT76: 1729 | CU76: 2776 | CV76: 2531 | CW76: 2754 | CX76: 2617 | CY76: 2874 | CZ76: 523 | DA76: 3464 | DB76: 2821 | DC76: 3071 | DD76: 2346 | DE76: 3086 | DF76: 1107 | DG76: 403 | DH76: 2952 | DI76: 797 | DJ76: 2554 | DK76: 536 | DL76: 2009 | DM76: 3810 | DN76: 2785 | DO76: 3296 | DP76: 2728 | DQ76: 2679 | DR76: 2192 | DS76: 2556 | DT76: 1770 | DU76: 3306 | DV76: 27357 | DW76: 2872 | DX76: 3599 | DY76: 2414 | DZ76: 2214 | EA76: 3087 | EB76: 1550 | EC76: 2627 | ED76: 2246 | EE76: 102107 | EF76: 3387 | EG76: 1007 | EH76: 3182 | EI76: 2987 | EJ76: 3456 | EK76: 1939 | EL76: 2863 | EM76: 3186 | EN76: 811 | EO76: 1249 | EP76: 3265 | EQ76: 3137 | ER76: 2241 | ES76: 3055 | ET76: 3394 | EU76: 2772 | EV76: 858 | EW76: 2798 | EX76: 2746 | EY76: 1974 | EZ76: 3822 | FA76: 3212 | FB76: 2529 | FC76: 3061 | FD76: 3743 | FE76: 2776 | FF76: 1501 | FG76: 3085 | FH76: 1263 | FI76: 3632 | FJ76: 1647 | FK76: 2267 | FL76: 3261 | FM76: 2625 | FN76: 2129 | FO76: 1574 | FP76: 2760 | FQ76: 2789 | FR76: 3232 | FS76: 3341 | FT76: 481 | FU76: 3243 | FV76: 3255 | FW76: 2841 | FX76: 52817 | FY76: 3335 | FZ76: 3122 | GA76: 2801 | GB76: 17793 | GC76: 3547 | GD76: 1911 | GE76: 1815 | GF76: 3486 | GG76: 2501 | GH76: 2765 | GI76: 2021 | GJ76: 4105 | GK76: 3414 | GL76: 3264 | GM76: 3673 | GN76: 2921 | GO76: 2524 | GP76: 952 | GQ76: 3978 | GR76: 3707 | GS76: 2327 | GT76: 3109 | GU76: 3926 | GV76: 18017 | GW76: 4019 | GX76: 1012 | GY76: 3243 | GZ76: 1987 | HA76: 3741 | HB76: 3984 | HC76: 3798 | HD76: 3407 | HE76: 3825 | HF76: 3361 | HG76: 2485 | HH76: 3831 | HI76: 740459 | HJ76: 3460.088785
A77: LE CELLIER | B77: 1924 | C77: 3919 | D77: 2126 | E77: 2056 | F77: 1388 | G77: 1743 | H77: 1763 | I77: 2544 | J77: 1110 | K77: 1895 | L77: 1645 | M77: 4259 | N77: 4205 | O77: 3795 | P77: 1121 | Q77: 3911 | R77: 3075 | S77: 3937 | T77: 3134 | U77: 2792 | V77: 1906 | W77: 2406 | X77: 854 | Y77: 1345 | Z77: 1607 | AA77: 1923 | AB77: 2822 | AC77: 1683 | AD77: 1477 | AE77: 1246 | AF77: 3251 | AG77: 3214 | AH77: 2008 | AI77: 3230 | AJ77: 1193 | AK77: 2176 | AL77: 2522 | AM77: 1542 | AN77: 3950 | AO77: 2294 | AP77: 2837 | AQ77: 2646 | AR77: 2049 | AS77: 4093 | AT77: 2170 | AU77: 2186 | AV77: 1513 | AW77: 2368 | AX77: 967 | AY77: 3469 | AZ77: 2254 | BA77: 2199 | BB77: 3377 | BC77: 3498 | BD77: 4589 | BE77: 749 | BF77: 2471 | BG77: 1044 | BH77: 4836 | BI77: 3813 | BJ77: 2267 | BK77: 4190 | BL77: 1653 | BM77: 3260 | BN77: 561 | BO77: 3467 | BP77: 5179 | BQ77: 11829 | BR77: 2997 | BS77: 3604 | BT77: 4029 | BU77: 2752 | BV77: 3704 | BW77: 2418 | BX77: 2832 | BZ77: 2073 | CA77: 2245 | CB77: 2496 | CC77: 1737 | CD77: 749 | CE77: 3553 | CF77: 1101 | CG77: 3626 | CH77: 2603 | CI77: 2038 | CJ77: 3111 | CK77: 2343 | CL77: 2701 | CM77: 2710 | CN77: 2793 | CO77: 2382 | CP77: 3810 | CQ77: 3452 | CR77: 3458 | CS77: 1834 | CT77: 4213 | CU77: 1997 | CV77: 501 | CW77: 3291 | CX77: 4762 | CY77: 2360 | CZ77: 2892 | DA77: 2530 | DB77: 2307 | DC77: 1667 | DD77: 2574 | DE77: 2308 | DF77: 3530 | DG77: 2722 | DH77: 931 | DI77: 3314 | DJ77: 2782 | DK77: 3241 | DL77: 3933 | DM77: 3032 | DN77: 2006 | DO77: 2782 | DP77: 3413 | DQ77: 3616 | DR77: 2419 | DS77: 2783 | DT77: 4206 | DU77: 1578 | DV77: 26017 | DW77: 3099 | DX77: 1921 | DY77: 1234 | DZ77: 4520 | EA77: 678 | EB77: 4034 | EC77: 1582 | ED77: 3596 | EE77: 100767 | EF77: 2873 | EG77: 3430 | EH77: 1645 | EI77: 5132 | EJ77: 2727 | EK77: 2007 | EL77: 3091 | EM77: 2513 | EN77: 3234 | EO77: 2369 | EP77: 1473 | EQ77: 2773 | ER77: 2253 | ES77: 2349 | ET77: 2880 | EU77: 1994 | EV77: 2171 | EW77: 1168 | EX77: 2547 | EY77: 4396 | EZ77: 2145 | FA77: 1324 | FB77: 4711 | FC77: 2547 | FD77: 3229 | FE77: 3482 | FF77: 2908 | FG77: 3258 | FH77: 3753 | FI77: 3118 | FJ77: 2612 | FK77: 2494 | FL77: 2122 | FM77: 2821 | FN77: 2849 | FO77: 2474 | FP77: 2021 | FQ77: 3642 | FR77: 2718 | FS77: 1436 | FT77: 3062 | FU77: 1312 | FV77: 3247 | FW77: 4492 | FX77: 51477 | FY77: 1545 | FZ77: 2971 | GA77: 2023 | GB77: 16452 | GC77: 1962 | GD77: 3265 | GE77: 2327 | GF77: 1828 | GG77: 3163 | GH77: 1378 | GI77: 3405 | GJ77: 2313 | GK77: 1728 | GL77: 1606 | GM77: 2544 | GN77: 2837 | GO77: 2752 | GP77: 2713 | GQ77: 2186 | GR77: 2330 | GS77: 2660 | GT77: 2120 | GU77: 2237 | GV77: 17503 | GW77: 2361 | GX77: 3044 | GY77: 3491 | GZ77: 4074 | HA77: 2177 | HB77: 3541 | HC77: 3395 | HD77: 1823 | HE77: 3749 | HF77: 2427 | HG77: 3442 | HH77: 3761 | HI77: 774226 | HJ77: 3617.878505
A78: SAFFRE | B78: 2314 | C78: 3396 | D78: 2029 | E78: 2148 | F78: 2109 | G78: 1470 | H78: 2484 | I78: 2440 | J78: 1814 | K78: 2008 | L78: 1641 | M78: 3736 | N78: 3683 | O78: 3908 | P78: 1846 | Q78: 3389 | R78: 1995 | S78: 3414 | T78: 2690 | U78: 1028 | V78: 2627 | W78: 3127 | X78: 2165 | Y78: 2066 | Z78: 556 | AA78: 1184 | AB78: 2257 | AC78: 2317 | AD78: 2567 | AE78: 2217 | AF78: 2728 | AG78: 2691 | AH78: 1769 | AI78: 2707 | AJ78: 2420 | AK78: 2079 | AL78: 3243 | AM78: 1338 | AN78: 3520 | AO78: 2407 | AP78: 3427 | AQ78: 2759 | AR78: 2609 | AS78: 3570 | AT78: 712 | AU78: 1520 | AV78: 2234 | AW78: 2481 | AX78: 2632 | AY78: 1575 | AZ78: 3034 | BA78: 1082 | BB78: 2922 | BC78: 1604 | BD78: 4066 | BE78: 1299 | BF78: 2584 | BG78: 1787 | BH78: 4313 | BI78: 3528 | BJ78: 2988 | BK78: 3760 | BL78: 2374 | BM78: 3981 | BN78: 1560 | BO78: 3580 | BP78: 4656 | BQ78: 12686 | BR78: 3110 | BS78: 3081 | BT78: 4011 | BU78: 3473 | BV78: 3274 | BW78: 524 | BX78: 2001 | BY78: 2073 | CA78: 2866 | CB78: 2368 | CC78: 2703 | CD78: 2105 | CE78: 2310 | CF78: 1150 | CG78: 3506 | CH78: 3200 | CI78: 2659 | CJ78: 1154 | CK78: 2964 | CL78: 1266 | CM78: 2412 | CN78: 2260 | CO78: 2022 | CP78: 3690 | CQ78: 1915 | CR78: 2925 | CS78: 2519 | CT78: 2467 | CU78: 2594 | CV78: 2224 | CW78: 3170 | CX78: 4228 | CY78: 2982 | CZ78: 1536 | DA78: 1724 | DB78: 2928 | DC78: 2889 | DD78: 2454 | DE78: 2904 | DF78: 3002 | DG78: 2199 | DH78: 1897 | DI78: 2781 | DJ78: 2661 | DK78: 2215 | DL78: 3621 | DM78: 3629 | DN78: 2603 | DO78: 3404 | DP78: 3293 | DQ78: 3496 | DR78: 2299 | DS78: 2663 | DT78: 2267 | DU78: 2544 | DV78: 26857 | DW78: 2979 | DX78: 1752 | DY78: 924 | DZ78: 3987 | EA78: 1673 | EB78: 2286 | EC78: 723 | ED78: 3476 | EE78: 101607 | EF78: 3494 | EG78: 2941 | EH78: 1278 | EI78: 4599 | EJ78: 3323 | EK78: 956 | EL78: 2971 | EM78: 3110 | EN78: 2555 | EO78: 1117 | EP78: 2438 | EQ78: 3245 | ER78: 530 | ES78: 1314 | ET78: 3501 | EU78: 2591 | EV78: 1835 | EW78: 1220 | EX78: 1117 | EY78: 3908 | EZ78: 2607 | FA78: 1441 | FB78: 4178 | FC78: 3168 | FD78: 3850 | FE78: 1759 | FF78: 953 | FG78: 1696 | FH78: 2514 | FI78: 3740 | FJ78: 657 | FK78: 2374 | FL78: 3079 | FM78: 1236 | FN78: 910 | FO78: 610 | FP78: 1019 | FQ78: 3521 | FR78: 3339 | FS78: 1548 | FT78: 1880 | FU78: 2866 | FV78: 3409 | FW78: 4453 | FX78: 51983 | FY78: 3153 | FZ78: 3229 | GA78: 2619 | GB78: 17293 | GC78: 2531 | GD78: 1326 | GE78: 373 | GF78: 2208 | GG78: 1440 | GH78: 1012 | GI78: 1448 | GJ78: 3279 | GK78: 3136 | GL78: 2028 | GM78: 1933 | GN78: 1532 | GO78: 2631 | GP78: 2405 | GQ78: 3152 | GR78: 1924 | GS78: 938 | GT78: 1369 | GU78: 2891 | GV78: 18124 | GW78: 2487 | GX78: 2488 | GY78: 1929 | GZ78: 2134 | HA78: 1837 | HB78: 2577 | HC78: 2391 | HD78: 1503 | HE78: 2557 | HF78: 1621 | HG78: 1485 | HH78: 2648 | HI78: 735793 | HJ78: 3438.285047
A79: GENESTON | B79: 1480 | C79: 3846 | D79: 1640 | E79: 1395 | F79: 1220 | G79: 1959 | H79: 1244 | I79: 2195 | J79: 1633 | K79: 1234 | L79: 1915 | M79: 4185 | N79: 4132 | O79: 2840 | P79: 1373 | Q79: 3304 | R79: 4337 | S79: 3864 | T79: 3061 | U79: 3036 | V79: 1948 | W79: 807 | X79: 1611 | Y79: 1256 | Z79: 2778 | AA79: 2139 | AB79: 2749 | AC79: 773 | AD79: 1888 | AE79: 2689 | AF79: 3178 | AG79: 3140 | AH79: 1884 | AI79: 3157 | AJ79: 1716 | AK79: 2103 | AL79: 1649 | AM79: 2030 | AN79: 3877 | AO79: 1513 | AP79: 1237 | AQ79: 1642 | AR79: 706 | AS79: 4020 | AT79: 2366 | AU79: 2113 | AV79: 1554 | AW79: 1707 | AX79: 1978 | AY79: 3836 | AZ79: 743 | BA79: 2481 | BB79: 3304 | BC79: 3410 | BD79: 4516 | BE79: 2452 | BF79: 1809 | BG79: 2589 | BH79: 4763 | BI79: 2905 | BJ79: 1423 | BK79: 4117 | BL79: 1377 | BM79: 1197 | BN79: 2156 | BO79: 2806 | BP79: 5106 | BQ79: 11446 | BR79: 2226 | BS79: 3531 | BT79: 3086 | BU79: 688 | BV79: 3631 | BW79: 2972 | BX79: 2759 | BY79: 2245 | BZ79: 2866 | CB79: 1080 | CC79: 3049 | CD79: 2411 | CE79: 3539 | CF79: 2084 | CG79: 1918 | CH79: 1741 | CI79: 486 | CJ79: 3314 | CK79: 725 | CL79: 2740 | CM79: 2695 | CN79: 2778 | CO79: 2367 | CP79: 3007 | CQ79: 3438 | CR79: 3443 | CS79: 1699 | CT79: 4198 | CU79: 1585 | CV79: 1784 | CW79: 2488 | CX79: 4747 | CY79: 237 | CZ79: 2878 | DA79: 3912 | DB79: 865 | DC79: 2151 | DD79: 1667 | DE79: 1128 | DF79: 3515 | DG79: 2707 | DH79: 2472 | DI79: 3299 | DJ79: 1979 | DK79: 3226 | DL79: 3130 | DM79: 2188 | DN79: 1756 | DO79: 726 | DP79: 2570 | DQ79: 2479 | DR79: 1616 | DS79: 1431 | DT79: 4239 | DU79: 2827 | DV79: 26878 | DW79: 2016 | DX79: 3119 | DY79: 2387 | DZ79: 4506 | EA79: 2340 | EB79: 4019 | EC79: 2735 | ED79: 2793 | EE79: 101627 | EF79: 817 | EG79: 3415 | EH79: 3243 | EI79: 5117 | EJ79: 1324 | EK79: 2425 | EL79: 1710 | EM79: 1055 | EN79: 3219 | EO79: 2573 | EP79: 2785 | EQ79: 1024 | ER79: 3121 | ES79: 3502 | ET79: 1132 | EU79: 1337 | EV79: 2156 | EW79: 2750 | EX79: 3616 | EY79: 4382 | EZ79: 3342 | FA79: 2986 | FB79: 4696 | FC79: 929 | FD79: 1463 | FE79: 3843 | FF79: 3082 | FG79: 3956 | FH79: 3738 | FI79: 1370 | FJ79: 2786 | FK79: 1692 | FL79: 2319 | FM79: 3495 | FN79: 3254 | FO79: 2772 | FP79: 3174 | FQ79: 2239 | FR79: 970 | FS79: 2876 | FT79: 3047 | FU79: 2326 | FV79: 1499 | FW79: 3381 | FX79: 52337 | FY79: 2418 | FZ79: 1223 | GA79: 1141 | GB79: 17313 | GC79: 3067 | GD79: 3535 | GE79: 2694 | GF79: 3006 | GG79: 3565 | GH79: 2717 | GI79: 3608 | GJ79: 3625 | GK79: 2473 | GL79: 2784 | GM79: 3862 | GN79: 3792 | GO79: 1949 | GP79: 2699 | GQ79: 3499 | GR79: 3648 | GS79: 3197 | GT79: 3557 | GU79: 3446 | GV79: 16033 | GW79: 3539 | GX79: 3029 | GY79: 4189 | GZ79: 4338 | HA79: 3574 | HB79: 4764 | HC79: 4578 | HD79: 3275 | HE79: 4770 | HF79: 3809 | HG79: 3645 | HH79: 4847 | HI79: 774758 | HJ79: 3620.364486
A80: SAINT-AIGNAN-GRANDLIEU | B80: 1581 | C80: 3347 | D80: 1142 | E80: 895 | F80: 1470 | G80: 1461 | H80: 1529 | I80: 1697 | J80: 1700 | K80: 618 | L80: 1625 | M80: 3687 | N80: 3634 | O80: 2351 | P80: 1623 | Q80: 2802 | R80: 3924 | S80: 3365 | T80: 2563 | U80: 2538 | V80: 2198 | W80: 1401 | X80: 1862 | Y80: 1506 | Z80: 2401 | AA80: 1641 | AB80: 2250 | AC80: 868 | AD80: 2138 | AE80: 2744 | AF80: 2679 | AG80: 2642 | AH80: 1385 | AI80: 2659 | AJ80: 1967 | AK80: 1604 | AL80: 2455 | AM80: 1926 | AN80: 3379 | AO80: 551 | AP80: 1832 | AQ80: 1202 | AR80: 370 | AS80: 3522 | AT80: 1867 | AU80: 1615 | AV80: 1805 | AW80: 986 | AX80: 2228 | AY80: 3338 | AZ80: 803 | BA80: 1983 | BB80: 2806 | BC80: 2911 | BD80: 4018 | BE80: 2585 | BF80: 1089 | BG80: 2644 | BH80: 4265 | BI80: 2403 | BJ80: 2209 | BK80: 3619 | BL80: 1833 | BM80: 2255 | BN80: 2323 | BO80: 2085 | BP80: 4607 | BQ80: 12183 | BR80: 1553 | BS80: 3033 | BT80: 2584 | BU80: 1747 | BV80: 3133 | BW80: 2474 | BX80: 2261 | BY80: 2496 | BZ80: 2368 | CA80: 1080 | CC80: 3176 | CD80: 2646 | CE80: 3019 | CF80: 2257 | CG80: 2029 | CH80: 2529 | CI80: 1042 | CJ80: 2890 | CK80: 1513 | CL80: 2220 | CM80: 2175 | CN80: 2258 | CO80: 1848 | CP80: 2287 | CQ80: 2918 | CR80: 2923 | CS80: 1994 | CT80: 3678 | CU80: 2069 | CV80: 2019 | CW80: 1768 | CX80: 4227 | CY80: 1235 | CZ80: 2358 | DA80: 3937 | DB80: 1477 | DC80: 2365 | DD80: 1021 | DE80: 1778 | DF80: 2995 | DG80: 2187 | DH80: 2599 | DI80: 2780 | DJ80: 1258 | DK80: 2706 | DL80: 2410 | DM80: 2976 | DN80: 2079 | DO80: 1623 | DP80: 1815 | DQ80: 2018 | DR80: 893 | DS80: 854 | DT80: 3719 | DU80: 2953 | DV80: 27004 | DW80: 1502 | DX80: 3246 | DY80: 2560 | DZ80: 3986 | EA80: 2575 | EB80: 3499 | EC80: 2908 | ED80: 2073 | EE80: 101754 | EF80: 1713 | EG80: 2895 | EH80: 3369 | EI80: 4597 | EJ80: 2112 | EK80: 2246 | EL80: 1494 | EM80: 1842 | EN80: 2699 | EO80: 2149 | EP80: 2911 | EQ80: 1435 | ER80: 2697 | ES80: 3524 | ET80: 1720 | EU80: 1987 | EV80: 1636 | EW80: 2923 | EX80: 3192 | EY80: 3862 | EZ80: 3469 | FA80: 3170 | FB80: 4177 | FC80: 1717 | FD80: 2070 | FE80: 3419 | FF80: 2658 | FG80: 3532 | FH80: 3219 | FI80: 1959 | FJ80: 2362 | FK80: 862 | FL80: 2555 | FM80: 3071 | FN80: 2830 | FO80: 2348 | FP80: 3216 | FQ80: 2044 | FR80: 1558 | FS80: 3003 | FT80: 2527 | FU80: 2561 | FV80: 1894 | FW80: 2895 | FX80: 52464 | FY80: 2653 | FZ80: 1419 | GA80: 1674 | GB80: 17440 | GC80: 3194 | GD80: 3111 | GE80: 2270 | GF80: 3133 | GG80: 3141 | GH80: 2890 | GI80: 3184 | GJ80: 3752 | GK80: 2708 | GL80: 2911 | GM80: 3988 | GN80: 3368 | GO80: 1229 | GP80: 2179 | GQ80: 3625 | GR80: 3775 | GS80: 2773 | GT80: 3565 | GU80: 3573 | GV80: 16707 | GW80: 3666 | GX80: 2510 | GY80: 3765 | GZ80: 3914 | HA80: 3700 | HB80: 4431 | HC80: 4245 | HD80: 3401 | HE80: 4346 | HF80: 3817 | HG80: 3221 | HH80: 4423 | HI80: 746835 | HJ80: 3489.883178
A81: VARADES | B81: 2888 | C81: 4615 | D81: 2823 | E81: 2941 | F81: 2352 | G81: 2440 | H81: 2727 | I81: 3240 | J81: 1969 | K81: 2802 | L81: 2342 | M81: 4955 | N81: 4902 | O81: 4702 | P81: 2085 | Q81: 4608 | R81: 2954 | S81: 4633 | T81: 3831 | U81: 3454 | V81: 2258 | W81: 3370 | X81: 2168 | Y81: 2310 | Z81: 2269 | AA81: 2620 | AB81: 3518 | AC81: 2647 | AD81: 2101 | AE81: 759 | AF81: 3947 | AG81: 3910 | AH81: 2705 | AI81: 3927 | AJ81: 2435 | AK81: 2872 | AL81: 2990 | AM81: 2366 | AN81: 4647 | AO81: 3200 | AP81: 3801 | AQ81: 3553 | AR81: 3013 | AS81: 4790 | AT81: 2832 | AU81: 2883 | AV81: 2477 | AW81: 3275 | AX81: 2060 | AY81: 4131 | AZ81: 3218 | BA81: 2962 | BB81: 4074 | BC81: 4160 | BD81: 5286 | BE81: 1675 | BF81: 3377 | BG81: 1226 | BH81: 5533 | BI81: 4719 | BJ81: 2973 | BK81: 4887 | BL81: 2617 | BM81: 4224 | BN81: 1784 | BO81: 4374 | BP81: 5875 | BQ81: 10823 | BR81: 3904 | BS81: 4301 | BT81: 4935 | BU81: 3716 | BV81: 4401 | BW81: 3079 | BX81: 3529 | BY81: 1737 | BZ81: 2703 | CA81: 3049 | CB81: 3176 | CD81: 1292 | CE81: 4233 | CF81: 2122 | CG81: 4306 | CH81: 2938 | CI81: 2906 | CJ81: 3726 | CK81: 3210 | CL81: 3387 | CM81: 3389 | CN81: 3472 | CO81: 3062 | CP81: 4489 | CQ81: 4132 | CR81: 4137 | CS81: 2584 | CT81: 4819 | CU81: 2697 | CV81: 1853 | CW81: 3970 | CX81: 5441 | CY81: 3228 | CZ81: 3572 | DA81: 2499 | DB81: 3174 | DC81: 2250 | DD81: 3253 | DE81: 3236 | DF81: 4209 | DG81: 3402 | DH81: 877 | DI81: 3994 | DJ81: 3461 | DK81: 3920 | DL81: 4612 | DM81: 3082 | DN81: 2447 | DO81: 3650 | DP81: 4092 | DQ81: 4295 | DR81: 3099 | DS81: 3463 | DT81: 4774 | DU81: 350 | DV81: 24918 | DW81: 3779 | DX81: 1413 | DY81: 1739 | DZ81: 5200 | EA81: 1281 | EB81: 4640 | EC81: 2135 | ED81: 4276 | EE81: 99668 | EF81: 3741 | EG81: 4109 | EH81: 1789 | EI81: 5812 | EJ81: 3257 | EK81: 2644 | EL81: 3770 | EM81: 3126 | EN81: 3913 | EO81: 3049 | EP81: 434 | EQ81: 3640 | ER81: 2807 | ES81: 2559 | ET81: 3747 | EU81: 2913 | EV81: 2851 | EW81: 1591 | EX81: 2860 | EY81: 5076 | EZ81: 543 | FA81: 1615 | FB81: 5391 | FC81: 3472 | FD81: 4097 | FE81: 3856 | FF81: 3475 | FG81: 3408 | FH81: 4433 | FI81: 3986 | FJ81: 3180 | FK81: 3174 | FL81: 2032 | FM81: 3135 | FN81: 3417 | FO81: 3041 | FP81: 2334 | FQ81: 4321 | FR81: 3586 | FS81: 1423 | FT81: 3741 | FU81: 1941 | FV81: 4114 | FW81: 5171 | FX81: 50378 | FY81: 1832 | FZ81: 3838 | GA81: 2890 | GB81: 15353 | GC81: 495 | GD81: 3833 | GE81: 2895 | GF81: 789 | GG81: 3529 | GH81: 1801 | GI81: 4020 | GJ81: 576 | GK81: 1746 | GL81: 982 | GM81: 2065 | GN81: 2988 | GO81: 3431 | GP81: 3393 | GQ81: 450 | GR81: 1852 | GS81: 3214 | GT81: 2144 | GU81: 500 | GV81: 17298 | GW81: 1440 | GX81: 3724 | GY81: 3482 | GZ81: 4641 | HA81: 1868 | HB81: 2999 | HC81: 3134 | HD81: 1569 | HE81: 3488 | HF81: 2234 | HG81: 3863 | HH81: 3664 | HI81: 876539 | HJ81: 4095.976636
A82: OUDON | B82: 2250 | C82: 4245 | D82: 2452 | E82: 2382 | F82: 1714 | G82: 2070 | H82: 2089 | I82: 2870 | J82: 1436 | K82: 2221 | L82: 1972 | M82: 4585 | N82: 4531 | O82: 4121 | P82: 1447 | Q82: 4237 | R82: 3014 | S82: 4263 | T82: 3460 | U82: 2856 | V82: 1712 | W82: 2732 | X82: 1180 | Y82: 1721 | Z82: 1671 | AA82: 2250 | AB82: 3148 | AC82: 2009 | AD82: 1351 | AE82: 869 | AF82: 3577 | AG82: 3540 | AH82: 2334 | AI82: 3556 | AJ82: 1231 | AK82: 2502 | AL82: 2526 | AM82: 1772 | AN82: 4276 | AO82: 2620 | AP82: 3163 | AQ82: 2972 | AR82: 2375 | AS82: 4419 | AT82: 2235 | AU82: 2512 | AV82: 1839 | AW82: 2694 | AX82: 969 | AY82: 3533 | AZ82: 2580 | BA82: 2499 | BB82: 3703 | BC82: 3563 | BD82: 4915 | BE82: 893 | BF82: 2797 | BG82: 925 | BH82: 5162 | BI82: 4139 | BJ82: 2423 | BK82: 4517 | BL82: 1979 | BM82: 3586 | BN82: 796 | BO82: 3794 | BP82: 5505 | BQ82: 11452 | BR82: 3324 | BS82: 3930 | BT82: 4355 | BU82: 3078 | BV82: 4030 | BW82: 2482 | BX82: 3158 | BY82: 749 | BZ82: 2105 | CA82: 2411 | CB82: 2646 | CC82: 1292 | CE82: 3841 | CF82: 1267 | CG82: 3898 | CH82: 2505 | CI82: 2336 | CJ82: 3212 | CK82: 2641 | CL82: 2872 | CM82: 2997 | CN82: 3081 | CO82: 2670 | CP82: 4082 | CQ82: 3755 | CR82: 3746 | CS82: 1851 | CT82: 4305 | CU82: 2221 | CV82: 868 | CW82: 3562 | CX82: 5049 | CY82: 2659 | CZ82: 3231 | DA82: 2402 | DB82: 2582 | DC82: 1578 | DD82: 2846 | DE82: 2578 | DF82: 3817 | DG82: 3010 | DH82: 505 | DI82: 3602 | DJ82: 3053 | DK82: 3529 | DL82: 4205 | DM82: 2924 | DN82: 1971 | DO82: 3081 | DP82: 3684 | DQ82: 3887 | DR82: 2691 | DS82: 3055 | DT82: 4259 | DU82: 1152 | DV82: 25591 | DW82: 3371 | DX82: 1752 | DY82: 1225 | DZ82: 4808 | EA82: 550 | EB82: 4126 | EC82: 1621 | ED82: 3868 | EE82: 100340 | EF82: 3171 | EG82: 3717 | EH82: 1517 | EI82: 5420 | EJ82: 2781 | EK82: 2130 | EL82: 3363 | EM82: 2650 | EN82: 3522 | EO82: 2723 | EP82: 1047 | EQ82: 3071 | ER82: 2292 | ES82: 2321 | ET82: 3178 | EU82: 2254 | EV82: 2459 | EW82: 1077 | EX82: 2519 | EY82: 4684 | EZ82: 1719 | FA82: 1196 | FB82: 4999 | FC82: 2845 | FD82: 3528 | FE82: 3521 | FF82: 2961 | FG82: 3231 | FH82: 4041 | FI82: 3417 | FJ82: 2665 | FK82: 2766 | FL82: 1625 | FM82: 2794 | FN82: 2902 | FO82: 2527 | FP82: 1993 | FQ82: 3913 | FR82: 3016 | FS82: 1308 | FT82: 3349 | FU82: 891 | FV82: 3545 | FW82: 4764 | FX82: 51051 | FY82: 1247 | FZ82: 3269 | GA82: 2316 | GB82: 16026 | GC82: 1482 | GD82: 3319 | GE82: 2380 | GF82: 1466 | GG82: 3202 | GH82: 1287 | GI82: 3506 | GJ82: 1887 | GK82: 1161 | GL82: 1417 | GM82: 2416 | GN82: 2809 | GO82: 3023 | GP82: 3001 | GQ82: 1760 | GR82: 2203 | GS82: 2700 | GT82: 1992 | GU82: 1811 | GV82: 17725 | GW82: 2172 | GX82: 3332 | GY82: 3463 | GZ82: 4127 | HA82: 2049 | HB82: 3414 | HC82: 3267 | HD82: 1695 | HE82: 3621 | HF82: 2299 | HG82: 3510 | HH82: 3733 | HI82: 801153 | HJ82: 3743.705607
A83: SAINT-GILDAS-DES-BOIS | B83: 3278 | C83: 2464 | D83: 2453 | E83: 2784 | F83: 3060 | G83: 2526 | H83: 3339 | I83: 2516 | J83: 2765 | K83: 2645 | L83: 2690 | M83: 2585 | N83: 2751 | O83: 3162 | P83: 2796 | Q83: 2457 | R83: 3462 | S83: 2482 | T83: 806 | U83: 1394 | V83: 3577 | W83: 3860 | X83: 3115 | Y83: 3017 | Z83: 2496 | AA83: 2450 | AB83: 1517 | AC83: 2953 | AD83: 3517 | AE83: 3809 | AF83: 1796 | AG83: 1745 | AH83: 2104 | AI83: 1775 | AJ83: 3370 | AK83: 2018 | AL83: 4193 | AM83: 3020 | AN83: 1547 | AO83: 3043 | AP83: 4063 | AQ83: 3396 | AR83: 3246 | AS83: 2484 | AT83: 2060 | AU83: 1774 | AV83: 3184 | AW83: 3118 | AX83: 3623 | AY83: 1308 | AZ83: 3671 | BA83: 2582 | BB83: 636 | BC83: 826 | BD83: 3190 | BE83: 3324 | BF83: 3220 | BG83: 3709 | BH83: 2805 | BI83: 2596 | BJ83: 3938 | BK83: 1828 | BL83: 3324 | BM83: 4714 | BN83: 3389 | BO83: 2876 | BP83: 3659 | BQ83: 13969 | BR83: 3506 | BS83: 1381 | BT83: 3080 | BU83: 4205 | BV83: 1275 | BW83: 2030 | BX83: 912 | BY83: 3553 | BZ83: 2310 | CA83: 3539 | CB83: 3019 | CC83: 4233 | CD83: 3841 | CF83: 3192 | CG83: 3637 | CH83: 4217 | CI83: 3387 | CJ83: 2026 | CK83: 3692 | CL83: 1498 | CM83: 2095 | CN83: 1314 | CO83: 1563 | CP83: 2867 | CQ83: 389 | CR83: 1987 | CS83: 3535 | CT83: 954 | CU83: 3611 | CV83: 3366 | CW83: 3423 | CX83: 3351 | CY83: 3710 | CZ83: 1275 | DA83: 3590 | DB83: 3656 | DC83: 3906 | DD83: 3182 | DE83: 3921 | DF83: 1275 | DG83: 1272 | DH83: 3787 | DI83: 1174 | DJ83: 3389 | DK83: 699 | DL83: 2678 | DM83: 4645 | DN83: 3620 | DO83: 4132 | DP83: 3397 | DQ83: 3348 | DR83: 3027 | DS83: 3391 | DT83: 1035 | DU83: 4142 | DV83: 28193 | DW83: 3707 | DX83: 3944 | DY83: 2965 | DZ83: 2287 | EA83: 3715 | EB83: 718 | EC83: 2957 | ED83: 2915 | EE83: 102942 | EF83: 4222 | EG83: 1175 | EH83: 3421 | EI83: 3098 | EJ83: 4291 | EK83: 2583 | EL83: 3699 | EM83: 4021 | EN83: 432 | EO83: 1893 | EP83: 4100 | EQ83: 3973 | ER83: 2385 | ES83: 3180 | ET83: 4229 | EU83: 3608 | EV83: 1694 | EW83: 3349 | EX83: 2938 | EY83: 2047 | EZ83: 4657 | FA83: 3674 | FB83: 2602 | FC83: 3896 | FD83: 4579 | FE83: 2637 | FF83: 1582 | FG83: 3048 | FH83: 476 | FI83: 4468 | FJ83: 1935 | FK83: 3102 | FL83: 4096 | FM83: 2741 | FN83: 1980 | FO83: 1892 | FP83: 2885 | FQ83: 3458 | FR83: 4067 | FS83: 3740 | FT83: 699 | FU83: 4079 | FV83: 3924 | FW83: 3511 | FX83: 52761 | FY83: 4170 | FZ83: 3957 | GA83: 3636 | GB83: 18628 | GC83: 4382 | GD83: 1772 | GE83: 2102 | GF83: 4321 | GG83: 2361 | GH83: 3245 | GI83: 1881 | GJ83: 4940 | GK83: 4249 | GL83: 4099 | GM83: 3799 | GN83: 2957 | GO83: 3360 | GP83: 1787 | GQ83: 4814 | GR83: 3832 | GS83: 2551 | GT83: 3235 | GU83: 4761 | GV83: 18853 | GW83: 4402 | GX83: 1884 | GY83: 3104 | GZ83: 1404 | HA83: 3918 | HB83: 4020 | HC83: 3834 | HD83: 3695 | HE83: 3685 | HF83: 3487 | HG83: 2346 | HH83: 3692 | HI83: 849421 | HJ83: 3969.257009
A84: PETIT-MARS | B84: 1922 | C84: 3697 | D84: 1904 | E84: 2023 | F84: 1387 | G84: 1521 | H84: 1761 | I84: 2321 | J84: 948 | K84: 1883 | L84: 1423 | M84: 4036 | N84: 3983 | O84: 3783 | P84: 1120 | Q84: 3689 | R84: 2275 | S84: 3715 | T84: 2912 | U84: 1901 | V84: 1905 | W84: 2405 | X84: 1229 | Y84: 1344 | Z84: 716 | AA84: 1537 | AB84: 2599 | AC84: 1682 | AD84: 1844 | AE84: 1698 | AF84: 3029 | AG84: 2991 | AH84: 1786 | AI84: 3008 | AJ84: 1724 | AK84: 1954 | AL84: 2521 | AM84: 993 | AN84: 3728 | AO84: 2281 | AP84: 2835 | AQ84: 2634 | AR84: 2047 | AS84: 3871 | AT84: 1280 | AU84: 1964 | AV84: 1511 | AW84: 2356 | AX84: 1625 | AY84: 2578 | AZ84: 2253 | BA84: 1544 | BB84: 3155 | BC84: 2608 | BD84: 4367 | BE84: 552 | BF84: 2459 | BG84: 1268 | BH84: 4614 | BI84: 3800 | BJ84: 2266 | BK84: 3968 | BL84: 1651 | BM84: 3259 | BN84: 520 | BO84: 3455 | BP84: 4956 | BQ84: 12167 | BR84: 2985 | BS84: 3382 | BT84: 4016 | BU84: 2751 | BV84: 3482 | BW84: 1527 | BX84: 2610 | BY84: 1101 | BZ84: 1150 | CA84: 2084 | CB84: 2257 | CC84: 2122 | CD84: 1267 | CE84: 3192 | CG84: 3433 | CH84: 2520 | CI84: 1955 | CJ84: 2247 | CK84: 2260 | CL84: 1908 | CM84: 2516 | CN84: 2600 | CO84: 2189 | CP84: 3617 | CQ84: 2791 | CR84: 3265 | CS84: 1839 | CT84: 3341 | CU84: 1914 | CV84: 1204 | CW84: 3097 | CX84: 4568 | CY84: 2277 | CZ84: 2266 | DA84: 1954 | DB84: 2224 | DC84: 2209 | DD84: 2380 | DE84: 2224 | DF84: 3336 | DG84: 2529 | DH84: 1383 | DI84: 3121 | DJ84: 2588 | DK84: 3091 | DL84: 3739 | DM84: 2949 | DN84: 1923 | DO84: 2699 | DP84: 3219 | DQ84: 3422 | DR84: 2226 | DS84: 2590 | DT84: 3295 | DU84: 2029 | DV84: 26326 | DW84: 2906 | DX84: 1747 | DY84: 429 | DZ84: 4327 | EA84: 1044 | EB84: 3162 | EC84: 778 | ED84: 3403 | EE84: 101076 | EF84: 2790 | EG84: 3236 | EH84: 1273 | EI84: 4939 | EJ84: 2643 | EK84: 1165 | EL84: 2897 | EM84: 2430 | EN84: 3041 | EO84: 1758 | EP84: 1924 | EQ84: 2689 | ER84: 1449 | ES84: 1545 | ET84: 2796 | EU84: 1911 | EV84: 1978 | EW84: 793 | EX84: 1743 | EY84: 4203 | EZ84: 2395 | FA84: 1207 | FB84: 4518 | FC84: 2463 | FD84: 3146 | FE84: 2678 | FF84: 1997 | FG84: 2454 | FH84: 3390 | FI84: 3035 | FJ84: 1701 | FK84: 2301 | FL84: 2399 | FM84: 2017 | FN84: 1938 | FO84: 1563 | FP84: 1216 | FQ84: 3448 | FR84: 2635 | FS84: 1336 | FT84: 2756 | FU84: 2069 | FV84: 3164 | FW84: 4298 | FX84: 51786 | FY84: 2302 | FZ84: 2888 | GA84: 1939 | GB84: 16762 | GC84: 2171 | GD84: 2354 | GE84: 1416 | GF84: 1996 | GG84: 2359 | GH84: 760 | GI84: 2542 | GJ84: 2764 | GK84: 2383 | GL84: 1812 | GM84: 2164 | GN84: 2033 | GO84: 2558 | GP84: 2520 | GQ84: 2638 | GR84: 1917 | GS84: 1856 | GT84: 1600 | GU84: 2550 | GV84: 17420 | GW84: 2497 | GX84: 2851 | GY84: 2687 | GZ84: 3162 | HA84: 1830 | HB84: 2807 | HC84: 2621 | HD84: 1498 | HE84: 2866 | HF84: 1851 | HG84: 2579 | HH84: 2957 | HI84: 727825 | HJ84: 3401.051402
A85: BOURGNEUF-EN-RETZ | B85: 2719 | C85: 2367 | D85: 2280 | E85: 2033 | F85: 2574 | G85: 2599 | H85: 2665 | I85: 2835 | J85: 2838 | K85: 1756 | L85: 2763 | M85: 2722 | N85: 2669 | O85: 1047 | P85: 2727 | Q85: 1511 | R85: 5062 | S85: 2400 | T85: 2891 | U85: 3659 | V85: 3302 | W85: 1559 | X85: 2966 | Y85: 2610 | Z85: 3540 | AA85: 2779 | AB85: 2828 | AC85: 2226 | AD85: 3242 | AE85: 3882 | AF85: 1981 | AG85: 2496 | AH85: 2524 | AI85: 2173 | AJ85: 3071 | AK85: 2742 | AL85: 3535 | AM85: 3064 | AN85: 3412 | AO85: 1457 | AP85: 920 | AQ85: 716 | AR85: 2129 | AS85: 2556 | AT85: 3005 | AU85: 2753 | AV85: 2909 | AW85: 1757 | AX85: 3332 | AY85: 4212 | AZ85: 1853 | BA85: 3121 | BB85: 3347 | BC85: 3693 | BD85: 3052 | BE85: 3723 | BF85: 1728 | BG85: 3782 | BH85: 3299 | BI85: 1112 | BJ85: 3289 | BK85: 3114 | BL85: 2969 | BM85: 1952 | BN85: 3461 | BO85: 1324 | BP85: 3642 | BQ85: 13301 | BR85: 550 | BS85: 2731 | BT85: 1294 | BU85: 2606 | BV85: 3193 | BW85: 3612 | BX85: 2968 | BY85: 3626 | BZ85: 3506 | CA85: 1918 | CB85: 2029 | CC85: 4306 | CD85: 3898 | CE85: 3637 | CF85: 3433 | CH85: 3608 | CI85: 2041 | CJ85: 3942 | CK85: 2592 | CL85: 3272 | CM85: 3227 | CN85: 2503 | CO85: 2938 | CP85: 1968 | CQ85: 3716 | CR85: 2334 | CS85: 2996 | CT85: 4476 | CU85: 3071 | CV85: 3020 | CW85: 1547 | CX85: 3238 | CY85: 2165 | CZ85: 3108 | DA85: 4990 | DB85: 2586 | DC85: 3366 | DD85: 1137 | DE85: 2857 | DF85: 2696 | DG85: 2705 | DH85: 3651 | DI85: 2547 | DJ85: 1246 | DK85: 3185 | DL85: 1927 | DM85: 4055 | DN85: 3080 | DO85: 2037 | DP85: 930 | DQ85: 688 | DR85: 1517 | DS85: 1218 | DT85: 4517 | DU85: 4006 | DV85: 28057 | DW85: 644 | DX85: 4298 | DY85: 3612 | DZ85: 2997 | EA85: 3577 | EB85: 4177 | EC85: 3960 | ED85: 1789 | EE85: 102806 | EF85: 1783 | EG85: 2968 | EH85: 4422 | EI85: 3608 | EJ85: 3191 | EK85: 3298 | EL85: 523 | EM85: 2921 | EN85: 3265 | EO85: 3201 | EP85: 3964 | EQ85: 1195 | ER85: 3749 | ES85: 4576 | ET85: 1107 | EU85: 3066 | EV85: 2689 | EW85: 3975 | EX85: 4245 | EY85: 3305 | EZ85: 4521 | FA85: 4222 | FB85: 3187 | FC85: 2796 | FD85: 1515 | FE85: 4472 | FF85: 3710 | FG85: 4584 | FH85: 3756 | FI85: 1345 | FJ85: 3414 | FK85: 1285 | FL85: 3556 | FM85: 4123 | FN85: 3882 | FO85: 3400 | FP85: 4268 | FQ85: 449 | FR85: 1106 | FS85: 4055 | FT85: 3325 | FU85: 3563 | FV85: 419 | FW85: 1591 | FX85: 53516 | FY85: 3655 | FZ85: 892 | GA85: 2784 | GB85: 18492 | GC85: 4246 | GD85: 4163 | GE85: 3323 | GF85: 4185 | GG85: 4193 | GH85: 3943 | GI85: 4237 | GJ85: 4804 | GK85: 3709 | GL85: 3963 | GM85: 5041 | GN85: 4420 | GO85: 1605 | GP85: 3080 | GQ85: 4678 | GR85: 4827 | GS85: 3825 | GT85: 4618 | GU85: 4625 | GV85: 17817 | GW85: 4718 | GX85: 2974 | GY85: 4817 | GZ85: 4734 | HA85: 4752 | HB85: 5483 | HC85: 5297 | HD85: 4453 | HE85: 5399 | HF85: 4869 | HG85: 4274 | HH85: 5475 | HI85: 868965 | HJ85: 4060.584112
A86: GETIGNE | B86: 2370 | C86: 4468 | D86: 2676 | E86: 2412 | F86: 1744 | G86: 2293 | H86: 1584 | I86: 3093 | J86: 1992 | K86: 2251 | L86: 2274 | M86: 4808 | N86: 4755 | O86: 4151 | P86: 1731 | Q86: 4461 | R86: 4696 | S86: 4486 | T86: 3684 | U86: 3370 | V86: 910 | W86: 2491 | X86: 1965 | Y86: 1487 | Z86: 3136 | AA86: 2473 | AB86: 3371 | AC86: 1906 | AD86: 1510 | AE86: 2458 | AF86: 3800 | AG86: 3763 | AH86: 2558 | AI86: 3780 | AJ86: 1755 | AK86: 2725 | AL86: 357 | AM86: 2388 | AN86: 4500 | AO86: 2650 | AP86: 2922 | AQ86: 3002 | AR86: 2151 | AS86: 4643 | AT86: 2700 | AU86: 2736 | AV86: 1531 | AW86: 2724 | AX86: 1968 | AY86: 4170 | AZ86: 2302 | BA86: 2815 | BB86: 3927 | BC86: 4032 | BD86: 5139 | BE86: 2811 | BF86: 2827 | BG86: 2948 | BH86: 5386 | BI86: 4168 | BJ86: 548 | BK86: 4740 | BL86: 1101 | BM86: 2620 | BN86: 2514 | BO86: 3823 | BP86: 5728 | BQ86: 11649 | BR86: 3353 | BS86: 4154 | BT86: 4384 | BU86: 1675 | BV86: 4254 | BW86: 3306 | BX86: 3382 | BY86: 2603 | BZ86: 3200 | CA86: 1741 | CB86: 2529 | CC86: 2938 | CD86: 2505 | CE86: 4217 | CF86: 2520 | CG86: 3608 | CI86: 1585 | CJ86: 3746 | CK86: 1029 | CL86: 3337 | CM86: 3345 | CN86: 3428 | CO86: 3018 | CP86: 4107 | CQ86: 4088 | CR86: 4093 | CS86: 993 | CT86: 4848 | CU86: 652 | CV86: 2216 | CW86: 3588 | CX86: 5397 | CY86: 1572 | CZ86: 3528 | DA86: 4344 | DB86: 1160 | DC86: 1254 | DD86: 2871 | DE86: 957 | DF86: 4165 | DG86: 3358 | DH86: 2673 | DI86: 3950 | DJ86: 3078 | DK86: 3876 | DL86: 4230 | DM86: 579 | DN86: 602 | DO86: 2308 | DP86: 3710 | DQ86: 3913 | DR86: 2716 | DS86: 3080 | DT86: 4889 | DU86: 2913 | DV86: 26923 | DW86: 3396 | DX86: 3551 | DY86: 2819 | DZ86: 5156 | EA86: 2773 | EB86: 4669 | EC86: 3167 | ED86: 3893 | EE86: 101672 | EF86: 2398 | EG86: 4065 | EH86: 3675 | EI86: 5768 | EJ86: 738 | EK86: 2857 | EL86: 3431 | EM86: 684 | EN86: 3869 | EO86: 3005 | EP86: 2807 | EQ86: 2745 | ER86: 3553 | ES86: 3934 | ET86: 2853 | EU86: 812 | EV86: 2807 | EW86: 3182 | EX86: 4049 | EY86: 5032 | EZ86: 3470 | FA86: 3418 | FB86: 5347 | FC86: 1030 | FD86: 2944 | FE86: 4276 | FF86: 3514 | FG86: 4388 | FH86: 4389 | FI86: 3091 | FJ86: 3218 | FK86: 2791 | FL86: 1159 | FM86: 3927 | FN86: 3686 | FO86: 3204 | FP86: 3606 | FQ86: 3960 | FR86: 2691 | FS86: 3309 | FT86: 3697 | FU86: 2022 | FV86: 3220 | FW86: 4789 | FX86: 52382 | FY86: 1519 | FZ86: 2944 | GA86: 1021 | GB86: 17358 | GC86: 3242 | GD86: 3967 | GE86: 3127 | GF86: 3227 | GG86: 3997 | GH86: 3149 | GI86: 4040 | GJ86: 3403 | GK86: 1471 | GL86: 3217 | GM86: 4294 | GN86: 4224 | GO86: 3048 | GP86: 3349 | GQ86: 3352 | GR86: 4080 | GS86: 3629 | GT86: 3989 | GU86: 3426 | GV86: 16422 | GW86: 3971 | GX86: 3680 | GY86: 4621 | GZ86: 4770 | HA86: 4006 | HB86: 5197 | HC86: 5011 | HD86: 3707 | HE86: 5202 | HF86: 4241 | HG86: 4077 | HH86: 5279 | HI86: 889540 | HJ86: 4156.728972
A87: LE BIGNON | B87: 1273 | C87: 3639 | D87: 1433 | E87: 1188 | F87: 1013 | G87: 1752 | H87: 874 | I87: 1989 | J87: 1426 | K87: 1027 | L87: 1708 | M87: 3979 | N87: 3925 | O87: 2927 | P87: 1166 | Q87: 3330 | R87: 4130 | S87: 3657 | T87: 2854 | U87: 2829 | V87: 1819 | W87: 924 | X87: 1404 | Y87: 1049 | Z87: 2571 | AA87: 1932 | AB87: 2542 | AC87: 518 | AD87: 1811 | AE87: 2482 | AF87: 2971 | AG87: 2934 | AH87: 1677 | AI87: 2950 | AJ87: 1509 | AK87: 1896 | AL87: 1481 | AM87: 1823 | AN87: 3670 | AO87: 1470 | AP87: 1354 | AQ87: 1759 | AR87: 664 | AS87: 3813 | AT87: 2159 | AU87: 1906 | AV87: 1259 | AW87: 1500 | AX87: 1771 | AY87: 3629 | AZ87: 735 | BA87: 2274 | BB87: 3097 | BC87: 3203 | BD87: 4309 | BE87: 2245 | BF87: 1603 | BG87: 2382 | BH87: 4556 | BI87: 2944 | BJ87: 1235 | BK87: 3910 | BL87: 1035 | BM87: 1606 | BN87: 1949 | BO87: 2599 | BP87: 4899 | BQ87: 11481 | BR87: 2129 | BS87: 3324 | BT87: 3203 | BU87: 1055 | BV87: 3424 | BW87: 2765 | BX87: 2552 | BY87: 2038 | BZ87: 2659 | CA87: 486 | CB87: 1042 | CC87: 2906 | CD87: 2336 | CE87: 3387 | CF87: 1955 | CG87: 2041 | CH87: 1585 | CJ87: 3088 | CK87: 573 | CL87: 2513 | CM87: 2469 | CN87: 2552 | CO87: 2141 | CP87: 2781 | CQ87: 3211 | CR87: 3217 | CS87: 1408 | CT87: 3971 | CU87: 1295 | CV87: 1557 | CW87: 2261 | CX87: 4520 | CY87: 447 | CZ87: 2651 | DA87: 3685 | DB87: 589 | DC87: 1860 | DD87: 1545 | DE87: 838 | DF87: 3288 | DG87: 2481 | DH87: 2246 | DI87: 3073 | DJ87: 1752 | DK87: 3000 | DL87: 2904 | DM87: 2036 | DN87: 1604 | DO87: 1117 | DP87: 2383 | DQ87: 2632 | DR87: 1390 | DS87: 1584 | DT87: 4012 | DU87: 2600 | DV87: 26651 | DW87: 2070 | DX87: 2893 | DY87: 2160 | DZ87: 4279 | EA87: 2114 | EB87: 3792 | EC87: 2509 | ED87: 2567 | EE87: 101401 | EF87: 1208 | EG87: 3189 | EH87: 3016 | EI87: 4891 | EJ87: 1172 | EK87: 2199 | EL87: 1863 | EM87: 902 | EN87: 2993 | EO87: 2346 | EP87: 2558 | EQ87: 1177 | ER87: 2895 | ES87: 3276 | ET87: 1284 | EU87: 1047 | EV87: 1930 | EW87: 2524 | EX87: 3390 | EY87: 4155 | EZ87: 3116 | FA87: 2759 | FB87: 4470 | FC87: 777 | FD87: 1634 | FE87: 3617 | FF87: 2855 | FG87: 3729 | FH87: 3512 | FI87: 1523 | FJ87: 2559 | FK87: 1465 | FL87: 2093 | FM87: 3269 | FN87: 3028 | FO87: 2546 | FP87: 2947 | FQ87: 2392 | FR87: 1123 | FS87: 2650 | FT87: 2820 | FU87: 2100 | FV87: 1652 | FW87: 3534 | FX87: 52111 | FY87: 2192 | FZ87: 1376 | GA87: 812 | GB87: 17087 | GC87: 2841 | GD87: 3308 | GE87: 2468 | GF87: 2780 | GG87: 3339 | GH87: 2491 | GI87: 3382 | GJ87: 3399 | GK87: 2311 | GL87: 2558 | GM87: 3635 | GN87: 3565 | GO87: 1722 | GP87: 2472 | GQ87: 3272 | GR87: 3422 | GS87: 2971 | GT87: 3331 | GU87: 3220 | GV87: 16132 | GW87: 3313 | GX87: 2803 | GY87: 3962 | GZ87: 4111 | HA87: 3347 | HB87: 4538 | HC87: 4352 | HD87: 3048 | HE87: 4544 | HF87: 3582 | HG87: 3419 | HH87: 4620 | HI87: 740046 | HJ87: 3458.158879
A88: DERVAL | B88: 2822 | C88: 3792 | D88: 2537 | E88: 2656 | F88: 2617 | G88: 1978 | H88: 2992 | I88: 2948 | J88: 2322 | K88: 2516 | L88: 2149 | M88: 4132 | N88: 4079 | O88: 4416 | P88: 2354 | Q88: 3785 | R88: 1618 | S88: 3810 | T88: 2648 | U88: 1471 | V88: 3135 | W88: 3635 | X88: 2673 | Y88: 2574 | Z88: 1590 | AA88: 1692 | AB88: 2557 | AC88: 2825 | AD88: 3075 | AE88: 3303 | AF88: 3124 | AG88: 3087 | AH88: 2277 | AI88: 3103 | AJ88: 2928 | AK88: 2587 | AL88: 3751 | AM88: 2009 | AN88: 3348 | AO88: 2915 | AP88: 3935 | AQ88: 3267 | AR88: 3117 | AS88: 3967 | AT88: 1220 | AU88: 2028 | AV88: 2741 | AW88: 2989 | AX88: 3180 | AY88: 703 | AZ88: 3542 | BA88: 1576 | BB88: 2438 | BC88: 1195 | BD88: 4463 | BE88: 2385 | BF88: 3092 | BG88: 2939 | BH88: 4607 | BI88: 3924 | BJ88: 3496 | BK88: 3629 | BL88: 2882 | BM88: 4489 | BN88: 2646 | BO88: 4088 | BP88: 5052 | BQ88: 13526 | BR88: 3618 | BS88: 3277 | BT88: 4408 | BU88: 3981 | BV88: 3077 | BW88: 790 | BX88: 2165 | BY88: 3111 | BZ88: 1154 | CA88: 3314 | CB88: 2890 | CC88: 3726 | CD88: 3212 | CE88: 2026 | CF88: 2247 | CG88: 3942 | CH88: 3746 | CI88: 3088 | CK88: 3456 | CL88: 1780 | CM88: 2916 | CN88: 2534 | CO88: 2378 | CP88: 4083 | CQ88: 1597 | CR88: 3199 | CS88: 3011 | CT88: 1565 | CU88: 3087 | CV88: 2842 | CW88: 3663 | CX88: 4502 | CY88: 3474 | CZ88: 1892 | DA88: 1636 | DB88: 3420 | DC88: 3382 | DD88: 2946 | DE88: 3397 | DF88: 3122 | DG88: 2376 | DH88: 2924 | DI88: 2767 | DJ88: 3154 | DK88: 2111 | DL88: 3895 | DM88: 4121 | DN88: 3096 | DO88: 3896 | DP88: 3785 | DQ88: 3988 | DR88: 2792 | DS88: 3156 | DT88: 1365 | DU88: 3552 | DV88: 27668 | DW88: 3472 | DX88: 2657 | DY88: 1950 | DZ88: 3945 | EA88: 2699 | EB88: 1666 | EC88: 1716 | ED88: 3968 | EE88: 101493 | EF88: 3987 | EG88: 2896 | EH88: 2169 | EI88: 4756 | EJ88: 3816 | EK88: 1596 | EL88: 3463 | EM88: 3603 | EN88: 2247 | EO88: 1609 | EP88: 3465 | EQ88: 3737 | ER88: 1155 | ES88: 1503 | ET88: 3993 | EU88: 3083 | EV88: 2338 | EW88: 2213 | EX88: 1171 | EY88: 3705 | EZ88: 3427 | FA88: 2434 | FB88: 4260 | FC88: 3660 | FD88: 4343 | FE88: 694 | FF88: 1161 | FG88: 1100 | FH88: 1894 | FI88: 4232 | FJ88: 802 | FK88: 2867 | FL88: 3572 | FM88: 793 | FN88: 679 | FO88: 1116 | FP88: 1619 | FQ88: 4014 | FR88: 3832 | FS88: 2488 | FT88: 1777 | FU88: 3554 | FV88: 3902 | FW88: 4727 | FX88: 51080 | FY88: 3646 | FZ88: 3721 | GA88: 3112 | GB88: 18104 | GC88: 3471 | GD88: 491 | GE88: 833 | GF88: 3149 | GG88: 413 | GH88: 2005 | GI88: 512 | GJ88: 4146 | GK88: 3725 | GL88: 2968 | GM88: 1884 | GN88: 1008 | GO88: 3124 | GP88: 2754 | GQ88: 4178 | GR88: 2103 | GS88: 777 | GT88: 1839 | GU88: 3750 | GV88: 18617 | GW88: 2674 | GX88: 2762 | GY88: 1161 | GZ88: 1233 | HA88: 2406 | HB88: 2071 | HC88: 1885 | HD88: 2406 | HE88: 1742 | HF88: 1886 | HG88: 343 | HH88: 1819 | HI88: 810062 | HJ88: 3785.336449
A89: AIGREFEUILLE-SUR-MAINE | B89: 1578 | C89: 3943 | D89: 1738 | E89: 1492 | F89: 1317 | G89: 2057 | H89: 1089 | I89: 2293 | J89: 1731 | K89: 1331 | L89: 2013 | M89: 4283 | N89: 4230 | O89: 3231 | P89: 1471 | Q89: 3635 | R89: 4435 | S89: 3961 | T89: 3159 | U89: 3134 | V89: 1398 | W89: 1475 | X89: 1709 | Y89: 1354 | Z89: 2876 | AA89: 2237 | AB89: 2846 | AC89: 889 | AD89: 1494 | AE89: 2787 | AF89: 3275 | AG89: 3238 | AH89: 1981 | AI89: 3255 | AJ89: 1739 | AK89: 2200 | AL89: 924 | AM89: 2128 | AN89: 3975 | AO89: 1730 | AP89: 1905 | AQ89: 2082 | AR89: 1135 | AS89: 4118 | AT89: 2463 | AU89: 2211 | AV89: 1474 | AW89: 1804 | AX89: 2022 | AY89: 3934 | AZ89: 1286 | BA89: 2579 | BB89: 3402 | BC89: 3507 | BD89: 4614 | BE89: 2550 | BF89: 1907 | BG89: 2687 | BH89: 4861 | BI89: 3249 | BJ89: 698 | BK89: 4215 | BL89: 871 | BM89: 1729 | BN89: 2253 | BO89: 2903 | BP89: 5203 | BQ89: 11268 | BR89: 2434 | BS89: 3629 | BT89: 3465 | BU89: 875 | BV89: 3729 | BW89: 3070 | BX89: 2857 | BY89: 2343 | BZ89: 2964 | CA89: 725 | CB89: 1513 | CC89: 3210 | CD89: 2641 | CE89: 3692 | CF89: 2260 | CG89: 2592 | CH89: 1029 | CI89: 573 | CJ89: 3456 | CL89: 2811 | CM89: 2766 | CN89: 2849 | CO89: 2438 | CP89: 3078 | CQ89: 3509 | CR89: 3514 | CS89: 974 | CT89: 4269 | CU89: 860 | CV89: 1855 | CW89: 2559 | CX89: 4818 | CY89: 543 | CZ89: 2948 | DA89: 3983 | DB89: 602 | DC89: 1426 | DD89: 1842 | DE89: 403 | DF89: 3586 | DG89: 2778 | DH89: 2543 | DI89: 3370 | DJ89: 2050 | DK89: 3297 | DL89: 3201 | DM89: 1463 | DN89: 1031 | DO89: 1279 | DP89: 2681 | DQ89: 2884 | DR89: 1687 | DS89: 2052 | DT89: 4310 | DU89: 2898 | DV89: 26949 | DW89: 2367 | DX89: 3190 | DY89: 2458 | DZ89: 4577 | EA89: 2411 | EB89: 4090 | EC89: 2806 | ED89: 2864 | EE89: 101698 | EF89: 1370 | EG89: 3486 | EH89: 3314 | EI89: 5188 | EJ89: 599 | EK89: 2496 | EL89: 2402 | EM89: 329 | EN89: 3290 | EO89: 2644 | EP89: 2856 | EQ89: 1717 | ER89: 3192 | ES89: 3573 | ET89: 1824 | EU89: 612 | EV89: 2227 | EW89: 2821 | EX89: 3687 | EY89: 4453 | EZ89: 3413 | FA89: 3057 | FB89: 4767 | FC89: 204 | FD89: 2041 | FE89: 3914 | FF89: 3153 | FG89: 4027 | FH89: 3809 | FI89: 2062 | FJ89: 2857 | FK89: 1762 | FL89: 1687 | FM89: 3566 | FN89: 3325 | FO89: 2843 | FP89: 3245 | FQ89: 2931 | FR89: 1662 | FS89: 2947 | FT89: 3118 | FU89: 2091 | FV89: 2191 | FW89: 3760 | FX89: 52408 | FY89: 1840 | FZ89: 1915 | GA89: 772 | GB89: 17384 | GC89: 3138 | GD89: 3606 | GE89: 2765 | GF89: 3077 | GG89: 3636 | GH89: 2788 | GI89: 3679 | GJ89: 3696 | GK89: 1877 | GL89: 2855 | GM89: 3933 | GN89: 3863 | GO89: 2020 | GP89: 2770 | GQ89: 3570 | GR89: 3719 | GS89: 3268 | GT89: 3628 | GU89: 3517 | GV89: 15833 | GW89: 3610 | GX89: 3100 | GY89: 4259 | GZ89: 4408 | HA89: 3644 | HB89: 4835 | HC89: 4649 | HD89: 3345 | HE89: 4841 | HF89: 3880 | HG89: 3716 | HH89: 4918 | HI89: 789459 | HJ89: 3689.060748
A90: FAY-DE-BRETAGNE | B90: 2412 | C90: 2215 | D90: 1655 | E90: 1986 | F90: 2208 | G90: 1568 | H90: 2540 | I90: 1717 | J90: 1913 | K90: 1846 | L90: 1689 | M90: 2555 | N90: 2502 | O90: 2914 | P90: 1944 | Q90: 2208 | R90: 2844 | S90: 2233 | T90: 1543 | U90: 503 | V90: 2725 | W90: 3061 | X90: 2263 | Y90: 2165 | Z90: 1274 | AA90: 1218 | AB90: 1076 | AC90: 2154 | AD90: 2665 | AE90: 2963 | AF90: 1547 | AG90: 1510 | AH90: 1322 | AI90: 1527 | AJ90: 2518 | AK90: 1048 | AL90: 3341 | AM90: 1573 | AN90: 2340 | AO90: 2244 | AP90: 3264 | AQ90: 2597 | AR90: 2447 | AS90: 2390 | AT90: 613 | AU90: 954 | AV90: 2332 | AW90: 2319 | AX90: 2771 | AY90: 1455 | AZ90: 2872 | BA90: 1135 | BB90: 1766 | BC90: 908 | BD90: 2886 | BE90: 2046 | BF90: 2422 | BG90: 2533 | BH90: 3133 | BI90: 2347 | BJ90: 3086 | BK90: 2580 | BL90: 2472 | BM90: 3915 | BN90: 2306 | BO90: 2627 | BP90: 3475 | BQ90: 13116 | BR90: 2948 | BS90: 1901 | BT90: 2831 | BU90: 3407 | BV90: 2093 | BW90: 1394 | BX90: 854 | BY90: 2701 | BZ90: 1266 | CA90: 2740 | CB90: 2220 | CC90: 3387 | CD90: 2872 | CE90: 1498 | CF90: 1908 | CG90: 3272 | CH90: 3337 | CI90: 2513 | CJ90: 1780 | CK90: 2811 | CM90: 1197 | CN90: 1088 | CO90: 766 | CP90: 2638 | CQ90: 1103 | CR90: 1753 | CS90: 2596 | CT90: 1653 | CU90: 2672 | CV90: 2427 | CW90: 2959 | CX90: 3057 | CY90: 2770 | CZ90: 409 | DA90: 2881 | DB90: 2717 | DC90: 2967 | DD90: 2242 | DE90: 2982 | DF90: 1831 | DG90: 1027 | DH90: 2610 | DI90: 1610 | DJ90: 2450 | DK90: 1312 | DL90: 2449 | DM90: 3706 | DN90: 2681 | DO90: 3192 | DP90: 3081 | DQ90: 3119 | DR90: 2088 | DS90: 2452 | DT90: 1700 | DU90: 3256 | DV90: 27253 | DW90: 2768 | DX90: 2878 | DY90: 1636 | DZ90: 2816 | EA90: 2385 | EB90: 1474 | EC90: 1849 | ED90: 2686 | EE90: 102003 | EF90: 3283 | EG90: 1770 | EH90: 2404 | EI90: 3428 | EJ90: 3352 | EK90: 1161 | EL90: 2759 | EM90: 3082 | EN90: 1574 | EO90: 471 | EP90: 3151 | EQ90: 3033 | ER90: 1658 | ES90: 2471 | ET90: 3290 | EU90: 2668 | EV90: 619 | EW90: 2019 | EX90: 2105 | EY90: 2736 | EZ90: 3621 | FA90: 2434 | FB90: 3007 | FC90: 2957 | FD90: 3639 | FE90: 2332 | FF90: 918 | FG90: 2444 | FH90: 1702 | FI90: 3528 | FJ90: 1064 | FK90: 2163 | FL90: 3157 | FM90: 1984 | FN90: 1582 | FO90: 991 | FP90: 2177 | FQ90: 3229 | FR90: 3128 | FS90: 2562 | FT90: 977 | FU90: 3139 | FV90: 3198 | FW90: 3282 | FX90: 52631 | FY90: 3231 | FZ90: 3018 | GA90: 2697 | GB90: 17689 | GC90: 3398 | GD90: 1768 | GE90: 1231 | GF90: 3223 | GG90: 2054 | GH90: 1987 | GI90: 1950 | GJ90: 3991 | GK90: 3310 | GL90: 3039 | GM90: 3090 | GN90: 2280 | GO90: 2420 | GP90: 1149 | GQ90: 3864 | GR90: 3049 | GS90: 1686 | GT90: 2526 | GU90: 3777 | GV90: 17913 | GW90: 3612 | GX90: 1317 | GY90: 2677 | GZ90: 1917 | HA90: 2962 | HB90: 3343 | HC90: 3157 | HD90: 2629 | HE90: 3259 | HF90: 2778 | HG90: 2134 | HH90: 3335 | HI90: 719558 | HJ90: 3362.420561
A91: CORDEMAIS | B91: 2434 | C91: 2309 | D91: 1610 | E91: 1941 | F91: 2216 | G91: 1682 | H91: 2495 | I91: 1485 | J91: 1921 | K91: 1801 | L91: 1847 | M91: 2649 | N91: 2595 | O91: 3007 | P91: 1953 | Q91: 2301 | R91: 3979 | S91: 2327 | T91: 1562 | U91: 1639 | V91: 2734 | W91: 3016 | X91: 2272 | Y91: 2173 | Z91: 2420 | AA91: 1624 | AB91: 824 | AC91: 2110 | AD91: 2673 | AE91: 2966 | AF91: 1641 | AG91: 1529 | AH91: 1246 | AI91: 1620 | AJ91: 2527 | AK91: 693 | AL91: 3350 | AM91: 2148 | AN91: 2378 | AO91: 2200 | AP91: 3220 | AQ91: 2552 | AR91: 2402 | AS91: 2483 | AT91: 1759 | AU91: 948 | AV91: 2340 | AW91: 2274 | AX91: 2779 | AY91: 2465 | AZ91: 2827 | BA91: 1802 | BB91: 1805 | BC91: 1946 | BD91: 2979 | BE91: 2807 | BF91: 2377 | BG91: 2866 | BH91: 3226 | BI91: 2441 | BJ91: 3095 | BK91: 2618 | BL91: 2481 | BM91: 3870 | BN91: 2545 | BO91: 2720 | BP91: 3569 | BQ91: 13125 | BR91: 2903 | BS91: 1994 | BT91: 2924 | BU91: 3362 | BV91: 2132 | BW91: 2529 | BX91: 1260 | BY91: 2710 | BZ91: 2412 | CA91: 2695 | CB91: 2175 | CC91: 3389 | CD91: 2997 | CE91: 2095 | CF91: 2516 | CG91: 3227 | CH91: 3345 | CI91: 2469 | CJ91: 2916 | CK91: 2766 | CL91: 1197 | CN91: 1176 | CO91: 772 | CP91: 2726 | CQ91: 1888 | CR91: 1841 | CS91: 2502 | CT91: 2648 | CU91: 2577 | CV91: 2333 | CW91: 2865 | CX91: 3145 | CY91: 2676 | CZ91: 1282 | DA91: 3883 | DB91: 2623 | DC91: 2873 | DD91: 2148 | DE91: 2888 | DF91: 1919 | DG91: 1069 | DH91: 2754 | DI91: 1698 | DJ91: 2356 | DK91: 1676 | DL91: 2537 | DM91: 3612 | DN91: 2587 | DO91: 3098 | DP91: 2987 | DQ91: 3207 | DR91: 1994 | DS91: 2358 | DT91: 2689 | DU91: 3108 | DV91: 27159 | DW91: 2674 | DX91: 3401 | DY91: 2669 | DZ91: 2904 | EA91: 2889 | EB91: 2469 | EC91: 2882 | ED91: 2774 | EE91: 101909 | EF91: 3189 | EG91: 1865 | EH91: 3436 | EI91: 3516 | EJ91: 3257 | EK91: 2128 | EL91: 2665 | EM91: 2988 | EN91: 1669 | EO91: 1205 | EP91: 3066 | EQ91: 2939 | ER91: 2643 | ES91: 3469 | ET91: 3196 | EU91: 2574 | EV91: 584 | EW91: 3052 | EX91: 3138 | EY91: 2832 | EZ91: 3624 | FA91: 3325 | FB91: 3095 | FC91: 2863 | FD91: 3545 | FE91: 3365 | FF91: 2006 | FG91: 3477 | FH91: 2189 | FI91: 3434 | FJ91: 2152 | FK91: 2069 | FL91: 3062 | FM91: 3017 | FN91: 2670 | FO91: 2079 | FP91: 3161 | FQ91: 3317 | FR91: 3034 | FS91: 3158 | FT91: 1497 | FU91: 3045 | FV91: 3104 | FW91: 3370 | FX91: 52619 | FY91: 3137 | FZ91: 2923 | GA91: 2603 | GB91: 17595 | GC91: 3349 | GD91: 2856 | GE91: 2216 | GF91: 3288 | GG91: 3086 | GH91: 3019 | GI91: 2939 | GJ91: 3907 | GK91: 3216 | GL91: 3066 | GM91: 4075 | GN91: 3313 | GO91: 2326 | GP91: 404 | GQ91: 3780 | GR91: 3930 | GS91: 2718 | GT91: 3511 | GU91: 3728 | GV91: 17819 | GW91: 3820 | GX91: 736 | GY91: 3710 | GZ91: 2906 | HA91: 3855 | HB91: 4376 | HC91: 4190 | HD91: 3556 | HE91: 4292 | HF91: 3762 | HG91: 3167 | HH91: 4368 | HI91: 777686 | HJ91: 3634.046729
A92: PRINQUIAU | B92: 2517 | C92: 1383 | D92: 1693 | E92: 2024 | F92: 2299 | G92: 1766 | H92: 2579 | I92: 1755 | J92: 2004 | K92: 1884 | L92: 1930 | M92: 1723 | N92: 1669 | O92: 2081 | P92: 2036 | Q92: 1375 | R92: 3679 | S92: 1401 | T92: 780 | U92: 1339 | V92: 2817 | W92: 3099 | X92: 2355 | Y92: 2257 | Z92: 2311 | AA92: 1690 | AB92: 508 | AC92: 2193 | AD92: 2757 | AE92: 3049 | AF92: 715 | AG92: 704 | AH92: 1343 | AI92: 694 | AJ92: 2610 | AK92: 1257 | AL92: 3433 | AM92: 2231 | AN92: 1597 | AO92: 2283 | AP92: 3295 | AQ92: 2635 | AR92: 2485 | AS92: 1557 | AT92: 1651 | AU92: 1014 | AV92: 2424 | AW92: 2357 | AX92: 2862 | AY92: 1892 | AZ92: 2910 | BA92: 1868 | BB92: 1023 | BC92: 1373 | BD92: 2053 | BE92: 2890 | BF92: 2460 | BG92: 2949 | BH92: 2300 | BI92: 1515 | BJ92: 3178 | BK92: 1837 | BL92: 2564 | BM92: 3953 | BN92: 2628 | BO92: 1794 | BP92: 2643 | BQ92: 13208 | BR92: 2424 | BS92: 1068 | BT92: 1998 | BU92: 3445 | BV92: 1351 | BW92: 2229 | BX92: 498 | BY92: 2793 | BZ92: 2260 | CA92: 2778 | CB92: 2258 | CC92: 3472 | CD92: 3081 | CE92: 1314 | CF92: 2600 | CG92: 2503 | CH92: 3428 | CI92: 2552 | CJ92: 2534 | CK92: 2849 | CL92: 1088 | CM92: 1176 | CO92: 687 | CP92: 1761 | CQ92: 1256 | CR92: 876 | CS92: 2655 | CT92: 2043 | CU92: 2731 | CV92: 2486 | CW92: 2317 | CX92: 2180 | CY92: 2830 | CZ92: 857 | DA92: 3728 | DB92: 2776 | DC92: 3026 | DD92: 2302 | DE92: 3041 | DF92: 954 | DG92: 465 | DH92: 2907 | DI92: 577 | DJ92: 2509 | DK92: 930 | DL92: 1572 | DM92: 3765 | DN92: 2740 | DO92: 3252 | DP92: 2291 | DQ92: 2242 | DR92: 2147 | DS92: 2511 | DT92: 2124 | DU92: 3262 | DV92: 27313 | DW92: 2607 | DX92: 3554 | DY92: 2645 | DZ92: 1939 | EA92: 3043 | EB92: 1807 | EC92: 2857 | ED92: 1809 | EE92: 102062 | EF92: 3342 | EG92: 1090 | EH92: 3412 | EI92: 2550 | EJ92: 3411 | EK92: 2170 | EL92: 2889 | EM92: 3141 | EN92: 895 | EO92: 1345 | EP92: 3220 | EQ92: 3093 | ER92: 2505 | ES92: 3318 | ET92: 3349 | EU92: 2728 | EV92: 814 | EW92: 3028 | EX92: 3009 | EY92: 2057 | EZ92: 3777 | FA92: 3442 | FB92: 2130 | FC92: 3016 | FD92: 3699 | FE92: 3231 | FF92: 1764 | FG92: 3349 | FH92: 1414 | FI92: 3588 | FJ92: 1911 | FK92: 2222 | FL92: 3216 | FM92: 2888 | FN92: 2429 | FO92: 1837 | FP92: 3023 | FQ92: 2352 | FR92: 3187 | FS92: 3311 | FT92: 875 | FU92: 3199 | FV92: 2818 | FW92: 2405 | FX92: 52772 | FY92: 3290 | FZ92: 3077 | GA92: 2756 | GB92: 17748 | GC92: 3502 | GD92: 2366 | GE92: 2078 | GF92: 3441 | GG92: 2956 | GH92: 2995 | GI92: 2475 | GJ92: 4060 | GK92: 3369 | GL92: 3219 | GM92: 3937 | GN92: 3185 | GO92: 2480 | GP92: 829 | GQ92: 3934 | GR92: 3970 | GS92: 2590 | GT92: 3373 | GU92: 3881 | GV92: 17973 | GW92: 3974 | GX92: 749 | GY92: 3581 | GZ92: 2442 | HA92: 3971 | HB92: 4248 | HC92: 4062 | HD92: 3638 | HE92: 4163 | HF92: 3625 | HG92: 2940 | HH92: 4286 | HI92: 738657 | HJ92: 3451.668224
A93: MALVILLE | B93: 2107 | C93: 1819 | D93: 1282 | E93: 1613 | F93: 1889 | G93: 1355 | H93: 2168 | I93: 1344 | J93: 1594 | K93: 1473 | L93: 1519 | M93: 2158 | N93: 2105 | O93: 2517 | P93: 1625 | Q93: 1811 | R93: 3441 | S93: 1837 | T93: 1034 | U93: 1101 | V93: 2406 | W93: 2689 | X93: 1944 | Y93: 1846 | Z93: 1973 | AA93: 1279 | AB93: 684 | AC93: 1782 | AD93: 2346 | AE93: 2638 | AF93: 1151 | AG93: 1113 | AH93: 933 | AI93: 1130 | AJ93: 2199 | AK93: 846 | AL93: 3022 | AM93: 1820 | AN93: 1850 | AO93: 1872 | AP93: 2892 | AQ93: 2225 | AR93: 2074 | AS93: 1993 | AT93: 1313 | AU93: 603 | AV93: 2013 | AW93: 1946 | AX93: 2452 | AY93: 1801 | AZ93: 2500 | BA93: 1457 | BB93: 1277 | BC93: 1281 | BD93: 2489 | BE93: 2479 | BF93: 2049 | BG93: 2538 | BH93: 2736 | BI93: 1951 | BJ93: 2767 | BK93: 2090 | BL93: 2153 | BM93: 3542 | BN93: 2217 | BO93: 2230 | BP93: 3079 | BQ93: 12797 | BR93: 2576 | BS93: 1504 | BT93: 2434 | BU93: 3034 | BV93: 1604 | BW93: 1991 | BX93: 732 | BY93: 2382 | BZ93: 2022 | CA93: 2367 | CB93: 1848 | CC93: 3062 | CD93: 2670 | CE93: 1563 | CF93: 2189 | CG93: 2938 | CH93: 3018 | CI93: 2141 | CJ93: 2378 | CK93: 2438 | CL93: 766 | CM93: 772 | CN93: 687 | CP93: 2227 | CQ93: 1258 | CR93: 1343 | CS93: 2307 | CT93: 2018 | CU93: 2382 | CV93: 2137 | CW93: 2670 | CX93: 2647 | CY93: 2481 | CZ93: 567 | DA93: 3437 | DB93: 2427 | DC93: 2678 | DD93: 1953 | DE93: 2693 | DF93: 1415 | DG93: 607 | DH93: 2559 | DI93: 1199 | DJ93: 2161 | DK93: 1126 | DL93: 2039 | DM93: 3417 | DN93: 2391 | DO93: 2903 | DP93: 2758 | DQ93: 2709 | DR93: 1799 | DS93: 2163 | DT93: 2059 | DU93: 2913 | DV93: 26964 | DW93: 2479 | DX93: 3205 | DY93: 2289 | DZ93: 2406 | EA93: 2694 | EB93: 1839 | EC93: 2502 | ED93: 2276 | EE93: 101714 | EF93: 2994 | EG93: 1315 | EH93: 3056 | EI93: 3017 | EJ93: 3062 | EK93: 1814 | EL93: 2470 | EM93: 2793 | EN93: 1119 | EO93: 997 | EP93: 2871 | EQ93: 2744 | ER93: 2214 | ES93: 3027 | ET93: 3000 | EU93: 2379 | EV93: 465 | EW93: 2672 | EX93: 2719 | EY93: 2282 | EZ93: 3429 | FA93: 3087 | FB93: 2596 | FC93: 2667 | FD93: 3350 | FE93: 2946 | FF93: 1474 | FG93: 3058 | FH93: 1638 | FI93: 3239 | FJ93: 1620 | FK93: 1874 | FL93: 2867 | FM93: 2597 | FN93: 2138 | FO93: 1547 | FP93: 2733 | FQ93: 2819 | FR93: 2839 | FS93: 2963 | FT93: 867 | FU93: 2850 | FV93: 2909 | FW93: 2871 | FX93: 52424 | FY93: 2942 | FZ93: 2728 | GA93: 2408 | GB93: 17399 | GC93: 3153 | GD93: 2200 | GE93: 1787 | GF93: 3093 | GG93: 2667 | GH93: 2639 | GI93: 2309 | GJ93: 3712 | GK93: 3021 | GL93: 2871 | GM93: 3646 | GN93: 2894 | GO93: 2131 | GP93: 517 | GQ93: 3585 | GR93: 3679 | GS93: 2299 | GT93: 3082 | GU93: 3532 | GV93: 17624 | GW93: 3625 | GX93: 847 | GY93: 3291 | GZ93: 2276 | HA93: 3615 | HB93: 3957 | HC93: 3771 | HD93: 3282 | HE93: 3873 | HF93: 3334 | HG93: 2748 | HH93: 3949 | HI93: 702084 | HJ93: 3280.766355
A94: PAIMBOEUF | B94: 2903 | C94: 1597 | D94: 2464 | E94: 2216 | F94: 2758 | G94: 2783 | H94: 2808 | I94: 3019 | J94: 3022 | K94: 1940 | L94: 2947 | M94: 1951 | N94: 1898 | O94: 1466 | P94: 2911 | Q94: 859 | R94: 5246 | S94: 1629 | T94: 2121 | U94: 2888 | V94: 3486 | W94: 3056 | X94: 3150 | Y94: 2794 | Z94: 3723 | AA94: 2963 | AB94: 2058 | AC94: 2422 | AD94: 3426 | AE94: 4066 | AF94: 1211 | AG94: 1725 | AH94: 2707 | AI94: 1403 | AJ94: 3254 | AK94: 2807 | AL94: 4002 | AM94: 3248 | AN94: 2641 | AO94: 2061 | AP94: 2674 | AQ94: 1912 | AR94: 2523 | AS94: 1786 | AT94: 3189 | AU94: 2563 | AV94: 3093 | AW94: 1740 | AX94: 3516 | AY94: 3442 | AZ94: 2957 | BA94: 3305 | BB94: 2576 | BC94: 2923 | BD94: 2282 | BE94: 3907 | BF94: 1749 | BG94: 3966 | BH94: 2529 | BI94: 1015 | BJ94: 3777 | BK94: 2343 | BL94: 3160 | BM94: 3706 | BN94: 3645 | BO94: 676 | BP94: 2871 | BQ94: 13677 | BR94: 1444 | BS94: 1960 | BT94: 1549 | BU94: 3674 | BV94: 2422 | BW94: 3796 | BX94: 2198 | BY94: 3810 | BZ94: 3690 | CA94: 3007 | CB94: 2287 | CC94: 4489 | CD94: 4082 | CE94: 2867 | CF94: 3617 | CG94: 1968 | CH94: 4107 | CI94: 2781 | CJ94: 4083 | CK94: 3078 | CL94: 2638 | CM94: 2726 | CN94: 1761 | CO94: 2227 | CQ94: 2870 | CR94: 1488 | CS94: 3314 | CT94: 3630 | CU94: 3390 | CV94: 3339 | CW94: 715 | CX94: 2392 | CY94: 3094 | CZ94: 2263 | DA94: 5133 | DB94: 3041 | DC94: 3685 | DD94: 2008 | DE94: 3342 | DF94: 1851 | DG94: 1859 | DH94: 3970 | DI94: 1701 | DJ94: 1175 | DK94: 2339 | DL94: 226 | DM94: 4425 | DN94: 3399 | DO94: 3516 | DP94: 1047 | DQ94: 1535 | DR94: 1766 | DS94: 2220 | DT94: 3671 | DU94: 4325 | DV94: 28376 | DW94: 1480 | DX94: 4617 | DY94: 3931 | DZ94: 2151 | EA94: 3896 | EB94: 3331 | EC94: 4279 | ED94: 346 | EE94: 103125 | EF94: 3514 | EG94: 2122 | EH94: 4741 | EI94: 2763 | EJ94: 3676 | EK94: 3617 | EL94: 1756 | EM94: 3406 | EN94: 2419 | EO94: 2751 | EP94: 4283 | EQ94: 2616 | ER94: 3910 | ES94: 4723 | ET94: 2837 | EU94: 3387 | EV94: 2219 | EW94: 4294 | EX94: 4415 | EY94: 2460 | EZ94: 4840 | FA94: 4541 | FB94: 2342 | FC94: 3281 | FD94: 3246 | FE94: 4677 | FF94: 3170 | FG94: 4754 | FH94: 2910 | FI94: 3076 | FJ94: 3316 | FK94: 2099 | FL94: 3875 | FM94: 4294 | FN94: 3834 | FO94: 3243 | FP94: 4429 | FQ94: 1695 | FR94: 2837 | FS94: 4374 | FT94: 2479 | FU94: 3882 | FV94: 2153 | FW94: 1947 | FX94: 53835 | FY94: 3974 | FZ94: 2614 | GA94: 3151 | GB94: 18811 | GC94: 4565 | GD94: 3812 | GE94: 3484 | GF94: 4504 | GG94: 4402 | GH94: 4262 | GI94: 3921 | GJ94: 5123 | GK94: 4028 | GL94: 4282 | GM94: 5360 | GN94: 4590 | GO94: 1450 | GP94: 2235 | GQ94: 4997 | GR94: 5146 | GS94: 3996 | GT94: 4778 | GU94: 4944 | GV94: 18237 | GW94: 5037 | GX94: 2128 | GY94: 4987 | GZ94: 3888 | HA94: 5071 | HB94: 5653 | HC94: 5467 | HD94: 4772 | HE94: 5569 | HF94: 5030 | HG94: 4386 | HH94: 5645 | HI94: 886990 | HJ94: 4144.813084
A95: GUENROUET | B95: 3177 | C95: 2596 | D95: 2352 | E95: 2683 | F95: 2959 | G95: 2425 | H95: 3238 | I95: 2415 | J95: 2664 | K95: 2544 | L95: 2589 | M95: 2941 | N95: 2882 | O95: 3294 | P95: 2695 | Q95: 2588 | R95: 3110 | S95: 2614 | T95: 1074 | U95: 999 | V95: 3476 | W95: 3759 | X95: 3014 | Y95: 2916 | Z95: 2101 | AA95: 2270 | AB95: 1361 | AC95: 2852 | AD95: 3416 | AE95: 3708 | AF95: 1928 | AG95: 1857 | AH95: 2003 | AI95: 1907 | AJ95: 3269 | AK95: 1917 | AL95: 4092 | AM95: 2625 | AN95: 1903 | AO95: 2942 | AP95: 3962 | AQ95: 3295 | AR95: 3145 | AS95: 2770 | AT95: 1665 | AU95: 1673 | AV95: 3083 | AW95: 3017 | AX95: 3522 | AY95: 956 | AZ95: 3570 | BA95: 2188 | BB95: 992 | BC95: 431 | BD95: 3266 | BE95: 2929 | BF95: 3119 | BG95: 3416 | BH95: 3161 | BI95: 2728 | BJ95: 3837 | BK95: 2184 | BL95: 3223 | BM95: 4613 | BN95: 3189 | BO95: 3007 | BP95: 3856 | BQ95: 13868 | BR95: 3637 | BS95: 1703 | BT95: 3211 | BU95: 4104 | BV95: 1631 | BW95: 1635 | BX95: 861 | BY95: 3452 | BZ95: 1915 | CA95: 3438 | CB95: 2918 | CC95: 4132 | CD95: 3755 | CE95: 389 | CF95: 2791 | CG95: 3716 | CH95: 4088 | CI95: 3211 | CJ95: 1597 | CK95: 3509 | CL95: 1103 | CM95: 1888 | CN95: 1256 | CO95: 1258 | CP95: 2870 | CR95: 2026 | CS95: 3338 | CT95: 1014 | CU95: 3414 | CV95: 3169 | CW95: 3467 | CX95: 3329 | CY95: 3512 | CZ95: 886 | DA95: 3201 | DB95: 3459 | DC95: 3709 | DD95: 2984 | DE95: 3724 | DF95: 1600 | DG95: 1156 | DH95: 3550 | DI95: 1246 | DJ95: 3192 | DK95: 590 | DL95: 2722 | DM95: 4448 | DN95: 3423 | DO95: 3934 | DP95: 3441 | DQ95: 3392 | DR95: 2830 | DS95: 3194 | DT95: 1094 | DU95: 3944 | DV95: 27995 | DW95: 3510 | DX95: 3555 | DY95: 2576 | DZ95: 2547 | EA95: 3326 | EB95: 835 | EC95: 2568 | ED95: 2958 | EE95: 102745 | EF95: 4025 | EG95: 1405 | EH95: 3032 | EI95: 3358 | EJ95: 4094 | EK95: 2194 | EL95: 3501 | EM95: 3824 | EN95: 692 | EO95: 1504 | EP95: 3903 | EQ95: 3775 | ER95: 1996 | ES95: 2791 | ET95: 4032 | EU95: 3410 | EV95: 1496 | EW95: 2960 | EX95: 2549 | EY95: 2307 | EZ95: 4410 | FA95: 3285 | FB95: 2862 | FC95: 3699 | FD95: 4381 | FE95: 2248 | FF95: 1193 | FG95: 2659 | FH95: 736 | FI95: 4270 | FJ95: 1546 | FK95: 2905 | FL95: 3899 | FM95: 2352 | FN95: 1591 | FO95: 1503 | FP95: 2496 | FQ95: 3502 | FR95: 3870 | FS95: 3351 | FT95: 401 | FU95: 3881 | FV95: 3968 | FW95: 3554 | FX95: 52608 | FY95: 3973 | FZ95: 3760 | GA95: 3439 | GB95: 18431 | GC95: 4185 | GD95: 1383 | GE95: 1713 | GF95: 4011 | GG95: 1972 | GH95: 2856 | GI95: 1492 | GJ95: 4743 | GK95: 4052 | GL95: 3831 | GM95: 3410 | GN95: 2568 | GO95: 3162 | GP95: 1581 | GQ95: 4616 | GR95: 3443 | GS95: 2162 | GT95: 2846 | GU95: 4564 | GV95: 18655 | GW95: 4013 | GX95: 1589 | GY95: 2715 | GZ95: 1459 | HA95: 3529 | HB95: 3631 | HC95: 3445 | HD95: 3306 | HE95: 3296 | HF95: 3098 | HG95: 1957 | HH95: 3303 | HI95: 817698 | HJ95: 3821.018692
A96: SAINT-MALO-DE-GUERSAC | B96: 3182 | C96: 1209 | D96: 2358 | E96: 2689 | F96: 2964 | G96: 2431 | H96: 3244 | I96: 2420 | J96: 2669 | K96: 2549 | L96: 2595 | M96: 1549 | N96: 1496 | O96: 1912 | P96: 2701 | Q96: 1206 | R96: 4344 | S96: 1227 | T96: 1236 | U96: 2004 | V96: 3482 | W96: 3765 | X96: 3020 | Y96: 2922 | Z96: 2976 | AA96: 2355 | AB96: 1173 | AC96: 2858 | AD96: 3422 | AE96: 3714 | AF96: 541 | AG96: 910 | AH96: 2008 | AI96: 359 | AJ96: 3275 | AK96: 1922 | AL96: 4098 | AM96: 2896 | AN96: 1300 | AO96: 2948 | AP96: 3126 | AQ96: 2842 | AR96: 3150 | AS96: 1383 | AT96: 2315 | AU96: 1679 | AV96: 3089 | AW96: 3022 | AX96: 3527 | AY96: 2557 | AZ96: 3575 | BA96: 2533 | BB96: 1493 | BC96: 2038 | BD96: 1880 | BE96: 3555 | BF96: 3080 | BG96: 3614 | BH96: 2126 | BI96: 1346 | BJ96: 3843 | BK96: 1440 | BL96: 3229 | BM96: 4158 | BN96: 3293 | BO96: 1625 | BP96: 2469 | BQ96: 13873 | BR96: 2255 | BS96: 491 | BT96: 1829 | BU96: 4110 | BV96: 953 | BW96: 2894 | BX96: 1313 | BY96: 3458 | BZ96: 2925 | CA96: 3443 | CB96: 2923 | CC96: 4137 | CD96: 3746 | CE96: 1987 | CF96: 3265 | CG96: 2334 | CH96: 4093 | CI96: 3217 | CJ96: 3199 | CK96: 3514 | CL96: 1753 | CM96: 1841 | CN96: 876 | CO96: 1343 | CP96: 1488 | CQ96: 2026 | CS96: 3396 | CT96: 2715 | CU96: 3471 | CV96: 3227 | CW96: 2142 | CX96: 2005 | CY96: 3570 | CZ96: 1598 | DA96: 4468 | DB96: 3517 | DC96: 3767 | DD96: 2926 | DE96: 3782 | DF96: 739 | DG96: 1194 | DH96: 3648 | DI96: 1036 | DJ96: 2620 | DK96: 1639 | DL96: 1397 | DM96: 4506 | DN96: 3481 | DO96: 3992 | DP96: 2116 | DQ96: 2067 | DR96: 2888 | DS96: 3106 | DT96: 2796 | DU96: 4002 | DV96: 28053 | DW96: 2432 | DX96: 4295 | DY96: 3385 | DZ96: 1763 | EA96: 3783 | EB96: 2479 | EC96: 3598 | ED96: 1634 | EE96: 102803 | EF96: 4008 | EG96: 1011 | EH96: 4153 | EI96: 2375 | EJ96: 4151 | EK96: 2910 | EL96: 2714 | EM96: 3882 | EN96: 1535 | EO96: 2086 | EP96: 3960 | EQ96: 3462 | ER96: 3245 | ES96: 4058 | ET96: 3331 | EU96: 3468 | EV96: 1554 | EW96: 3769 | EX96: 3750 | EY96: 1645 | EZ96: 4518 | FA96: 4183 | FB96: 1954 | FC96: 3757 | FD96: 3740 | FE96: 4012 | FF96: 2505 | FG96: 4089 | FH96: 1941 | FI96: 3570 | FJ96: 2651 | FK96: 2963 | FL96: 3956 | FM96: 3629 | FN96: 3169 | FO96: 2578 | FP96: 3764 | FQ96: 2177 | FR96: 3330 | FS96: 4052 | FT96: 1814 | FU96: 3939 | FV96: 2643 | FW96: 2229 | FX96: 53513 | FY96: 4031 | FZ96: 3117 | GA96: 3497 | GB96: 18489 | GC96: 4243 | GD96: 3147 | GE96: 2819 | GF96: 4182 | GG96: 3737 | GH96: 3736 | GI96: 3256 | GJ96: 4801 | GK96: 4110 | GL96: 3960 | GM96: 4677 | GN96: 3925 | GO96: 2896 | GP96: 1570 | GQ96: 4674 | GR96: 4710 | GS96: 3330 | GT96: 4113 | GU96: 4622 | GV96: 18713 | GW96: 4714 | GX96: 1463 | GY96: 4322 | GZ96: 3165 | HA96: 4712 | HB96: 4988 | HC96: 4802 | HD96: 4378 | HE96: 4904 | HF96: 4365 | HG96: 3721 | HH96: 4980 | HI96: 845850 | HJ96: 3952.570093
A97: LA CHAPELLE-HEULIN | B97: 1688 | C97: 3787 | D97: 1994 | E97: 1730 | F97: 1062 | G97: 1611 | H97: 1099 | I97: 2412 | J97: 1310 | K97: 1569 | L97: 1592 | M97: 4127 | N97: 4073 | O97: 3469 | P97: 1050 | Q97: 3779 | R97: 4014 | S97: 3805 | T97: 3002 | U97: 2689 | V97: 569 | W97: 2080 | X97: 1055 | Y97: 806 | Z97: 2455 | AA97: 1791 | AB97: 2690 | AC97: 1357 | AD97: 509 | AE97: 1953 | AF97: 3119 | AG97: 3082 | AH97: 1876 | AI97: 3098 | AJ97: 755 | AK97: 2044 | AL97: 998 | AM97: 1707 | AN97: 3818 | AO97: 1968 | AP97: 2511 | AQ97: 2320 | AR97: 1723 | AS97: 3961 | AT97: 2018 | AU97: 2054 | AV97: 690 | AW97: 2042 | AX97: 1037 | AY97: 3488 | AZ97: 1928 | BA97: 2133 | BB97: 3245 | BC97: 3351 | BD97: 4457 | BE97: 2129 | BF97: 2145 | BG97: 2266 | BH97: 4704 | BI97: 3486 | BJ97: 784 | BK97: 4058 | BL97: 534 | BM97: 2703 | BN97: 1832 | BO97: 3141 | BP97: 5047 | BQ97: 11690 | BR97: 2671 | BS97: 3472 | BT97: 3703 | BU97: 1713 | BV97: 3572 | BW97: 2625 | BX97: 2700 | BY97: 1834 | BZ97: 2519 | CA97: 1699 | CB97: 1994 | CC97: 2584 | CD97: 1851 | CE97: 3535 | CF97: 1839 | CG97: 2996 | CH97: 993 | CI97: 1408 | CJ97: 3011 | CK97: 974 | CL97: 2596 | CM97: 2502 | CN97: 2655 | CO97: 2307 | CP97: 3314 | CQ97: 3338 | CR97: 3396 | CT97: 4068 | CU97: 421 | CV97: 1389 | CW97: 2798 | CX97: 4617 | CY97: 1531 | CZ97: 2748 | DA97: 3564 | DB97: 938 | DC97: 455 | DD97: 2081 | DE97: 729 | DF97: 3385 | DG97: 2577 | DH97: 2182 | DI97: 3170 | DJ97: 2289 | DK97: 3096 | DL97: 3440 | DM97: 1451 | DN97: 536 | DO97: 2267 | DP97: 2920 | DQ97: 3123 | DR97: 1927 | DS97: 2291 | DT97: 4109 | DU97: 2422 | DV97: 26530 | DW97: 2607 | DX97: 2771 | DY97: 2039 | DZ97: 4376 | EA97: 1992 | EB97: 3889 | EC97: 2387 | ED97: 3104 | EE97: 101279 | EF97: 2357 | EG97: 3285 | EH97: 2895 | EI97: 4987 | EJ97: 1138 | EK97: 2077 | EL97: 2598 | EM97: 925 | EN97: 3089 | EO97: 2225 | EP97: 2316 | EQ97: 2307 | ER97: 2773 | ES97: 3154 | ET97: 2414 | EU97: 406 | EV97: 2026 | EW97: 2402 | EX97: 3268 | EY97: 4252 | EZ97: 2989 | FA97: 2638 | FB97: 4566 | FC97: 1041 | FD97: 2763 | FE97: 3495 | FF97: 2734 | FG97: 3608 | FH97: 3609 | FI97: 2652 | FJ97: 2438 | FK97: 2002 | FL97: 993 | FM97: 3147 | FN97: 2906 | FO97: 2424 | FP97: 2826 | FQ97: 3149 | FR97: 2252 | FS97: 2529 | FT97: 2917 | FU97: 1120 | FV97: 2781 | FW97: 3999 | FX97: 51990 | FY97: 869 | FZ97: 2505 | GA97: 799 | GB97: 16965 | GC97: 2752 | GD97: 3187 | GE97: 2346 | GF97: 2658 | GG97: 3217 | GH97: 2369 | GI97: 3260 | GJ97: 3157 | GK97: 984 | GL97: 2437 | GM97: 3514 | GN97: 3444 | GO97: 2259 | GP97: 2569 | GQ97: 3030 | GR97: 3300 | GS97: 2849 | GT97: 3209 | GU97: 3081 | GV97: 16531 | GW97: 3191 | GX97: 2900 | GY97: 3841 | GZ97: 3990 | HA97: 3226 | HB97: 4416 | HC97: 4231 | HD97: 2927 | HE97: 4422 | HF97: 3461 | HG97: 3297 | HH97: 4499 | HI97: 758522 | HJ97: 3544.495327
A98: SAINT-NICOLAS-DE-REDON | B98: 3937 | C98: 3356 | D98: 3113 | E98: 3444 | F98: 3719 | G98: 3170 | H98: 3998 | I98: 3175 | J98: 3424 | K98: 3304 | L98: 3290 | M98: 3248 | N98: 3557 | O98: 4054 | P98: 3455 | Q98: 3349 | R98: 3078 | S98: 3374 | T98: 1636 | U98: 1548 | V98: 4237 | W98: 4519 | X98: 3775 | Y98: 3676 | Z98: 2650 | AA98: 2819 | AB98: 2121 | AC98: 3613 | AD98: 4176 | AE98: 4396 | AF98: 2688 | AG98: 2574 | AH98: 2763 | AI98: 2667 | AJ98: 4030 | AK98: 2641 | AL98: 4853 | AM98: 3175 | AN98: 2210 | AO98: 3703 | AP98: 4722 | AQ98: 4055 | AR98: 3905 | AS98: 3147 | AT98: 2215 | AU98: 2433 | AV98: 3843 | AW98: 3777 | AX98: 4282 | AY98: 893 | AZ98: 4330 | BA98: 2737 | BB98: 1299 | BC98: 988 | BD98: 3853 | BE98: 3478 | BF98: 3880 | BG98: 3966 | BH98: 3468 | BI98: 3488 | BJ98: 4598 | BK98: 2491 | BL98: 3983 | BM98: 5373 | BN98: 3739 | BO98: 3767 | BP98: 4322 | BQ98: 14628 | BR98: 4397 | BS98: 2243 | BT98: 3971 | BU98: 4865 | BV98: 1938 | BW98: 2088 | BX98: 1729 | BY98: 4213 | BZ98: 2467 | CA98: 4198 | CB98: 3678 | CC98: 4819 | CD98: 4305 | CE98: 954 | CF98: 3341 | CG98: 4476 | CH98: 4848 | CI98: 3971 | CJ98: 1565 | CK98: 4269 | CL98: 1653 | CM98: 2648 | CN98: 2043 | CO98: 2018 | CP98: 3630 | CQ98: 1014 | CR98: 2715 | CS98: 4068 | CU98: 4200 | CV98: 3956 | CW98: 4254 | CX98: 3929 | CY98: 4299 | CZ98: 1684 | DA98: 3149 | DB98: 4246 | DC98: 4496 | DD98: 3771 | DE98: 4511 | DF98: 2061 | DG98: 1990 | DH98: 4118 | DI98: 1908 | DJ98: 3979 | DK98: 1433 | DL98: 3509 | DM98: 5235 | DN98: 4210 | DO98: 4721 | DP98: 4228 | DQ98: 4179 | DR98: 3617 | DS98: 3981 | DT98: 450 | DU98: 4764 | DV98: 28782 | DW98: 4297 | DX98: 3994 | DY98: 3144 | DZ98: 2865 | EA98: 3893 | EB98: 524 | EC98: 3007 | ED98: 3745 | EE98: 102573 | EF98: 4812 | EG98: 1816 | EH98: 3471 | EI98: 3676 | EJ98: 4880 | EK98: 2762 | EL98: 4288 | EM98: 4611 | EN98: 1167 | EO98: 2072 | EP98: 4658 | EQ98: 4562 | ER98: 2435 | ES98: 3016 | ET98: 4819 | EU98: 4197 | EV98: 2234 | EW98: 3504 | EX98: 2685 | EY98: 2625 | EZ98: 4849 | FA98: 3724 | FB98: 3180 | FC98: 4486 | FD98: 5168 | FE98: 2202 | FF98: 1664 | FG98: 2613 | FH98: 814 | FI98: 5057 | FJ98: 1971 | FK98: 3692 | FL98: 4686 | FM98: 2306 | FN98: 1808 | FO98: 2070 | FP98: 2935 | FQ98: 4289 | FR98: 4657 | FS98: 3790 | FT98: 1391 | FU98: 4668 | FV98: 4755 | FW98: 4341 | FX98: 52054 | FY98: 4760 | FZ98: 4547 | GA98: 4226 | GB98: 19218 | GC98: 4773 | GD98: 1337 | GE98: 2140 | GF98: 4450 | GG98: 1926 | GH98: 3295 | GI98: 1446 | GJ98: 5499 | GK98: 4839 | GL98: 4270 | GM98: 3398 | GN98: 2522 | GO98: 3949 | GP98: 2368 | GQ98: 5372 | GR98: 3616 | GS98: 2290 | GT98: 3285 | GU98: 5133 | GV98: 19442 | GW98: 4187 | GX98: 2376 | GY98: 2668 | GZ98: 819 | HA98: 3919 | HB98: 3584 | HC98: 3399 | HD98: 3745 | HE98: 3250 | HF98: 3399 | HG98: 1911 | HH98: 3162 | HI98: 937981 | HJ98: 4383.088785
A99: LE PALLET | B99: 1763 | C99: 3862 | D99: 2070 | E99: 1806 | F99: 1138 | G99: 1687 | H99: 1059 | I99: 2487 | J99: 1385 | K99: 1645 | L99: 1667 | M99: 4202 | N99: 4149 | O99: 3545 | P99: 1125 | Q99: 3855 | R99: 4089 | S99: 3880 | T99: 3078 | U99: 2764 | V99: 624 | W99: 2197 | X99: 1358 | Y99: 881 | Z99: 2530 | AA99: 1867 | AB99: 2765 | AC99: 1481 | AD99: 927 | AE99: 2174 | AF99: 3194 | AG99: 3157 | AH99: 1952 | AI99: 3174 | AJ99: 1173 | AK99: 2119 | AL99: 657 | AM99: 1782 | AN99: 3894 | AO99: 2043 | AP99: 2627 | AQ99: 2396 | AR99: 1798 | AS99: 4037 | AT99: 2093 | AU99: 2130 | AV99: 885 | AW99: 2118 | AX99: 1456 | AY99: 3564 | AZ99: 2008 | BA99: 2209 | BB99: 3321 | BC99: 3426 | BD99: 4533 | BE99: 2205 | BF99: 2220 | BG99: 2341 | BH99: 4779 | BI99: 3562 | BJ99: 440 | BK99: 4134 | BL99: 472 | BM99: 2589 | BN99: 1908 | BO99: 3217 | BP99: 5122 | BQ99: 11667 | BR99: 2747 | BS99: 3547 | BT99: 3778 | BU99: 1599 | BV99: 3648 | BW99: 2700 | BX99: 2776 | BY99: 1997 | BZ99: 2594 | CA99: 1585 | CB99: 2069 | CC99: 2697 | CD99: 2221 | CE99: 3611 | CF99: 1914 | CG99: 3071 | CH99: 652 | CI99: 1295 | CJ99: 3087 | CK99: 860 | CL99: 2672 | CM99: 2577 | CN99: 2731 | CO99: 2382 | CP99: 3390 | CQ99: 3414 | CR99: 3471 | CS99: 421 | CT99: 4200 | CV99: 1599 | CW99: 2962 | CX99: 4781 | CY99: 1435 | CZ99: 2911 | DA99: 3728 | DB99: 842 | DC99: 843 | DD99: 2245 | DE99: 633 | DF99: 3549 | DG99: 2741 | DH99: 2389 | DI99: 3333 | DJ99: 2453 | DK99: 3260 | DL99: 3604 | DM99: 1093 | DN99: 441 | DO99: 2171 | DP99: 3084 | DQ99: 3287 | DR99: 2090 | DS99: 2455 | DT99: 4272 | DU99: 2629 | DV99: 26693 | DW99: 2771 | DX99: 2935 | DY99: 2203 | DZ99: 4539 | EA99: 2156 | EB99: 4053 | EC99: 2551 | ED99: 3267 | EE99: 101443 | EF99: 2262 | EG99: 3449 | EH99: 3059 | EI99: 5151 | EJ99: 860 | EK99: 2241 | EL99: 2762 | EM99: 729 | EN99: 3253 | EO99: 2388 | EP99: 2524 | EQ99: 2463 | ER99: 2937 | ES99: 3318 | ET99: 2570 | EU99: 310 | EV99: 2190 | EW99: 2566 | EX99: 3432 | EY99: 4415 | EZ99: 3196 | FA99: 2801 | FB99: 4730 | FC99: 945 | FD99: 2933 | FE99: 3659 | FF99: 2898 | FG99: 3772 | FH99: 3772 | FI99: 2808 | FJ99: 2602 | FK99: 2166 | FL99: 1034 | FM99: 3311 | FN99: 3070 | FO99: 2588 | FP99: 2990 | FQ99: 3313 | FR99: 2408 | FS99: 2692 | FT99: 3081 | FU99: 1508 | FV99: 2937 | FW99: 4163 | FX99: 52153 | FY99: 1235 | FZ99: 2661 | GA99: 703 | GB99: 17129 | GC99: 2883 | GD99: 3351 | GE99: 2510 | GF99: 2822 | GG99: 3381 | GH99: 2533 | GI99: 3424 | GJ99: 3198 | GK99: 1188 | GL99: 2600 | GM99: 3677 | GN99: 3607 | GO99: 2423 | GP99: 2732 | GQ99: 3147 | GR99: 3464 | GS99: 3013 | GT99: 3373 | GU99: 3221 | GV99: 16421 | GW99: 3355 | GX99: 3063 | GY99: 4004 | GZ99: 4153 | HA99: 3389 | HB99: 4580 | HC99: 4394 | HD99: 3090 | HE99: 4586 | HF99: 3625 | HG99: 3461 | HH99: 4662 | HI99: 781076 | HJ99: 3649.88785
A100: MAUVES-SUR-LOIRE | B100: 1622 | C100: 3617 | D100: 1825 | E100: 1755 | F100: 1087 | G100: 1442 | H100: 1461 | I100: 2242 | J100: 808 | K100: 1594 | L100: 1344 | M100: 3957 | N100: 3904 | O100: 3494 | P100: 820 | Q100: 3610 | R100: 3258 | S100: 3635 | T100: 2833 | U100: 2519 | V100: 1637 | W100: 2105 | X100: 449 | Y100: 1174 | Z100: 1790 | AA100: 1622 | AB100: 2520 | AC100: 1382 | AD100: 1026 | AE100: 1429 | AF100: 2949 | AG100: 2912 | AH100: 1707 | AI100: 2929 | AJ100: 743 | AK100: 1874 | AL100: 2221 | AM100: 1240 | AN100: 3649 | AO100: 1993 | AP100: 2535 | AQ100: 2345 | AR100: 1747 | AS100: 3792 | AT100: 1849 | AU100: 1885 | AV100: 1211 | AW100: 2067 | AX100: 516 | AY100: 3319 | AZ100: 1953 | BA100: 1898 | BB100: 3076 | BC100: 3181 | BD100: 4288 | BE100: 932 | BF100: 2170 | BG100: 1227 | BH100: 4535 | BI100: 3511 | BJ100: 1966 | BK100: 3889 | BL100: 1351 | BM100: 2959 | BN100: 704 | BO100: 3166 | BP100: 4877 | BQ100: 12013 | BR100: 2696 | BS100: 3303 | BT100: 3727 | BU100: 2450 | BV100: 3403 | BW100: 2455 | BX100: 2531 | BY100: 501 | BZ100: 2224 | CA100: 1784 | CB100: 2019 | CC100: 1853 | CD100: 868 | CE100: 3366 | CF100: 1204 | CG100: 3020 | CH100: 2216 | CI100: 1557 | CJ100: 2842 | CK100: 1855 | CL100: 2427 | CM100: 2333 | CN100: 2486 | CO100: 2137 | CP100: 3339 | CQ100: 3169 | CR100: 3227 | CS100: 1389 | CT100: 3956 | CU100: 1599 | CW100: 2958 | CX100: 4429 | CY100: 2028 | CZ100: 2560 | DA100: 2640 | DB100: 1974 | DC100: 1327 | DD100: 2241 | DE100: 1975 | DF100: 3197 | DG100: 2390 | DH100: 1041 | DI100: 2982 | DJ100: 2449 | DK100: 2909 | DL100: 3600 | DM100: 2699 | DN100: 1674 | DO100: 2450 | DP100: 3080 | DQ100: 3283 | DR100: 2087 | DS100: 2451 | DT100: 3921 | DU100: 1688 | DV100: 26127 | DW100: 2767 | DX100: 2031 | DY100: 1344 | DZ100: 4188 | EA100: 788 | EB100: 3701 | EC100: 1692 | ED100: 3264 | EE100: 100877 | EF100: 2541 | EG100: 3097 | EH100: 1755 | EI100: 4800 | EJ100: 2394 | EK100: 1674 | EL100: 2758 | EM100: 2181 | EN100: 2902 | EO100: 2037 | EP100: 1583 | EQ100: 2440 | ER100: 2363 | ES100: 2459 | ET100: 2547 | EU100: 1661 | EV100: 1839 | EW100: 1278 | EX100: 2657 | EY100: 4064 | EZ100: 2255 | FA100: 1434 | FB100: 4379 | FC100: 2214 | FD100: 2897 | FE100: 3308 | FF100: 2546 | FG100: 3368 | FH100: 3421 | FI100: 2786 | FJ100: 2250 | FK100: 2162 | FL100: 1782 | FM100: 2931 | FN100: 2719 | FO100: 2237 | FP100: 2131 | FQ100: 3309 | FR100: 2386 | FS100: 1546 | FT100: 2729 | FU100: 972 | FV100: 2914 | FW100: 4159 | FX100: 51587 | FY100: 1205 | FZ100: 2639 | GA100: 1690 | GB100: 16562 | GC100: 2072 | GD100: 2999 | GE100: 2159 | GF100: 1938 | GG100: 3029 | GH100: 1488 | GI100: 3073 | GJ100: 2423 | GK100: 1388 | GL100: 1716 | GM100: 2654 | GN100: 2947 | GO100: 2419 | GP100: 2381 | GQ100: 2297 | GR100: 2440 | GS100: 2661 | GT100: 2230 | GU100: 2347 | GV100: 17171 | GW100: 2471 | GX100: 2712 | GY100: 3601 | GZ100: 3802 | HA100: 2287 | HB100: 3651 | HC100: 3505 | HD100: 1933 | HE100: 3859 | HF100: 2537 | HG100: 3110 | HH100: 3871 | HI100: 730607 | HJ100: 3414.051402
A101: FROSSAY | B101: 2383 | C101: 2153 | D101: 1944 | E101: 1697 | F101: 2239 | G101: 2263 | H101: 2288 | I101: 2500 | J101: 2502 | K101: 1420 | L101: 2428 | M101: 2508 | N101: 2455 | O101: 1553 | P101: 2392 | Q101: 1416 | R101: 4726 | S101: 2186 | T101: 2677 | U101: 3340 | V101: 2967 | W101: 2537 | X101: 2630 | Y101: 2275 | Z101: 3204 | AA101: 2443 | AB101: 2614 | AC101: 1902 | AD101: 2907 | AE101: 3547 | AF101: 1767 | AG101: 2282 | AH101: 2188 | AI101: 1959 | AJ101: 2735 | AK101: 2407 | AL101: 3483 | AM101: 2729 | AN101: 3198 | AO101: 1542 | AP101: 2254 | AQ101: 1393 | AR101: 2004 | AS101: 2343 | AT101: 2670 | AU101: 2417 | AV101: 2574 | AW101: 1221 | AX101: 2997 | AY101: 3998 | AZ101: 2438 | BA101: 2785 | BB101: 3133 | BC101: 3479 | BD101: 2839 | BE101: 3388 | BF101: 1230 | BG101: 3447 | BH101: 3085 | BI101: 1163 | BJ101: 3258 | BK101: 2900 | BL101: 2640 | BM101: 3309 | BN101: 3126 | BO101: 649 | BP101: 3428 | BQ101: 13157 | BR101: 1024 | BS101: 2517 | BT101: 1697 | BU101: 3155 | BV101: 2979 | BW101: 3276 | BX101: 2754 | BY101: 3291 | BZ101: 3170 | CA101: 2488 | CB101: 1768 | CC101: 3970 | CD101: 3562 | CE101: 3423 | CF101: 3097 | CG101: 1547 | CH101: 3588 | CI101: 2261 | CJ101: 3663 | CK101: 2559 | CL101: 2959 | CM101: 2865 | CN101: 2317 | CO101: 2670 | CP101: 715 | CQ101: 3467 | CR101: 2142 | CS101: 2798 | CT101: 4254 | CU101: 2962 | CV101: 2958 | CX101: 2946 | CY101: 2556 | CZ101: 2817 | DA101: 4770 | DB101: 2502 | DC101: 3147 | DD101: 1469 | DE101: 2803 | DF101: 2405 | DG101: 2413 | DH101: 3432 | DI101: 2256 | DJ101: 636 | DK101: 2893 | DL101: 819 | DM101: 3886 | DN101: 2861 | DO101: 2978 | DP101: 690 | DQ101: 1447 | DR101: 1228 | DS101: 1681 | DT101: 4225 | DU101: 3786 | DV101: 27837 | DW101: 941 | DX101: 4078 | DY101: 3393 | DZ101: 2705 | EA101: 3357 | EB101: 3885 | EC101: 3741 | ED101: 482 | EE101: 102587 | EF101: 3051 | EG101: 2676 | EH101: 4202 | EI101: 3317 | EJ101: 3137 | EK101: 3079 | EL101: 1218 | EM101: 2868 | EN101: 2973 | EO101: 2981 | EP101: 3744 | EQ101: 2078 | ER101: 3530 | ES101: 4357 | ET101: 2406 | EU101: 2848 | EV101: 2469 | EW101: 3756 | EX101: 4025 | EY101: 3014 | EZ101: 4302 | FA101: 4002 | FB101: 2896 | FC101: 2742 | FD101: 2815 | FE101: 4252 | FF101: 3491 | FG101: 4365 | FH101: 3465 | FI101: 2645 | FJ101: 3195 | FK101: 1560 | FL101: 3337 | FM101: 3904 | FN101: 3663 | FO101: 3181 | FP101: 4048 | FQ101: 1473 | FR101: 2405 | FS101: 3836 | FT101: 3034 | FU101: 3343 | FV101: 1722 | FW101: 2034 | FX101: 53297 | FY101: 3435 | FZ101: 2061 | GA101: 2613 | GB101: 18272 | GC101: 4026 | GD101: 3944 | GE101: 3103 | GF101: 3966 | GG101: 3974 | GH101: 3723 | GI101: 4017 | GJ101: 4585 | GK101: 3490 | GL101: 3744 | GM101: 4821 | GN101: 4201 | GO101: 912 | GP101: 2789 | GQ101: 4458 | GR101: 4607 | GS101: 3606 | GT101: 4398 | GU101: 4405 | GV101: 17699 | GW101: 4498 | GX101: 2682 | GY101: 4597 | GZ101: 4442 | HA101: 4533 | HB101: 5264 | HC101: 5078 | HD101: 4234 | HE101: 5179 | HF101: 4650 | HG101: 4054 | HH101: 5256 | HI101: 843311 | HJ101: 3940.705607
A102: BATZ-SUR-MER | B102: 4486 | C102: 1784 | D102: 3662 | E102: 3993 | F102: 4268 | G102: 3734 | H102: 4547 | I102: 3724 | J102: 3973 | K102: 3853 | L102: 3899 | M102: 890 | N102: 1004 | O102: 2816 | P102: 4005 | Q102: 2111 | R102: 5648 | S102: 1491 | T102: 2540 | U102: 3307 | V102: 4786 | W102: 4669 | X102: 4324 | Y102: 4225 | Z102: 4280 | AA102: 3659 | AB102: 2477 | AC102: 4162 | AD102: 4725 | AE102: 5018 | AF102: 1630 | AG102: 2213 | AH102: 3312 | AI102: 1822 | AJ102: 4579 | AK102: 3226 | AL102: 5402 | AM102: 4200 | AN102: 1774 | AO102: 3969 | AP102: 4030 | AQ102: 3746 | AR102: 4454 | AS102: 1340 | AT102: 3619 | AU102: 2982 | AV102: 4392 | AW102: 3975 | AX102: 4831 | AY102: 3861 | AZ102: 4879 | BA102: 3837 | BB102: 2620 | BC102: 3342 | BD102: 741 | BE102: 4859 | BF102: 3984 | BG102: 4918 | BH102: 1307 | BI102: 2250 | BJ102: 5147 | BK102: 1476 | BL102: 4532 | BM102: 5062 | BN102: 4597 | BO102: 2529 | BP102: 551 | BQ102: 15177 | BR102: 3159 | BS102: 2399 | BT102: 2733 | BU102: 5414 | BV102: 2040 | BW102: 4198 | BX102: 2617 | BY102: 4762 | BZ102: 4228 | CA102: 4747 | CB102: 4227 | CC102: 5441 | CD102: 5049 | CE102: 3351 | CF102: 4568 | CG102: 3238 | CH102: 5397 | CI102: 4520 | CJ102: 4502 | CK102: 4818 | CL102: 3057 | CM102: 3145 | CN102: 2180 | CO102: 2647 | CP102: 2392 | CQ102: 3329 | CR102: 2005 | CS102: 4617 | CT102: 3929 | CU102: 4781 | CV102: 4429 | CW102: 2946 | CY102: 4899 | CZ102: 2927 | DA102: 5797 | DB102: 4846 | DC102: 5096 | DD102: 3890 | DE102: 5111 | DF102: 2514 | DG102: 2523 | DH102: 4977 | DI102: 2365 | DJ102: 3584 | DK102: 3003 | DL102: 2361 | DM102: 5835 | DN102: 4810 | DO102: 5226 | DP102: 3080 | DQ102: 3031 | DR102: 4176 | DS102: 4070 | DT102: 4081 | DU102: 5331 | DV102: 29382 | DW102: 3396 | DX102: 5624 | DY102: 4714 | DZ102: 1462 | EA102: 5112 | EB102: 3763 | EC102: 4927 | ED102: 2598 | EE102: 104132 | EF102: 4972 | EG102: 2378 | EH102: 5482 | EI102: 1661 | EJ102: 5480 | EK102: 4239 | EL102: 3678 | EM102: 5211 | EN102: 3076 | EO102: 3415 | EP102: 5289 | EQ102: 4427 | ER102: 4574 | ES102: 5387 | ET102: 4295 | EU102: 4797 | EV102: 2883 | EW102: 5098 | EX102: 5079 | EY102: 1770 | EZ102: 5847 | FA102: 5512 | FB102: 1534 | FC102: 5085 | FD102: 4704 | FE102: 5341 | FF102: 3834 | FG102: 5418 | FH102: 3225 | FI102: 4534 | FJ102: 3980 | FK102: 4038 | FL102: 5285 | FM102: 4958 | FN102: 4498 | FO102: 3907 | FP102: 5093 | FQ102: 3141 | FR102: 4295 | FS102: 5381 | FT102: 3143 | FU102: 5268 | FV102: 3607 | FW102: 3194 | FX102: 54842 | FY102: 5360 | FZ102: 4081 | GA102: 4826 | GB102: 19818 | GC102: 5572 | GD102: 4476 | GE102: 4148 | GF102: 5511 | GG102: 5066 | GH102: 5065 | GI102: 4585 | GJ102: 6130 | GK102: 5439 | GL102: 5289 | GM102: 6006 | GN102: 5254 | GO102: 3860 | GP102: 2899 | GQ102: 6003 | GR102: 6039 | GS102: 4659 | GT102: 5442 | GU102: 5951 | GV102: 20042 | GW102: 6043 | GX102: 2792 | GY102: 5651 | GZ102: 4450 | HA102: 6041 | HB102: 6317 | HC102: 6131 | HD102: 5707 | HE102: 6233 | HF102: 5694 | HG102: 5050 | HH102: 6309 | HI102: 1089527 | HJ102: 5091.247664
